{"text_format":"1","workbook":"xlsx","n_sheets":32,"sheets":["PRESENTACIÓN","Contenido","Recomendaciones1","Listado-Base Legal 2","Listado-Base Legal","Listado-Definicion 2","Listado-Definicion","Listado-Contactos","Base Legal","Datos Contacto","FAQ","Encuesta Original","Encuesta 1_Sist Adm","Encuesta2_Serv_Munic_Locales","Encuesta3_ServProg_Sociales","Cuadro Resumen 3","Cuadro Resumen 2","Cuadro Resumen 1","I.1_SISFOH","I.2_DIS","I.3_CNYPI","II.1_PPTO_MEF","II.1.1_PROG_INC_MEF","II.2_CONT_PUB_MEF","II.3_TESO_MEF","II.4_ENDEUD_MEF","II.5_INV_PUB_MEF","II.6_PLAN_EST_CEPLAN","II.7_CONTR_EST_OSCE","II.9_MODER_ESTADO","II.8_DEF_JURID_ESTADO","II.10_REC_HUM"],"not_rendered":{"charts":20,"images":3,"macros":1,"external_links":0,"defined_names":38,"comments":0,"pivot_tables":0},"unopened":[],"bounds":{"document_bytes":16777216,"sheet_cells":100000,"rows_first":2000,"rows_last":500,"rows_between":2000,"halvings":0,"cell_chars":16384,"cell_head_chars":4096},"cells_cut":0,"cells_raw":0,"read":"whole","date_system":"1900"}

{"sheet":"PRESENTACIÓN","index":0,"n_rows":16,"n_cols":2,"rows_kept":16,"cut":false,"hidden":false,"merged":[[15,5,15,11],[17,5,17,11],[5,1,5,11],[7,1,7,11],[9,1,9,11],[11,1,11,4],[11,5,11,11],[13,5,13,11]]}
[]
[]
[]
[]
[]
[null,"PRESENTACIÓN\n"]
[]
[null,"Esta aplicado provee información que permitirá orientar el proceso de transferencia de gestión en los gobiernos locales.\n"]
[]
[null,"Para faciliar la navegación y el acceso a la información se han diseñado modulos que permiten a través de menús desplegables acceder a los siguientes temas:"]
[]
[null,"1. DIAGNOSTICO - SISTEMAS ADMINISTRATIVOS"]
[]
[null,"2. DIAGNOSTICO - SISTEMAS FUNCIONALES"]
[]
[null,"3. DIAGNOSTICO - SERVICIOS / PROGRAMAS SOCIALES"]

{"sheet":"Contenido","index":1,"n_rows":0,"n_cols":0,"rows_kept":0,"cut":false,"hidden":false,"merged":[]}

{"sheet":"Recomendaciones1","index":2,"n_rows":23,"n_cols":16,"rows_kept":23,"cut":false,"hidden":true,"merged":[[14,1,14,13],[9,1,9,7],[9,8,9,13],[11,1,11,13],[12,1,12,13],[13,1,13,13],[21,1,21,13],[22,1,22,13],[15,1,15,13],[16,1,16,13],[17,1,17,13],[18,1,18,13],[19,1,19,13],[20,1,20,13]]}
[]
[]
[]
[]
[null,null,null,null,null,null,null,null,null,null,null,null,null,null,null,"RETORNAR"]
[null,"RECOMENDACIONES PARA INICIAR UNA GESTIÓN\n"]
[]
[null,null,null,null,null,null,null,null,"Seleccionar del listado el proceso a consultar"]
[]
[null,"SISTEMA ADMINISTRATIVO Y/O FUNCIONAL EN CONSULTA",null,null,null,null,null,null,"I. Transferencia en Municipalidades de reciente creación",null,null,null,null,null,null,{"$f":"I10","v":"I. Transferencia en Municipalidades de reciente creación"}]
[]
[null,"RECOMENDACIONES Y SUGERENCIAS"]
[null,{"$f":"IFERROR(VLOOKUP(P$10&ROWS($C$13:C13),'Listado-Definicion 2'!$A$618:$C$627,3,FALSE),\" \")","v":"1. Solicitar el Informe de Rendición de Cuentas y Transferencia"}]
[null,{"$f":"IFERROR(VLOOKUP(P$10&ROWS($C$13:C14),'Listado-Definicion 2'!$A$618:$C$627,3,FALSE),\" \")","v":"2. Solicitar las resoluciones que designan responsables por sistema administrativo"}]
[null,{"$f":"IFERROR(VLOOKUP(P$10&ROWS($C$13:C15),'Listado-Definicion 2'!$A$618:$C$627,3,FALSE),\" \")","v":"3. Solicitar los usuarios y claves por sistema administrativo"}]
[null,{"$f":"IFERROR(VLOOKUP(P$10&ROWS($C$13:C16),'Listado-Definicion 2'!$A$618:$C$627,3,FALSE),\" \")","v":"4. Solicitar informes de los proceos presupuestarios, contable y de tesorería conforme se indique en los reportes de la presente guía"}]
[null,{"$f":"IFERROR(VLOOKUP(P$10&ROWS($C$13:C17),'Listado-Definicion 2'!$A$618:$C$627,3,FALSE),\" \")","v":"5. Revisar e implementar según correponda, las recomendaciones conforme se indique en los reportes de la presente guía"}]
[null,{"$f":"IFERROR(VLOOKUP(P$10&ROWS($C$13:C18),'Listado-Definicion 2'!$A$618:$C$627,3,FALSE),\" \")","v":" "}]
[null,{"$f":"IFERROR(VLOOKUP(P$10&ROWS($C$13:C19),'Listado-Definicion 2'!$A$618:$C$627,3,FALSE),\" \")","v":" "}]
[null,{"$f":"IFERROR(VLOOKUP(P$10&ROWS($C$13:C20),'Listado-Definicion 2'!$A$618:$C$627,3,FALSE),\" \")","v":" "}]
[null,{"$f":"IFERROR(VLOOKUP(P$10&ROWS($C$13:C21),'Listado-Definicion 2'!$A$618:$C$627,3,FALSE),\" \")","v":" "}]
[null,{"$f":"IFERROR(VLOOKUP(P$10&ROWS($C$13:C22),'Listado-Definicion 2'!$A$618:$C$627,3,FALSE),\" \")","v":" "}]
[null,{"$f":"IFERROR(VLOOKUP(P$10&ROWS($C$13:C23),'Listado-Definicion 2'!$A$618:$C$627,3,FALSE),\" \")","v":" "}]

{"sheet":"Listado-Base Legal 2","index":3,"n_rows":232,"n_cols":3,"rows_kept":232,"cut":false,"hidden":true,"merged":[]}
["Indices","Sistemas Administrativos","BASE LEGAL"]
[{"$f":"B2&COUNTIF($B$2:B2,B2)","v":"01. Gestión de Recursos Humanos1"},"01. Gestión de Recursos Humanos","Decreto Legislativo N° 1023, que crea la Autoridad Nacional del Servicio Civil – SERVIR"]
[{"$f":"B3&COUNTIF($B$2:B3,B3)","v":"01. Gestión de Recursos Humanos2"},"01. Gestión de Recursos Humanos","Ley N° 30057, Ley del Servicio Civil"]
[{"$f":"B4&COUNTIF($B$2:B4,B4)","v":"01. Gestión de Recursos Humanos3"},"01. Gestión de Recursos Humanos","Decreto Supremo N° 040-2014-PCM, Reglamento de la Ley N° 30057, Ley del Servicio Civil."]
[{"$f":"B5&COUNTIF($B$2:B5,B5)","v":"01. Gestión de Recursos Humanos4"},"01. Gestión de Recursos Humanos","Decreto Supremo 007-2010-PCM, que aprueba el Texto Único Ordenado de la normativa del Servicio Civil"]
[{"$f":"B6&COUNTIF($B$2:B6,B6)","v":"01. Gestión de Recursos Humanos5"},"01. Gestión de Recursos Humanos","Resolución Jefatural N° 019-82-INAP/DIGESNAP, que aprueba la Directiva N° 001-82-INAP-DNP, Directiva para la Formulación del Presupuesto Analítico de Personal (PAP) en las entidades del Sector Público."]
[{"$f":"B7&COUNTIF($B$2:B7,B7)","v":"01. Gestión de Recursos Humanos6"},"01. Gestión de Recursos Humanos","Resolución de Presidencia Ejecutiva N° 160-2013-SERVIR/PE, que aprueba los Lineamientos para el tránsito de una entidad pública al régimen del Servicio Civil."]
[{"$f":"B8&COUNTIF($B$2:B8,B8)","v":"01. Gestión de Recursos Humanos7"},"01. Gestión de Recursos Humanos","Resolución de Presidencia Ejecutiva N° 106-2014-SERVIR/PE, que formaliza la aprobación de la Guía de Mapeo de Puestos y anexos, que observarán las entidades públicas a fin de prepararse para la implementación de la Ley N° 30057, Ley del Servicio Civil."]
[{"$f":"B9&COUNTIF($B$2:B9,B9)","v":"01. Gestión de Recursos Humanos8"},"01. Gestión de Recursos Humanos","Resolución de Presidencia Ejecutiva N° 052-2016-SERVIR/PE, que aprueba la Directiva N° 001-2016-SERVIR/GDSRH “Normas para la Gestión del Proceso de Diseño de Puestos y Formulación del Manual de Perfiles de Puestos - MPP” sí como los anexos que forman parte de la misma: Anexo Nº 01: Guía Metodológica para el Diseño de Perfiles de Puestos, aplicable a regímenes distintos a la Ley Nº 30057;  Anexo Nº 02: Guía Metodológica para la elaboración del Manual de Perfiles de Puesto — MPP, aplicable al Régimen de la Ley del Servicio Civil — Ley Nº 30057."]
[{"$f":"B10&COUNTIF($B$2:B10,B10)","v":"01. Gestión de Recursos Humanos9"},"01. Gestión de Recursos Humanos","Resolución 304-2015-SERVIR-PE, Formalizar la aprobación de la Directiva \"Normas para la gestión del proceso de administración de puestos, y elaboración y aprobación del Cuadro de Puestos de la Entidad — CPE\", así como los Anexos 1, 2, 3, 4 y 5 que forman parte de la presente Resolución"]
[{"$f":"B11&COUNTIF($B$2:B11,B11)","v":"01. Gestión de Recursos Humanos10"},"01. Gestión de Recursos Humanos","Decreto Supremo N° 003-97-TR, que aprueba el Texto Único Ordenado del Decreto Legislativo N° 728, Ley de Productividad y Competitividad Laboral y modificatorias."]
[{"$f":"B12&COUNTIF($B$2:B12,B12)","v":"01. Gestión de Recursos Humanos11"},"01. Gestión de Recursos Humanos","Decreto Legislativo N° 1057, que regula el régimen especial de contratación administrativa de servicios."]
[{"$f":"B13&COUNTIF($B$2:B13,B13)","v":"01. Gestión de Recursos Humanos12"},"01. Gestión de Recursos Humanos","Régimen del Decreto Legislativo N° 276, Ley de Bases de la Carrera Administrativa y de Remuneraciones del Sector Público."]
[{"$f":"B14&COUNTIF($B$2:B14,B14)","v":"01. Gestión de Recursos Humanos13"},"01. Gestión de Recursos Humanos","Decreto Supremo N° 040-2014-PCM, que aprueba el Reglamento de la Ley N° 30057, Ley del Servicio Civil."]
[{"$f":"B15&COUNTIF($B$2:B15,B15)","v":"01. Gestión de Recursos Humanos14"},"01. Gestión de Recursos Humanos","Decreto Supremo N° 041-2014-PCM, que aprueban Reglamento del Régimen Especial para Gobiernos Locales"]
[{"$f":"B16&COUNTIF($B$2:B16,B16)","v":"01. Gestión de Recursos Humanos15"},"01. Gestión de Recursos Humanos","Decreto Supremo N° 001-98-TR, Normas reglamentarias relativas a obligación de los empleadores de llevar Planillas de Pago y sus normas modificatorias."]
[{"$f":"B17&COUNTIF($B$2:B17,B17)","v":"01. Gestión de Recursos Humanos16"},"01. Gestión de Recursos Humanos","Decreto Supremo N° 138-2014-EF, Reglamento de Compensaciones de la Ley N° 30057, Ley del Servicio Civil."]
[{"$f":"B18&COUNTIF($B$2:B18,B18)","v":"01. Gestión de Recursos Humanos17"},"01. Gestión de Recursos Humanos","Decreto Ley N° 20530, Régimen de Pensiones y Compensaciones por Servicios Civiles prestados al Estado no comprendidos en el Decreto Ley N° 19990 y sus modificatorias."]
[{"$f":"B19&COUNTIF($B$2:B19,B19)","v":"01. Gestión de Recursos Humanos18"},"01. Gestión de Recursos Humanos","Ley N° 29783, Ley de Seguridad y Salud en el Trabajo y sus modificatorias."]
[{"$f":"B20&COUNTIF($B$2:B20,B20)","v":"01. Gestión de Recursos Humanos19"},"01. Gestión de Recursos Humanos","Decreto Supremo N° 005-2012-TR, Reglamento de la Ley N° 29783, Ley de Seguridad y Salud en el Trabajo y sus modificatorias."]
[{"$f":"B21&COUNTIF($B$2:B21,B21)","v":"02. Bienes estatales1"},"02. Bienes estatales","Ley N° 29151, Ley General del Sistema Nacional de Bienes Estatales y sus modificatorias."]
[{"$f":"B22&COUNTIF($B$2:B22,B22)","v":"02. Bienes estatales2"},"02. Bienes estatales","Ley N° 28296, Ley General del Patrimonio Cultural de la Nación y sus modificatorias."]
[{"$f":"B23&COUNTIF($B$2:B23,B23)","v":"02. Bienes estatales3"},"02. Bienes estatales","Ley Nº 29588 - Complementa facultades de la SBN (modificada por la Ley N° 29928)"]
[{"$f":"B24&COUNTIF($B$2:B24,B24)","v":"02. Bienes estatales4"},"02. Bienes estatales","Ley Nº 29618 - Imprescriptibilidad de los predios de dominio privado del Estado"]
[{"$f":"B25&COUNTIF($B$2:B25,B25)","v":"02. Bienes estatales5"},"02. Bienes estatales","Ley Nº 30047 – Ley que modifica la Ley N° 29151"]
[{"$f":"B26&COUNTIF($B$2:B26,B26)","v":"02. Bienes estatales6"},"02. Bienes estatales","Ley Nº 30076 – Ley que modifica el Código Penal"]
[{"$f":"B27&COUNTIF($B$2:B27,B27)","v":"02. Bienes estatales7"},"02. Bienes estatales","Ley Nº 30230 – (extracto) Ley de Saneamiento y recuperación extrajudicial de predios estatales"]
[{"$f":"B28&COUNTIF($B$2:B28,B28)","v":"02. Bienes estatales8"},"02. Bienes estatales","Decreto Supremo N° 019-2015-VIVIENDA – (extracto) Reglamento de la Ley N° 30230 Decreto Legislativo N° 1187 – Modifica el Código Penal"]
[{"$f":"B29&COUNTIF($B$2:B29,B29)","v":"02. Bienes estatales9"},"02. Bienes estatales","Decreto Legislativo Nº 1187"]
[{"$f":"B30&COUNTIF($B$2:B30,B30)","v":"02. Bienes estatales10"},"02. Bienes estatales","Decreto Legislativo Nº 1192"]
[{"$f":"B31&COUNTIF($B$2:B31,B31)","v":"02. Bienes estatales11"},"02. Bienes estatales","Ley 30327 Ley de promoción de las inversiones para el crecimiento económico"]
[{"$f":"B32&COUNTIF($B$2:B32,B32)","v":"02. Bienes estatales12"},"02. Bienes estatales","Ley 30556 Ley que aprueba disposiciones de carácter extraordinario"]
[{"$f":"B33&COUNTIF($B$2:B33,B33)","v":"03. Archivo Nacional y Patrimonio1"},"03. Archivo Nacional y Patrimonio","Ley N° 25323, que crea el Sistema Nacional de Archivos."]
[{"$f":"B34&COUNTIF($B$2:B34,B34)","v":"03. Archivo Nacional y Patrimonio2"},"03. Archivo Nacional y Patrimonio","Decreto Supremo N° 011-2006-ED, Reglamento de la Ley N° 28296 Ley General del Patrimonio Cultural de la Nación."]
[{"$f":"B35&COUNTIF($B$2:B35,B35)","v":"03. Archivo Nacional y Patrimonio3"},"03. Archivo Nacional y Patrimonio","Decreto Supremo N° 008-92-JUS, Reglamento de la Ley N° 25323 que crea el Sistema Nacional de Archivos y sus modificatorias."]
[{"$f":"B36&COUNTIF($B$2:B36,B36)","v":"03. Archivo Nacional y Patrimonio4"},"03. Archivo Nacional y Patrimonio","Decreto Ley N° 19414, declara de utilidad pública la Defensa, Conservación e Incremento del Patrimonio Documental de la Nación."]
[{"$f":"B37&COUNTIF($B$2:B37,B37)","v":"03. Archivo Nacional y Patrimonio5"},"03. Archivo Nacional y Patrimonio","Decreto Supremo N° 022-75-ED, Reglamento del Decreto Ley N° 19414."]
[{"$f":"B38&COUNTIF($B$2:B38,B38)","v":"03. Archivo Nacional y Patrimonio6"},"03. Archivo Nacional y Patrimonio","Resolución Jefatural N° 339-2013-AGN/J, que aprueba la Directiva N° 001-2013- ANG-DNDAAI. Procedimientos Técnicos Archivísticos para Municipalidades."]
[{"$f":"B39&COUNTIF($B$2:B39,B39)","v":"03. Archivo Nacional y Patrimonio7"},"03. Archivo Nacional y Patrimonio","Resolución Jefatural N° 073-85-AGN/J, Normas Generales del Sistema General de Archivos."]
[{"$f":"B40&COUNTIF($B$2:B40,B40)","v":"03. Archivo Nacional y Patrimonio8"},"03. Archivo Nacional y Patrimonio","Resolución Jefatural N° 117-86-AGN/J, que aprueba la Directiva N° 003-86/AGN-DGAI. Normas para la formulación del Plan Anual de Archivos Administrativos del Sector Público Nacional."]
[{"$f":"B41&COUNTIF($B$2:B41,B41)","v":"03. Archivo Nacional y Patrimonio9"},"03. Archivo Nacional y Patrimonio","Resolución Jefatural N° 173-86-AGN/J, que aprueba las siguientes Directivas:"]
[{"$f":"B42&COUNTIF($B$2:B42,B42)","v":"03. Archivo Nacional y Patrimonio10"},"03. Archivo Nacional y Patrimonio","Directiva del Sistema Nacional de Archivos que aprueba la Directiva N° 004/86-AGN-DGAI, “Normas para la formulación del Programa de Control de Documentos en los archivos administrativos del Sector Público Nacional”."]
[{"$f":"B43&COUNTIF($B$2:B43,B43)","v":"03. Archivo Nacional y Patrimonio11"},"03. Archivo Nacional y Patrimonio"," Directiva N° 005/86-AGN-DGAI, “Normas para la transferencia de documentos en los archivos administrativos del Sector Público Nacional”."]
[{"$f":"B44&COUNTIF($B$2:B44,B44)","v":"03. Archivo Nacional y Patrimonio12"},"03. Archivo Nacional y Patrimonio","Directiva N° 006/86-AGN-DGAI, “Normas para la eliminación de documentos en los archivos administrativos del Sector Público Nacional\"."]
[{"$f":"B45&COUNTIF($B$2:B45,B45)","v":"03. Archivo Nacional y Patrimonio13"},"03. Archivo Nacional y Patrimonio","Directiva N° 007/86-AGN-DGAI, “Normas para la conservación de documentos en los archivos administrativos del Sector Público Nacional”."]
[{"$f":"B46&COUNTIF($B$2:B46,B46)","v":"03. Archivo Nacional y Patrimonio14"},"03. Archivo Nacional y Patrimonio","Resolución Jefatural N° 076-2008-AGN/J, Reglamento de Aplicación de Sanciones Administrativas por Infracciones en contra del Patrimonio Documental Archivístico y Cultural de la Nación y sus modificatorias."]
[{"$f":"B47&COUNTIF($B$2:B47,B47)","v":"04. Contrataciones del Estado1"},"04. Contrataciones del Estado","Ley N° 30225, Ley de Contrataciones del Estado y sus modificatorias."]
[{"$f":"B48&COUNTIF($B$2:B48,B48)","v":"04. Contrataciones del Estado2"},"04. Contrataciones del Estado","Decreto Supremo Nº 350-2015-EF, que aprueba el Reglamento de la Ley Nº 30225."]
[{"$f":"B49&COUNTIF($B$2:B49,B49)","v":"04. Contrataciones del Estado3"},"04. Contrataciones del Estado","Directiva Nº 005-2017-OSCE/CD - PLAN ANUAL DE CONTRATACIONES."]
[{"$f":"B50&COUNTIF($B$2:B50,B50)","v":"04. Contrataciones del Estado4"},"04. Contrataciones del Estado","Resolución Nº 297-2017-OSCE/CD, que aprueba la Directiva Nº 015-2017-OSCE/CD - Procedimiento de adjudicación simplificada en forma electrónica y bases estándar para la contratación de bienes, servicios en general y consultorías en general."]
[{"$f":"B51&COUNTIF($B$2:B51,B51)","v":"04. Contrataciones del Estado5"},"04. Contrataciones del Estado","Resolución Nº 001-2017-OSCE/CD, que aprueba Directiva Nº 001-2017-OSCE/CD - Bases y Solicitud de Expresión de Interés estándar para los procedimientos de selección a convocar en el marco de la Ley N° 30225."]
[{"$f":"B52&COUNTIF($B$2:B52,B52)","v":"04. Contrataciones del Estado6"},"04. Contrataciones del Estado"," Directiva Nº 011-2017-OSCE/CD - Procedimiento para la emisión, actualización y desactivación del Certificado SEACE, así como las responsabilidades por su uso."]
[{"$f":"B53&COUNTIF($B$2:B53,B53)","v":"04. Contrataciones del Estado7"},"04. Contrataciones del Estado","Directiva Nº 003-2017-OSCE/CD.  Procedimiento para la certificación de profesionales y técnicos que laboren en los órganos encargados de las contrataciones de las entidades."]
[{"$f":"B54&COUNTIF($B$2:B54,B54)","v":"04. Contrataciones del Estado8"},"04. Contrataciones del Estado","Directiva Nº 002-2017-OSCE/CD - Procedimiento de selección de subasta inversa electrónica. "]
[{"$f":"B55&COUNTIF($B$2:B55,B55)","v":"05. Presupuesto Público1"},"05. Presupuesto Público","Ley N° 28411, Ley General del Sistema Nacional de Presupuesto, y sus modificatorias."]
[{"$f":"B56&COUNTIF($B$2:B56,B56)","v":"05. Presupuesto Público2"},"05. Presupuesto Público","Ley N° 30114, Ley de Presupuesto del Sector Público para el Año Fiscal 2014."]
[{"$f":"B57&COUNTIF($B$2:B57,B57)","v":"05. Presupuesto Público3"},"05. Presupuesto Público","Resolución Directoral N° 018-2014-EF/50.01, Dispone que la Directiva N° 005-2012-EF/50.01 “Directiva para la Evaluación Semestral y Anual de los Presupuestos Institucionales de las Entidades del Gobierno Nacional y Gobiernos Regionales para el Año Fiscal 2012\", aprobada por Resolución Directoral N° 017-2012-EF- es aplicable para la Evaluación Semestral y Anual de los Presupuestos Institucionales de las Entidades del Gobierno Nacional y Gobiernos Regionales para el Año Fiscal 2014."]
[{"$f":"B58&COUNTIF($B$2:B58,B58)","v":"05. Presupuesto Público4"},"05. Presupuesto Público","Resolución Directoral N° 007-2013-EF/50.01, que aprueba la Directiva N° 002-2013-EF/50.01, “Directiva para la Programación y Formulación Anual del Presupuesto del Sector Público con una perspectiva de Programación Multianual”."]
[{"$f":"B59&COUNTIF($B$2:B59,B59)","v":"06. Tesorería1"},"06. Tesorería","Ley N° 28693, Ley General del Sistema Nacional de Tesorería, y sus modificatorias."]
[{"$f":"B60&COUNTIF($B$2:B60,B60)","v":"06. Tesorería2"},"06. Tesorería","Decreto Supremo Nº 126-2017-EF, Aprueban Texto Único Ordenado de la Ley General del Sistema Nacional de Tesorería."]
[{"$f":"B61&COUNTIF($B$2:B61,B61)","v":"06. Tesorería3"},"06. Tesorería","Decreto Supremo N° 224-2013-EF, “Dictan medidas para facilitar el acceso a financiamiento de los Gobiernos Regionales y Gobiernos Locales para Proyectos de Inversión Pública”."]
[{"$f":"B62&COUNTIF($B$2:B62,B62)","v":"06. Tesorería4"},"06. Tesorería","Decreto Supremo N° 098-2014-EF, que aprueba operación de endeudamiento interno para apoyar el financiamiento de proyectos de Inversión pública a cargo de los Gobiernos Regionales."]
[{"$f":"B63&COUNTIF($B$2:B63,B63)","v":"06. Tesorería5"},"06. Tesorería","Resolución Directoral N° 002-2007-EF/77.15, que aprueba la Directiva de Tesorería N° 001-2007-EF/77.15, y modificatorias."]
[{"$f":"B64&COUNTIF($B$2:B64,B64)","v":"07. Endeudamiento Público1"},"07. Endeudamiento Público","Artículo 75º y 78º de la Constitución Política del Perú"]
[{"$f":"B65&COUNTIF($B$2:B65,B65)","v":"07. Endeudamiento Público2"},"07. Endeudamiento Público","Ley N° 28563, Ley General del Sistema Nacional de Endeudamiento, y sus modificatorias."]
[{"$f":"B66&COUNTIF($B$2:B66,B66)","v":"07. Endeudamiento Público3"},"07. Endeudamiento Público","Decreto Supremo N° 008-2014-EF, que aprueba el Reglamento de la Ley General del Sistema de Endeudamiento, y sus modificatorias."]
[{"$f":"B67&COUNTIF($B$2:B67,B67)","v":"07. Endeudamiento Público4"},"07. Endeudamiento Público","Decreto Supremo Nº 130-2017-EF, Aprueban Texto Único Ordenado de la Ley General del Sistema Nacional de Endeudamiento"]
[{"$f":"B68&COUNTIF($B$2:B68,B68)","v":"07. Endeudamiento Público5"},"07. Endeudamiento Público","Ley de endeudamiento del sector público para el año fiscal."]
[{"$f":"B69&COUNTIF($B$2:B69,B69)","v":"07. Endeudamiento Público6"},"07. Endeudamiento Público","Resolución Directoral N° 21-2006-EF/75.01, que aprueba la Directiva de Desembolsos de las Operaciones de Endeudamiento y Administración de Deuda."]
[{"$f":"B70&COUNTIF($B$2:B70,B70)","v":"07. Endeudamiento Público7"},"07. Endeudamiento Público","Resolución Directoral N° 05-2006-EF/75.01, que aprueba la Directiva para la Concertación de Operaciones de Endeudamiento Público."]
[{"$f":"B71&COUNTIF($B$2:B71,B71)","v":"08. Contabilidad1"},"08. Contabilidad","Ley N° 28708, Ley General del Sistema Nacional de Contabilidad"]
[{"$f":"B72&COUNTIF($B$2:B72,B72)","v":"08. Contabilidad2"},"08. Contabilidad","Ley N° 30059, Ley de fortalecimiento de la Gestión Municipal a través del sinceramiento de la Deuda Municipal."]
[{"$f":"B73&COUNTIF($B$2:B73,B73)","v":"08. Contabilidad3"},"08. Contabilidad","Resolución Ministerial N° 059-2010-EF/93, que aprueba el Reglamento para la Presentación de Información sobre saldos de fondos públicos."]
[{"$f":"B74&COUNTIF($B$2:B74,B74)","v":"08. Contabilidad4"},"08. Contabilidad","Resolución Directoral N° 014-2016-EF/51.01, que aprueban modificatorias a la Directiva Nº 004-2015-EF/51.01 “Presentación de Información Financiera, Presupuestaria y Complementaria de Cierre Contable por las Entidades Gubernamentales del Estado para la elaboración de la Cuenta General de la República”."]
[{"$f":"B75&COUNTIF($B$2:B75,B75)","v":"08. Contabilidad5"},"08. Contabilidad","Resolución del Consejo Normativo de Contabilidad (RCNC) N° 003-2017-EF/30, Oficializa la versión 2017 de las normas internacionales de información extranjera (NIC, NIIF, CINIIF, SIC)."]
[{"$f":"B76&COUNTIF($B$2:B76,B76)","v":"08. Contabilidad6"},"08. Contabilidad","Resolución Directoral N° 006-2014-EF/51.01, que aprueba la Directiva N° 002-2014-EF/51.01 “Metodología para la Modificación de la Vida Útil de Edificios, Revaluación de Edificios y Terrenos, Identificación e Incorporación de Edificios y Terrenos en Administración Funcional y Reclasificación de Propiedades de Inversión en las Entidades Gubernamentales”."]
[{"$f":"B77&COUNTIF($B$2:B77,B77)","v":"08. Contabilidad7"},"08. Contabilidad","Resolución Directoral N° 007-2014-EF/51.01, que aprueba la Directiva N° 003-2014-EF/51.01 “Metodología del costo amortizado para el reconocimiento y medición de instrumentos financieros de las entidades gubernamentales”."]
[{"$f":"B78&COUNTIF($B$2:B78,B78)","v":"08. Contabilidad8"},"08. Contabilidad","Resolución Directoral N° 001-2009-EF/93.01, que aprueba el uso obligatorio del Plan Contable Gubernamental 2009 y modificatorias."]
[{"$f":"B79&COUNTIF($B$2:B79,B79)","v":"08. Contabilidad9"},"08. Contabilidad","Resolución Directoral N° 010-2014-EF/51.01, que aprueba la Directiva N° 005-2014-EF/51.01, “Preparación y presentación de la Información financiera y presupuestaria trimestral y semestral por las entidades usuarias del Sistema de Contabilidad Gubernamental”."]
[{"$f":"B80&COUNTIF($B$2:B80,B80)","v":"08. Contabilidad10"},"08. Contabilidad","Resolución de Contaduría N° 159-2003-EF/93.01, que aprueba el Instructivo 20-2003-EF/93.01, sobre “Registro y Control de las Obligaciones Previsionales a Cargo del Estado”."]
[{"$f":"B81&COUNTIF($B$2:B81,B81)","v":"08. Contabilidad11"},"08. Contabilidad","Resolución Directoral N° 017-2012-EF-51.01, que aprueba la Directiva N° 003-2012-EF/51.01 “Cierre Contable y Presentación de Información para la Elaboración de la Cuenta General de la República” y modificatoria."]
[{"$f":"B82&COUNTIF($B$2:B82,B82)","v":"08. Contabilidad12"},"08. Contabilidad","Resolución Directoral N° 011-2011-EF/51.01, que aprueba el “Manual de Procedimientos para las Acciones de Saneamiento Contable de las Entidades Gubernamentales”."]
[{"$f":"B83&COUNTIF($B$2:B83,B83)","v":"08. Contabilidad13"},"08. Contabilidad","Resolución Directoral 011-2014-EF/51.01, que aprueba la Directiva N° 006-2014-EF/51.01 “Metodología para el Reconocimiento y Medición de Contratos de Concesiones en las Entidades Gubernamentales Concedentes”."]
[{"$f":"B84&COUNTIF($B$2:B84,B84)","v":"08. Contabilidad14"},"08. Contabilidad","Normas Internacionales de Contabilidad para el Sector Público (NICSP) N° 01 “Presentación de Estados Financieros”, N° 06 “Estados Financieros Consolidados y Separados” y N' 17 “Propiedades, Planta y Equipo”."]
[{"$f":"B85&COUNTIF($B$2:B85,B85)","v":"08. Contabilidad15"},"08. Contabilidad","Normas Internacionales de Contabilidad para el Sector Público (NICSP) N° 06 “Estados Financieros Consolidados y Separados”."]
[{"$f":"B86&COUNTIF($B$2:B86,B86)","v":"09. Inversión Pública1"},"09. Inversión Pública","Decreto Legislativo N° 1252, que crea el Sistema Nacional de Programación Multianual y Gestión de Inversiones."]
[{"$f":"B87&COUNTIF($B$2:B87,B87)","v":"09. Inversión Pública2"},"09. Inversión Pública","Decreto Supremo Nº 027-2017-EF, Aprueban el Reglamento del Decreto Legislativo Nº 1252, Decreto Legislativo que crea el Sistema Nacional de Programación Multianual y Gestión de Inversiones."]
[{"$f":"B88&COUNTIF($B$2:B88,B88)","v":"09. Inversión Pública3"},"09. Inversión Pública","Resolución Ministerial Nº 172-2017-EF/17, que aprueba la actualización de la jerarquía y ponderación de los criterios señalados en el numeral 7.1 del artículo 7 de la Ley N° 29125, Ley que establece la implementación y el funcionamiento del Fondo de Promoción a la Inversión Pública Regional y Local – FONIPREL."]
[{"$f":"B89&COUNTIF($B$2:B89,B89)","v":"09. Inversión Pública4"},"09. Inversión Pública","Resolución Directoral N° 001-2017-EF/63.01, aprueban Directiva para la Programación Multianual en el Marco del Sistema Nacional de Programación Multianual y Gestión de Inversiones."]
[{"$f":"B90&COUNTIF($B$2:B90,B90)","v":"10. Planeamiento Estratégico1"},"10. Planeamiento Estratégico","Decreto Legislativo N° 1088, Ley del Sistema Nacional de Planeamiento Estratégico y del Centro Nacional de Planeamiento Estratégico."]
[{"$f":"B91&COUNTIF($B$2:B91,B91)","v":"10. Planeamiento Estratégico2"},"10. Planeamiento Estratégico","Decreto Supremo N° 054-2011-PCM, aprueba el Plan Estratégico de Desarrollo Nacional denominado Plan Bicentenario: El Perú hacia el 2021."]
[{"$f":"B92&COUNTIF($B$2:B92,B92)","v":"10. Planeamiento Estratégico3"},"10. Planeamiento Estratégico","Resolución N° 026-2017/CEPLAN/PCD, que aprueba Directiva N° 001-2017-CEPLAN/PCD, Directiva para la Actualización del Plan Estratégico de Desarrollo Nacional”, establece los lineamientos para la actualización del Plan Estratégico de Desarrollo Nacional – PEDN en el marco del ciclo de planeamiento estratégico para la mejora continua."]
[{"$f":"B93&COUNTIF($B$2:B93,B93)","v":"10. Planeamiento Estratégico4"},"10. Planeamiento Estratégico","Resolución N° 033-2017/CEPLAN/PCD, aprueba la Guía para el planeamiento institucional."]
[{"$f":"B94&COUNTIF($B$2:B94,B94)","v":"11. Defensa Judicial del Estado1"},"11. Defensa Judicial del Estado","Ley N° 27658, Ley Marco de Modernización de la Gestión del Estado y modificatorias."]
[{"$f":"B95&COUNTIF($B$2:B95,B95)","v":"11. Defensa Judicial del Estado2"},"11. Defensa Judicial del Estado","Decreto Supremo N° 015-2014-EF, que aprueba los procedimientos para el cumplimiento de metas y la asignación de los recursos del Plan de Incentivos a la Mejora de la Gestión y Modernización Municipal del año 2014."]
[{"$f":"B96&COUNTIF($B$2:B96,B96)","v":"11. Defensa Judicial del Estado3"},"11. Defensa Judicial del Estado","Decreto Supremo Nº 004-2013-PCM, Política Nacional de Modernización de la Gestión Pública."]
[{"$f":"B97&COUNTIF($B$2:B97,B97)","v":"11. Defensa Judicial del Estado4"},"11. Defensa Judicial del Estado","Resolución Ministerial Nº 125-2013-PCM, que aprueba el Plan de implementación de modernización de la gestión pública 2013-2016"]
[{"$f":"B98&COUNTIF($B$2:B98,B98)","v":"11. Defensa Judicial del Estado5"},"11. Defensa Judicial del Estado","Resolución Ministerial N° 097-2012-PCM, que aprueba la Directiva N° 001-2012-PCM-SGP “Lineamientos para la elaboración de matrices de delimitación de competencias y distribución de funciones de los Ministerios que tienen a su cargo competencias compartidas”."]
[{"$f":"B99&COUNTIF($B$2:B99,B99)","v":"11. Defensa Judicial del Estado6"},"11. Defensa Judicial del Estado","Decreto Supremo N° 007-2011-PCM, que aprueba la Metodología de Simplificación Administrativa y establece disposiciones para su implementación, para la mejora de los procedimientos administrativos y servicios prestados en exclusividad."]
[{"$f":"B100&COUNTIF($B$2:B100,B100)","v":"11. Defensa Judicial del Estado7"},"11. Defensa Judicial del Estado","Resolución Ministerial N 200-2010-PCM, que aprueba la Directiva N° 010-2010, Lineamientos para la implementación del Portal Estándar en las entidades de la administración pública, y modificatorias."]
[{"$f":"B101&COUNTIF($B$2:B101,B101)","v":"11. Defensa Judicial del Estado8"},"11. Defensa Judicial del Estado","Ley N° 27806, Ley de Transparencia y Acceso a la Información Pública, y modificatorias."]
[{"$f":"B102&COUNTIF($B$2:B102,B102)","v":"11. Defensa Judicial del Estado9"},"11. Defensa Judicial del Estado","Decreto Supremo 079-2007-PCM, que aprueba los Lineamientos para la elaboración y aprobación del Texto Único de Procedimientos Administrativos - TUPA y disposiciones para el cumplimiento de la Ley del Silencio Administrativo."]
[{"$f":"B103&COUNTIF($B$2:B103,B103)","v":"11. Defensa Judicial del Estado10"},"11. Defensa Judicial del Estado","Decreto Supremo N° 043-2003-PCM, que aprueba el Texto Único Ordenado de la Ley N° 27806, Ley de Transparencia y acceso a la información pública."]
[{"$f":"B104&COUNTIF($B$2:B104,B104)","v":"11. Defensa Judicial del Estado11"},"11. Defensa Judicial del Estado","Decreto Supremo N° 072-2003-PCM, que aprueba el Reglamento de la Ley N° 27806, Ley de Transparencia y Acceso a la Información Pública, y modificatorias."]
[{"$f":"B105&COUNTIF($B$2:B105,B105)","v":"12. Modernización de la Gestión Pública1"},"12. Modernización de la Gestión Pública","Ley Nº 29332, que crea el Programa de Incentivos a la Mejora de la Gestión Municipal"]
[{"$f":"B106&COUNTIF($B$2:B106,B106)","v":"12. Modernización de la Gestión Pública2"},"12. Modernización de la Gestión Pública","Decreto Supremo N° 394-2016-EF Aprueban los procedimientos para el cumplimiento de metas y la asignación de los recursos del Programa de Incentivos a la Mejora de la Gestión Municipal del año 2017 y aprueba otras medidas"]
[{"$f":"B107&COUNTIF($B$2:B107,B107)","v":"12. Modernización de la Gestión Pública3"},"12. Modernización de la Gestión Pública","Decreto Supremo Nº 115-2017-EF, Modificación de los Procedimientos para el cumplimiento de metas y la asignación de los recursos del Programa de Incentivos a la Mejora de la Gestión Municipal aprobados mediante Decreto Supremo N° 394-2016-EF"]
[{"$f":"B108&COUNTIF($B$2:B108,B108)","v":"12. Modernización de la Gestión Pública4"},"12. Modernización de la Gestión Pública","Resolución Directoral Nº 002-2017-EF/50.01, que aprueba los Instructivos para el cumplimiento de las metas del Programa de Incentivos a la Mejora de la Gestión Municipal para el año 2017"]
[{"$f":"B109&COUNTIF($B$2:B109,B109)","v":"12. Modernización de la Gestión Pública5"},"12. Modernización de la Gestión Pública","Resolución Directoral Nº 006-2017-EF/50.01, que aprueba modificación de los instructivos de las Metas 01, 05, 09, 20, 29 y 38 aprobados por la Resolución Directoral N° 002-2017-EF/50.01."]
[{"$f":"B110&COUNTIF($B$2:B110,B110)","v":"12. Modernización de la Gestión Pública6"},"12. Modernización de la Gestión Pública","Resolución Directoral Nº 009-2017-EF/50.01, que aprueba modificación de los instructivos de las Metas 03, 07, 21 y 30 aprobados por la Resolución Directoral N° 002-2017-EF/50.01."]
[{"$f":"B111&COUNTIF($B$2:B111,B111)","v":"13. Programa de Incentivos a la Mejora de la Gestión Municipal1"},"13. Programa de Incentivos a la Mejora de la Gestión Municipal","Ley Nº 29332, que crea el Programa de Incentivos a la Mejora de la Gestión Municipal"]
[{"$f":"B112&COUNTIF($B$2:B112,B112)","v":"13. Programa de Incentivos a la Mejora de la Gestión Municipal2"},"13. Programa de Incentivos a la Mejora de la Gestión Municipal","Decreto Supremo N° 394-2016-EF Aprueban los procedimientos para el cumplimiento de metas y la asignación de los recursos del Programa de Incentivos a la Mejora de la Gestión Municipal del año 2017 y aprueba otras medidas"]
[{"$f":"B113&COUNTIF($B$2:B113,B113)","v":"13. Programa de Incentivos a la Mejora de la Gestión Municipal3"},"13. Programa de Incentivos a la Mejora de la Gestión Municipal","Decreto Supremo Nº 115-2017-EF, Modificación de los Procedimientos para el cumplimiento de metas y la asignación de los recursos del Programa de Incentivos a la Mejora de la Gestión Municipal aprobados mediante Decreto Supremo N° 394-2016-EF"]
[{"$f":"B114&COUNTIF($B$2:B114,B114)","v":"13. Programa de Incentivos a la Mejora de la Gestión Municipal4"},"13. Programa de Incentivos a la Mejora de la Gestión Municipal","Resolución Directoral Nº 002-2017-EF/50.01, que aprueba los Instructivos para el cumplimiento de las metas del Programa de Incentivos a la Mejora de la Gestión Municipal para el año 2017"]
[{"$f":"B115&COUNTIF($B$2:B115,B115)","v":"13. Programa de Incentivos a la Mejora de la Gestión Municipal5"},"13. Programa de Incentivos a la Mejora de la Gestión Municipal","Resolución Directoral Nº 006-2017-EF/50.01, que aprueba modificación de los instructivos de las Metas 01, 05, 09, 20, 29 y 38 aprobados por la Resolución Directoral N° 002-2017-EF/50.01."]
[{"$f":"B116&COUNTIF($B$2:B116,B116)","v":"13. Programa de Incentivos a la Mejora de la Gestión Municipal6"},"13. Programa de Incentivos a la Mejora de la Gestión Municipal","Resolución Directoral Nº 009-2017-EF/50.01, que aprueba modificación de los instructivos de las Metas 03, 07, 21 y 30 aprobados por la Resolución Directoral N° 002-2017-EF/50.01."]
[{"$f":"B117&COUNTIF($B$2:B117,B117)","v":"14. Administración Tributaria Municipal1"},"14. Administración Tributaria Municipal","Ley Nª 27972, Ley orgánica de municipalidades"]
[{"$f":"B118&COUNTIF($B$2:B118,B118)","v":"14. Administración Tributaria Municipal2"},"14. Administración Tributaria Municipal","Decreto Supremo N° 133-2013-EF, que aprueba el Texto Único Ordenado del Código Tributario"]
[{"$f":"B119&COUNTIF($B$2:B119,B119)","v":"14. Administración Tributaria Municipal3"},"14. Administración Tributaria Municipal","Decreto Legislativo Nº 776, Ley de Tributación Municipal"]
[{"$f":"B120&COUNTIF($B$2:B120,B120)","v":"14. Administración Tributaria Municipal4"},"14. Administración Tributaria Municipal","Decreto Supremo Nº 156-2004-EF, Texto único ordenado de la ley de tributación municipal"]
[{"$f":"B121&COUNTIF($B$2:B121,B121)","v":"14. Administración Tributaria Municipal5"},"14. Administración Tributaria Municipal","Resolución Ministerial N° 126-2017-VIVIENDA, aprueba Tablas de Deprecación por antigüedad y estados de conservación según el material estructural predominante"]
[{"$f":"B122&COUNTIF($B$2:B122,B122)","v":"14. Administración Tributaria Municipal6"},"14. Administración Tributaria Municipal","Resolución Ministerial N° 373-2016-VIVIENDA, aprueban los Valores Unitarios Oficiales de Edificación para las localidades de Lima Metropolitana y la Provincia Constitucional del Callao, la Costa, Sierra y Selva, vigentes para el Ejercicio Fiscal 2017."]
[{"$f":"B123&COUNTIF($B$2:B123,B123)","v":"15. Sistema de Seguridad y Defensa Nacional1"},"15. Sistema de Seguridad y Defensa Nacional","Ley N° 28478, Ley del Sistema Nacional de Seguridad y Defensa Nacional"]
[{"$f":"B124&COUNTIF($B$2:B124,B124)","v":"15. Sistema de Seguridad y Defensa Nacional2"},"15. Sistema de Seguridad y Defensa Nacional","Decreto Supremo N°048-2011-PCM, Reglamento del Ley del Sistema Nacional de Gestión del Riesgo de Desastres."]
[{"$f":"B125&COUNTIF($B$2:B125,B125)","v":"15. Sistema de Seguridad y Defensa Nacional3"},"15. Sistema de Seguridad y Defensa Nacional","Decreto Supremo N°004-2013-PCM Aprueba la Política Nacional de Modernización de la Gestión Pública."]
[{"$f":"B126&COUNTIF($B$2:B126,B126)","v":"15. Sistema de Seguridad y Defensa Nacional4"},"15. Sistema de Seguridad y Defensa Nacional","Decreto Supremo N° 034-2014-PCM Decreto Supremo que aprueba el Plan Nacional de Gestión del Riesgo de Desastres - PLANAGERD 2014-2021."]
[{"$f":"B127&COUNTIF($B$2:B127,B127)","v":"16. Seguridad Ciudadana1"},"16. Seguridad Ciudadana","Constitución Política del Perú – Art. 01º, 02º, 44º, 166º, 190º, 191º, 194º y 197º"]
[{"$f":"B128&COUNTIF($B$2:B128,B128)","v":"16. Seguridad Ciudadana2"},"16. Seguridad Ciudadana","Ley 27972 Ley Orgánica de Municipalidades (Artículos 22º, 26º, 53º, 73º, 85º, 106º, 107º, 145º, 157º, 161º)"]
[{"$f":"B129&COUNTIF($B$2:B129,B129)","v":"16. Seguridad Ciudadana3"},"16. Seguridad Ciudadana","Ley N° 27933, Ley Nacional del Sistema de Seguridad Ciudadana"]
[{"$f":"B130&COUNTIF($B$2:B130,B130)","v":"16. Seguridad Ciudadana4"},"16. Seguridad Ciudadana","Decreto Supremo Nº 012-2003-IN, que aprueba el Reglamento del Sistema Nacional de Seguridad Ciudadana."]
[{"$f":"B131&COUNTIF($B$2:B131,B131)","v":"16. Seguridad Ciudadana5"},"16. Seguridad Ciudadana","Ley 27936. Ley de condiciones del ejercicio de la legítima defensa. "]
[{"$f":"B132&COUNTIF($B$2:B132,B132)","v":"17. Licencias y autorizaciones de funcionamiento1"},"17. Licencias y autorizaciones de funcionamiento","Ley Nº 27972, Ley orgánica de municipalidades y sus modificatorias"]
[{"$f":"B133&COUNTIF($B$2:B133,B133)","v":"17. Licencias y autorizaciones de funcionamiento2"},"17. Licencias y autorizaciones de funcionamiento","Ley Nº 28976, Ley Marco de Licencia de Funcionamiento"]
[{"$f":"B134&COUNTIF($B$2:B134,B134)","v":"17. Licencias y autorizaciones de funcionamiento3"},"17. Licencias y autorizaciones de funcionamiento","TUPA de la Municipalidad Local"]
[{"$f":"B135&COUNTIF($B$2:B135,B135)","v":"18. Sistema de Gestión Ambiental Local1"},"18. Sistema de Gestión Ambiental Local","Ley Nº 28245, Ley marco del sistema nacional de gestión ambiental"]
[{"$f":"B136&COUNTIF($B$2:B136,B136)","v":"18. Sistema de Gestión Ambiental Local2"},"18. Sistema de Gestión Ambiental Local","Ley Nº 28611, Ley General del Ambiente"]
[{"$f":"B137&COUNTIF($B$2:B137,B137)","v":"18. Sistema de Gestión Ambiental Local3"},"18. Sistema de Gestión Ambiental Local","Ley Nº 29325, Ley del Sistema Nacional de Evaluación y Fiscalización Ambiental"]
[{"$f":"B138&COUNTIF($B$2:B138,B138)","v":"18. Sistema de Gestión Ambiental Local4"},"18. Sistema de Gestión Ambiental Local","Resolución Ministerial Nº 247-2013-MINAM, Régimen Común de Fiscalización Ambiental"]
[{"$f":"B139&COUNTIF($B$2:B139,B139)","v":"18. Sistema de Gestión Ambiental Local5"},"18. Sistema de Gestión Ambiental Local","Resolución de Consejo Directivo Nº 004-2014-0EFA/CD, lineamientos para la Formulación, Aprobación y Evaluación del Plan Anual de Evaluación y Fiscalización Ambiental."]
[{"$f":"B140&COUNTIF($B$2:B140,B140)","v":"19. Abastecimiento de agua dulce y/o tratada1"},"19. Abastecimiento de agua dulce y/o tratada","Ley Nº 29338, Ley de Recursos Hídricos"]
[{"$f":"B141&COUNTIF($B$2:B141,B141)","v":"19. Abastecimiento de agua dulce y/o tratada2"},"19. Abastecimiento de agua dulce y/o tratada","Decreto Supremo N° 001-2010-AG, que aprueba el Reglamento de la Ley de Recursos Hídricos"]
[{"$f":"B142&COUNTIF($B$2:B142,B142)","v":"19. Abastecimiento de agua dulce y/o tratada3"},"19. Abastecimiento de agua dulce y/o tratada","Decreto Legislativo N° 997, que aprueba la Ley de Organización y Funciones del Ministerio de Agricultura y crea la Autoridad Nacional del Agua."]
[{"$f":"B143&COUNTIF($B$2:B143,B143)","v":"19. Abastecimiento de agua dulce y/o tratada4"},"19. Abastecimiento de agua dulce y/o tratada","Ley N° 27972, Ley Orgánica de Municipalidades"]
[{"$f":"B144&COUNTIF($B$2:B144,B144)","v":"20. Limpieza pública y áreas verdes1"},"20. Limpieza pública y áreas verdes","Ley N° 27314, Ley General de Residuos Sólidos."]
[{"$f":"B145&COUNTIF($B$2:B145,B145)","v":"20. Limpieza pública y áreas verdes2"},"20. Limpieza pública y áreas verdes","Decreto Supremo Nº 057-2004-PCM, Reglamento de la Ley General de Residuos Sólidos."]
[{"$f":"B146&COUNTIF($B$2:B146,B146)","v":"20. Limpieza pública y áreas verdes3"},"20. Limpieza pública y áreas verdes","Decreto SupremoN°014-2011-MINAM, Plan Nacional de Acción Ambiental (PLANAA) 2011- 2021"]
[{"$f":"B147&COUNTIF($B$2:B147,B147)","v":"20. Limpieza pública y áreas verdes4"},"20. Limpieza pública y áreas verdes","Ley N°29419, Ley que regula la actividad de los recicladores"]
[{"$f":"B148&COUNTIF($B$2:B148,B148)","v":"20. Limpieza pública y áreas verdes5"},"20. Limpieza pública y áreas verdes","Reglamento de la Ley N°29419"]
[{"$f":"B149&COUNTIF($B$2:B149,B149)","v":"21. Fiscalización (Ambiental/Tributaria/Servicios municipales)1"},"21. Fiscalización (Ambiental/Tributaria/Servicios municipales)","Ley Nº 27446, Ley del Sistema Nacional de Evaluación del Impacto Ambiental."]
[{"$f":"B150&COUNTIF($B$2:B150,B150)","v":"21. Fiscalización (Ambiental/Tributaria/Servicios municipales)2"},"21. Fiscalización (Ambiental/Tributaria/Servicios municipales)","Ley Nº 29325, Ley del Sistema Nacional de Evaluación y Fiscalización Ambiental"]
[{"$f":"B151&COUNTIF($B$2:B151,B151)","v":"21. Fiscalización (Ambiental/Tributaria/Servicios municipales)3"},"21. Fiscalización (Ambiental/Tributaria/Servicios municipales)","Ley Nª 28256, Ley que regula el transporte terrestre de materiales y residuos peligrosos."]
[{"$f":"B152&COUNTIF($B$2:B152,B152)","v":"21. Fiscalización (Ambiental/Tributaria/Servicios municipales)4"},"21. Fiscalización (Ambiental/Tributaria/Servicios municipales)","Decreto Supremo Nº 001- 2010-AG, Reglamento de la Ley de Recursos Hídricos"]
[{"$f":"B153&COUNTIF($B$2:B153,B153)","v":"21. Fiscalización (Ambiental/Tributaria/Servicios municipales)5"},"21. Fiscalización (Ambiental/Tributaria/Servicios municipales)","Resolución Ministerial Nº 247-2013-MINAM, Régimen Común de Fiscalización Ambiental"]
[{"$f":"B154&COUNTIF($B$2:B154,B154)","v":"21. Fiscalización (Ambiental/Tributaria/Servicios municipales)6"},"21. Fiscalización (Ambiental/Tributaria/Servicios municipales)","Resolución de Consejo Directivo Nº 032- 2014-0EFNCD, Reglamento de Participación Ciudadana en las Acciones de Monitoreo Ambiental a cargo del Organismo de Evaluación y Fiscalización Ambiental – OEFA"]
[{"$f":"B155&COUNTIF($B$2:B155,B155)","v":"21. Fiscalización (Ambiental/Tributaria/Servicios municipales)7"},"21. Fiscalización (Ambiental/Tributaria/Servicios municipales)","Resolución de Consejo Directivo Nº 049-2015-OEFA/CD, Modelo de Reglamento de Supervisión Ambiental"]
[{"$f":"B156&COUNTIF($B$2:B156,B156)","v":"21. Fiscalización (Ambiental/Tributaria/Servicios municipales)8"},"21. Fiscalización (Ambiental/Tributaria/Servicios municipales)","Decreto Supremo N° 135-99-EF, Texto Único Ordenado del Código Tributario"]
[{"$f":"B157&COUNTIF($B$2:B157,B157)","v":"21. Fiscalización (Ambiental/Tributaria/Servicios municipales)9"},"21. Fiscalización (Ambiental/Tributaria/Servicios municipales)","Artículo 1º del Título I del Decreto Supremo Nº 085-2007-EF Reglamento del Procedimiento de Fiscalización de la SUNAT"]
[{"$f":"B158&COUNTIF($B$2:B158,B158)","v":"21. Fiscalización (Ambiental/Tributaria/Servicios municipales)10"},"21. Fiscalización (Ambiental/Tributaria/Servicios municipales)","Artículo 61°, 62° y 62°- A del Texto Único Ordenado del Código Tributario aprobado mediante Decreto Supremo N° 133-2013-EF y normas modificatorias"]
[{"$f":"B159&COUNTIF($B$2:B159,B159)","v":"21. Fiscalización (Ambiental/Tributaria/Servicios municipales)11"},"21. Fiscalización (Ambiental/Tributaria/Servicios municipales)","Reglamento de Fiscalización de SUNAT aprobado mediante Decreto Supremo N° 085-2007-EF. Y su norma modificatoria D.S. N° 207-2012-EF."]
[{"$f":"B160&COUNTIF($B$2:B160,B160)","v":"21. Fiscalización (Ambiental/Tributaria/Servicios municipales)12"},"21. Fiscalización (Ambiental/Tributaria/Servicios municipales)","Artículo 31º de la Ley 27972, Ley Orgánica de Municipalidades."]
[{"$f":"B161&COUNTIF($B$2:B161,B161)","v":"22. Ejecución coactiva1"},"22. Ejecución coactiva","Ley Nº 26979, Ley de Procedimiento de Ejecución Coactiva, y sus modificatorias mediante a Ley 28165 y la Ley 28892."]
[{"$f":"B162&COUNTIF($B$2:B162,B162)","v":"22. Ejecución coactiva2"},"22. Ejecución coactiva","Decreto Supremo Nº 018-2008-JUS, aprueba el Texto Único Ordenado de la Ley Nº 26979 – Ley de Procedimiento de Ejecución Coactiva"]
[{"$f":"B163&COUNTIF($B$2:B163,B163)","v":"23. Educación, Cultura, Deportes y Recreación1"},"23. Educación, Cultura, Deportes y Recreación","Ley Nº 27972, Ley orgánica de municipalidades y sus modificatorias"]
[{"$f":"B164&COUNTIF($B$2:B164,B164)","v":"23. Educación, Cultura, Deportes y Recreación2"},"23. Educación, Cultura, Deportes y Recreación","Ley N° 28036, Ley de promoción y desarrollo del deporte"]
[{"$f":"B165&COUNTIF($B$2:B165,B165)","v":"23. Educación, Cultura, Deportes y Recreación3"},"23. Educación, Cultura, Deportes y Recreación","Ley N° 30034, Ley del Sistema Nacional de Bibliotecas"]
[{"$f":"B166&COUNTIF($B$2:B166,B166)","v":"23. Educación, Cultura, Deportes y Recreación4"},"23. Educación, Cultura, Deportes y Recreación","Ley N° 28044, Ley General de Educación, y su modificatorias"]
[{"$f":"B167&COUNTIF($B$2:B167,B167)","v":"24. Participación y control vecinal1"},"24. Participación y control vecinal","Ley Nº 27972, Ley orgánica de municipalidades y sus modificatorias"]
[{"$f":"B168&COUNTIF($B$2:B168,B168)","v":"24. Participación y control vecinal2"},"24. Participación y control vecinal","Artículo 106º de la Ley Orgánica de Municipalidades, establece que la Junta de Delegados Vecinales Comunales"]
[{"$f":"B169&COUNTIF($B$2:B169,B169)","v":"24. Participación y control vecinal3"},"24. Participación y control vecinal","Numeral 5.3 quinto párrafo del Art 73 de la LOM, Ley 27972, declara el derecho al Reconocimiento y Registro de organizaciones sociales."]
[{"$f":"B170&COUNTIF($B$2:B170,B170)","v":"24. Participación y control vecinal4"},"24. Participación y control vecinal","Ley Nº 26300, Ley de Participación y Control Ciudadana"]
[{"$f":"B171&COUNTIF($B$2:B171,B171)","v":"25. Salubridad1"},"25. Salubridad","Ley Nº 26842, Ley General de Salud"]
[{"$f":"B172&COUNTIF($B$2:B172,B172)","v":"25. Salubridad2"},"25. Salubridad","Artículos 80º, 83º y 161º de la Ley Orgánica de Municipalidades, que señala sobre saneamiento, salubridad, salud, abastecimiento y comercialización de productos y servicios, faculta a las Municipalidades a regular y controlar el aseo, higiene y salubridad en los establecimientos comerciales, industriales y otros, en coordinación con la respectiva Autoridad Nacional"]
[{"$f":"B173&COUNTIF($B$2:B173,B173)","v":"26. Tránsito, circulación y transporte púbico1"},"26. Tránsito, circulación y transporte púbico","Ley Nº 27181, Ley general de transporte y tránsito terrestre."]
[{"$f":"B174&COUNTIF($B$2:B174,B174)","v":"26. Tránsito, circulación y transporte púbico2"},"26. Tránsito, circulación y transporte púbico","Decreto Supremo Nº 017-2009-MTC, Reglamento nacional de administración de transporte"]
[{"$f":"B175&COUNTIF($B$2:B175,B175)","v":"26. Tránsito, circulación y transporte púbico3"},"26. Tránsito, circulación y transporte púbico","Ley Nº 27189, Ley de Transporte Público Especial de Pasajeros en Vehículos Menores."]
[{"$f":"B176&COUNTIF($B$2:B176,B176)","v":"26. Tránsito, circulación y transporte púbico4"},"26. Tránsito, circulación y transporte púbico","Decreto Supremo 055-2010-MTC, Reglamento Nacional de Transporte Público Especial de Pasajeros en Vehículos Motorizados o No Motorizados."]
[{"$f":"B177&COUNTIF($B$2:B177,B177)","v":"26. Tránsito, circulación y transporte púbico5"},"26. Tránsito, circulación y transporte púbico","Ley N° 27972, Ley Orgánica de Municipalidades."]
[{"$f":"B178&COUNTIF($B$2:B178,B178)","v":"27. Registro de hechos vitales1"},"27. Registro de hechos vitales","Ley N° 26497, Ley Orgánica del RENIEC"]
[{"$f":"B179&COUNTIF($B$2:B179,B179)","v":"27. Registro de hechos vitales2"},"27. Registro de hechos vitales","Decreto Supremo N° 015-98-PCM, Reglamento de Inscripciones del RENIEC"]
[{"$f":"B180&COUNTIF($B$2:B180,B180)","v":"27. Registro de hechos vitales3"},"27. Registro de hechos vitales","Ley Nº 26497, Ley orgánica del registro nacional de identificación y estado civil"]
[{"$f":"B181&COUNTIF($B$2:B181,B181)","v":"27. Registro de hechos vitales4"},"27. Registro de hechos vitales","Decreto Supremo nº 15-98-PCM, aprueba Reglamento de inscripciones del registro nacional de identificación y estado civil"]
[{"$f":"B182&COUNTIF($B$2:B182,B182)","v":"28. Desarrollo económico del sector Turismo1"},"28. Desarrollo económico del sector Turismo","Ley 29408, Ley General de Turismo"]
[{"$f":"B183&COUNTIF($B$2:B183,B183)","v":"28. Desarrollo económico del sector Turismo2"},"28. Desarrollo económico del sector Turismo","D.S. N° 003-2010- MINCETUR, que aprueba el Reglamento de la Ley General de Turismo"]
[{"$f":"B184&COUNTIF($B$2:B184,B184)","v":"28. Desarrollo económico del sector Turismo3"},"28. Desarrollo económico del sector Turismo","R.M. Nº 155-2001-ITINCI/DM, que aprueba modificaciones relativas a las actividades que operan los Prestadores de Servicios Turísticos (Resolución Ministerial Nº 224-2005 – MINCETUR-DM, 27.07.05)"]
[{"$f":"B185&COUNTIF($B$2:B185,B185)","v":"28. Desarrollo económico del sector Turismo4"},"28. Desarrollo económico del sector Turismo","Ley 28296 ley general de patrimonio cultural"]
[{"$f":"B186&COUNTIF($B$2:B186,B186)","v":"28. Desarrollo económico del sector Turismo5"},"28. Desarrollo económico del sector Turismo","D.S. N° 001-2015-MINCETUR, establece Reglamento de establecimientos de hospedaje"]
[{"$f":"B187&COUNTIF($B$2:B187,B187)","v":"28. Desarrollo económico del sector Turismo6"},"28. Desarrollo económico del sector Turismo","D.S. N° 025-2004-MINCETUR, establece Reglamento de Restauran"]
[{"$f":"B188&COUNTIF($B$2:B188,B188)","v":"28. Desarrollo económico del sector Turismo7"},"28. Desarrollo económico del sector Turismo","Decreto Supremo N° 009-2017-MINCETUR, 31.07.2017, que modifica el Reglamento de Restaurantes y Reglamento de Establecimientos de Hospedaje."]
[{"$f":"B189&COUNTIF($B$2:B189,B189)","v":"28. Desarrollo económico del sector Turismo8"},"28. Desarrollo económico del sector Turismo","Decreto Supremo N° 005-2016-MINCETUR, aprueban el Reglamento de Seguridad para la Prestación del Servicio Turístico de Aventura"]
[{"$f":"B190&COUNTIF($B$2:B190,B190)","v":"29. Desarrollo económico local1"},"29. Desarrollo económico local","Ley Nº 28015, Ley de la promoción y formalización de la micro y pequeña empresa y su reglamento"]
[{"$f":"B191&COUNTIF($B$2:B191,B191)","v":"29. Desarrollo económico local2"},"29. Desarrollo económico local","Ley Nº 30355, Ley de promoción y desarrollo de la agricultura familiar  "]
[{"$f":"B192&COUNTIF($B$2:B192,B192)","v":"29. Desarrollo económico local3"},"29. Desarrollo económico local","D.L. Nº 885, Ley de promoción del sector agrario"]
[{"$f":"B193&COUNTIF($B$2:B193,B193)","v":"29. Desarrollo económico local4"},"29. Desarrollo económico local","Ley Nº 27651, Ley de Formalización y Promoción de la Pequeña Minería y la Minería Artesanal"]
[{"$f":"B194&COUNTIF($B$2:B194,B194)","v":"30. Servicios no exclusivos1"},"30. Servicios no exclusivos","Ley Nº27972, Ley Orgánica de Municipalidades"]
[{"$f":"B195&COUNTIF($B$2:B195,B195)","v":"30. Servicios no exclusivos2"},"30. Servicios no exclusivos","Artículo 37° de la Ley N° 27444, Ley General del Procedimiento Administrativo"]
[{"$f":"B196&COUNTIF($B$2:B196,B196)","v":"31. Sistema de Focalización de Hogares1"},"31. Sistema de Focalización de Hogares","Ley Nº 27972, Ley orgánica de municipalidades"]
[{"$f":"B197&COUNTIF($B$2:B197,B197)","v":"31. Sistema de Focalización de Hogares2"},"31. Sistema de Focalización de Hogares","Resolución Ministerial N° 399-2004-PCM, Directiva de Organización y Funcionamiento del Sistema de Focalización de Hogares-SISFOH"]
[{"$f":"B198&COUNTIF($B$2:B198,B198)","v":"31. Sistema de Focalización de Hogares3"},"31. Sistema de Focalización de Hogares","Resolución Ministerial N° 257-2015-MIDIS, Directiva que regula la operatividad del Sistema de Focalización de Hogares"]
[{"$f":"B199&COUNTIF($B$2:B199,B199)","v":"32. Atención de las Personas con Discapacidad1"},"32. Atención de las Personas con Discapacidad","Ley Nº 27972, Ley orgánica de municipalidades"]
[{"$f":"B200&COUNTIF($B$2:B200,B200)","v":"32. Atención de las Personas con Discapacidad2"},"32. Atención de las Personas con Discapacidad","Ley N° 27337, Nuevo Código de los Niños y Adolescentes."]
[{"$f":"B201&COUNTIF($B$2:B201,B201)","v":"32. Atención de las Personas con Discapacidad3"},"32. Atención de las Personas con Discapacidad","Resolución Legislativa N° 25278, aprueba la Convención sobre los derechos del Niño"]
[{"$f":"B202&COUNTIF($B$2:B202,B202)","v":"32. Atención de las Personas con Discapacidad4"},"32. Atención de las Personas con Discapacidad","Ley Nº 27007, Ley que faculta a las Defensorías del Niño y el Adolescente a realizar conciliaciones extrajudiciales con título de ejecución y su reglamento aprobado con Decreto Supremo 006-99-PROMUDEH y sus modificatoria"]
[{"$f":"B203&COUNTIF($B$2:B203,B203)","v":"32. Atención de las Personas con Discapacidad5"},"32. Atención de las Personas con Discapacidad","Resolución Ministerial Nº 234-99-PROMUDEH, Reglamento del Servicio de Defensorías del Niño y el Adolescente"]
[{"$f":"B204&COUNTIF($B$2:B204,B204)","v":"32. Atención de las Personas con Discapacidad6"},"32. Atención de las Personas con Discapacidad","Resolución Ministerial Nº 669-2006-MIMDES, Guía de Procedimientos para la Atención de Casos en las Defensorías del Niño y el Adolescente "]
[{"$f":"B205&COUNTIF($B$2:B205,B205)","v":"32. Atención de las Personas con Discapacidad7"},"32. Atención de las Personas con Discapacidad","Resolución Ministerial Nº 670-2006-MIMDES, Lineamientos de Política sobre el Sistema de Defensoría del Niño y del Adolescente"]
[{"$f":"B206&COUNTIF($B$2:B206,B206)","v":"33. Comunidades Nativas y Pueblos Indígenas1"},"33. Comunidades Nativas y Pueblos Indígenas","Ley Nº 24656, Ley General de Comunidades Campesinas"]
[{"$f":"B207&COUNTIF($B$2:B207,B207)","v":"33. Comunidades Nativas y Pueblos Indígenas2"},"33. Comunidades Nativas y Pueblos Indígenas","Decreto Supremo Nº 008-91-TR, Reglamento de la Ley General de Comunidades Campesinas"]
[{"$f":"B208&COUNTIF($B$2:B208,B208)","v":"33. Comunidades Nativas y Pueblos Indígenas3"},"33. Comunidades Nativas y Pueblos Indígenas","Decreto Ley Nº 22175, Ley de comunidades nativas y de desarrollo agrario de las regiones de Selva y Ceja de Selva"]
[{"$f":"B209&COUNTIF($B$2:B209,B209)","v":"33. Comunidades Nativas y Pueblos Indígenas4"},"33. Comunidades Nativas y Pueblos Indígenas","Decreto Supremo Nº 003-79-AA, Reglamento del Decreto Ley Nº 22175, Ley de comunidades nativas y de desarrollo agrario de las regiones de Selva y Ceja de Selva"]
[{"$f":"B210&COUNTIF($B$2:B210,B210)","v":"33. Comunidades Nativas y Pueblos Indígenas5"},"33. Comunidades Nativas y Pueblos Indígenas","Ley Nº 28736, Ley para la protección de pueblos indígenas u originarios en situación de aislamiento y en situación de contacto inicial"]
[{"$f":"B211&COUNTIF($B$2:B211,B211)","v":"34. Defensoría Municipal Atención del Niño, Niña y Adolecente1"},"34. Defensoría Municipal Atención del Niño, Niña y Adolecente","Artículo 73 de la Ley Nº 27972, Ley orgánica de municipalidades"]
[{"$f":"B212&COUNTIF($B$2:B212,B212)","v":"34. Defensoría Municipal Atención del Niño, Niña y Adolecente2"},"34. Defensoría Municipal Atención del Niño, Niña y Adolecente","Artículo 42 de la Ley Nº 27337, Código de los Niños y Adolescentes"]
[{"$f":"B213&COUNTIF($B$2:B213,B213)","v":"34. Defensoría Municipal Atención del Niño, Niña y Adolecente3"},"34. Defensoría Municipal Atención del Niño, Niña y Adolecente","Decreto Supremo Nº 006-99-PROMUDEH, que aprueba el Reglamento que faculta a la Defensoría del Niño y el Adolescente a realizar Conciliaciones Extrajudiciales con Título de Ejecución - Ley Nº27007. "]
[{"$f":"B214&COUNTIF($B$2:B214,B214)","v":"34. Defensoría Municipal Atención del Niño, Niña y Adolecente4"},"34. Defensoría Municipal Atención del Niño, Niña y Adolecente","Decreto Supremo Nº 007-2004-MIMDES, que modifica el Reglamento de la Ley que Faculta a las Defensorías del Niño y del Adolescente a Realizar Conciliaciones Extrajudiciales con Título de Ejecución - Ley Nº 27007 "]
[{"$f":"B215&COUNTIF($B$2:B215,B215)","v":"34. Defensoría Municipal Atención del Niño, Niña y Adolecente5"},"34. Defensoría Municipal Atención del Niño, Niña y Adolecente","Resolución Ministerial Nº234-99-PROMUDEH, Reglamento del Servicio de Defensoría del Niño y el Adolescente"]
[{"$f":"B216&COUNTIF($B$2:B216,B216)","v":"34. Defensoría Municipal Atención del Niño, Niña y Adolecente6"},"34. Defensoría Municipal Atención del Niño, Niña y Adolecente","Resolución Ministerial Nº 669-2006-MIMDES, que aprueba la nueva Guía de Procedimientos de Atención de Casos en las Defensorías del Niño y del Adolescente"]
[{"$f":"B217&COUNTIF($B$2:B217,B217)","v":"35. Programa Vaso de Leche1"},"35. Programa Vaso de Leche","Ley Nº 27972, Ley orgánica de municipalidades"]
[{"$f":"B218&COUNTIF($B$2:B218,B218)","v":"35. Programa Vaso de Leche2"},"35. Programa Vaso de Leche","Ley N° 24059, Ley de Creación del Programa de Vaso de Leche"]
[{"$f":"B219&COUNTIF($B$2:B219,B219)","v":"35. Programa Vaso de Leche3"},"35. Programa Vaso de Leche","Ley N° 27470, Ley que establece Normas Complementarias para la Ejecución del Programa del Vaso de Leche"]
[{"$f":"B220&COUNTIF($B$2:B220,B220)","v":"35. Programa Vaso de Leche4"},"35. Programa Vaso de Leche","Ley N° 27712, Ley que modifica la Ley 27470"]
[{"$f":"B221&COUNTIF($B$2:B221,B221)","v":"35. Programa Vaso de Leche5"},"35. Programa Vaso de Leche","Artículo 26° de la Ley N° 29951, Ley de Presupuesto del Sector Público para el Año Fiscal 2013"]
[{"$f":"B222&COUNTIF($B$2:B222,B222)","v":"35. Programa Vaso de Leche6"},"35. Programa Vaso de Leche","Decreto de Urgencia N° 039-2008, Implementación del Registro Único de Beneficiarios del Programa del Vaso de Leche (RUBPVL) y Población beneficiaria (corresponde a la población en situación de pobreza y pobreza extrema)."]
[{"$f":"B223&COUNTIF($B$2:B223,B223)","v":"35. Programa Vaso de Leche7"},"35. Programa Vaso de Leche","Resolución Ministerial Nº 711-2002-SA/DM, Aprueban Directiva denominada \"Valores Nutricionales Mínimos de la Ración del Programa del Vaso de Leche\""]
[{"$f":"B224&COUNTIF($B$2:B224,B224)","v":"35. Programa Vaso de Leche8"},"35. Programa Vaso de Leche","Directiva Nº 07-99-CG/SDE: “Lineamientos para la auditoría al Programa del Vaso de Leche por los órganos de auditoría del Sistema Nacional de Control y Sociedades de Auditoría designadas, en el ámbito de los gobiernos locales. "]
[{"$f":"B225&COUNTIF($B$2:B225,B225)","v":"35. Programa Vaso de Leche9"},"35. Programa Vaso de Leche","Decreto Supremo Nº 009-2006-SA: Aprueba el reglamento de alimentación infantil. "]
[{"$f":"B226&COUNTIF($B$2:B226,B226)","v":"35. Programa Vaso de Leche10"},"35. Programa Vaso de Leche","Resolución Ministerial Nº 451-2006-MINSA y Anexo: Norma sanitaria para la fabricación de alimentos a base de granos y otros, destinados a programas sociales de alimentación. "]
[{"$f":"B227&COUNTIF($B$2:B227,B227)","v":"35. Programa Vaso de Leche11"},"35. Programa Vaso de Leche","Ley Nº 27050: Ley General de la Persona con Discapacidad. "]
[{"$f":"B228&COUNTIF($B$2:B228,B228)","v":"35. Programa Vaso de Leche12"},"35. Programa Vaso de Leche","Ley Nº 27751: Ley que elimina la discriminación de las personas con discapacidad por deficiencia intelectual y/o física en programas de salud y alimentación a cargo del estado"]
[{"$f":"B229&COUNTIF($B$2:B229,B229)","v":"35. Programa Vaso de Leche13"},"35. Programa Vaso de Leche","Resolución de Contraloría Nº 388-2013-CG, aprueba la Directiva N° 015-2013-CG/CRL \"Información a ser enviada a la Contraloría General de la República con relación al Gasto y Ración del Programa del Vaso de Leche\""]
[{"$f":"B230&COUNTIF($B$2:B230,B230)","v":"36. Centro de Atención Integral del Adulto Mayor1"},"36. Centro de Atención Integral del Adulto Mayor","Ley Nº 27972, Ley orgánica de municipalidades"]
[{"$f":"B231&COUNTIF($B$2:B231,B231)","v":"36. Centro de Atención Integral del Adulto Mayor2"},"36. Centro de Atención Integral del Adulto Mayor","Artículo 8º, Ley Nº 28803, Ley de las Personas Adultas Mayores"]
[{"$f":"B232&COUNTIF($B$2:B232,B232)","v":"36. Centro de Atención Integral del Adulto Mayor3"},"36. Centro de Atención Integral del Adulto Mayor","Decreto Supremo Nº 013-2006-MIMDES, Reglamento de la Ley Nº 28803"]

{"sheet":"Listado-Base Legal","index":4,"n_rows":97,"n_cols":3,"rows_kept":97,"cut":false,"hidden":true,"merged":[]}
["Indices","Sistemas Administrativos","BASE LEGAL"]
[{"$f":"B2&COUNTIF($B$2:B2,B2)","v":"1. Gestión de Recursos Humanos1"},"1. Gestión de Recursos Humanos","Decreto Legislativo N° 1023, que crea la Autoridad Nacional del Servicio Civil – SERVIR"]
[{"$f":"B3&COUNTIF($B$2:B3,B3)","v":"1. Gestión de Recursos Humanos2"},"1. Gestión de Recursos Humanos","Ley N° 30057, Ley del Servicio Civil"]
[{"$f":"B4&COUNTIF($B$2:B4,B4)","v":"1. Gestión de Recursos Humanos3"},"1. Gestión de Recursos Humanos","Decreto Supremo N° 040-2014-PCM, Reglamento de la Ley N° 30057, Ley del Servicio Civil."]
[{"$f":"B5&COUNTIF($B$2:B5,B5)","v":"1. Gestión de Recursos Humanos4"},"1. Gestión de Recursos Humanos","Decreto Supremo 007-2010-PCM, que aprueba el Texto Único Ordenado de la normativa del Servicio Civil"]
[{"$f":"B6&COUNTIF($B$2:B6,B6)","v":"1. Gestión de Recursos Humanos5"},"1. Gestión de Recursos Humanos","Resolución Jefatural N° 019-82-INAP/DIGESNAP, que aprueba la Directiva N° 001-82-INAP-DNP, Directiva para la Formulación del Presupuesto Analítico de Personal (PAP) en las entidades del Sector Público."]
[{"$f":"B7&COUNTIF($B$2:B7,B7)","v":"1. Gestión de Recursos Humanos6"},"1. Gestión de Recursos Humanos","Resolución de Presidencia Ejecutiva N° 160-2013-SERVIR/PE, que aprueba los Lineamientos para el tránsito de una entidad pública al régimen del Servicio Civil."]
[{"$f":"B8&COUNTIF($B$2:B8,B8)","v":"1. Gestión de Recursos Humanos7"},"1. Gestión de Recursos Humanos","Resolución de Presidencia Ejecutiva N° 106-2014-SERVIR/PE, que formaliza la aprobación de la Guía de Mapeo de Puestos y anexos, que observarán las entidades públicas a fin de prepararse para la implementación de la Ley N° 30057, Ley del Servicio Civil."]
[{"$f":"B9&COUNTIF($B$2:B9,B9)","v":"1. Gestión de Recursos Humanos8"},"1. Gestión de Recursos Humanos","Resolución de Presidencia Ejecutiva N° 052-2016-SERVIR/PE, que aprueba la Directiva N° 001-2016-SERVIR/GDSRH “Normas para la Gestión del Proceso de Diseño de Puestos y Formulación del Manual de Perfiles de Puestos - MPP” sí como los anexos que forman parte de la misma: Anexo Nº 01: Guía Metodológica para el Diseño de Perfiles de Puestos, aplicable a regímenes distintos a la Ley Nº 30057;  Anexo Nº 02: Guía Metodológica para la elaboración del Manual de Perfiles de Puesto — MPP, aplicable al Régimen de la Ley del Servicio Civil — Ley Nº 30057."]
[{"$f":"B10&COUNTIF($B$2:B10,B10)","v":"1. Gestión de Recursos Humanos9"},"1. Gestión de Recursos Humanos","Resolución 304-2015-SERVIR-PE, Formalizar la aprobación de la Directiva \"Normas para la gestión del proceso de administración de puestos, y elaboración y aprobación del Cuadro de Puestos de la Entidad — CPE\", así como los Anexos 1, 2, 3, 4 y 5 que forman parte de la presente Resolución"]
[{"$f":"B11&COUNTIF($B$2:B11,B11)","v":"1. Gestión de Recursos Humanos10"},"1. Gestión de Recursos Humanos","Decreto Supremo N° 003-97-TR, que aprueba el Texto Único Ordenado del Decreto Legislativo N° 728, Ley de Productividad y Competitividad Laboral y modificatorias."]
[{"$f":"B12&COUNTIF($B$2:B12,B12)","v":"1. Gestión de Recursos Humanos11"},"1. Gestión de Recursos Humanos","Decreto Legislativo N° 1057, que regula el régimen especial de contratación administrativa de servicios."]
[{"$f":"B13&COUNTIF($B$2:B13,B13)","v":"1. Gestión de Recursos Humanos12"},"1. Gestión de Recursos Humanos","Régimen del Decreto Legislativo N° 276, Ley de Bases de la Carrera Administrativa y de Remuneraciones del Sector Público."]
[{"$f":"B14&COUNTIF($B$2:B14,B14)","v":"1. Gestión de Recursos Humanos13"},"1. Gestión de Recursos Humanos","Decreto Supremo N° 040-2014-PCM, que aprueba el Reglamento de la Ley N° 30057, Ley del Servicio Civil."]
[{"$f":"B15&COUNTIF($B$2:B15,B15)","v":"1. Gestión de Recursos Humanos14"},"1. Gestión de Recursos Humanos","Decreto Supremo N° 041-2014-PCM, que aprueban Reglamento del Régimen Especial para Gobiernos Locales"]
[{"$f":"B16&COUNTIF($B$2:B16,B16)","v":"1. Gestión de Recursos Humanos15"},"1. Gestión de Recursos Humanos","Decreto Supremo N° 001-98-TR, Normas reglamentarias relativas a obligación de los empleadores de llevar Planillas de Pago y sus normas modificatorias."]
[{"$f":"B17&COUNTIF($B$2:B17,B17)","v":"1. Gestión de Recursos Humanos16"},"1. Gestión de Recursos Humanos","Decreto Supremo N° 138-2014-EF, Reglamento de Compensaciones de la Ley N° 30057, Ley del Servicio Civil."]
[{"$f":"B18&COUNTIF($B$2:B18,B18)","v":"1. Gestión de Recursos Humanos17"},"1. Gestión de Recursos Humanos","Decreto Ley N° 20530, Régimen de Pensiones y Compensaciones por Servicios Civiles prestados al Estado no comprendidos en el Decreto Ley N° 19990 y sus modificatorias."]
[{"$f":"B19&COUNTIF($B$2:B19,B19)","v":"1. Gestión de Recursos Humanos18"},"1. Gestión de Recursos Humanos","Ley N° 29783, Ley de Seguridad y Salud en el Trabajo y sus modificatorias."]
[{"$f":"B20&COUNTIF($B$2:B20,B20)","v":"1. Gestión de Recursos Humanos19"},"1. Gestión de Recursos Humanos","Decreto Supremo N° 005-2012-TR, Reglamento de la Ley N° 29783, Ley de Seguridad y Salud en el Trabajo y sus modificatorias."]
[{"$f":"B21&COUNTIF($B$2:B21,B21)","v":"2. Abastecimiento1"},"2. Abastecimiento","Ley N° 30225, Ley de Contrataciones del Estado y sus modificatorias."]
[{"$f":"B22&COUNTIF($B$2:B22,B22)","v":"2. Abastecimiento2"},"2. Abastecimiento","Decreto Supremo Nº 350-2015-EF, que aprueba el Reglamento de la Ley Nº 30225."]
[{"$f":"B23&COUNTIF($B$2:B23,B23)","v":"2. Abastecimiento3"},"2. Abastecimiento","Directiva Nº 005-2017-OSCE/CD - PLAN ANUAL DE CONTRATACIONES."]
[{"$f":"B24&COUNTIF($B$2:B24,B24)","v":"2. Abastecimiento4"},"2. Abastecimiento","Resolución Nº 297-2017-OSCE/CD, que aprueba la Directiva Nº 015-2017-OSCE/CD - Procedimiento de adjudicación simplificada en forma electrónica y bases estándar para la contratación de bienes, servicios en general y consultorías en general."]
[{"$f":"B25&COUNTIF($B$2:B25,B25)","v":"2. Abastecimiento5"},"2. Abastecimiento","Resolución Nº 001-2017-OSCE/CD, que aprueba Directiva Nº 001-2017-OSCE/CD - Bases y Solicitud de Expresión de Interés estándar para los procedimientos de selección a convocar en el marco de la Ley N° 30225. "]
[{"$f":"B26&COUNTIF($B$2:B26,B26)","v":"2. Abastecimiento6"},"2. Abastecimiento","Directiva Nº 011-2017-OSCE/CD - Procedimiento para la emisión, actualización y desactivación del Certificado SEACE, así como las responsabilidades por su uso."]
[{"$f":"B27&COUNTIF($B$2:B27,B27)","v":"2. Abastecimiento7"},"2. Abastecimiento","Directiva Nº 003-2017-OSCE/CD.  Procedimiento para la certificación de profesionales y técnicos que laboren en los órganos encargados de las contrataciones de las entidades. "]
[{"$f":"B28&COUNTIF($B$2:B28,B28)","v":"2. Abastecimiento8"},"2. Abastecimiento","Directiva Nº 002-2017-OSCE/CD - Procedimiento de selección de subasta inversa electrónica."]
[{"$f":"B29&COUNTIF($B$2:B29,B29)","v":"3. Bienes Nacionales1"},"3. Bienes Nacionales","Ley N° 29151, Ley General del Sistema Nacional de Bienes Estatales y sus modificatorias."]
[{"$f":"B30&COUNTIF($B$2:B30,B30)","v":"3. Bienes Nacionales2"},"3. Bienes Nacionales","Ley N° 28296, Ley General del Patrimonio Cultural de la Nación y sus modificatorias."]
[{"$f":"B31&COUNTIF($B$2:B31,B31)","v":"3. Bienes Nacionales3"},"3. Bienes Nacionales","Ley Nº 29588 - Complementa facultades de la SBN (modificada por la Ley N° 29928)"]
[{"$f":"B32&COUNTIF($B$2:B32,B32)","v":"3. Bienes Nacionales4"},"3. Bienes Nacionales","Ley Nº 29618 - Imprescriptibilidad de los predios de dominio privado del Estado"]
[{"$f":"B33&COUNTIF($B$2:B33,B33)","v":"3. Bienes Nacionales5"},"3. Bienes Nacionales","Ley Nº 30047 – Ley que modifica la Ley N° 29151"]
[{"$f":"B34&COUNTIF($B$2:B34,B34)","v":"3. Bienes Nacionales6"},"3. Bienes Nacionales","Ley Nº 30076 – Ley que modifica el Código Penal"]
[{"$f":"B35&COUNTIF($B$2:B35,B35)","v":"3. Bienes Nacionales7"},"3. Bienes Nacionales","Ley Nº 30230 – (extracto) Ley de Saneamiento y recuperación extrajudicial de predios estatales"]
[{"$f":"B36&COUNTIF($B$2:B36,B36)","v":"3. Bienes Nacionales8"},"3. Bienes Nacionales","Decreto Supremo N° 019-2015-VIVIENDA – (extracto) Reglamento de la Ley N° 30230 Decreto Legislativo N° 1187 – Modifica el Código Penal"]
[{"$f":"B37&COUNTIF($B$2:B37,B37)","v":"3. Bienes Nacionales9"},"3. Bienes Nacionales","Decreto Legislativo Nº 1187"]
[{"$f":"B38&COUNTIF($B$2:B38,B38)","v":"3. Bienes Nacionales10"},"3. Bienes Nacionales","Decreto Legislativo Nº 1192"]
[{"$f":"B39&COUNTIF($B$2:B39,B39)","v":"3. Bienes Nacionales11"},"3. Bienes Nacionales","Ley 30327 Ley de promoción de las inversiones para el crecimiento económico"]
[{"$f":"B40&COUNTIF($B$2:B40,B40)","v":"3. Bienes Nacionales12"},"3. Bienes Nacionales","Ley 30556 Ley que aprueba disposiciones de carácter extraordinario"]
[{"$f":"B41&COUNTIF($B$2:B41,B41)","v":"4. Archivo Nacional y Patrimonio1"},"4. Archivo Nacional y Patrimonio","Ley N° 25323, que crea el Sistema Nacional de Archivos."]
[{"$f":"B42&COUNTIF($B$2:B42,B42)","v":"4. Archivo Nacional y Patrimonio2"},"4. Archivo Nacional y Patrimonio","Decreto Supremo N° 011-2006-ED, Reglamento de la Ley N° 28296 Ley General del Patrimonio Cultural de la Nación."]
[{"$f":"B43&COUNTIF($B$2:B43,B43)","v":"4. Archivo Nacional y Patrimonio3"},"4. Archivo Nacional y Patrimonio","Decreto Supremo N° 008-92-JUS, Reglamento de la Ley N° 25323 que crea el Sistema Nacional de Archivos y sus modificatorias."]
[{"$f":"B44&COUNTIF($B$2:B44,B44)","v":"4. Archivo Nacional y Patrimonio4"},"4. Archivo Nacional y Patrimonio","Decreto Ley N° 19414, declara de utilidad pública la Defensa, Conservación e Incremento del Patrimonio Documental de la Nación."]
[{"$f":"B45&COUNTIF($B$2:B45,B45)","v":"4. Archivo Nacional y Patrimonio5"},"4. Archivo Nacional y Patrimonio","Decreto Supremo N° 022-75-ED, Reglamento del Decreto Ley N° 19414."]
[{"$f":"B46&COUNTIF($B$2:B46,B46)","v":"4. Archivo Nacional y Patrimonio6"},"4. Archivo Nacional y Patrimonio","Resolución Jefatural N° 339-2013-AGN/J, que aprueba la Directiva N° 001-2013- ANG-DNDAAI. Procedimientos Técnicos Archivísticos para Municipalidades."]
[{"$f":"B47&COUNTIF($B$2:B47,B47)","v":"4. Archivo Nacional y Patrimonio7"},"4. Archivo Nacional y Patrimonio","Resolución Jefatural N° 073-85-AGN/J, Normas Generales del Sistema General de Archivos."]
[{"$f":"B48&COUNTIF($B$2:B48,B48)","v":"4. Archivo Nacional y Patrimonio8"},"4. Archivo Nacional y Patrimonio","Resolución Jefatural N° 117-86-AGN/J, que aprueba la Directiva N° 003-86/AGN-DGAI. Normas para la formulación del Plan Anual de Archivos Administrativos del Sector Público Nacional."]
[{"$f":"B49&COUNTIF($B$2:B49,B49)","v":"4. Archivo Nacional y Patrimonio9"},"4. Archivo Nacional y Patrimonio","Resolución Jefatural N° 173-86-AGN/J"]
[{"$f":"B50&COUNTIF($B$2:B50,B50)","v":"5. Presupuesto Público1"},"5. Presupuesto Público","Ley N° 28411, Ley General del Sistema Nacional de Presupuesto, y sus modificatorias."]
[{"$f":"B51&COUNTIF($B$2:B51,B51)","v":"5. Presupuesto Público2"},"5. Presupuesto Público","Ley N° 30114, Ley de Presupuesto del Sector Público para el Año Fiscal 2014."]
[{"$f":"B52&COUNTIF($B$2:B52,B52)","v":"5. Presupuesto Público3"},"5. Presupuesto Público","Resolución Directoral N° 018-2014-EF/50.01, Dispone que la Directiva N° 005-2012-EF/50.01 “Directiva para la Evaluación Semestral y Anual de los Presupuestos Institucionales de las Entidades del Gobierno Nacional y Gobiernos Regionales para el Año Fiscal 2012\", aprobada por Resolución Directoral N° 017-2012-EF- es aplicable para la Evaluación Semestral y Anual de los Presupuestos Institucionales de las Entidades del Gobierno Nacional y Gobiernos Regionales para el Año Fiscal 2014."]
[{"$f":"B53&COUNTIF($B$2:B53,B53)","v":"5. Presupuesto Público4"},"5. Presupuesto Público","ResoluciónDirectoral N° 007-2013-EF/50.01, que aprueba la Directiva N° 002-2013-EF/50.01, “Directiva para la Programación y Formulación Anual del Presupuesto del Sector Público con una perspectiva de Programación Multianual”."]
[{"$f":"B54&COUNTIF($B$2:B54,B54)","v":"6. Tesorería1"},"6. Tesorería","Ley N° 28693, Ley General del Sistema Nacional de Tesorería, y sus modificatorias."]
[{"$f":"B55&COUNTIF($B$2:B55,B55)","v":"6. Tesorería2"},"6. Tesorería","Decreto Supremo Nº 126-2017-EF, Aprueban Texto Único Ordenado de la Ley General del Sistema Nacional de Tesorería."]
[{"$f":"B56&COUNTIF($B$2:B56,B56)","v":"6. Tesorería3"},"6. Tesorería","Decreto Supremo N° 224-2013-EF, “Dictan medidas para facilitar el acceso a financiamiento de los Gobiernos Regionales y Gobiernos Locales para Proyectos de Inversión Pública”."]
[{"$f":"B57&COUNTIF($B$2:B57,B57)","v":"6. Tesorería4"},"6. Tesorería","Decreto Supremo N° 098-2014-EF, que aprueba operación de endeudamiento interno para apoyar el financiamiento de proyectos de Inversión pública a cargo de los Gobiernos Regionales."]
[{"$f":"B58&COUNTIF($B$2:B58,B58)","v":"6. Tesorería5"},"6. Tesorería","Resolución Directoral N° 002-2007-EF/77.15, que aprueba la Directiva de Tesorería N° 001-2007-EF/77.15, y modificatorias."]
[{"$f":"B59&COUNTIF($B$2:B59,B59)","v":"7. Endeudamiento Público1"},"7. Endeudamiento Público","Ley N° 28563, Ley General del Sistema Nacional de Endeudamiento, y sus modificatorias."]
[{"$f":"B60&COUNTIF($B$2:B60,B60)","v":"7. Endeudamiento Público2"},"7. Endeudamiento Público","Decreto Supremo N° 008-2014-EF, que aprueba el Reglamento de la Ley General del Sistema de Endeudamiento, y sus modificatorias."]
[{"$f":"B61&COUNTIF($B$2:B61,B61)","v":"7. Endeudamiento Público3"},"7. Endeudamiento Público","Resolución Directoral N° 21-2006-EF/75.01, que aprueba la Directiva de Desembolsos de las Operaciones de Endeudamiento y Administración de Deuda."]
[{"$f":"B62&COUNTIF($B$2:B62,B62)","v":"7. Endeudamiento Público4"},"7. Endeudamiento Público","Resolución Directoral N° 05-2006-EF/75.01, que aprueba la Directiva para la Concertación de Operaciones de Endeudamiento Público."]
[{"$f":"B63&COUNTIF($B$2:B63,B63)","v":"8. Contabilidad1"},"8. Contabilidad","Ley N° 28708, Ley General del Sistema Nacional de Contabilidad"]
[{"$f":"B64&COUNTIF($B$2:B64,B64)","v":"8. Contabilidad2"},"8. Contabilidad","Ley N° 30059, Ley de fortalecimiento de la Gestión Municipal a través del sinceramiento de la Deuda Municipal."]
[{"$f":"B65&COUNTIF($B$2:B65,B65)","v":"8. Contabilidad3"},"8. Contabilidad","Resolución Ministerial N° 059-2010-EF/93, que aprueba el Reglamento para la Presentación de Información sobre saldos de fondos públicos."]
[{"$f":"B66&COUNTIF($B$2:B66,B66)","v":"8. Contabilidad4"},"8. Contabilidad","Resolución Directoral N° 014-2016-EF/51.01, que aprueban modificatorias a la Directiva Nº 004-2015-EF/51.01 “Presentación de Información Financiera, Presupuestaria y Complementaria de Cierre Contable por las Entidades Gubernamentales del Estado para la elaboración de la Cuenta General de la República”."]
[{"$f":"B67&COUNTIF($B$2:B67,B67)","v":"8. Contabilidad5"},"8. Contabilidad","Resolución del Consejo Normativo de Contabilidad (RCNC) N° 003-2017-EF/30, Oficializa la versión 2017 de las normas internacionales de información extranjera (NIC, NIIF, CINIIF, SIC)."]
[{"$f":"B68&COUNTIF($B$2:B68,B68)","v":"8. Contabilidad6"},"8. Contabilidad","Resolución Directoral N° 006-2014-EF/51.01, que aprueba la Directiva N° 002-2014-EF/51.01 “Metodología para la Modificación de la Vida Útil de Edificios, Revaluación de Edificios y Terrenos, Identificación e Incorporación de Edificios y Terrenos en Administración Funcional y Reclasificación de Propiedades de Inversión en las Entidades Gubernamentales”."]
[{"$f":"B69&COUNTIF($B$2:B69,B69)","v":"8. Contabilidad7"},"8. Contabilidad","Resolución Directoral N° 007-2014-EF/51.01, que aprueba la Directiva N° 003-2014-EF/51.01 “Metodología del costo amortizado para el reconocimiento y medición de instrumentos financieros de las entidades gubernamentales”."]
[{"$f":"B70&COUNTIF($B$2:B70,B70)","v":"8. Contabilidad8"},"8. Contabilidad","Resolución Directoral N° 001-2009-EF/93.01, que aprueba el uso obligatorio del Plan Contable Gubernamental 2009 y modificatorias."]
[{"$f":"B71&COUNTIF($B$2:B71,B71)","v":"8. Contabilidad9"},"8. Contabilidad","Resolución Directoral N° 010-2014-EF/51.01, que aprueba la Directiva N° 005-2014-EF/51.01, “Preparación y presentación de la Información financiera y presupuestaria trimestral y semestral por las entidades usuarias del Sistema de Contabilidad Gubernamental”."]
[{"$f":"B72&COUNTIF($B$2:B72,B72)","v":"8. Contabilidad10"},"8. Contabilidad","Resolución de Contaduría N° 159-2003-EF/93.01, que aprueba el Instructivo 20-2003-EF/93.01, sobre “Registro y Control de las Obligaciones Previsionales a Cargo del Estado”."]
[{"$f":"B73&COUNTIF($B$2:B73,B73)","v":"8. Contabilidad11"},"8. Contabilidad","Resolución Directoral N° 017-2012-EF-51.01, que aprueba la Directiva N° 003-2012-EF/51.01 “Cierre Contable y Presentación de Información para la Elaboración de la Cuenta General de la República” y modificatoria."]
[{"$f":"B74&COUNTIF($B$2:B74,B74)","v":"8. Contabilidad12"},"8. Contabilidad","Resolución Directoral N° 011-2011-EF/51.01, que aprueba el “Manual de Procedimientos para las Acciones de Saneamiento Contable de las Entidades Gubernamentales”."]
[{"$f":"B75&COUNTIF($B$2:B75,B75)","v":"8. Contabilidad13"},"8. Contabilidad","Resolución Directoral 011-2014-EF/51.01, que aprueba la Directiva N° 006-2014-EF/51.01 “Metodología para el Reconocimiento y Medición de Contratos de Concesiones en las Entidades Gubernamentales Concedentes”."]
[{"$f":"B76&COUNTIF($B$2:B76,B76)","v":"8. Contabilidad14"},"8. Contabilidad","Normas Internacionales de Contabilidad para el Sector Público (NICSP) N° 01 “Presentación de Estados Financieros”, N° 06 “Estados Financieros Consolidados y Separados” y N' 17 “Propiedades, Planta y Equipo”."]
[{"$f":"B77&COUNTIF($B$2:B77,B77)","v":"8. Contabilidad15"},"8. Contabilidad","Normas Internacionales de Contabilidad para el Sector Público (NICSP) N° 06 “Estados Financieros Consolidados y Separados”."]
[{"$f":"B78&COUNTIF($B$2:B78,B78)","v":"9. Inversión Pública1"},"9. Inversión Pública","Decreto Legislativo N° 1252, que crea el Sistema Nacional de Programación Multianual y Gestión de Inversiones."]
[{"$f":"B79&COUNTIF($B$2:B79,B79)","v":"9. Inversión Pública2"},"9. Inversión Pública","Decreto Supremo Nº 027-2017-EF, Aprueban el Reglamento del Decreto Legislativo Nº 1252, Decreto Legislativo que crea el Sistema Nacional de Programación Multianual y Gestión de Inversiones."]
[{"$f":"B80&COUNTIF($B$2:B80,B80)","v":"9. Inversión Pública3"},"9. Inversión Pública","Resolución Ministerial Nº 172-2017-EF/17, que aprueba la actualización de la jerarquía y ponderación de los criterios señalados en el numeral 7.1 del artículo 7 de la Ley N° 29125, Ley que establece la implementación y el funcionamiento del Fondo de Promoción a la Inversión Pública Regional y Local – FONIPREL."]
[{"$f":"B81&COUNTIF($B$2:B81,B81)","v":"9. Inversión Pública4"},"9. Inversión Pública","Resolución Directoral N° 001-2017-EF/63.01, aprueban Directiva para la Programación Multianual en el Marco del Sistema Nacional de Programación Multianual y Gestión de Inversiones."]
[{"$f":"B82&COUNTIF($B$2:B82,B82)","v":"10. Planeamiento Estratégico1"},"10. Planeamiento Estratégico","Decreto Legislativo N° 1088, Ley del Sistema Nacional de Planeamiento Estratégico y del Centro Nacional de Planeamiento Estratégico."]
[{"$f":"B83&COUNTIF($B$2:B83,B83)","v":"10. Planeamiento Estratégico2"},"10. Planeamiento Estratégico","Decreto Supremo N° 054-2011-PCM, aprueba el Plan Estratégico de Desarrollo Nacional denominado Plan Bicentenario: El Perú hacia el 2021."]
[{"$f":"B84&COUNTIF($B$2:B84,B84)","v":"10. Planeamiento Estratégico3"},"10. Planeamiento Estratégico","Resolución N° 026-2017/CEPLAN/PCD, que aprueba Directiva N° 001-2017-CEPLAN/PCD, Directiva para la Actualización del Plan Estratégico de Desarrollo Nacional”, establece los lineamientos para la actualización del Plan Estratégico de Desarrollo Nacional – PEDN en el marco del ciclo de planeamiento estratégico para la mejora continua."]
[{"$f":"B85&COUNTIF($B$2:B85,B85)","v":"10. Planeamiento Estratégico4"},"10. Planeamiento Estratégico","Resolución N° 033-2017/CEPLAN/PCD, aprueba la Guía para el planeamiento institucional."]
[{"$f":"B86&COUNTIF($B$2:B86,B86)","v":"11. Defensa Judicial del Estado1"},"11. Defensa Judicial del Estado","Decreto Legislativo N° 1068, Decreto Legislativo del Sistema de Defensa Jurídica del Estado"]
[{"$f":"B87&COUNTIF($B$2:B87,B87)","v":"12. Modernización de la gestión pública1"},"12. Modernización de la gestión pública","Ley N° 27658, Ley Marco de Modernización de la Gestión del Estado y modificatorias."]
[{"$f":"B88&COUNTIF($B$2:B88,B88)","v":"12. Modernización de la gestión pública2"},"12. Modernización de la gestión pública","Decreto Supremo N° 015-2014-EF, que aprueba los procedimientos para el cumplimiento de metas y la asignación de los recursos del Plan de Incentivos a la Mejora de la Gestión y Modernización Municipal del año 2014."]
[{"$f":"B89&COUNTIF($B$2:B89,B89)","v":"12. Modernización de la gestión pública3"},"12. Modernización de la gestión pública","Decreto Supremo Nº 004-2013-PCM, Política Nacional de Modernización de la Gestión Pública."]
[{"$f":"B90&COUNTIF($B$2:B90,B90)","v":"12. Modernización de la gestión pública4"},"12. Modernización de la gestión pública","Resolución Ministerial Nº 125-2013-PCM, que aprueba el Plan de implementación de modernización de la gestión pública 2013-2016"]
[{"$f":"B91&COUNTIF($B$2:B91,B91)","v":"12. Modernización de la gestión pública5"},"12. Modernización de la gestión pública","Resolución Ministerial N° 097-2012-PCM, que aprueba la Directiva N° 001-2012-PCM-SGP “Lineamientos para la elaboración de matrices de delimitación de competencias y distribución de funciones de los Ministerios que tienen a su cargo competencias compartidas”."]
[{"$f":"B92&COUNTIF($B$2:B92,B92)","v":"12. Modernización de la gestión pública6"},"12. Modernización de la gestión pública","Decreto Supremo N° 007-2011-PCM, que aprueba la Metodología de Simplificación Administrativa y establece disposiciones para su implementación, para la mejora de los procedimientos administrativos y servicios prestados en exclusividad."]
[{"$f":"B93&COUNTIF($B$2:B93,B93)","v":"12. Modernización de la gestión pública7"},"12. Modernización de la gestión pública","Resolución Ministerial N 200-2010-PCM, que aprueba la Directiva N° 010-2010, Lineamientos para la implementación del Portal Estándar en las entidades de la administración pública, y modificatorias."]
[{"$f":"B94&COUNTIF($B$2:B94,B94)","v":"12. Modernización de la gestión pública8"},"12. Modernización de la gestión pública","Ley N° 27806, Ley de Transparencia y Acceso a la Información Pública, y modificatorias."]
[{"$f":"B95&COUNTIF($B$2:B95,B95)","v":"12. Modernización de la gestión pública9"},"12. Modernización de la gestión pública","Decreto Supremo 079-2007-PCM, que aprueba los Lineamientos para la elaboración y aprobación del Texto Único de Procedimientos Administrativos - TUPA y disposiciones para el cumplimiento de la Ley del Silencio Administrativo."]
[{"$f":"B96&COUNTIF($B$2:B96,B96)","v":"12. Modernización de la gestión pública10"},"12. Modernización de la gestión pública","Decreto Supremo N° 043-2003-PCM, que aprueba el Texto Único Ordenado de la Ley N° 27806, Ley de Transparencia y acceso a la información pública."]
[{"$f":"B97&COUNTIF($B$2:B97,B97)","v":"12. Modernización de la gestión pública11"},"12. Modernización de la gestión pública","Decreto Supremo N° 072-2003-PCM, que aprueba el Reglamento de la Ley N° 27806, Ley de Transparencia y Acceso a la Información Pública, y modificatorias."]

{"sheet":"Listado-Definicion 2","index":5,"n_rows":627,"n_cols":3,"rows_kept":627,"cut":false,"hidden":true,"merged":[[38,0,38,1]]}
["Sistemas"]
["01. Gestión de Recursos Humanos"]
["02. Bienes estatales"]
["03. Archivo Nacional y Patrimonio"]
["04. Contrataciones del Estado"]
["05. Presupuesto Público"]
["06. Tesorería"]
["07. Endeudamiento Público"]
["08. Contabilidad"]
["09. Inversión Pública"]
["10. Planeamiento Estratégico"]
["11. Defensa Judicial del Estado"]
["12. Modernización de la Gestión Pública"]
["13. Programa de Incentivos a la Mejora de la Gestión Municipal"]
["14. Administración Tributaria Municipal"]
["15. Sistema de Seguridad y Defensa Nacional"]
["16. Seguridad Ciudadana"]
["17. Licencias y autorizaciones de funcionamiento"]
["18. Sistema de Gestión Ambiental Local"]
["19. Abastecimiento de agua dulce y/o tratada"]
["20. Limpieza pública y áreas verdes"]
["21. Fiscalización (Ambiental/Tributaria/Servicios municipales)"]
["22. Ejecución coactiva"]
["23. Educación, Cultura, Deportes y Recreación"]
["24. Participación y control vecinal"]
["25. Salubridad"]
["26. Tránsito, circulación y transporte púbico"]
["27. Registro de hechos vitales"]
["28. Desarrollo económico del sector Turismo"]
["29. Desarrollo económico local"]
["30. Servicios no exclusivos"]
["31. Sistema de Focalización de Hogares"]
["32. Atención de las Personas con Discapacidad"]
["33. Comunidades Nativas y Pueblos Indígenas"]
["34. Defensoría Municipal Atención del Niño, Niña y Adolecente"]
["35. Programa Vaso de Leche"]
["36. Centro de Atención Integral del Adulto Mayor"]
[]
["DEFINICIONES Y FINALIDADES POR SISTEMA ADMINISTRATIVO"]
["Sistemas Administrativos","Definicion y finalidades"]
["01. Gestión de Recursos Humanos","El Decreto Legislativo N° 1023 crea la Autoridad Nacional del Servicio Civil – SERVIR, como organismo técnico especializado, rector del Sistema Administrativo de Gestión de Recursos Humanos del Estado.\nEl Sistema Administrativo de Gestión de Recursos Humanos establece, desarrolla y ejecuta la política de Estado respecto del servicio civil; y, comprende el conjunto de normas, principios, recursos, métodos, procedimientos y técnicas utilizados por las entidades del sector público en la gestión de los recursos humanos"]
["02. Bienes estatales","La Ley N° 29151, Ley General del Sistema Nacional de Bienes Estatales que establece las normas que regulan el ámbito, organización, atribuciones y funcionamiento del Sistema Nacional de Bienes Estatales, en el marco del proceso de modernización del Estado y en apoyo y fortalecimiento del proceso de descentralización."]
["03. Archivo Nacional y Patrimonio","El Sistema Nacional de Archivos se crea con la finalidad de integrar estructurar, normativa y funcionalmente los archivos de las entidades públicas existentes en le ámbito nacional, mediante la aplicación de principios, normas, técnicas y métodos de archivo, garantizando con ello la defensa, conservación, organización y servicio del Patrimonio Documental de la Nación."]
["04. Contrataciones del Estado","Conjunto de procesos orientados a maximizar el valor de los recursos públicos que se invierten bajo el enfoque de gestión por resultados en las contrataciones de bienes, servicios y obras, de tal manera que estas se efectúen en forma oportuna y bajo las mejores condiciones de precio y calidad, permitan el cumplimiento de los fines públicos y tengan una repercusión positiva en las condiciones de vida de los ciudadanos."]
["05. Presupuesto Público","Se rige por la Ley N° 28411 que establece los principios, procesos y procedimientos que regulan el Sistema Nacional de Presupuesto Público.\nEl Presupuesto Público constituye el instrumento de gestión del Estado que permite a las entidades lograr sus objetivos y metas contenidas en su Plan Operativo Institucional (POI). Asimismo, es la expresión cuantificada, conjunta y sistemática de los gastos a atender durante el año fiscal, por cada una de las Entidades que forman parte del Sector Público y refleja los ingresos que financian dichos gastos."]
["06. Tesorería","La Ley N° 28693 tiene por objeto establecer las normas fundamentales para el funcionamiento del Sistema Nacional de Tesorería.\nEl Sistema Nacional de Tesorería, es el conjunto de órganos, normas, procedimientos, técnicas e instrumentos orientados a la administración de los fondos públicos, en las entidades y organismos del Sector Público, cualquiera que sea la fuente de financiamiento y uso de los mismos, considerado como el conjunto de órganos, normas, procedimientos, técnicas e instrumentos orientados a la administración de los fondos públicos, en las entidades y organismos del Sector Público, cualquiera que sea la fuente de financiamiento y uso de los mismos."]
["07. Endeudamiento Público","La Ley N° 28563 establece las normas generales que rigen los procesos fundamentales del Sistema Nacional de Endeudamiento, con el objeto de que la concertación de operaciones de endeudamiento y de administración de deuda pública se sujeten a los principios de eficiencia, prudencia, responsabilidad fiscal, transparencia y credibilidad, capacidad de pago y centralización normativa y descentralización operativa.\nLa operación de endeudamiento público es el financiamiento sujeto a reembolso acordado a plazos mayores de un año, destinado a realizar proyectos de inversión pública, la prestación de servicios, para el apoyo a la balanza de pagos, y el cumplimiento de la función previsional del Estado."]
["08. Contabilidad","La Ley N° 28708 que establece el marco legal para dictar y aprobar normas y procedimientos que permitan armonizar la información contable de las entidades del sector público y del sector privado, así como, para elaborar las cuentas nacionales, la Cuenta General de la República, las cuentas fiscales y efectuar el planeamiento que corresponda.\nEl Sistema Nacional de Contabilidad es el conjunto de políticas, principios, normas y procedimientos contables aplicados en los sectores público y privado."]
["09. Inversión Pública","El Decreto Legislativo N° 1252 crea el Sistema Nacional de Programación Multianual y Gestión de Inversiones como sistema administrativo del Estado, con la finalidad de orientar el uso de los recursos públicos destinados a la inversión para la efectiva prestación de servicios y la provisión de la infraestructura necesaria para el desarrollo del país."]
["10. Planeamiento Estratégico","El Decreto Legislativo N° 1088 que crea el Sistema Nacional de Planeamiento Estratégico como el conjunto articulado e integrado de órganos, subsistemas y relaciones funcionales cuya finalidad es coordinar y viabilizar el proceso de planeamiento estratégico nacional para promover y orientar el desarrollo armónico y sostenido del país."]
["11. Defensa Judicial del Estado","El Decreto Legislativo N° 1068 crea el Sistema de Defensa Jurídica del Estado con la finalidad de fortalecer, unificar y modernizar la defensa jurídica del Estado en los ámbitos local, regional, nacional, supranacional e internacional."]
["12. Modernización de la Gestión Pública","Se rige por la Ley N° 27658 “Ley Marco de Modernización de la Gestión del Estado” que declara al Estado Peruano en proceso de modernización en sus diferentes instancias, dependencias, entidades, organizaciones y procedimientos, con la finalidad de mejorar la gestión pública y construir un Estado democrático, descentralizado y al servicio del ciudadano.\nEl proceso de modernización de la gestión del Estado tiene como finalidad fundamental la obtención de mayores niveles de eficiencia del aparato estatal, de manera que se logre una mejor atención a la ciudadanía, priorizando y optimizando el uso de los recursos públicos."]
["13. Programa de Incentivos a la Mejora de la Gestión Municipal","El Programa de Incentivos a la Mejora de la Gestión Municipal (PI) fue creado mediante Ley Nº 29332 y modificatorias e implica una transferencia de recursos a las municipalidades por el cumplimiento de metas en un periodo determinado. Dichas metas son formuladas por diversas entidades públicas del Gobierno Central y tienen como objetivo impulsar determinados resultados cuyo logro requiere un trabajo articulado con las municipalidades.\nEl Plan de Incentivos tiene por objeto incentivar a los gobiernos locales a mejorar los niveles de recaudación de los tributos municipales y la ejecución del gasto en inversión."]
["14. Administración Tributaria Municipal","El Sistema Tributario Municipal, está referida a la administración de los tributos que constituyan renta de los Gobiernos Locales y así como a las acciones conducentes que permitan optimizar su recaudación."]
["15. Sistema de Seguridad y Defensa Nacional","El Sistema de Seguridad y Defensa Nacional es el conjunto interrelacionado de elementos del Estado cuyas funciones están orientadas a garantizar seguridad nacional mediante la concepción, planeamiento, dirección, preparación, ejecución y supervisión de la defensa nacional."]
["16. Seguridad Ciudadana","Seguridad Ciudadana, a la acción integrada que desarrolla el Estado, con la colaboración de la ciudadanía, destinada a asegurar su convivencia pacífica, la erradicación de la violencia y la utilización pacífica, la erradicación de la violencia y la utilización pacífica de las vías y espacios públicos. Del mismo modo, contribuir a la prevención de la comisión de delitos y faltas."]
["17. Licencias y autorizaciones de funcionamiento","Este referido proceso administrativo que otorga la autorización municipal para el desarrollo de actividades económicas en un establecimiento determinado.\nLas personas naturales, jurídicas o entes colectivos, nacionales o extranjeros, incluyendo empresas o entidades del Estado, que desarrollen, con o sin finalidad de lucro, actividades de comercio, industriales y/o de servicios de manera previa a la apertura, o instalación de establecimientos en los que se desarrollen tales actividades."]
["18. Sistema de Gestión Ambiental Local","Se denomina Gestión Ambiental al proceso orientado a administrar, planificar, evaluar y monitorear con la mayor eficiencia posible los recursos ambientales existentes en un determinado territorio, buscando la mejora de la calidad de vida de sus habitantes, dentro de un enfoque de desarrollo sostenible, es decir, considerando sus vínculos con los aspectos sociales y económicos, así como los impactos de las decisiones actuales sobre las decisiones futuras. La Gestión ambiental debe estar articulada al Plan de Ordenamiento Territorial y al Plan de Desarrollo Local Concertado, así como a las políticas sobre educación, participación ciudadana, recursos naturales, biodiversidad cultura, entre otras."]
["19. Abastecimiento de agua dulce y/o tratada","Procesos orientados administración del recurso hídrico bajo los lineamientos dados para su administración, y cobro por el servicio prestado distribución, de agua dulce y/o tratada a los ciudadanos de la localidad que no cuenten ya con este servicio."]
["20. Limpieza pública y áreas verdes","Esta referido a la gestión de los residuos sólidos en el país tiene como finalidad su manejo integral y sostenible, mediante la articulación, integración y compatibilización de las políticas, planes, programas, estrategias y acciones de quienes intervienen en la gestión y el manejo de los residuos sólidos, así como al barrido de calles y vereda, y el mantenimiento de parques y jardines públicos."]
["21. Fiscalización (Ambiental/Tributaria/Servicios municipales)","Conforme lo estable la Ley 27972, se refiere a las acciones conducentes para examinar una actividad para comprobar si cumple con las normativas vigentes, impulsadas el concejo municipal conforme a sus atribuciones y por los vecinos conforme a la presente ley. \nAsimismo, las municipalidades ejercen, de manera exclusiva o compartida, una función promotora, normativa\ny reguladora, así como las de ejecución y de fiscalización y control, en las materias de su\ncompetencia, conforme a la presente ley y la Ley de Bases de la Descentralización (Artículo 74.- Funciones Específicas Municipales)."]
["22. Ejecución coactiva","Esta referido aquellos actos de coerción para el cumplimiento de la obligación, de acuerdo a lo establecido en esta Ley, que ejercen las entidades de la Administración Pública Nacional en virtud de las facultades otorgadas por las leyes de sus materias específicas. Asimismo, constituye el marco legal que garantiza a los obligados el desarrollo de un debido procedimiento coactivo."]
["23. Educación, Cultura, Deportes y Recreación","Las municipalidades tienen competencia en materia de educación, cultura, deportes y recreación, así como competencias y funciones específicas compartidas con el gobierno nacional y el regional en el diseño, promoción, fortalecimiento y monitoreo de las de programas, proyectos y acciones conducentes al desarrollo cultural, promoción del deporte y actividades de recreación para la comunidad."]
["24. Participación y control vecinal","Esta referido al conjunto de acciones que fomenta la intervienen en forma individual o colectiva en la gestión administrativa y de gobierno municipal a través de mecanismos de participación vecinal y del ejercicio de derechos políticos, de conformidad con la Constitución y la respectiva ley de la materia."]
["25. Salubridad","Esta referido al conjunto de acciones implementadas por un gobierno con el objetivo de mejorar las condiciones sanitarias de la población. De esta forma, las autoridades promueven campañas de prevención y garantizan el acceso democrático y masivo a los centros de atención."]
["26. Tránsito, circulación y transporte púbico","Esta referido al conjunto de acciones implementadas por las Municipalidades en materia de tránsito terrestre, quienes ejercen funciones de gestión y fiscalización, en el ámbito de su jurisdicción, en concordancia con las disposiciones que emita la Municipalidad Provincial respectiva y las previstas en el Reglamento Nacional de Tránsito.\nEn materia de vialidad, la instalación, mantenimiento y renovación de los sistemas de señalización de tránsito en su jurisdicción, conforme al Reglamento correspondiente."]
["27. Registro de hechos vitales","Son Hechos Vitales los Nacimientos, Defunciones, Matrimonios. La captura de datos de los mismos se efectúa por medio de Registros Administrativos (del Registro Civil), abarcando todas las variables que cada hecho implica: sexo, edad, causa, lugar de ocurrencia, etc."]
["28. Desarrollo económico del sector Turismo","Estar referido a las acciones que tiene por objetivo principal, impulsar programas que contribuyan a promover mayores niveles de calidad y competitividad, la generación de capacidades locales y el desarrollo turístico sostenible en las diferentes unidades del planeamiento local."]
["29. Desarrollo económico local","El desarrollo económico local es un proceso de crecimiento y cambio estructural de la economía de una ciudad, distrito o localidad, en que se pueden identificar al menos tres dimensiones: una económica, caracterizada por un sistema de producción que permite a los empresarios locales usar eficientemente los factores productivos, generar economías de escala y aumentar la productividad a niveles que permiten mejorar la competitividad en los mercados."]
["30. Servicios no exclusivos","Esta referido para aquellos servicios que no sean prestados en exclusividad, las entidades a través de una Resolución del Titular del Pliego establecerán los requisitos y los costos correspondientes de los mismos, los cuales deberán ser difundidos para que sean de público conocimiento."]
["31. Sistema de Focalización de Hogares","Es un sistema intersectorial e intergubernamental que provee información socioeconómica a las Intervenciones Públicas Focalizadas para la identificación de sus potenciales usuarios, con la finalidad de contribuir a mejorar la equidad y eficiencia en la asignación de los recursos públicos, en beneficio de aquellos grupos poblacionales priorizados. La información que proporciona el SISFOH es básica para enfocar toda política de desarrollo e inclusión social"]
["32. Atención de las Personas con Discapacidad","Los municipios como gobiernos locales, tienen la responsabilidad de velar por el bienestar de sus ciudadanos. Por tanto, deben facilitar y promover la adecuada concertación entre las necesidades de los vecinos con discapacidad y las instituciones que ofrecen servicios, promoviendo así su integración."]
["33. Comunidades Nativas y Pueblos Indígenas","Esta referido a los procesos articulación de los Gobiernos Locales con las comunidades nativas y pueblos indígenas bajo la supervisión de la Dirección General de Derechos de los Pueblos Indígenas y la normatividad vigente."]
["34. Defensoría Municipal Atención del Niño, Niña y Adolecente","La Defensoría Municipal del Niño y del Adolescente (DEMUNA) es un servicio encargado de proteger y promover los derechos de los niños, y adolescentes en la jurisdicción de la municipalidad. Desde 1997 está considerada en la Ley Orgánica de Municipalidades como una función de los Gobiernos Locales."]
["35. Programa Vaso de Leche","Es un programa social creado mediante la Ley Nº 24059 y complementada con la Ley Nº 27470, a fin de ofrecer una ración diaria de alimentos a una población considerada vulnerable, con el propósito de ayudarla a superar la inseguridad alimentaria en la que se encuentra."]
["36. Centro de Atención Integral del Adulto Mayor","Se entiende por Centro Integral de Atención al Adulto Mayor (CIAM) al espacio Municipal de prestación, coordinación y articulación, intra e interinstitucional, de servicios básicos integrales y multidisciplinarios, para el bienestar y promoción social de las personas adultas mayores, en un contexto de cogestión y participación de la persona adulta mayor y la familia."]
[]
[]
["Indice","Sistemas Administrativos","PREGUNTAS FAQ"]
[{"$f":"B80&COUNTIF($B$80:B80,B80)","v":"01. Gestión de Recursos Humanos1"},"01. Gestión de Recursos Humanos","1. ¿Qué le debería solicitar a la gestión saliente?"]
[{"$f":"B81&COUNTIF($B$80:B81,B81)","v":"01. Gestión de Recursos Humanos2"},"01. Gestión de Recursos Humanos","Respuesta."]
[{"$f":"B82&COUNTIF($B$80:B82,B82)","v":"01. Gestión de Recursos Humanos3"},"01. Gestión de Recursos Humanos","·         Cuadro para Asignación de Personal Provisional - CAP-Provisional"]
[{"$f":"B83&COUNTIF($B$80:B83,B83)","v":"01. Gestión de Recursos Humanos4"},"01. Gestión de Recursos Humanos","·         Presupuesto Analítico de Personal - PAP"]
[{"$f":"B84&COUNTIF($B$80:B84,B84)","v":"01. Gestión de Recursos Humanos5"},"01. Gestión de Recursos Humanos","·         Reglamento Interno de Trabajo - RIT"]
[{"$f":"B85&COUNTIF($B$80:B85,B85)","v":"01. Gestión de Recursos Humanos6"},"01. Gestión de Recursos Humanos","·         Manual de Perfiles de Puestos - MPP / Perfiles de Puestos / Términos de Referencia"]
[{"$f":"B86&COUNTIF($B$80:B86,B86)","v":"01. Gestión de Recursos Humanos7"},"01. Gestión de Recursos Humanos","·         Relación de personal bajo la modalidad de locación de servicios"]
[{"$f":"B87&COUNTIF($B$80:B87,B87)","v":"01. Gestión de Recursos Humanos8"},"01. Gestión de Recursos Humanos","·         Relación de personal bajo la modalidad de Contratos Administrativos de Servicios (CAS)"]
[{"$f":"B88&COUNTIF($B$80:B88,B88)","v":"01. Gestión de Recursos Humanos9"},"01. Gestión de Recursos Humanos","·         Relación de personal bajo la modalidad de Contratos Administrativos de Servicios (CAS) como personal de confianza"]
[{"$f":"B89&COUNTIF($B$80:B89,B89)","v":"01. Gestión de Recursos Humanos10"},"01. Gestión de Recursos Humanos","·         Relación de personal destacado bajo la modalidad D.Leg 276 o D.Leg 278"]
[{"$f":"B90&COUNTIF($B$80:B90,B90)","v":"01. Gestión de Recursos Humanos11"},"01. Gestión de Recursos Humanos","·         legajos personales del personal nombrado y contratado"]
[{"$f":"B91&COUNTIF($B$80:B91,B91)","v":"01. Gestión de Recursos Humanos12"},"01. Gestión de Recursos Humanos","·         Cuadro General de Deudas Judiciales y Administrativas"]
[{"$f":"B92&COUNTIF($B$80:B92,B92)","v":"01. Gestión de Recursos Humanos13"},"01. Gestión de Recursos Humanos","·         Planilla única de pago y abono de remuneraciones mensuales"]
[{"$f":"B93&COUNTIF($B$80:B93,B93)","v":"01. Gestión de Recursos Humanos14"},"01. Gestión de Recursos Humanos","·         Formulación del Diagnóstico y Plan de Desarrollo de las Personas"]
[{"$f":"B94&COUNTIF($B$80:B94,B94)","v":"01. Gestión de Recursos Humanos15"},"01. Gestión de Recursos Humanos","·         Programas recreativos y de integración"]
[{"$f":"B95&COUNTIF($B$80:B95,B95)","v":"01. Gestión de Recursos Humanos16"},"01. Gestión de Recursos Humanos","·         Plan Anual de Clima y Cultura Organizacional dirigido a los trabajadores de la Municipalidad"]
[{"$f":"B96&COUNTIF($B$80:B96,B96)","v":"01. Gestión de Recursos Humanos17"},"01. Gestión de Recursos Humanos","·         Resoluciones de Sanción de Personal"]
[{"$f":"B97&COUNTIF($B$80:B97,B97)","v":"01. Gestión de Recursos Humanos18"},"01. Gestión de Recursos Humanos","2. ¿Es factible que las Municipalidades Distritales de reciente creación, registren ejecución en la Genérica 2.1.1?"]
[{"$f":"B98&COUNTIF($B$80:B98,B98)","v":"01. Gestión de Recursos Humanos19"},"01. Gestión de Recursos Humanos","Respuesta"]
[{"$f":"B99&COUNTIF($B$80:B99,B99)","v":"01. Gestión de Recursos Humanos20"},"01. Gestión de Recursos Humanos","La Ley de Presupuesto del Sector Público para el año fiscal 2017 en su artículo 8 prohíbe ingreso de personal en el Sector Público por servicios personales y el nombramiento, salvo las excepciones señaladas en la misma ley."]
[{"$f":"B100&COUNTIF($B$80:B100,B100)","v":"01. Gestión de Recursos Humanos21"},"01. Gestión de Recursos Humanos","Si el nuevo distrito no cuenta con autoridad elegida, éste no podría tener personal designado o contratado a nombre de dicha entidad, no podrá contar con personal por servicios personales. Por lo que no presentaría registros en la GG 2.1, para ello se requiere contar con requisitos previos como documentos de gestión."]
[{"$f":"B101&COUNTIF($B$80:B101,B101)","v":"01. Gestión de Recursos Humanos22"},"01. Gestión de Recursos Humanos","Se puede presentar el caso que la municipalidad de reciente creación cuente con autoridad elegida (Alcalde), en este caso, podrían contar con registro de la remuneración del Alcalde y Dietas de Regidores, como de cargos de confianza (para lo cual debe contar con sus documentos de gestión)."]
[{"$f":"B102&COUNTIF($B$80:B102,B102)","v":"01. Gestión de Recursos Humanos23"},"01. Gestión de Recursos Humanos","3. ¿Las Municipalidades de reciente creación y que por ley se encuentran administradas por la municipalidad origen (hasta que cuente con autoridad elegida), pueden generar contratos de administración de servicios (CAS)?"]
[{"$f":"B103&COUNTIF($B$80:B103,B103)","v":"01. Gestión de Recursos Humanos24"},"01. Gestión de Recursos Humanos","Respuesta"]
[{"$f":"B104&COUNTIF($B$80:B104,B104)","v":"01. Gestión de Recursos Humanos25"},"01. Gestión de Recursos Humanos","Presupuestalmente pueden registrar CAS, sin embargo, deberán cumplir con la normativa para el contrato de CAS."]
[{"$f":"B105&COUNTIF($B$80:B105,B105)","v":"01. Gestión de Recursos Humanos26"},"01. Gestión de Recursos Humanos","4. Sobre el tratamiento de personal de confianza y CAS en las nuevas municipalidades, ¿Cuál es el procedimiento de autorización/aprobación de inclusión de dicho personal? ¿Necesariamente se debe aprobar la nueva estructura orgánica (ROF y CAP) primero?"]
[{"$f":"B106&COUNTIF($B$80:B106,B106)","v":"01. Gestión de Recursos Humanos27"},"01. Gestión de Recursos Humanos","Respuesta."]
[{"$f":"B107&COUNTIF($B$80:B107,B107)","v":"01. Gestión de Recursos Humanos28"},"01. Gestión de Recursos Humanos","Cabe recordar que las competencias de la Dirección General de Presupuesto Público establecidas en la Ley N° 28112 - Ley Marco de la Administración Financiera del Sector Público, y el TUO de la Ley N° 28411, están enmarcadas en los aspectos de orden presupuestario  y por tanto solo absuelve consultas sobre temas genéricos relacionadas al sentido y al alcance de la normatividad del Sistema Nacional de Presupuesto Público, no siendo competente para pronunciarse de disposiciones vinculadas a la estructura de los documentos de gestión y en  materia de personal, como son los documentos de gestión y contratación CAS."]
[{"$f":"B108&COUNTIF($B$80:B108,B108)","v":"01. Gestión de Recursos Humanos29"},"01. Gestión de Recursos Humanos","En este punto cabe mencionar que la Autoridad Nacional del Servicio Civil – SERVIR es el ente rector del Sistema Administrativo de Gestión de Recursos Humanos del Estado, por lo que se recomienda se realice la consulta correspondiente al ente rector."]
[{"$f":"B109&COUNTIF($B$80:B109,B109)","v":"02. Bienes estatales1"},"02. Bienes estatales","1. ¿Qué le debería solicitar a la gestión saliente?"]
[{"$f":"B110&COUNTIF($B$80:B110,B110)","v":"02. Bienes estatales2"},"02. Bienes estatales","Respuesta."]
[{"$f":"B111&COUNTIF($B$80:B111,B111)","v":"02. Bienes estatales3"},"02. Bienes estatales","Responsable del registro de los bienes muebles e inmuebles"]
[{"$f":"B112&COUNTIF($B$80:B112,B112)","v":"02. Bienes estatales4"},"02. Bienes estatales","·         Inventario patrimonial del ejercicio anterior al término de la gestión"]
[{"$f":"B113&COUNTIF($B$80:B113,B113)","v":"02. Bienes estatales5"},"02. Bienes estatales","·         Informe Final del Inventario al termino del ejercicio"]
[{"$f":"B114&COUNTIF($B$80:B114,B114)","v":"02. Bienes estatales6"},"02. Bienes estatales","·         Acta de conciliación patrimonio-contable debidamente suscrita por la Comisión de Inventario"]
[{"$f":"B115&COUNTIF($B$80:B115,B115)","v":"02. Bienes estatales7"},"02. Bienes estatales","·         Informe de Variaciones de los actos muebles"]
[{"$f":"B116&COUNTIF($B$80:B116,B116)","v":"02. Bienes estatales8"},"02. Bienes estatales","·         Relación de vehículos de la entidad pública y de aquellos que se encuentren en su posesión."]
[{"$f":"B117&COUNTIF($B$80:B117,B117)","v":"02. Bienes estatales9"},"02. Bienes estatales","·         Registro de los bienes muebles en el SINABIP  "]
[{"$f":"B118&COUNTIF($B$80:B118,B118)","v":"02. Bienes estatales10"},"02. Bienes estatales","·         Registro de los bienes inmuebles en el SINABIP  "]
[{"$f":"B119&COUNTIF($B$80:B119,B119)","v":"02. Bienes estatales11"},"02. Bienes estatales","2. ¿Cómo debo de solicitar el cambio del responsable?"]
[{"$f":"B120&COUNTIF($B$80:B120,B120)","v":"02. Bienes estatales12"},"02. Bienes estatales","Respuesta."]
[{"$f":"B121&COUNTIF($B$80:B121,B121)","v":"02. Bienes estatales13"},"02. Bienes estatales","En tal sentido la nueva gestión debería de solicitar la Resolución (opcionalmente) si es que la tuviera, dado que el SBN no requiere de una resolución designando responsables, aunque dado por la práctica administrativa, esta resolución se adjunta al oficio o carta cursada a la Sub Dirección de Registro y Catastro."]
[{"$f":"B122&COUNTIF($B$80:B122,B122)","v":"02. Bienes estatales14"},"02. Bienes estatales","El proceso es el siguiente:"]
[{"$f":"B123&COUNTIF($B$80:B123,B123)","v":"02. Bienes estatales15"},"02. Bienes estatales","o   Designar al personal responsable del envió del inventario de bienes patrimoniales para los módulos de bienes muebles e inmuebles, puede ser una o dos personas."]
[{"$f":"B124&COUNTIF($B$80:B124,B124)","v":"02. Bienes estatales16"},"02. Bienes estatales","o   Presentar en mesa de partes de la SBN una solicitud mediante carta u oficio dirigida a la Sub Dirección de Registro y Catastro indicando como asunto: Solicitud de Habilitación de usuario y clave para Módulos de Bienes Muebles e Inmuebles (son dos módulos separados)."]
[{"$f":"B125&COUNTIF($B$80:B125,B125)","v":"02. Bienes estatales17"},"02. Bienes estatales","o   La Solicitud deberá indicar de manera obligatoria la siguiente información:"]
[{"$f":"B126&COUNTIF($B$80:B126,B126)","v":"02. Bienes estatales18"},"02. Bienes estatales","§  Nombre y apellidos completos"]
[{"$f":"B127&COUNTIF($B$80:B127,B127)","v":"02. Bienes estatales19"},"02. Bienes estatales","§  Número de DNI"]
[{"$f":"B128&COUNTIF($B$80:B128,B128)","v":"02. Bienes estatales20"},"02. Bienes estatales","§  Correo electrónico (al cual se remitirá la clave)"]
[{"$f":"B129&COUNTIF($B$80:B129,B129)","v":"02. Bienes estatales21"},"02. Bienes estatales","§  Número telefónico institucional (anexo) del personal designado"]
[{"$f":"B130&COUNTIF($B$80:B130,B130)","v":"02. Bienes estatales22"},"02. Bienes estatales","§  RUC de la Municipalidad"]
[{"$f":"B131&COUNTIF($B$80:B131,B131)","v":"02. Bienes estatales23"},"02. Bienes estatales","§  Código MEF"]
[{"$f":"B132&COUNTIF($B$80:B132,B132)","v":"02. Bienes estatales24"},"02. Bienes estatales","§  Ubicación geográfica (Departamento, provincia y distrito)"]
[{"$f":"B133&COUNTIF($B$80:B133,B133)","v":"02. Bienes estatales25"},"02. Bienes estatales","§  Nombre completo de la entidad"]
[{"$f":"B134&COUNTIF($B$80:B134,B134)","v":"02. Bienes estatales26"},"02. Bienes estatales","§  Dirección, y"]
[{"$f":"B135&COUNTIF($B$80:B135,B135)","v":"02. Bienes estatales27"},"02. Bienes estatales","§  A quien va dirigido el oficio de respuesta."]
[{"$f":"B136&COUNTIF($B$80:B136,B136)","v":"02. Bienes estatales28"},"02. Bienes estatales","o   La SBN registrará la información y habilitará al servidor designado, y le notificará el usuario y contraseña mediante correo electrónico, así como el link de dirección web."]
[{"$f":"B137&COUNTIF($B$80:B137,B137)","v":"02. Bienes estatales29"},"02. Bienes estatales","3. ¿Cómo debo de realizar el registro en el Sistema? ¿Y en qué casos se puede dar un error de carga del archivo Excel?"]
[{"$f":"B138&COUNTIF($B$80:B138,B138)","v":"02. Bienes estatales30"},"02. Bienes estatales","Respuesta."]
[{"$f":"B139&COUNTIF($B$80:B139,B139)","v":"02. Bienes estatales31"},"02. Bienes estatales","Para el envío de información hay dos manera virtual y físico, estas no son excluyentes:"]
[{"$f":"B140&COUNTIF($B$80:B140,B140)","v":"02. Bienes estatales32"},"02. Bienes estatales","o   Proceso virtual:"]
[{"$f":"B141&COUNTIF($B$80:B141,B141)","v":"02. Bienes estatales33"},"02. Bienes estatales","§   A través del módulo de bienes muebles del SINABIP web, descargar el formato Excel"]
[{"$f":"B142&COUNTIF($B$80:B142,B142)","v":"02. Bienes estatales34"},"02. Bienes estatales","§   Generar la base de datos del inventario en el formato "]
[{"$f":"B143&COUNTIF($B$80:B143,B143)","v":"02. Bienes estatales35"},"02. Bienes estatales","§   Convertir a formato TXT e importar a través del módulo"]
[{"$f":"B144&COUNTIF($B$80:B144,B144)","v":"02. Bienes estatales36"},"02. Bienes estatales","§   Vincular el Informe Final y el Acta de Conciliación."]
[{"$f":"B145&COUNTIF($B$80:B145,B145)","v":"02. Bienes estatales37"},"02. Bienes estatales","§   A través del módulo de bienes inmuebles del SINABIP web, importar en formato PDF los siguientes documentos:"]
[{"$f":"B146&COUNTIF($B$80:B146,B146)","v":"02. Bienes estatales38"},"02. Bienes estatales","·           Plano perimétrico – ubicación"]
[{"$f":"B147&COUNTIF($B$80:B147,B147)","v":"02. Bienes estatales39"},"02. Bienes estatales","·           Memoria descriptiva"]
[{"$f":"B148&COUNTIF($B$80:B148,B148)","v":"02. Bienes estatales40"},"02. Bienes estatales","·           Valorización comercial referencial"]
[{"$f":"B149&COUNTIF($B$80:B149,B149)","v":"02. Bienes estatales41"},"02. Bienes estatales","·           Fotos"]
[{"$f":"B150&COUNTIF($B$80:B150,B150)","v":"02. Bienes estatales42"},"02. Bienes estatales","o   Proceso físico:"]
[{"$f":"B151&COUNTIF($B$80:B151,B151)","v":"02. Bienes estatales43"},"02. Bienes estatales","§   Para bienes muebles mediante oficio adjuntar: (1) informe Final del Inventario, (2) Acta de conciliación patrimonial-contable."]
[{"$f":"B152&COUNTIF($B$80:B152,B152)","v":"02. Bienes estatales44"},"02. Bienes estatales","§   Para bienes inmuebles mediante oficio se adjunta: "]
[{"$f":"B153&COUNTIF($B$80:B153,B153)","v":"02. Bienes estatales45"},"02. Bienes estatales","·            Plano perimétrico – ubicación"]
[{"$f":"B154&COUNTIF($B$80:B154,B154)","v":"02. Bienes estatales46"},"02. Bienes estatales","·           Memoria descriptiva"]
[{"$f":"B155&COUNTIF($B$80:B155,B155)","v":"02. Bienes estatales47"},"02. Bienes estatales","·           Valorización comercial referencial"]
[{"$f":"B156&COUNTIF($B$80:B156,B156)","v":"02. Bienes estatales48"},"02. Bienes estatales","·           Fotos"]
[{"$f":"B157&COUNTIF($B$80:B157,B157)","v":"02. Bienes estatales49"},"02. Bienes estatales","·           Partidas registrales"]
[{"$f":"B158&COUNTIF($B$80:B158,B158)","v":"02. Bienes estatales50"},"02. Bienes estatales","El problema más recurrente se suele dar es por usar una versión anterior, el actual formato cuenta con una columna más. Y la consustanciación de los campos (datos), es decir registran valores de texto, número, fechas u otros en campos que no le corresponden."]
[{"$f":"B159&COUNTIF($B$80:B159,B159)","v":"03. Archivo Nacional y Patrimonio1"},"03. Archivo Nacional y Patrimonio","1. ¿Qué le debería solicitar a la gestión saliente?"]
[{"$f":"B160&COUNTIF($B$80:B160,B160)","v":"03. Archivo Nacional y Patrimonio2"},"03. Archivo Nacional y Patrimonio","Respuesta."]
[{"$f":"B161&COUNTIF($B$80:B161,B161)","v":"03. Archivo Nacional y Patrimonio3"},"03. Archivo Nacional y Patrimonio","·         Inventario de documentos archivados"]
[{"$f":"B162&COUNTIF($B$80:B162,B162)","v":"04. Contrataciones del Estado1"},"04. Contrataciones del Estado","1. ¿Qué le debería solicitar a la gestión saliente?"]
[{"$f":"B163&COUNTIF($B$80:B163,B163)","v":"04. Contrataciones del Estado2"},"04. Contrataciones del Estado","Respuesta."]
[{"$f":"B164&COUNTIF($B$80:B164,B164)","v":"04. Contrataciones del Estado3"},"04. Contrataciones del Estado","·         Registro de la Municipalidad como Entidad Contratante"]
[{"$f":"B165&COUNTIF($B$80:B165,B165)","v":"04. Contrataciones del Estado4"},"04. Contrataciones del Estado","·         Certificación SEACE para Entidades públicas contratantes"]
[{"$f":"B166&COUNTIF($B$80:B166,B166)","v":"04. Contrataciones del Estado5"},"04. Contrataciones del Estado","·         Delegación del Titular en materia de contrataciones"]
[{"$f":"B167&COUNTIF($B$80:B167,B167)","v":"04. Contrataciones del Estado6"},"04. Contrataciones del Estado","·         Listado de procesos de contrataciones de compras menores a 8 UIT"]
[{"$f":"B168&COUNTIF($B$80:B168,B168)","v":"04. Contrataciones del Estado7"},"04. Contrataciones del Estado","·         Listado de procesos de contrataciones de compras dentro del marco normativo de la Ley de Contrataciones"]
[{"$f":"B169&COUNTIF($B$80:B169,B169)","v":"04. Contrataciones del Estado8"},"04. Contrataciones del Estado","·         Listado de procesos de contrataciones de compras dentro del marco normativo de la Ley de Contrataciones"]
[{"$f":"B170&COUNTIF($B$80:B170,B170)","v":"04. Contrataciones del Estado9"},"04. Contrataciones del Estado","2. ¿Cómo debo de solicitar el cambio del responsable del registro de información en Módulo del SEACE?"]
[{"$f":"B171&COUNTIF($B$80:B171,B171)","v":"04. Contrataciones del Estado10"},"04. Contrataciones del Estado","Respuesta."]
[{"$f":"B172&COUNTIF($B$80:B172,B172)","v":"04. Contrataciones del Estado11"},"04. Contrataciones del Estado","La nueva administración de una deberá solicitarse a la administración de tránsito, la certificación del operador logístico del sistema. Luego de lo cual la nueva administración El proceso para solicitar y declarar estos dos registros se encuentra señalado en el TUPA del OSCE."]
[{"$f":"B173&COUNTIF($B$80:B173,B173)","v":"04. Contrataciones del Estado12"},"04. Contrataciones del Estado","Asimismo, la certificación del operador, se realiza por cada uno de los módulos del sistema del SEACE, y está vinculado al rol que va a realizar, pudiendo darse el caso que se tenga un responsable único, o uno para el registro para cada rol."]
[{"$f":"B174&COUNTIF($B$80:B174,B174)","v":"04. Contrataciones del Estado13"},"04. Contrataciones del Estado","3. ¿Se debe o no registrar operaciones menores a 8 U.I.T. en el Módulo del SEACE?"]
[{"$f":"B175&COUNTIF($B$80:B175,B175)","v":"04. Contrataciones del Estado14"},"04. Contrataciones del Estado","Respuesta."]
[{"$f":"B176&COUNTIF($B$80:B176,B176)","v":"04. Contrataciones del Estado15"},"04. Contrataciones del Estado","Se ha señalado que los procesos menores a las 8 UIT deben ser registrados en el sistema del SEACE, por lo que a la administración transitoria debería presentar el registro de estas adquisiciones de viene o servicios. Se ha señalado que realizar estas adquisiciones y no registrarlas en el sistema estaría contraviniendo la normatividad vigente"]
[{"$f":"B177&COUNTIF($B$80:B177,B177)","v":"05. Presupuesto Público1"},"05. Presupuesto Público","1. ¿Qué le debería solicitar a la gestión saliente?"]
[{"$f":"B178&COUNTIF($B$80:B178,B178)","v":"05. Presupuesto Público2"},"05. Presupuesto Público","Respuesta."]
[{"$f":"B179&COUNTIF($B$80:B179,B179)","v":"05. Presupuesto Público3"},"05. Presupuesto Público","· Resolución de Alcaldía que nombra al responsable del manejo presupuestal"]
[{"$f":"B180&COUNTIF($B$80:B180,B180)","v":"05. Presupuesto Público4"},"05. Presupuesto Público","· Reporte de operaciones de procesos presupuestarios MPP en el SIAF"]
[{"$f":"B181&COUNTIF($B$80:B181,B181)","v":"05. Presupuesto Público5"},"05. Presupuesto Público","· Comunicación del MEF sobre el techo presupuestario por la Fuente de Financiamiento de Recursos Ordinarios para el periodo en el que inicia su gestión"]
[{"$f":"B182&COUNTIF($B$80:B182,B182)","v":"05. Presupuesto Público6"},"05. Presupuesto Público","· Informe sobre techos presupuestarios por las otras fuentes de financiamiento (distinto a Recursos Ordinarios) para el periodo en el que inicia su gestión"]
[{"$f":"B183&COUNTIF($B$80:B183,B183)","v":"05. Presupuesto Público7"},"05. Presupuesto Público","· Proyecto de Presupuesto Anual a la DGPP – MEF"]
[{"$f":"B184&COUNTIF($B$80:B184,B184)","v":"05. Presupuesto Público8"},"05. Presupuesto Público","2. ¿Qué entidad establece el techo presupuestal? ¿La Municipalidad de Origen o el MEF? De ser la Municipalidad de Origen, ¿qué criterios utiliza para proyectar el presupuesto 2017? ¿Cuál es el procedimiento a seguir por la Municipalidad de Origen para la “actualización” de techos presupuestales, en caso los montos estimados de los recursos determinados ya hayan sido publicados (por RD) con fecha anterior a la creación del nuevo pliego?"]
[{"$f":"B185&COUNTIF($B$80:B185,B185)","v":"05. Presupuesto Público9"},"05. Presupuesto Público","Respuesta."]
[{"$f":"B186&COUNTIF($B$80:B186,B186)","v":"05. Presupuesto Público10"},"05. Presupuesto Público","La asignación presupuestaria por Recursos Determinados es determinada en la etapa de formulación del proceso presupuestario público, y publicada mediante RD, de crearse una nueva municipalidad después de la publicación (caso Municipalidad Megantoni) el MEF al no contar con el marco legal que permita publicar montos estimados, correspondería al Alcalde de la Municipalidad de origen (caso Municipalidad Echarati) proyectar los mismos."]
[{"$f":"B187&COUNTIF($B$80:B187,B187)","v":"05. Presupuesto Público11"},"05. Presupuesto Público","Sin embargo, en el marco de la Ley N° 27555, Ley que autoriza la reasignación y aplicación de los recursos en lo nuevos distritos creados, y su Reglamento aprobado mediante Decreto Supremo N° 031-2002-EF, se establece los procedimientos para la reasignación prevista en la citada Ley, para lo cual dispone que los índices de distribución recalculados para el nuevo distrito creado y para los distritos de origen serán aprobados por el  MEF, en función a la información que proporcione el INEI y otras entidades responsables."]
[{"$f":"B188&COUNTIF($B$80:B188,B188)","v":"05. Presupuesto Público12"},"05. Presupuesto Público","En cumplimiento de las citadas normas, el MEF mediante Resoluciones Ministeriales podría publicar los índices del FONCOMUN, Canon Hidroenergético y el Canon Gasífero, respectivamente a fin de incorporar los índices de distribución para el nuevo distrito. Dichas modificaciones son efectuadas en función a la información de población y necesidades básicas insatisfechas (NBI) proporcionada por el INEI y de la ubicación distrital de los lotes de explotación de gas remitida por el Ministerio de Energía y Minas."]
[{"$f":"B189&COUNTIF($B$80:B189,B189)","v":"05. Presupuesto Público13"},"05. Presupuesto Público","3. ¿Qué procedimiento deben seguir las autoridades de la nueva municipalidad para la aprobación y registro de su PIA o PIM en el SIAF?"]
[{"$f":"B190&COUNTIF($B$80:B190,B190)","v":"05. Presupuesto Público14"},"05. Presupuesto Público","Respuesta."]
[{"$f":"B191&COUNTIF($B$80:B191,B191)","v":"05. Presupuesto Público15"},"05. Presupuesto Público","Conforme al numeral 7.2 del artículo 7 y al artículo 16 del TUO de la Ley N° 28411, el Titular del Pliego es el responsable de la gestión presupuestaria, así como de establecer la escala de prioridades y las políticas de gasto de la entidad con la finalidad de ejecutar los créditos presupuestarios aprobados para la Nueva Municipalidad para el cumplimiento de sus metas y objetivos institucionales."]
[{"$f":"B192&COUNTIF($B$80:B192,B192)","v":"05. Presupuesto Público16"},"05. Presupuesto Público","En tal sentido, El Alcalde encomendado, al ejercer las facultades de Titular de la Municipalidad de reciente creación, aprueba el Presupuesto Institucional con una Resolución, teniendo en cuenta los montos proyectados en las fuentes de financiamiento Recursos Determinados y Recursos Directamente Recaudados (impuestos, entre otros); además, la municipalidad encomendada registra en el Sistema Informático de Administración Financiera SIAF-SP, la Nota de Modificación Presupuestaria (Crédito Suplementario) a nivel de meta, y su Alcalde como administrador del nuevo distrito, certifica, compromete, devenga y paga, de acuerdo a las necesidades de gasto, teniendo en cuenta los lineamientos establecidos en la Directiva N° 005-2010-EF/76.01 y modificatorias."]
[{"$f":"B193&COUNTIF($B$80:B193,B193)","v":"05. Presupuesto Público17"},"05. Presupuesto Público","4. ¿Qué procedimiento se debería seguir para la elaboración del POA en la nueva municipalidad?"]
[{"$f":"B194&COUNTIF($B$80:B194,B194)","v":"05. Presupuesto Público18"},"05. Presupuesto Público","Respuesta."]
[{"$f":"B195&COUNTIF($B$80:B195,B195)","v":"05. Presupuesto Público19"},"05. Presupuesto Público","En cuanto al POA, se debe mencionar lo establecido en el artículo 71 del TUO de la Ley N° 28411:"]
[{"$f":"B196&COUNTIF($B$80:B196,B196)","v":"05. Presupuesto Público20"},"05. Presupuesto Público","71.1 Las entidades para la elaboración de sus Planes Operativos Institucionales y Presupuestos Institucionales, deben tomar en cuenta su Plan Estratégico Institucional (PEI) que debe ser concordante con el Plan Estratégico de Desarrollo Nacional (PEDN), los Planes Estratégicos Sectoriales Multianuales (PESEM), los Planes de Desarrollo Regional Concertados (PDRC), y los Planes de Desarrollo Local Concertados (PDLC), según sea el caso."]
[{"$f":"B197&COUNTIF($B$80:B197,B197)","v":"05. Presupuesto Público21"},"05. Presupuesto Público","71.2 Se debe recordar que El Presupuesto Institucional se articula con el Plan Estratégico de la Entidad, desde una perspectiva de mediano y largo plazo, a través de los Planes Operativos Institucionales, en aquellos aspectos orientados a la asignación de los fondos públicos conducentes al cumplimiento de las metas y objetivos de la Entidad, conforme a su escala de prioridades."]
[{"$f":"B198&COUNTIF($B$80:B198,B198)","v":"05. Presupuesto Público22"},"05. Presupuesto Público","71.3 Los Planes Operativos Institucionales reflejan las Metas Presupuestarias que se esperan alcanzar para cada año fiscal y constituyen instrumentos administrativos que contienen los procesos a desarrollar en el corto plazo, precisando las tareas necesarias para cumplir las Metas Presupuestarias establecidas para dicho período, así como la oportunidad de su ejecución, a nivel de cada dependencia orgánica."]
[{"$f":"B199&COUNTIF($B$80:B199,B199)","v":"05. Presupuesto Público23"},"05. Presupuesto Público","5. ¿Quiénes deben conformar la comisión de programación multianual considerando que en las entidades nuevas no se tiene todas las oficinas implementadas?"]
[{"$f":"B200&COUNTIF($B$80:B200,B200)","v":"05. Presupuesto Público24"},"05. Presupuesto Público","Respuesta."]
[{"$f":"B201&COUNTIF($B$80:B201,B201)","v":"05. Presupuesto Público25"},"05. Presupuesto Público","De acuerdo a la Directiva N° 001-2017-EF, en su artículo 3 indica quienes deben conformar dicha comisión, si la entidad no cuenta con la totalidad de las oficinas implementadas se recomienda conformar con las oficinas que hubiera. "]
[{"$f":"B202&COUNTIF($B$80:B202,B202)","v":"05. Presupuesto Público26"},"05. Presupuesto Público","“Artículo 3.-Comisión de Programación Multianual "]
[{"$f":"B203&COUNTIF($B$80:B203,B203)","v":"05. Presupuesto Público27"},"05. Presupuesto Público","3.1 Para efectos de elaborar la Programación Multianual, el Titular de la entidad conforma una “Comisión de Programación Multianual”, en adelante la Comisión, que se encargará de coordinar ese proceso. Dicha Comisión es aprobada mediante resolución del Titular de la entidad."]
[{"$f":"B204&COUNTIF($B$80:B204,B204)","v":"05. Presupuesto Público28"},"05. Presupuesto Público","3.2 La Comisión es presidida por el Jefe de Presupuesto2de la entidad o el que haga sus veces, y  está  integrada por  lo/los responsable(s) técnico(s) de PP, los  Jefes  de la Oficina General de Administración, de abastecimiento, de Personal, de Infraestructura, de Programación Multianual de Inversiones, así como en las oficinas de Investigación, Seguimiento, Evaluación y/o Estadística, Unidades Formuladoras, o los que hagan sus veces,  con  la  participación  de  los  representantes  de  las  unidades  ejecutoras,  según corresponda.  Los integrantes de la Comisión son responsables, en el marco de sus competencias, del resultado de los trabajos de dicha Comisión.”"]
[{"$f":"B205&COUNTIF($B$80:B205,B205)","v":"06. Tesorería1"},"06. Tesorería","1. ¿Qué le debería solicitar a la gestión saliente?"]
[{"$f":"B206&COUNTIF($B$80:B206,B206)","v":"06. Tesorería2"},"06. Tesorería","Respuesta."]
[{"$f":"B207&COUNTIF($B$80:B207,B207)","v":"06. Tesorería3"},"06. Tesorería","·         Resolución de Alcaldía que nombra al responsable del manejo de las cuentas"]
[{"$f":"B208&COUNTIF($B$80:B208,B208)","v":"06. Tesorería4"},"06. Tesorería","·         Registro de operaciones de ingresos y gastos en el SIAF-SP"]
[{"$f":"B209&COUNTIF($B$80:B209,B209)","v":"06. Tesorería5"},"06. Tesorería","·         Reporte de recursos disponibles que mantiene en cuentas corrientes en entidades financieras y los centralizados en la Cuenta Principal del Tesoro Público"]
[{"$f":"B210&COUNTIF($B$80:B210,B210)","v":"06. Tesorería6"},"06. Tesorería","·         Reporte de montos comprometidos para honrar obligaciones con el Banco de la Nación o con terceros con cargo a recursos centralizados en la Cuenta Principal del Tesoro Público"]
[{"$f":"B211&COUNTIF($B$80:B211,B211)","v":"07. Endeudamiento Público1"},"07. Endeudamiento Público","1. ¿Qué le debería solicitar a la gestión saliente?"]
[{"$f":"B212&COUNTIF($B$80:B212,B212)","v":"07. Endeudamiento Público2"},"07. Endeudamiento Público","Respuesta."]
[{"$f":"B213&COUNTIF($B$80:B213,B213)","v":"07. Endeudamiento Público3"},"07. Endeudamiento Público","·         Adjuntar acuerdo de consejo aprobando endeudamiento sin garantía"]
[{"$f":"B214&COUNTIF($B$80:B214,B214)","v":"07. Endeudamiento Público4"},"07. Endeudamiento Público","·         Designación de personal para realizar operaciones de endeudamiento sin garantía"]
[{"$f":"B215&COUNTIF($B$80:B215,B215)","v":"07. Endeudamiento Público5"},"07. Endeudamiento Público","·         Listado de operaciones de endeudamiento en el SIAF-SP"]
[{"$f":"B216&COUNTIF($B$80:B216,B216)","v":"07. Endeudamiento Público6"},"07. Endeudamiento Público","2. ¿Cómo puedo acceder al proceso de endeudamiento sin garantía?"]
[{"$f":"B217&COUNTIF($B$80:B217,B217)","v":"07. Endeudamiento Público7"},"07. Endeudamiento Público","Respuesta."]
[{"$f":"B218&COUNTIF($B$80:B218,B218)","v":"07. Endeudamiento Público8"},"07. Endeudamiento Público","Para acceder al proceso de endeudamiento interno sin garantía, tiene que cumplir con ciertos requisitos, uno de los cuales es el de contar con el Informe de Auditoría, y dentro de este informe se debe de mostrar el Monto Límite de Endeudamiento."]
[{"$f":"B219&COUNTIF($B$80:B219,B219)","v":"07. Endeudamiento Público9"},"07. Endeudamiento Público","Cabe señalar respecto a este punto que en marco legal vigente señala que el último año de gestión administrativo en un proceso próximo de elección no se pude realizar o dejar carga o proceso de endeudamiento."]
[{"$f":"B220&COUNTIF($B$80:B220,B220)","v":"08. Contabilidad1"},"08. Contabilidad","1. ¿Qué le debería solicitar a la gestión saliente?"]
[{"$f":"B221&COUNTIF($B$80:B221,B221)","v":"08. Contabilidad2"},"08. Contabilidad","Respuesta."]
[{"$f":"B222&COUNTIF($B$80:B222,B222)","v":"08. Contabilidad3"},"08. Contabilidad","·         Resolución de Alcaldía que nombra al responsable del manejo contable"]
[{"$f":"B223&COUNTIF($B$80:B223,B223)","v":"08. Contabilidad4"},"08. Contabilidad","·         Resolución de Alcaldía que nombra al responsable del manejo del Módulo contable"]
[{"$f":"B224&COUNTIF($B$80:B224,B224)","v":"08. Contabilidad5"},"08. Contabilidad","·         Relación de anticipos otorgados y encargos internos pendientes de rendición a la fecha del cierre de la transferencia"]
[{"$f":"B225&COUNTIF($B$80:B225,B225)","v":"08. Contabilidad6"},"08. Contabilidad","·         Reporte de operaciones de contables requeridas por la DGCP en el SIAF"]
[{"$f":"B226&COUNTIF($B$80:B226,B226)","v":"08. Contabilidad7"},"08. Contabilidad","·         Reporte de cuentas por pagar a ESSALU, AFP, SUNAT o ONP"]
[{"$f":"B227&COUNTIF($B$80:B227,B227)","v":"08. Contabilidad8"},"08. Contabilidad","·         Informes de auditorías internas y externas de la información financiera y examen especial de los estados presupuestarios"]
[{"$f":"B228&COUNTIF($B$80:B228,B228)","v":"09. Inversión Pública1"},"09. Inversión Pública","1. ¿Qué le debería solicitar a la gestión saliente?"]
[{"$f":"B229&COUNTIF($B$80:B229,B229)","v":"09. Inversión Pública2"},"09. Inversión Pública","Respuesta."]
[{"$f":"B230&COUNTIF($B$80:B230,B230)","v":"09. Inversión Pública3"},"09. Inversión Pública","·         Planes de Trabajo –PT- o Términos de Referencia –  TdR- para la elaboración de proyectos y otras inversiones"]
[{"$f":"B231&COUNTIF($B$80:B231,B231)","v":"09. Inversión Pública4"},"09. Inversión Pública","·         Relación de proyectos de inversión formulados o aprobados "]
[{"$f":"B232&COUNTIF($B$80:B232,B232)","v":"09. Inversión Pública5"},"09. Inversión Pública","·         Relación de Obras o Actividades de Inversión"]
[{"$f":"B233&COUNTIF($B$80:B233,B233)","v":"09. Inversión Pública6"},"09. Inversión Pública","·         Relación de obras que se viene ejecutando por administración directa"]
[{"$f":"B234&COUNTIF($B$80:B234,B234)","v":"09. Inversión Pública7"},"09. Inversión Pública","·         Tiene obras que se viene ejecutando por contrata"]
[{"$f":"B235&COUNTIF($B$80:B235,B235)","v":"09. Inversión Pública8"},"09. Inversión Pública","·         Relación de proyectos a transferir"]
[{"$f":"B236&COUNTIF($B$80:B236,B236)","v":"09. Inversión Pública9"},"09. Inversión Pública","·         Relación de proyectos financiados por FONIPREL"]
[{"$f":"B237&COUNTIF($B$80:B237,B237)","v":"09. Inversión Pública10"},"09. Inversión Pública","·         Relación de convenios firmados con otros pliegos del gobierno nacional, gobierno regional y gobierno local relacionados a transferencias de recursos para ejecutar proyectos de inversión pública"]
[{"$f":"B238&COUNTIF($B$80:B238,B238)","v":"09. Inversión Pública11"},"09. Inversión Pública","2. ¿Cómo me puede registrar en el Sistema de Inversión Púbica?"]
[{"$f":"B239&COUNTIF($B$80:B239,B239)","v":"09. Inversión Pública12"},"09. Inversión Pública","Respuesta."]
[{"$f":"B240&COUNTIF($B$80:B240,B240)","v":"09. Inversión Pública13"},"09. Inversión Pública","Al respecto se debe de remarcar que corresponde únicamente al Alcalde Electo solicitar el registro de la Unidad Formuladora al Sistema de Inversiones Sistema Nacional de Programación Multianual y Gestión de Inversiones en caso dicha unidad no se encuentre implementada:"]
[{"$f":"B241&COUNTIF($B$80:B241,B241)","v":"09. Inversión Pública14"},"09. Inversión Pública","El registro cuenta con tres (3) fases, siendo estas las siguientes:"]
[{"$f":"B242&COUNTIF($B$80:B242,B242)","v":"09. Inversión Pública15"},"09. Inversión Pública","1.       Coordinaciones Preliminares"]
[{"$f":"B243&COUNTIF($B$80:B243,B243)","v":"09. Inversión Pública16"},"09. Inversión Pública","·         Conformación de las comisiones de trabajo/transferencia."]
[{"$f":"B244&COUNTIF($B$80:B244,B244)","v":"09. Inversión Pública17"},"09. Inversión Pública","·         Identificación de los proyectos de inversión, por parte de la administración temporal (administración actual)."]
[{"$f":"B245&COUNTIF($B$80:B245,B245)","v":"09. Inversión Pública18"},"09. Inversión Pública","·         Alcalde electo solicita cartera de proyectos vía oficio al Alcalde de la administración temporal."]
[{"$f":"B246&COUNTIF($B$80:B246,B246)","v":"09. Inversión Pública19"},"09. Inversión Pública","·         Alcalde de la administración temporal responde oficio identificando proyectos de inversión."]
[{"$f":"B247&COUNTIF($B$80:B247,B247)","v":"09. Inversión Pública20"},"09. Inversión Pública","Las comisiones de trabajo/transferencia se conforman bajo el alcance de la Directiva de Transferencia de GL de la CGR."]
[{"$f":"B248&COUNTIF($B$80:B248,B248)","v":"09. Inversión Pública21"},"09. Inversión Pública","La administración temporal se encuentra en la obligación de indicar los proyectos que corresponden a la nueva administración."]
[{"$f":"B249&COUNTIF($B$80:B249,B249)","v":"09. Inversión Pública22"},"09. Inversión Pública","2.       Registro al Sistema de Inversiones"]
[{"$f":"B250&COUNTIF($B$80:B250,B250)","v":"09. Inversión Pública23"},"09. Inversión Pública","·         Alcalde electo remite propuesta de organismo OPMI."]
[{"$f":"B251&COUNTIF($B$80:B251,B251)","v":"09. Inversión Pública24"},"09. Inversión Pública","·         Recibe respuesta y designa el organismo OPMI, UF y UEI."]
[{"$f":"B252&COUNTIF($B$80:B252,B252)","v":"09. Inversión Pública25"},"09. Inversión Pública","·         Alcalde electo remite propuesta de perfiles de profesionales responsables de la OPMI, UF y UEI."]
[{"$f":"B253&COUNTIF($B$80:B253,B253)","v":"09. Inversión Pública26"},"09. Inversión Pública","·         Recibe respuesta y designa responsables de OPMI, UF y UEI."]
[{"$f":"B254&COUNTIF($B$80:B254,B254)","v":"09. Inversión Pública27"},"09. Inversión Pública","·         Alcalde electo solicita a la DGPI la migración de proyectos de inversión."]
[{"$f":"B255&COUNTIF($B$80:B255,B255)","v":"09. Inversión Pública28"},"09. Inversión Pública","·         DGPI-MEF, evalúa cumplimiento de requisitos y criterios."]
[{"$f":"B256&COUNTIF($B$80:B256,B256)","v":"09. Inversión Pública29"},"09. Inversión Pública","·         DGPI-MEF, emite opinión favorable, remite respuesta al Alcalde electo."]
[{"$f":"B257&COUNTIF($B$80:B257,B257)","v":"09. Inversión Pública30"},"09. Inversión Pública","SÓLO el Alcalde electo de la nueva administración podrá solicitar su registro al Sistema de Inversiones"]
[{"$f":"B258&COUNTIF($B$80:B258,B258)","v":"09. Inversión Pública31"},"09. Inversión Pública","Los Gobiernos Locales pueden celebrar convenios entre éstos para la formulación y evaluación de proyectos de inversión y/o aprobación"]
[{"$f":"B259&COUNTIF($B$80:B259,B259)","v":"09. Inversión Pública32"},"09. Inversión Pública","3.         Registro de los Proyectos de Inversión"]
[{"$f":"B260&COUNTIF($B$80:B260,B260)","v":"09. Inversión Pública33"},"09. Inversión Pública","1.       Alcalde electro remite a la UEI, respuesta para el registro de los proyectos de inversión."]
[{"$f":"B261&COUNTIF($B$80:B261,B261)","v":"09. Inversión Pública34"},"09. Inversión Pública","2.       UEI registra proyectos de inversión en el Banco de Inversiones."]
[{"$f":"B262&COUNTIF($B$80:B262,B262)","v":"09. Inversión Pública35"},"09. Inversión Pública","Caso no se dese recepcionar algún PI, este podrá solicitarse ante el MEF su desactivación, en cualquiera de sus fases.  La responsabilidad recaerá en la administración que tenga facultades para su desactivación"]
[{"$f":"B263&COUNTIF($B$80:B263,B263)","v":"10. Planeamiento Estratégico1"},"10. Planeamiento Estratégico","1. ¿Qué le debería solicitar a la gestión saliente?"]
[{"$f":"B264&COUNTIF($B$80:B264,B264)","v":"10. Planeamiento Estratégico2"},"10. Planeamiento Estratégico","Respuesta."]
[{"$f":"B265&COUNTIF($B$80:B265,B265)","v":"10. Planeamiento Estratégico3"},"10. Planeamiento Estratégico","·         Plan de Desarrollo Local Concertado - PDC (Horizonte de 8 años)"]
[{"$f":"B266&COUNTIF($B$80:B266,B266)","v":"10. Planeamiento Estratégico4"},"10. Planeamiento Estratégico","·         Plan Estratégico Institucional - PEI (Horizonte de 3 años)"]
[{"$f":"B267&COUNTIF($B$80:B267,B267)","v":"10. Planeamiento Estratégico5"},"10. Planeamiento Estratégico","·         Plan Operativo Institucional - POI (Horizonte de 1 año)"]
[{"$f":"B268&COUNTIF($B$80:B268,B268)","v":"10. Planeamiento Estratégico6"},"10. Planeamiento Estratégico","2.  En el caso de contar con el POI y PEI, ¿Deberían encontrarse registrado en el CEPLAN?"]
[{"$f":"B269&COUNTIF($B$80:B269,B269)","v":"10. Planeamiento Estratégico7"},"10. Planeamiento Estratégico","Respuesta"]
[{"$f":"B270&COUNTIF($B$80:B270,B270)","v":"10. Planeamiento Estratégico8"},"10. Planeamiento Estratégico","Sí. Tanto el POI como el PEI deben registrarse en el aplicativo CEPLAN. Para ello se debe solicitar la creación del usuario y la asignación de una clave mediante un oficia al CEPLAN."]
[{"$f":"B271&COUNTIF($B$80:B271,B271)","v":"10. Planeamiento Estratégico9"},"10. Planeamiento Estratégico","3. En el caso que no cuente ninguno de los documentos antes descritos ¿Cuál debería ser la prioridad en su elaboración?"]
[{"$f":"B272&COUNTIF($B$80:B272,B272)","v":"10. Planeamiento Estratégico10"},"10. Planeamiento Estratégico","Respuesta"]
[{"$f":"B273&COUNTIF($B$80:B273,B273)","v":"10. Planeamiento Estratégico11"},"10. Planeamiento Estratégico","Cuando se inicien actividades en enero del 2018 las nuevas municipalidades de reciente creación deben elaborar:"]
[{"$f":"B274&COUNTIF($B$80:B274,B274)","v":"10. Planeamiento Estratégico12"},"10. Planeamiento Estratégico","·         Como mínimo: POI"]
[{"$f":"B275&COUNTIF($B$80:B275,B275)","v":"10. Planeamiento Estratégico13"},"10. Planeamiento Estratégico","·         Ideal: POI y PEI"]
[{"$f":"B276&COUNTIF($B$80:B276,B276)","v":"10. Planeamiento Estratégico14"},"10. Planeamiento Estratégico","Al final del mandato en noviembre: PDC y PEI"]
[{"$f":"B277&COUNTIF($B$80:B277,B277)","v":"11. Defensa Judicial del Estado1"},"11. Defensa Judicial del Estado","1. ¿Qué le debería solicitar a la gestión saliente?"]
[{"$f":"B278&COUNTIF($B$80:B278,B278)","v":"11. Defensa Judicial del Estado2"},"11. Defensa Judicial del Estado","Respuesta."]
[{"$f":"B279&COUNTIF($B$80:B279,B279)","v":"11. Defensa Judicial del Estado3"},"11. Defensa Judicial del Estado","·         Resolución de Alcaldía que nombra al Procurador, de tener implementada su procuraduría"]
[{"$f":"B280&COUNTIF($B$80:B280,B280)","v":"11. Defensa Judicial del Estado4"},"11. Defensa Judicial del Estado","·         Listado de procesos en giro señalando la etapa del proceso, la materia, la contingencia generada y cuanto se le adeuda a la municipalidad"]
[{"$f":"B281&COUNTIF($B$80:B281,B281)","v":"12. Modernización de la Gestión Pública1"},"12. Modernización de la Gestión Pública","1. ¿Qué le debería solicitar a la gestión saliente?"]
[{"$f":"B282&COUNTIF($B$80:B282,B282)","v":"12. Modernización de la Gestión Pública2"},"12. Modernización de la Gestión Pública","Respuesta."]
[{"$f":"B283&COUNTIF($B$80:B283,B283)","v":"12. Modernización de la Gestión Pública3"},"12. Modernización de la Gestión Pública","Reglamento Interno de Consejo Municipal - RIC"]
[{"$f":"B284&COUNTIF($B$80:B284,B284)","v":"12. Modernización de la Gestión Pública4"},"12. Modernización de la Gestión Pública","·         Estructura Organizacional"]
[{"$f":"B285&COUNTIF($B$80:B285,B285)","v":"12. Modernización de la Gestión Pública5"},"12. Modernización de la Gestión Pública","·         Reglamento de Organización y Funciones - ROF "]
[{"$f":"B286&COUNTIF($B$80:B286,B286)","v":"12. Modernización de la Gestión Pública6"},"12. Modernización de la Gestión Pública","·         Texto Único de Procedimientos Administrativos - TUPA"]
[{"$f":"B287&COUNTIF($B$80:B287,B287)","v":"12. Modernización de la Gestión Pública7"},"12. Modernización de la Gestión Pública","·         Página Web Institucional activa"]
[{"$f":"B288&COUNTIF($B$80:B288,B288)","v":"12. Modernización de la Gestión Pública8"},"12. Modernización de la Gestión Pública","·         Responsable de brindar información de acceso público, en concordancia con la Ley de Transparencia de Acceso Público"]
[{"$f":"B289&COUNTIF($B$80:B289,B289)","v":"12. Modernización de la Gestión Pública9"},"12. Modernización de la Gestión Pública","2. ¿Cómo puedo aprobar mis Reglamento de Organización y Funciones gestión?"]
[{"$f":"B290&COUNTIF($B$80:B290,B290)","v":"12. Modernización de la Gestión Pública10"},"12. Modernización de la Gestión Pública","Respuesta."]
[{"$f":"B291&COUNTIF($B$80:B291,B291)","v":"12. Modernización de la Gestión Pública11"},"12. Modernización de la Gestión Pública","El ROF se aprueba elevando el proyecto de documento de gestión (ROF) con el respectivo Informe del sustento técnico legal al Consejo Municipal, para su revisión y evaluación, aprobándose mediante Ordenanza Municipal y con la aprobación del Consejo Municipal."]
[{"$f":"B292&COUNTIF($B$80:B292,B292)","v":"12. Modernización de la Gestión Pública12"},"12. Modernización de la Gestión Pública","3. ¿La Gestión de Administración Temporal, en caso de municipios de reciente creación pueden aprobar el ROF de la nueva municipalidad?"]
[{"$f":"B293&COUNTIF($B$80:B293,B293)","v":"12. Modernización de la Gestión Pública13"},"12. Modernización de la Gestión Pública","Respuesta."]
[{"$f":"B294&COUNTIF($B$80:B294,B294)","v":"12. Modernización de la Gestión Pública14"},"12. Modernización de la Gestión Pública","En algunos casos se ha observado que la Autoridad de la Municipalidad de Origen de la cual se desprende la Municipalidades de reciente creación ha aprobado un ROF para la administración temporal de los servicios y recursos de la Nueva municipalidad. En tal sentido este documento se debería de tomar como insumo para la aprobación de un ROF que cumpla con los requisitos señalados."]
[{"$f":"B295&COUNTIF($B$80:B295,B295)","v":"13. Programa de Incentivos a la Mejora de la Gestión Municipal1"},"13. Programa de Incentivos a la Mejora de la Gestión Municipal","1. ¿Qué le debería solicitar a la gestión saliente?"]
[{"$f":"B296&COUNTIF($B$80:B296,B296)","v":"13. Programa de Incentivos a la Mejora de la Gestión Municipal2"},"13. Programa de Incentivos a la Mejora de la Gestión Municipal","Respuesta."]
[{"$f":"B297&COUNTIF($B$80:B297,B297)","v":"13. Programa de Incentivos a la Mejora de la Gestión Municipal3"},"13. Programa de Incentivos a la Mejora de la Gestión Municipal","·         Informe / reporte correspondiente al cumplimiento de metas correspondiente al territorio de su municipalidad"]
[{"$f":"B298&COUNTIF($B$80:B298,B298)","v":"13. Programa de Incentivos a la Mejora de la Gestión Municipal4"},"13. Programa de Incentivos a la Mejora de la Gestión Municipal","2. ¿Cómo puedo acceder al Programa de Incentivos?"]
[{"$f":"B299&COUNTIF($B$80:B299,B299)","v":"13. Programa de Incentivos a la Mejora de la Gestión Municipal5"},"13. Programa de Incentivos a la Mejora de la Gestión Municipal","Respuesta."]
[{"$f":"B300&COUNTIF($B$80:B300,B300)","v":"13. Programa de Incentivos a la Mejora de la Gestión Municipal6"},"13. Programa de Incentivos a la Mejora de la Gestión Municipal","El Programa de Incentivos está diseñado para que participen todas las municipalidades sin necesidad de postular o de presentar algún formulario o requisito previo. Las municipalidades se incorporan automáticamente cuando presentan el cumplimiento de la meta o las metas."]
[{"$f":"B301&COUNTIF($B$80:B301,B301)","v":"13. Programa de Incentivos a la Mejora de la Gestión Municipal7"},"13. Programa de Incentivos a la Mejora de la Gestión Municipal","3. ¿Cuál es el procedimiento para la formulación de metas y plazos, y la evaluación correspondiente en el marco de la asignación de los recursos del Programa de Incentivos para las nuevas municipalidades y de acuerdo a las normativas vigentes?  "]
[{"$f":"B302&COUNTIF($B$80:B302,B302)","v":"13. Programa de Incentivos a la Mejora de la Gestión Municipal8"},"13. Programa de Incentivos a la Mejora de la Gestión Municipal","Respuesta."]
[{"$f":"B303&COUNTIF($B$80:B303,B303)","v":"13. Programa de Incentivos a la Mejora de la Gestión Municipal9"},"13. Programa de Incentivos a la Mejora de la Gestión Municipal","Entre los “Procedimientos para el cumplimiento de metas y la asignación de los recursos del Programa de Incentivos a la Mejora de la Gestión Municipal del año 2017” aprobado con Decreto Supremo N° 394-2016-EF, la Única Disposición Complementaria Final considera el régimen aplicable a las nuevas municipalidades distritales creadas durante el año 2016 y que cuenten con índices de distribución del FONCOMUN. La municipalidad deberá identificar la clasificación que le corresponde (Municipalidad Tipo A, Tipo B, con más de 500 viviendas urbanas, con menos de 500 viviendas urbanas) y cumplir las metas establecidas para dicho grupo"]
[{"$f":"B304&COUNTIF($B$80:B304,B304)","v":"14. Administración Tributaria Municipal1"},"14. Administración Tributaria Municipal","1. ¿Qué le debería solicitar a la gestión saliente?"]
[{"$f":"B305&COUNTIF($B$80:B305,B305)","v":"14. Administración Tributaria Municipal2"},"14. Administración Tributaria Municipal","Respuesta."]
[{"$f":"B306&COUNTIF($B$80:B306,B306)","v":"14. Administración Tributaria Municipal3"},"14. Administración Tributaria Municipal","·         Padrones de contribuyentes"]
[{"$f":"B307&COUNTIF($B$80:B307,B307)","v":"14. Administración Tributaria Municipal4"},"14. Administración Tributaria Municipal","·         Órdenes de pago emitidas para el presente año"]
[{"$f":"B308&COUNTIF($B$80:B308,B308)","v":"14. Administración Tributaria Municipal5"},"14. Administración Tributaria Municipal","·         Cuponeras"]
[{"$f":"B309&COUNTIF($B$80:B309,B309)","v":"14. Administración Tributaria Municipal6"},"14. Administración Tributaria Municipal","·         Estados de cuenta"]
[{"$f":"B310&COUNTIF($B$80:B310,B310)","v":"14. Administración Tributaria Municipal7"},"14. Administración Tributaria Municipal","·         Base de Datos Catastral"]
[{"$f":"B311&COUNTIF($B$80:B311,B311)","v":"14. Administración Tributaria Municipal8"},"14. Administración Tributaria Municipal","·         Declaración Jurada"]
[{"$f":"B312&COUNTIF($B$80:B312,B312)","v":"14. Administración Tributaria Municipal9"},"14. Administración Tributaria Municipal","·         Resoluciones de Determinación y Sanción"]
[{"$f":"B313&COUNTIF($B$80:B313,B313)","v":"14. Administración Tributaria Municipal10"},"14. Administración Tributaria Municipal","2. ¿Qué ingresos tributarios administran las municipalidades?"]
[{"$f":"B314&COUNTIF($B$80:B314,B314)","v":"14. Administración Tributaria Municipal11"},"14. Administración Tributaria Municipal"," Respuesta."]
[{"$f":"B315&COUNTIF($B$80:B315,B315)","v":"14. Administración Tributaria Municipal12"},"14. Administración Tributaria Municipal","Según el TUO de la Ley de Tributación Municipal, los ingresos tributarios que administran las municipalidades son los impuestos municipales, las tasas y contribuciones que determinen los Concejos Municipales."]
[{"$f":"B316&COUNTIF($B$80:B316,B316)","v":"14. Administración Tributaria Municipal13"},"14. Administración Tributaria Municipal","Los impuestos municipales son, exclusivamente, los siguientes:"]
[{"$f":"B317&COUNTIF($B$80:B317,B317)","v":"14. Administración Tributaria Municipal14"},"14. Administración Tributaria Municipal","a) Impuesto Predial."]
[{"$f":"B318&COUNTIF($B$80:B318,B318)","v":"14. Administración Tributaria Municipal15"},"14. Administración Tributaria Municipal","b) Impuesto de Alcabala."]
[{"$f":"B319&COUNTIF($B$80:B319,B319)","v":"14. Administración Tributaria Municipal16"},"14. Administración Tributaria Municipal","c) Impuesto al Patrimonio Vehicular."]
[{"$f":"B320&COUNTIF($B$80:B320,B320)","v":"14. Administración Tributaria Municipal17"},"14. Administración Tributaria Municipal","d) Impuesto a las Apuestas."]
[{"$f":"B321&COUNTIF($B$80:B321,B321)","v":"14. Administración Tributaria Municipal18"},"14. Administración Tributaria Municipal","e) Impuesto a los Juegos."]
[{"$f":"B322&COUNTIF($B$80:B322,B322)","v":"14. Administración Tributaria Municipal19"},"14. Administración Tributaria Municipal","f) Impuesto a los Espectáculos Públicos no Deportivos."]
[{"$f":"B323&COUNTIF($B$80:B323,B323)","v":"14. Administración Tributaria Municipal20"},"14. Administración Tributaria Municipal","Las tasas municipales son los tributos cuya obligación tiene como hecho generador la prestación efectiva por la municipalidad de un servicio público o administrativo, así tenemos las siguientes:"]
[{"$f":"B324&COUNTIF($B$80:B324,B324)","v":"14. Administración Tributaria Municipal21"},"14. Administración Tributaria Municipal","a) Tasas por servicios públicos o arbitrios."]
[{"$f":"B325&COUNTIF($B$80:B325,B325)","v":"14. Administración Tributaria Municipal22"},"14. Administración Tributaria Municipal","b) Tasas por servicios administrativos o derechos."]
[{"$f":"B326&COUNTIF($B$80:B326,B326)","v":"14. Administración Tributaria Municipal23"},"14. Administración Tributaria Municipal","c) Tasas por las licencias de apertura de establecimiento."]
[{"$f":"B327&COUNTIF($B$80:B327,B327)","v":"14. Administración Tributaria Municipal24"},"14. Administración Tributaria Municipal","d) Tasa por estacionamiento de vehículos."]
[{"$f":"B328&COUNTIF($B$80:B328,B328)","v":"14. Administración Tributaria Municipal25"},"14. Administración Tributaria Municipal","e) Otras tasas."]
[{"$f":"B329&COUNTIF($B$80:B329,B329)","v":"14. Administración Tributaria Municipal26"},"14. Administración Tributaria Municipal","Finalmente, tenemos la Contribución Especial de Obras Públicas que grava los beneficios derivados de la ejecución de obras públicas por la municipalidad. Las municipalidades emitirán las normas procesales para la recaudación, fiscalización y administración de las contribuciones."]
[{"$f":"B330&COUNTIF($B$80:B330,B330)","v":"14. Administración Tributaria Municipal27"},"14. Administración Tributaria Municipal","3 ¿Cómo se define el proceso de administración tributaria municipal?"]
[{"$f":"B331&COUNTIF($B$80:B331,B331)","v":"14. Administración Tributaria Municipal28"},"14. Administración Tributaria Municipal","Respuesta."]
[{"$f":"B332&COUNTIF($B$80:B332,B332)","v":"14. Administración Tributaria Municipal29"},"14. Administración Tributaria Municipal","La administración tributaria debe realizar los seis macro procesos que se detallan a continuación para cumplir con sus facultades y funciones"]
[{"$f":"B333&COUNTIF($B$80:B333,B333)","v":"14. Administración Tributaria Municipal30"},"14. Administración Tributaria Municipal","Macroproceso de orientación y atención "]
[{"$f":"B334&COUNTIF($B$80:B334,B334)","v":"14. Administración Tributaria Municipal31"},"14. Administración Tributaria Municipal","Está conformado por aquellas actividades que buscan brindar una adecuada orientación a los contribuyentes para que con toda la información necesaria los ciudadanos puedan cumplir sus obligaciones tributarias y la administración tributaria mantenga un correcto registro de datos."]
[{"$f":"B335&COUNTIF($B$80:B335,B335)","v":"14. Administración Tributaria Municipal32"},"14. Administración Tributaria Municipal"," Macroproceso de registro y determinación de la deuda "]
[{"$f":"B336&COUNTIF($B$80:B336,B336)","v":"14. Administración Tributaria Municipal33"},"14. Administración Tributaria Municipal","Es el conjunto de actividades que permitirá mantener actualizada la base de datos de la administración tributaria, conteniendo la información de los contribuyentes, predios, declaraciones juradas y la fiscalización correspondiente, a fin de determinar el Impuesto Predial. Cuenta con tres procesos: i) Registro tributario, ii) Fiscalización tributaria, y, iii) Determinación de la deuda tributaria. "]
[{"$f":"B337&COUNTIF($B$80:B337,B337)","v":"14. Administración Tributaria Municipal34"},"14. Administración Tributaria Municipal","Macroproceso de gestión de cuenta Comprende las actuaciones de control y seguimiento de la deuda, independientemente de la etapa y estado de las cuentas. "]
[{"$f":"B338&COUNTIF($B$80:B338,B338)","v":"14. Administración Tributaria Municipal35"},"14. Administración Tributaria Municipal","Abarca los procesos de cobranza ordinaria, cobranza coactiva y el control de deuda para la emisión oportuna de los valores tributarios, el monitoreo adecuado de los fraccionamientos y el seguimiento de los saldos por cobrar. "]
[{"$f":"B339&COUNTIF($B$80:B339,B339)","v":"14. Administración Tributaria Municipal36"},"14. Administración Tributaria Municipal","Macroproceso de tesorería y pago "]
[{"$f":"B340&COUNTIF($B$80:B340,B340)","v":"14. Administración Tributaria Municipal37"},"14. Administración Tributaria Municipal","Permite realizar un seguimiento y control de los pagos para mantener actualizada la información de aquellos contribuyentes que han cumplido con sus obligaciones tributarias. "]
[{"$f":"B341&COUNTIF($B$80:B341,B341)","v":"14. Administración Tributaria Municipal38"},"14. Administración Tributaria Municipal","Macroproceso de procedimientos contenciosos y no contenciosos "]
[{"$f":"B342&COUNTIF($B$80:B342,B342)","v":"14. Administración Tributaria Municipal39"},"14. Administración Tributaria Municipal","Consiste en aquellas actividades que realiza la administración tributaria para mantener actualizado el registro de expedientes presentados por la deuda tributaria, además de permitir realizar un adecuado control y seguimiento de la atención y resolución de aquellos expedientes y de la ejecución de sus respectivos resultados; a fin de evitar el retraso en la gestión de cobranza de la deuda tributaria. "]
[{"$f":"B343&COUNTIF($B$80:B343,B343)","v":"14. Administración Tributaria Municipal40"},"14. Administración Tributaria Municipal","Macroproceso de notificaciones "]
[{"$f":"B344&COUNTIF($B$80:B344,B344)","v":"14. Administración Tributaria Municipal41"},"14. Administración Tributaria Municipal","Abarca aquellas actividades destinadas a las notificaciones de actos administrativos y diversas comunicaciones que emita la administración tributaria dentro de sus procedimientos de gestión, con la finalidad que estas se realicen de manera efectiva de acuerdo con las disposiciones legales vigentes, para así asegurar la celeridad, legalidad y economía procesal."]
[{"$f":"B345&COUNTIF($B$80:B345,B345)","v":"15. Sistema de Seguridad y Defensa Nacional1"},"15. Sistema de Seguridad y Defensa Nacional","1. ¿Qué le debería solicitar a la gestión saliente?"]
[{"$f":"B346&COUNTIF($B$80:B346,B346)","v":"15. Sistema de Seguridad y Defensa Nacional2"},"15. Sistema de Seguridad y Defensa Nacional","Respuesta."]
[{"$f":"B347&COUNTIF($B$80:B347,B347)","v":"15. Sistema de Seguridad y Defensa Nacional3"},"15. Sistema de Seguridad y Defensa Nacional","·         Acta de conformación de la Plataforma de Defensa Civil Local (PDCR) y Grupo de Trabajo de la Gestión de Riesgos de Desastres (GTGRD)"]
[{"$f":"B348&COUNTIF($B$80:B348,B348)","v":"15. Sistema de Seguridad y Defensa Nacional4"},"15. Sistema de Seguridad y Defensa Nacional","·         Plan Local de Prevención y Reducción de riesgo de desastres"]
[{"$f":"B349&COUNTIF($B$80:B349,B349)","v":"15. Sistema de Seguridad y Defensa Nacional5"},"15. Sistema de Seguridad y Defensa Nacional","·         Plan Local de Contingencia ante la ocurrencia de Desastres"]
[{"$f":"B350&COUNTIF($B$80:B350,B350)","v":"15. Sistema de Seguridad y Defensa Nacional6"},"15. Sistema de Seguridad y Defensa Nacional","·         Plan Local de Operaciones de Emergencia"]
[{"$f":"B351&COUNTIF($B$80:B351,B351)","v":"15. Sistema de Seguridad y Defensa Nacional7"},"15. Sistema de Seguridad y Defensa Nacional","·         Plan Local de Educación Comunitaria en Gestión del Riesgo de Desastres"]
[{"$f":"B352&COUNTIF($B$80:B352,B352)","v":"15. Sistema de Seguridad y Defensa Nacional8"},"15. Sistema de Seguridad y Defensa Nacional","·         Plan Local de Rehabilitación"]
[{"$f":"B353&COUNTIF($B$80:B353,B353)","v":"15. Sistema de Seguridad y Defensa Nacional9"},"15. Sistema de Seguridad y Defensa Nacional","·         Inventario Local de Recursos para la Movilización ante Emergencias y Desastres."]
[{"$f":"B354&COUNTIF($B$80:B354,B354)","v":"15. Sistema de Seguridad y Defensa Nacional10"},"15. Sistema de Seguridad y Defensa Nacional","·         Plan Local de Preparación ante el riesgo de desastres"]
[{"$f":"B355&COUNTIF($B$80:B355,B355)","v":"15. Sistema de Seguridad y Defensa Nacional11"},"15. Sistema de Seguridad y Defensa Nacional","·         Informes de Estimación del Riesgo de Desastres"]
[{"$f":"B356&COUNTIF($B$80:B356,B356)","v":"15. Sistema de Seguridad y Defensa Nacional12"},"15. Sistema de Seguridad y Defensa Nacional","·         Expediente de la Rendición de entrega de Bienes de Ayuda Humanitaria"]
[{"$f":"B357&COUNTIF($B$80:B357,B357)","v":"15. Sistema de Seguridad y Defensa Nacional13"},"15. Sistema de Seguridad y Defensa Nacional","·         Informe de estimación del riesgo de desastres"]
[{"$f":"B358&COUNTIF($B$80:B358,B358)","v":"15. Sistema de Seguridad y Defensa Nacional14"},"15. Sistema de Seguridad y Defensa Nacional","2. ¿Qué órgano realiza las inspecciones de defensa civil?"]
[{"$f":"B359&COUNTIF($B$80:B359,B359)","v":"15. Sistema de Seguridad y Defensa Nacional15"},"15. Sistema de Seguridad y Defensa Nacional","Respuesta."]
[{"$f":"B360&COUNTIF($B$80:B360,B360)","v":"15. Sistema de Seguridad y Defensa Nacional16"},"15. Sistema de Seguridad y Defensa Nacional","Las Oficinas de Defensa Civil de las Municipalidades Distritales, ejecutan Inspecciones Técnicas de Seguridad en Defensa Civil Básica Ex Ante y Ex Post y Previa a evento y/o Espectáculo Público con una afluencia hasta 3,000 personas, en su jurisdicción."]
[{"$f":"B361&COUNTIF($B$80:B361,B361)","v":"15. Sistema de Seguridad y Defensa Nacional17"},"15. Sistema de Seguridad y Defensa Nacional","3. ¿Cuáles son los requisitos para pasar una Inspección de Defensa Civil?"]
[{"$f":"B362&COUNTIF($B$80:B362,B362)","v":"15. Sistema de Seguridad y Defensa Nacional18"},"15. Sistema de Seguridad y Defensa Nacional","Respuesta."]
[{"$f":"B363&COUNTIF($B$80:B363,B363)","v":"15. Sistema de Seguridad y Defensa Nacional19"},"15. Sistema de Seguridad y Defensa Nacional","Los requisitos se encuentran en el Texto Único de procedimientos Administrativos (TUPA) de los Órganos Ejecutantes, por ello según se detalla líneas abajo se deberá acudir a la oficina que corresponda, llamar por teléfono o visitar la página web en caso la tengan:"]
[{"$f":"B364&COUNTIF($B$80:B364,B364)","v":"15. Sistema de Seguridad y Defensa Nacional20"},"15. Sistema de Seguridad y Defensa Nacional","Oficinas de Defensa Civil de las Municipalidades Distritales, para el caso de inspecciones Técnicas de Seguridad en Defensa Civil Básica Ex Ante y Ex Post y Previa a Evento y/o Espectáculo Público con una afluencia hasta 3,000 asistentes."]
[{"$f":"B365&COUNTIF($B$80:B365,B365)","v":"15. Sistema de Seguridad y Defensa Nacional21"},"15. Sistema de Seguridad y Defensa Nacional","Oficinas de Defensa Civil de los Gobiernos Regionales, para las Inspecciones técnicas de Seguridad en Defensa Civil de Detalle, multidisciplinarias y Previa a Evento y/o Espectáculo público con una afluencia mayor a 3,000 asistentes."]
[{"$f":"B366&COUNTIF($B$80:B366,B366)","v":"15. Sistema de Seguridad y Defensa Nacional22"},"15. Sistema de Seguridad y Defensa Nacional","La Oficina de Inspecciones Técnicas para Lima Metropolitana de la Dirección Regional INDECI Costa Centro, para inspecciones Técnicas de Seguridad en Defensa Civil de Detalle, multidisciplinarias y Previa a Evento y/o Espectáculo Público con una afluencia mayor a 3,000 asistentes."]
[{"$f":"B367&COUNTIF($B$80:B367,B367)","v":"16. Seguridad Ciudadana1"},"16. Seguridad Ciudadana","1. ¿Qué le debería solicitar a la gestión saliente?"]
[{"$f":"B368&COUNTIF($B$80:B368,B368)","v":"16. Seguridad Ciudadana2"},"16. Seguridad Ciudadana","Respuesta."]
[{"$f":"B369&COUNTIF($B$80:B369,B369)","v":"16. Seguridad Ciudadana3"},"16. Seguridad Ciudadana","·         Conformación del Comité Distrital de Seguridad Ciudadana"]
[{"$f":"B370&COUNTIF($B$80:B370,B370)","v":"16. Seguridad Ciudadana4"},"16. Seguridad Ciudadana","·         Conformación de las Juntas Vecinales"]
[{"$f":"B371&COUNTIF($B$80:B371,B371)","v":"16. Seguridad Ciudadana5"},"16. Seguridad Ciudadana","·         Informes de intervención"]
[{"$f":"B372&COUNTIF($B$80:B372,B372)","v":"16. Seguridad Ciudadana6"},"16. Seguridad Ciudadana","2. ¿Quién preside el Comité Distrital de Seguridad Ciudadana?"]
[{"$f":"B373&COUNTIF($B$80:B373,B373)","v":"16. Seguridad Ciudadana7"},"16. Seguridad Ciudadana","Respuesta."]
[{"$f":"B374&COUNTIF($B$80:B374,B374)","v":"16. Seguridad Ciudadana8"},"16. Seguridad Ciudadana","El Comité Distrital de Seguridad Ciudadana es un órgano de coordinación encargado de formular los planes, programas, proyectos y directivas de seguridad ciudadana, así como ejecutar los mismos en la jurisdicción del distrito, en el marco de la política nacional diseñada por el CONASEC. Supervisa y evalúa su ejecución."]
[{"$f":"B375&COUNTIF($B$80:B375,B375)","v":"16. Seguridad Ciudadana9"},"16. Seguridad Ciudadana","El Comité Distrital de Seguridad Ciudadana es presidido por el alcalde e integrado por la autoridad política de mayor nivel de la localidad, el (los) Comisario (s) de la Policía Nacional del Perú a cuya jurisdicción pertenece el distrito de La Molina, un representante del Poder Judicial y un representante de las Juntas Vecinales."]
[{"$f":"B376&COUNTIF($B$80:B376,B376)","v":"16. Seguridad Ciudadana10"},"16. Seguridad Ciudadana","3. ¿Cuál es la función de las juntas vecinales?"]
[{"$f":"B377&COUNTIF($B$80:B377,B377)","v":"16. Seguridad Ciudadana11"},"16. Seguridad Ciudadana","Respuesta."]
[{"$f":"B378&COUNTIF($B$80:B378,B378)","v":"16. Seguridad Ciudadana12"},"16. Seguridad Ciudadana","Las juntas vecinales son organizaciones sociales de base presentes en un territorio que intervienen en la gestión local a través de mecanismos de participación vecinal. Se constituyen de conformidad con lo establecido en los artículos 109º, 110º y 116º de la Ley Orgánica de Municipalidades, Ley Nº 27972."]
[{"$f":"B379&COUNTIF($B$80:B379,B379)","v":"17. Licencias y autorizaciones de funcionamiento1"},"17. Licencias y autorizaciones de funcionamiento","1. ¿Qué le debería solicitar a la gestión saliente?"]
[{"$f":"B380&COUNTIF($B$80:B380,B380)","v":"17. Licencias y autorizaciones de funcionamiento2"},"17. Licencias y autorizaciones de funcionamiento","Respuesta."]
[{"$f":"B381&COUNTIF($B$80:B381,B381)","v":"17. Licencias y autorizaciones de funcionamiento3"},"17. Licencias y autorizaciones de funcionamiento","·         Relación de licencias de funcionamiento"]
[{"$f":"B382&COUNTIF($B$80:B382,B382)","v":"17. Licencias y autorizaciones de funcionamiento4"},"17. Licencias y autorizaciones de funcionamiento","·         Relación de Autorizaciones emitidas"]
[{"$f":"B383&COUNTIF($B$80:B383,B383)","v":"17. Licencias y autorizaciones de funcionamiento5"},"17. Licencias y autorizaciones de funcionamiento","2. ¿Quién otorga la licencia de funcionamiento de un establecimiento comercial?"]
[{"$f":"B384&COUNTIF($B$80:B384,B384)","v":"17. Licencias y autorizaciones de funcionamiento6"},"17. Licencias y autorizaciones de funcionamiento","Respuesta."]
[{"$f":"B385&COUNTIF($B$80:B385,B385)","v":"17. Licencias y autorizaciones de funcionamiento7"},"17. Licencias y autorizaciones de funcionamiento","Las Municipalidades son competentes para otorgar la licencia de funcionamiento de los establecimientos comerciales, industriales y de prestación de servicios profesionales. Asimismo, controlan el funcionamiento de los locales de acuerdo con la actividad autorizada en las licencias."]
[{"$f":"B386&COUNTIF($B$80:B386,B386)","v":"17. Licencias y autorizaciones de funcionamiento8"},"17. Licencias y autorizaciones de funcionamiento","3. ¿Qué aspectos evalúa la municipalidad para el otorgamiento de licencia de funcionamiento?"]
[{"$f":"B387&COUNTIF($B$80:B387,B387)","v":"17. Licencias y autorizaciones de funcionamiento9"},"17. Licencias y autorizaciones de funcionamiento","Respuesta."]
[{"$f":"B388&COUNTIF($B$80:B388,B388)","v":"17. Licencias y autorizaciones de funcionamiento10"},"17. Licencias y autorizaciones de funcionamiento","Evalúa los siguientes aspectos:"]
[{"$f":"B389&COUNTIF($B$80:B389,B389)","v":"17. Licencias y autorizaciones de funcionamiento11"},"17. Licencias y autorizaciones de funcionamiento","•         Zonificación: conjunto de normas técnicas que regulan el uso del suelo"]
[{"$f":"B390&COUNTIF($B$80:B390,B390)","v":"17. Licencias y autorizaciones de funcionamiento12"},"17. Licencias y autorizaciones de funcionamiento","·         Compatibilidad de uso: se verifica si el tipo de actividad económica a ser desarrollada por el interesado resulta o no compatible con la categorización del espacio geográfico establecido en la zonificación vigente."]
[{"$f":"B391&COUNTIF($B$80:B391,B391)","v":"17. Licencias y autorizaciones de funcionamiento13"},"17. Licencias y autorizaciones de funcionamiento","·         Condiciones de seguridad en Defensa Civil, cuando dicha evaluación constituya facultad de la municipalidad."]
[{"$f":"B392&COUNTIF($B$80:B392,B392)","v":"18. Sistema de Gestión Ambiental Local1"},"18. Sistema de Gestión Ambiental Local","1. ¿Qué le debería solicitar a la gestión saliente?"]
[{"$f":"B393&COUNTIF($B$80:B393,B393)","v":"18. Sistema de Gestión Ambiental Local2"},"18. Sistema de Gestión Ambiental Local","Respuesta."]
[{"$f":"B394&COUNTIF($B$80:B394,B394)","v":"18. Sistema de Gestión Ambiental Local3"},"18. Sistema de Gestión Ambiental Local","·         Plan de Gestión Ambiental"]
[{"$f":"B395&COUNTIF($B$80:B395,B395)","v":"18. Sistema de Gestión Ambiental Local4"},"18. Sistema de Gestión Ambiental Local","·         Plan Anual de Evaluación y Fiscalización Ambiental"]
[{"$f":"B396&COUNTIF($B$80:B396,B396)","v":"18. Sistema de Gestión Ambiental Local5"},"18. Sistema de Gestión Ambiental Local","·         Acta de conformación de la Comisión Ambiental Municipal"]
[{"$f":"B397&COUNTIF($B$80:B397,B397)","v":"18. Sistema de Gestión Ambiental Local6"},"18. Sistema de Gestión Ambiental Local","·         Acta de conformación de la Plataforma de gestión ambiental"]
[{"$f":"B398&COUNTIF($B$80:B398,B398)","v":"18. Sistema de Gestión Ambiental Local7"},"18. Sistema de Gestión Ambiental Local","2. ¿Cuáles son los objetivos de la gestión ambiental?"]
[{"$f":"B399&COUNTIF($B$80:B399,B399)","v":"18. Sistema de Gestión Ambiental Local8"},"18. Sistema de Gestión Ambiental Local","Respuesta."]
[{"$f":"B400&COUNTIF($B$80:B400,B400)","v":"18. Sistema de Gestión Ambiental Local9"},"18. Sistema de Gestión Ambiental Local","·         Contribuir a garantizar un ambiente adecuado que permita el desarrollo pleno de las personas."]
[{"$f":"B401&COUNTIF($B$80:B401,B401)","v":"18. Sistema de Gestión Ambiental Local10"},"18. Sistema de Gestión Ambiental Local","·         Manejar los factores ambientales y conducir las actividades humanas mediante la actuación sobre el comportamiento de los actores implicados, evitando la duplicidad de funciones, los conflictos de competencias, los vacíos en la acción, y optimizando así los recursos disponibles."]
[{"$f":"B402&COUNTIF($B$80:B402,B402)","v":"18. Sistema de Gestión Ambiental Local11"},"18. Sistema de Gestión Ambiental Local","3. ¿Cuáles es la función de la Comisión Ambiental Municipal – CAM?"]
[{"$f":"B403&COUNTIF($B$80:B403,B403)","v":"18. Sistema de Gestión Ambiental Local12"},"18. Sistema de Gestión Ambiental Local","Respuesta."]
[{"$f":"B404&COUNTIF($B$80:B404,B404)","v":"18. Sistema de Gestión Ambiental Local13"},"18. Sistema de Gestión Ambiental Local","Es la instancia de gestión ambiental creada por las municipalidades encargada de la coordinación y la concertación de la política ambiental local, promoviendo el diálogo y el acuerdo entre los actores locales. Está compuesta por aquellos actores del nivel local tanto del sector público, como del sector privado y la sociedad civil. Son creadas y/o reconocidas por ordenanzas, las cuales establecen su composición y funciones. La Comisión Ambiental Municipal articula las Políticas Ambientales Locales con las CAR y el MINAM."]
[{"$f":"B405&COUNTIF($B$80:B405,B405)","v":"18. Sistema de Gestión Ambiental Local14"},"18. Sistema de Gestión Ambiental Local","Funciones de la Comisión Ambiental Municipal"]
[{"$f":"B406&COUNTIF($B$80:B406,B406)","v":"18. Sistema de Gestión Ambiental Local15"},"18. Sistema de Gestión Ambiental Local","·         Concertar la política ambiental local para la implementación del SLGA."]
[{"$f":"B407&COUNTIF($B$80:B407,B407)","v":"18. Sistema de Gestión Ambiental Local16"},"18. Sistema de Gestión Ambiental Local","·         Construir participativamente el Plan y la Agenda Ambiental Local que serán aprobados por la Municipalidad."]
[{"$f":"B408&COUNTIF($B$80:B408,B408)","v":"18. Sistema de Gestión Ambiental Local17"},"18. Sistema de Gestión Ambiental Local","·         Lograr compromisos concretos de las instituciones integrantes en base a una visión compartida."]
[{"$f":"B409&COUNTIF($B$80:B409,B409)","v":"18. Sistema de Gestión Ambiental Local18"},"18. Sistema de Gestión Ambiental Local","·         Elaborar propuestas para el funcionamiento, aplicación y evaluación de los instrumentos de gestión ambiental y la ejecución de políticas ambientales."]
[{"$f":"B410&COUNTIF($B$80:B410,B410)","v":"18. Sistema de Gestión Ambiental Local19"},"18. Sistema de Gestión Ambiental Local","·         Facilitar el tratamiento apropiados para la resolución de conflictos ambientales."]
[{"$f":"B411&COUNTIF($B$80:B411,B411)","v":"18. Sistema de Gestión Ambiental Local20"},"18. Sistema de Gestión Ambiental Local","·         Participación y representación en la instancia regional."]
[{"$f":"B412&COUNTIF($B$80:B412,B412)","v":"18. Sistema de Gestión Ambiental Local21"},"18. Sistema de Gestión Ambiental Local","·         Promover diversos mecanismos de participación de la sociedad civil en la gestión ambiental."]
[{"$f":"B413&COUNTIF($B$80:B413,B413)","v":"18. Sistema de Gestión Ambiental Local22"},"18. Sistema de Gestión Ambiental Local","4. ¿Cómo debe diseñarse un SLGA?"]
[{"$f":"B414&COUNTIF($B$80:B414,B414)","v":"18. Sistema de Gestión Ambiental Local23"},"18. Sistema de Gestión Ambiental Local","Respuesta."]
[{"$f":"B415&COUNTIF($B$80:B415,B415)","v":"18. Sistema de Gestión Ambiental Local24"},"18. Sistema de Gestión Ambiental Local","Por medio de un proceso participativo, que involucre a los actores de la sociedad en su conjunto."]
[{"$f":"B416&COUNTIF($B$80:B416,B416)","v":"18. Sistema de Gestión Ambiental Local25"},"18. Sistema de Gestión Ambiental Local","La creación de una instancia de coordinación y concertación de la gestión ambiental local (Comisión Ambiental Municipal) por parte de la Municipalidad, es el primer paso para poder implementar su SLGA. Esta instancia deberá abocarse primero a la elaboración de un Diagnóstico Ambiental Local, que sirva como insumo para la Política Ambiental Local y el Plan de Acción Ambiental Local concertado, y que se complementará con la Agenda Ambiental Local."]
[{"$f":"B417&COUNTIF($B$80:B417,B417)","v":"19. Abastecimiento de agua dulce y/o tratada1"},"19. Abastecimiento de agua dulce y/o tratada","1. ¿Qué le debería solicitar a la gestión saliente?"]
[{"$f":"B418&COUNTIF($B$80:B418,B418)","v":"19. Abastecimiento de agua dulce y/o tratada2"},"19. Abastecimiento de agua dulce y/o tratada","Respuesta."]
[{"$f":"B419&COUNTIF($B$80:B419,B419)","v":"19. Abastecimiento de agua dulce y/o tratada3"},"19. Abastecimiento de agua dulce y/o tratada","·         Programación de Operaciones"]
[{"$f":"B420&COUNTIF($B$80:B420,B420)","v":"19. Abastecimiento de agua dulce y/o tratada4"},"19. Abastecimiento de agua dulce y/o tratada","·         Programación de Mantenimiento"]
[{"$f":"B421&COUNTIF($B$80:B421,B421)","v":"19. Abastecimiento de agua dulce y/o tratada5"},"19. Abastecimiento de agua dulce y/o tratada","·         Relación de beneficiarios"]
[{"$f":"B422&COUNTIF($B$80:B422,B422)","v":"19. Abastecimiento de agua dulce y/o tratada6"},"19. Abastecimiento de agua dulce y/o tratada","·         Contratos del servicio de agua"]
[{"$f":"B423&COUNTIF($B$80:B423,B423)","v":"20. Limpieza pública y áreas verdes1"},"20. Limpieza pública y áreas verdes","1. ¿Qué le debería solicitar a la gestión saliente?"]
[{"$f":"B424&COUNTIF($B$80:B424,B424)","v":"20. Limpieza pública y áreas verdes2"},"20. Limpieza pública y áreas verdes","Respuesta."]
[{"$f":"B425&COUNTIF($B$80:B425,B425)","v":"20. Limpieza pública y áreas verdes3"},"20. Limpieza pública y áreas verdes","·         Plan Integral de Gestión Ambiental de Residuos Sólidos / Plan de Manejo de Residuos Sólidos"]
[{"$f":"B426&COUNTIF($B$80:B426,B426)","v":"20. Limpieza pública y áreas verdes4"},"20. Limpieza pública y áreas verdes","·         Programa de Limpieza pública y áreas verdes"]
[{"$f":"B427&COUNTIF($B$80:B427,B427)","v":"20. Limpieza pública y áreas verdes5"},"20. Limpieza pública y áreas verdes","·         Programa de Segregación en la Fuente y Recolección Selectiva de Residuos Sólidos Municipales"]
[{"$f":"B428&COUNTIF($B$80:B428,B428)","v":"20. Limpieza pública y áreas verdes6"},"20. Limpieza pública y áreas verdes","·         Relación de cuadrilla de limpieza pública y áreas verdes"]
[{"$f":"B429&COUNTIF($B$80:B429,B429)","v":"20. Limpieza pública y áreas verdes7"},"20. Limpieza pública y áreas verdes","·         Contrato de limpieza pública y áreas verdes"]
[{"$f":"B430&COUNTIF($B$80:B430,B430)","v":"20. Limpieza pública y áreas verdes8"},"20. Limpieza pública y áreas verdes","2. ¿Cómo realizar Implementación del Plan Integral de Gestión Ambiental de Residuos Sólidos (para provincias) o Plan de Manejo de Residuos Sólidos (para distritos) para el año 2017?"]
[{"$f":"B431&COUNTIF($B$80:B431,B431)","v":"20. Limpieza pública y áreas verdes9"},"20. Limpieza pública y áreas verdes","Respuesta."]
[{"$f":"B432&COUNTIF($B$80:B432,B432)","v":"20. Limpieza pública y áreas verdes10"},"20. Limpieza pública y áreas verdes","La evaluación del plan de acción y avances respecto a los objetivos generales del PIGARS o Plan de Manejo de Residuos Sólidos deberá ser participativo y estará a cargo del equipo técnico conformado para la elaboración del mismo. Pasos a seguir: "]
[{"$f":"B433&COUNTIF($B$80:B433,B433)","v":"20. Limpieza pública y áreas verdes11"},"20. Limpieza pública y áreas verdes","Paso 1: Revisar las actividades programadas para el año 2017 "]
[{"$f":"B434&COUNTIF($B$80:B434,B434)","v":"20. Limpieza pública y áreas verdes12"},"20. Limpieza pública y áreas verdes","El equipo técnico deberá reunirse y revisar las actividades programadas en el Plan Operativo o documento similar referido a la gestión de residuos sólidos, para el presente año. El equipo técnico deberá realizar un acta según el Anexo N° 02 de la Guía para el Cumplimiento de la Metra 10. En caso que la municipalidad no hubiese considerado actividades para la gestión y manejo de residuos sólidos deberá considerarlo en el Plan Operativo del año en curso. "]
[{"$f":"B435&COUNTIF($B$80:B435,B435)","v":"20. Limpieza pública y áreas verdes13"},"20. Limpieza pública y áreas verdes","Paso 2: Desarrollar la ficha de seguimiento del PIGARS o Plan de Manejo de Residuos Sólidos El equipo técnico deberá desarrollar de manera organizada la ficha de seguimiento de la implementación del PIGARS o Plan de Manejo de Residuos Sólidos de acuerdo a lo establecido en el Anexo N° 03 de la Guía para el Cumplimiento de la Metra 10. La ficha desarrollada deberá estar firmada por el alcalde o gerente, el responsable del área usuaria y el responsable del área de planeamiento y presupuesto. "]
[{"$f":"B436&COUNTIF($B$80:B436,B436)","v":"20. Limpieza pública y áreas verdes14"},"20. Limpieza pública y áreas verdes","Paso 3: Desarrollar el Informe de Implementación: La municipalidad deberá presentar el informe del plan de acción y ejecución presupuestal 2017 del PIGARS o Plan de Manejo de Residuos Sólidos según los contenidos mínimos establecidos en el Anexo N° 04 de la Guía para el Cumplimiento de la Metra 10."]
[{"$f":"B437&COUNTIF($B$80:B437,B437)","v":"20. Limpieza pública y áreas verdes15"},"20. Limpieza pública y áreas verdes","3. ¿Cómo realizar el registro y envío de la información sobre la gestión y manejo de residuos sólidos al SIGERSOL?"]
[{"$f":"B438&COUNTIF($B$80:B438,B438)","v":"20. Limpieza pública y áreas verdes16"},"20. Limpieza pública y áreas verdes","Respuesta."]
[{"$f":"B439&COUNTIF($B$80:B439,B439)","v":"20. Limpieza pública y áreas verdes17"},"20. Limpieza pública y áreas verdes","Paso 1: Designación del responsable del llenado del SIGERSOL "]
[{"$f":"B440&COUNTIF($B$80:B440,B440)","v":"20. Limpieza pública y áreas verdes18"},"20. Limpieza pública y áreas verdes","La municipalidad deberá designar mediante documento oficial, al responsable del llenado de la información en el SIGERSOL 2016. (Firmado por el alcalde, gerente municipal o gerente del área usuaria). "]
[{"$f":"B441&COUNTIF($B$80:B441,B441)","v":"20. Limpieza pública y áreas verdes19"},"20. Limpieza pública y áreas verdes","Paso 2: Solicitar la clave de acceso al SIGERSOL "]
[{"$f":"B442&COUNTIF($B$80:B442,B442)","v":"20. Limpieza pública y áreas verdes20"},"20. Limpieza pública y áreas verdes","El responsable del SIGERSOL deberá solicitar la clave de acceso al SIGERSOL, mediante correo electrónico, de preferencia institucional, dirigido al área de gestión ambiental de residuos sólidos (incentivos.residuos@minam.gob.pe), adjuntando el documento oficial de designación."]
[{"$f":"B443&COUNTIF($B$80:B443,B443)","v":"20. Limpieza pública y áreas verdes21"},"20. Limpieza pública y áreas verdes","Paso 3: Suministrar y registrar en la plataforma virtual del SIGERSOL "]
[{"$f":"B444&COUNTIF($B$80:B444,B444)","v":"20. Limpieza pública y áreas verdes22"},"20. Limpieza pública y áreas verdes","La municipalidad deberá registrar en el enlace sigersol.minam.gob.pe, la información sobre la gestión y manejo de los residuos sólidos que se ha desarrollado durante el período 2016, teniendo en cuenta los aspectos técnicos, administrativos y operativos del manejo de residuos sólidos en su jurisdicción."]
[{"$f":"B445&COUNTIF($B$80:B445,B445)","v":"20. Limpieza pública y áreas verdes23"},"20. Limpieza pública y áreas verdes","Paso 4: Impresión y firma del reporte SIGERSOL 2016"]
[{"$f":"B446&COUNTIF($B$80:B446,B446)","v":"20. Limpieza pública y áreas verdes24"},"20. Limpieza pública y áreas verdes","Una vez culminado el suministro y registro de información, deberá imprimir el reporte SIGERSOL, el mismo que deberá ser firmado en cada página por el alcalde, gerente municipal o gerente del área usuaria. "]
[{"$f":"B447&COUNTIF($B$80:B447,B447)","v":"20. Limpieza pública y áreas verdes25"},"20. Limpieza pública y áreas verdes","Paso 5: Envío del Reporte SIGERSOL "]
[{"$f":"B448&COUNTIF($B$80:B448,B448)","v":"20. Limpieza pública y áreas verdes26"},"20. Limpieza pública y áreas verdes","Remitir el reporte SIGERSOL 2016 debidamente firmado y escaneado al correo electrónico incentivos.residuos@minam.gob.pe, señalando en el asunto: Reporte del SIGERSOL 2016 y nombre de la municipalidad"]
[{"$f":"B449&COUNTIF($B$80:B449,B449)","v":"20. Limpieza pública y áreas verdes27"},"20. Limpieza pública y áreas verdes","4. ¿Cómo elaborar el Plan de trabajo para el Programa de Segregación?"]
[{"$f":"B450&COUNTIF($B$80:B450,B450)","v":"20. Limpieza pública y áreas verdes28"},"20. Limpieza pública y áreas verdes","Respuesta."]
[{"$f":"B451&COUNTIF($B$80:B451,B451)","v":"20. Limpieza pública y áreas verdes29"},"20. Limpieza pública y áreas verdes","Las actividades a realizar son las siguientes"]
[{"$f":"B452&COUNTIF($B$80:B452,B452)","v":"20. Limpieza pública y áreas verdes30"},"20. Limpieza pública y áreas verdes","1.       Coordinaciones generales realizadas por el Equipo técnico."]
[{"$f":"B453&COUNTIF($B$80:B453,B453)","v":"20. Limpieza pública y áreas verdes31"},"20. Limpieza pública y áreas verdes","2.       Recopilación de información realizada por el Equipo técnico."]
[{"$f":"B454&COUNTIF($B$80:B454,B454)","v":"20. Limpieza pública y áreas verdes32"},"20. Limpieza pública y áreas verdes","3.       Análisis de la información realizadas por el Equipo técnico."]
[{"$f":"B455&COUNTIF($B$80:B455,B455)","v":"20. Limpieza pública y áreas verdes33"},"20. Limpieza pública y áreas verdes","4.       Diseño del programa (Establecimiento de estrategia) realizada por el Equipo de Coordinación Municipal y el Equipo técnico."]
[{"$f":"B456&COUNTIF($B$80:B456,B456)","v":"20. Limpieza pública y áreas verdes34"},"20. Limpieza pública y áreas verdes","5.       Coordinaciones para la administración del servicio"]
[{"$f":"B457&COUNTIF($B$80:B457,B457)","v":"20. Limpieza pública y áreas verdes35"},"20. Limpieza pública y áreas verdes","6.       Socialización del programa (Presentación de propuesta de diseño) realizada por el Equipo de Coordinación Municipal y el Equipo técnico."]
[{"$f":"B458&COUNTIF($B$80:B458,B458)","v":"20. Limpieza pública y áreas verdes36"},"20. Limpieza pública y áreas verdes","7.       Sustentación del programa y aprobación mediante Decreto de Alcaldía (Aprobación del programa)."]
[{"$f":"B459&COUNTIF($B$80:B459,B459)","v":"20. Limpieza pública y áreas verdes37"},"20. Limpieza pública y áreas verdes","8.       Capacitación al personal operativo"]
[{"$f":"B460&COUNTIF($B$80:B460,B460)","v":"20. Limpieza pública y áreas verdes38"},"20. Limpieza pública y áreas verdes","9.       Diseño e impresión de materiales de comunicación"]
[{"$f":"B461&COUNTIF($B$80:B461,B461)","v":"20. Limpieza pública y áreas verdes39"},"20. Limpieza pública y áreas verdes","10.   Adquisición de materiales"]
[{"$f":"B462&COUNTIF($B$80:B462,B462)","v":"20. Limpieza pública y áreas verdes40"},"20. Limpieza pública y áreas verdes","11.   Empadronamiento de viviendas"]
[{"$f":"B463&COUNTIF($B$80:B463,B463)","v":"20. Limpieza pública y áreas verdes41"},"20. Limpieza pública y áreas verdes","12.   Lanzamiento del programa (Evento público)."]
[{"$f":"B464&COUNTIF($B$80:B464,B464)","v":"20. Limpieza pública y áreas verdes42"},"20. Limpieza pública y áreas verdes","13.   Seguimiento y reforzamiento"]
[{"$f":"B465&COUNTIF($B$80:B465,B465)","v":"20. Limpieza pública y áreas verdes43"},"20. Limpieza pública y áreas verdes","14.   Monitoreo y evaluación"]
[{"$f":"B466&COUNTIF($B$80:B466,B466)","v":"21. Fiscalización (Ambiental/Tributaria/Servicios municipales)1"},"21. Fiscalización (Ambiental/Tributaria/Servicios municipales)","1. ¿Qué le debería solicitar a la gestión saliente?"]
[{"$f":"B467&COUNTIF($B$80:B467,B467)","v":"21. Fiscalización (Ambiental/Tributaria/Servicios municipales)2"},"21. Fiscalización (Ambiental/Tributaria/Servicios municipales)","Respuesta."]
[{"$f":"B468&COUNTIF($B$80:B468,B468)","v":"21. Fiscalización (Ambiental/Tributaria/Servicios municipales)3"},"21. Fiscalización (Ambiental/Tributaria/Servicios municipales)","·         Programación de las acciones de fiscalización"]
[{"$f":"B469&COUNTIF($B$80:B469,B469)","v":"21. Fiscalización (Ambiental/Tributaria/Servicios municipales)4"},"21. Fiscalización (Ambiental/Tributaria/Servicios municipales)","·         Relación de actas de notificación en proceso"]
[{"$f":"B470&COUNTIF($B$80:B470,B470)","v":"21. Fiscalización (Ambiental/Tributaria/Servicios municipales)5"},"21. Fiscalización (Ambiental/Tributaria/Servicios municipales)","·         Relación de informes de sanciones en proceso"]
[{"$f":"B471&COUNTIF($B$80:B471,B471)","v":"21. Fiscalización (Ambiental/Tributaria/Servicios municipales)6"},"21. Fiscalización (Ambiental/Tributaria/Servicios municipales)","·         Relación de Resoluciones Gerenciales de sanciones"]
[{"$f":"B472&COUNTIF($B$80:B472,B472)","v":"21. Fiscalización (Ambiental/Tributaria/Servicios municipales)7"},"21. Fiscalización (Ambiental/Tributaria/Servicios municipales)","2. ¿Cómo realizar la fiscalización en tema de ambiente?"]
[{"$f":"B473&COUNTIF($B$80:B473,B473)","v":"21. Fiscalización (Ambiental/Tributaria/Servicios municipales)8"},"21. Fiscalización (Ambiental/Tributaria/Servicios municipales)","Respuesta."]
[{"$f":"B474&COUNTIF($B$80:B474,B474)","v":"21. Fiscalización (Ambiental/Tributaria/Servicios municipales)9"},"21. Fiscalización (Ambiental/Tributaria/Servicios municipales)","Las municipalidades provinciales y distritales ejercen funciones de fiscalización ambiental a través de las unidades orgánicas ambientales, las áreas de fiscalización u otras que hagan sus veces. Ejemplo: los gobiernos locales tienen la función de fiscalizar en materia ambiental a sus administrados, respecto de la emisión de humos, gases, ruidos, residuos sólidos, residuos de la construcción y demolición; y, aguas residuales en la vía pública, respetando las competencias sectoriales."]
[{"$f":"B475&COUNTIF($B$80:B475,B475)","v":"21. Fiscalización (Ambiental/Tributaria/Servicios municipales)10"},"21. Fiscalización (Ambiental/Tributaria/Servicios municipales)","3. ¿Cómo es el proceso de fiscalización tributaria?"]
[{"$f":"B476&COUNTIF($B$80:B476,B476)","v":"21. Fiscalización (Ambiental/Tributaria/Servicios municipales)11"},"21. Fiscalización (Ambiental/Tributaria/Servicios municipales)","Respuesta."]
[{"$f":"B477&COUNTIF($B$80:B477,B477)","v":"21. Fiscalización (Ambiental/Tributaria/Servicios municipales)12"},"21. Fiscalización (Ambiental/Tributaria/Servicios municipales)","El proceso de fiscalización tributaria es el conjunto de actividades de investigación, inspección y determinación de la deuda que realiza la administración tributaria para conocer la verdadera situación tributaria de los predios y de aquellos contribuyentes sobre los que detecta indicios de incumplimiento tributario. Este proceso comprende los subprocesos de: planeamiento y segmentación, inspección y determinación de la deuda fiscalizada"]
[{"$f":"B478&COUNTIF($B$80:B478,B478)","v":"21. Fiscalización (Ambiental/Tributaria/Servicios municipales)13"},"21. Fiscalización (Ambiental/Tributaria/Servicios municipales)","3. ¿Cómo es el proceso de fiscalización de servicios municipales?"]
[{"$f":"B479&COUNTIF($B$80:B479,B479)","v":"21. Fiscalización (Ambiental/Tributaria/Servicios municipales)14"},"21. Fiscalización (Ambiental/Tributaria/Servicios municipales)","Respuesta."]
[{"$f":"B480&COUNTIF($B$80:B480,B480)","v":"21. Fiscalización (Ambiental/Tributaria/Servicios municipales)15"},"21. Fiscalización (Ambiental/Tributaria/Servicios municipales)","Este proceso está referido a la supervisión y control del cumplimiento de las disposiciones municipales relacionadas con el control urbano, publicidad exterior, las obras de edificación, las actividades comerciales, control sanitario, tenencia de animales, manejo de residuos sólidos, parques y jardines, obras municipales, control de tránsito de vehículos menores, comercio en la vía pública y los espectáculos públicos no deportivos que se realizan en el distrito."]
[{"$f":"B481&COUNTIF($B$80:B481,B481)","v":"22. Ejecución coactiva1"},"22. Ejecución coactiva","1. ¿Qué le debería solicitar a la gestión saliente?"]
[{"$f":"B482&COUNTIF($B$80:B482,B482)","v":"22. Ejecución coactiva2"},"22. Ejecución coactiva","Respuesta."]
[{"$f":"B483&COUNTIF($B$80:B483,B483)","v":"22. Ejecución coactiva3"},"22. Ejecución coactiva","·         Informe de Consolidación de la Cobranza Administrativa "]
[{"$f":"B484&COUNTIF($B$80:B484,B484)","v":"22. Ejecución coactiva4"},"22. Ejecución coactiva","·         Relación de Resolución coactiva"]
[{"$f":"B485&COUNTIF($B$80:B485,B485)","v":"22. Ejecución coactiva5"},"22. Ejecución coactiva","·         Relación de Resolución de Ejecución Coactiva"]
[{"$f":"B486&COUNTIF($B$80:B486,B486)","v":"22. Ejecución coactiva6"},"22. Ejecución coactiva","·         Relación de procesos de medida cautelar"]
[{"$f":"B487&COUNTIF($B$80:B487,B487)","v":"23. Educación, Cultura, Deportes y Recreación1"},"23. Educación, Cultura, Deportes y Recreación","1. ¿Qué le debería solicitar a la gestión saliente?"]
[{"$f":"B488&COUNTIF($B$80:B488,B488)","v":"23. Educación, Cultura, Deportes y Recreación2"},"23. Educación, Cultura, Deportes y Recreación","Respuesta."]
[{"$f":"B489&COUNTIF($B$80:B489,B489)","v":"23. Educación, Cultura, Deportes y Recreación3"},"23. Educación, Cultura, Deportes y Recreación","·         Programas de educación"]
[{"$f":"B490&COUNTIF($B$80:B490,B490)","v":"23. Educación, Cultura, Deportes y Recreación4"},"23. Educación, Cultura, Deportes y Recreación","·         Programas de cultura"]
[{"$f":"B491&COUNTIF($B$80:B491,B491)","v":"23. Educación, Cultura, Deportes y Recreación5"},"23. Educación, Cultura, Deportes y Recreación","·         Programas de deportes"]
[{"$f":"B492&COUNTIF($B$80:B492,B492)","v":"23. Educación, Cultura, Deportes y Recreación6"},"23. Educación, Cultura, Deportes y Recreación","·         Programas de recreación"]
[{"$f":"B493&COUNTIF($B$80:B493,B493)","v":"24. Participación y control vecinal1"},"24. Participación y control vecinal","1. ¿Qué le debería solicitar a la gestión saliente?"]
[{"$f":"B494&COUNTIF($B$80:B494,B494)","v":"24. Participación y control vecinal2"},"24. Participación y control vecinal","Respuesta."]
[{"$f":"B495&COUNTIF($B$80:B495,B495)","v":"24. Participación y control vecinal3"},"24. Participación y control vecinal","·         Conformación de la Junta de Delegados Comunales"]
[{"$f":"B496&COUNTIF($B$80:B496,B496)","v":"24. Participación y control vecinal4"},"24. Participación y control vecinal","·         Relación de organizaciones sociales reconocidas"]
[{"$f":"B497&COUNTIF($B$80:B497,B497)","v":"24. Participación y control vecinal5"},"24. Participación y control vecinal","·         Actas y/o acuerdo de los cabildos abiertos y/o consultas comunales"]
[{"$f":"B498&COUNTIF($B$80:B498,B498)","v":"25. Salubridad1"},"25. Salubridad","1. ¿Qué le debería solicitar a la gestión saliente?"]
[{"$f":"B499&COUNTIF($B$80:B499,B499)","v":"25. Salubridad2"},"25. Salubridad","Respuesta."]
[{"$f":"B500&COUNTIF($B$80:B500,B500)","v":"25. Salubridad3"},"25. Salubridad","·         Programas de campañas de salud"]
[{"$f":"B501&COUNTIF($B$80:B501,B501)","v":"25. Salubridad4"},"25. Salubridad","·         Programas de control de canes"]
[{"$f":"B502&COUNTIF($B$80:B502,B502)","v":"25. Salubridad5"},"25. Salubridad","·         Convenios interinstitucionales en temas de salubridad"]
[{"$f":"B503&COUNTIF($B$80:B503,B503)","v":"26. Tránsito, circulación y transporte púbico1"},"26. Tránsito, circulación y transporte púbico","1. ¿Qué le debería solicitar a la gestión saliente?"]
[{"$f":"B504&COUNTIF($B$80:B504,B504)","v":"26. Tránsito, circulación y transporte púbico2"},"26. Tránsito, circulación y transporte púbico","Respuesta."]
[{"$f":"B505&COUNTIF($B$80:B505,B505)","v":"26. Tránsito, circulación y transporte púbico3"},"26. Tránsito, circulación y transporte púbico","·         Registro de Transportistas"]
[{"$f":"B506&COUNTIF($B$80:B506,B506)","v":"26. Tránsito, circulación y transporte púbico4"},"26. Tránsito, circulación y transporte púbico","·         Relación de autorizaciones y licencias de conducir de vehículos menores"]
[{"$f":"B507&COUNTIF($B$80:B507,B507)","v":"27. Registro de hechos vitales1"},"27. Registro de hechos vitales","1. ¿Qué le debería solicitar a la gestión saliente?"]
[{"$f":"B508&COUNTIF($B$80:B508,B508)","v":"27. Registro de hechos vitales2"},"27. Registro de hechos vitales","Respuesta."]
[{"$f":"B509&COUNTIF($B$80:B509,B509)","v":"27. Registro de hechos vitales3"},"27. Registro de hechos vitales","·         Designación del responsable del registro de hechos vitales"]
[{"$f":"B510&COUNTIF($B$80:B510,B510)","v":"27. Registro de hechos vitales4"},"27. Registro de hechos vitales","·         Informes enviados a la RENIEC"]
[{"$f":"B511&COUNTIF($B$80:B511,B511)","v":"28. Desarrollo económico del sector Turismo1"},"28. Desarrollo económico del sector Turismo","1. ¿Qué le debería solicitar a la gestión saliente?"]
[{"$f":"B512&COUNTIF($B$80:B512,B512)","v":"28. Desarrollo económico del sector Turismo2"},"28. Desarrollo económico del sector Turismo","Respuesta."]
[{"$f":"B513&COUNTIF($B$80:B513,B513)","v":"28. Desarrollo económico del sector Turismo3"},"28. Desarrollo económico del sector Turismo","·         Relación de proyectos turísticos en proceso"]
[{"$f":"B514&COUNTIF($B$80:B514,B514)","v":"28. Desarrollo económico del sector Turismo4"},"28. Desarrollo económico del sector Turismo","·         Programa de promoción turística"]
[{"$f":"B515&COUNTIF($B$80:B515,B515)","v":"28. Desarrollo económico del sector Turismo5"},"28. Desarrollo económico del sector Turismo","·         Programa de fortalecimiento de capacidades en turismo"]
[{"$f":"B516&COUNTIF($B$80:B516,B516)","v":"29. Desarrollo económico local1"},"29. Desarrollo económico local","1. ¿Qué le debería solicitar a la gestión saliente?"]
[{"$f":"B517&COUNTIF($B$80:B517,B517)","v":"29. Desarrollo económico local2"},"29. Desarrollo económico local","Respuesta."]
[{"$f":"B518&COUNTIF($B$80:B518,B518)","v":"29. Desarrollo económico local3"},"29. Desarrollo económico local","·         Relación de MYPES registradas"]
[{"$f":"B519&COUNTIF($B$80:B519,B519)","v":"29. Desarrollo económico local4"},"29. Desarrollo económico local","·         Relación de asociaciones agrícolas, acuicultura y ganadería registradas"]
[{"$f":"B520&COUNTIF($B$80:B520,B520)","v":"29. Desarrollo económico local5"},"29. Desarrollo económico local","·         Relación de Minería Artesanal y pequeña escala Minería registrados"]
[{"$f":"B521&COUNTIF($B$80:B521,B521)","v":"29. Desarrollo económico local6"},"29. Desarrollo económico local","·         Relación de campañas para la formalización"]
[{"$f":"B522&COUNTIF($B$80:B522,B522)","v":"29. Desarrollo económico local7"},"29. Desarrollo económico local","·         Relación de campañas de capacitación"]
[{"$f":"B523&COUNTIF($B$80:B523,B523)","v":"30. Servicios no exclusivos1"},"30. Servicios no exclusivos","1. ¿Qué le debería solicitar a la gestión saliente?"]
[{"$f":"B524&COUNTIF($B$80:B524,B524)","v":"30. Servicios no exclusivos2"},"30. Servicios no exclusivos","Respuesta."]
[{"$f":"B525&COUNTIF($B$80:B525,B525)","v":"30. Servicios no exclusivos3"},"30. Servicios no exclusivos","·         Relación de servicios no exclusivos"]
[{"$f":"B526&COUNTIF($B$80:B526,B526)","v":"31. Sistema de Focalización de Hogares1"},"31. Sistema de Focalización de Hogares","1. ¿Qué le debería solicitar a la gestión saliente?"]
[{"$f":"B527&COUNTIF($B$80:B527,B527)","v":"31. Sistema de Focalización de Hogares2"},"31. Sistema de Focalización de Hogares","Respuesta."]
[{"$f":"B528&COUNTIF($B$80:B528,B528)","v":"31. Sistema de Focalización de Hogares3"},"31. Sistema de Focalización de Hogares","·         Registro del Sistema de Empadronamiento (aplicativo informático) del MIDIS"]
[{"$f":"B529&COUNTIF($B$80:B529,B529)","v":"31. Sistema de Focalización de Hogares4"},"31. Sistema de Focalización de Hogares","·         Responsable del registro de la ULE ante la Dirección de Operaciones de Focalización del MIDIS"]
[{"$f":"B530&COUNTIF($B$80:B530,B530)","v":"31. Sistema de Focalización de Hogares5"},"31. Sistema de Focalización de Hogares","·         Responsable formal del envió de las Declaraciones Juradas, fichas de empadronamiento a la Dirección de Operaciones de Focalización del MIDIS"]
[{"$f":"B531&COUNTIF($B$80:B531,B531)","v":"31. Sistema de Focalización de Hogares6"},"31. Sistema de Focalización de Hogares","·         Diagnóstico sobre la brecha de empadronamiento a los programas sociales existente en su distrito"]
[{"$f":"B532&COUNTIF($B$80:B532,B532)","v":"31. Sistema de Focalización de Hogares7"},"31. Sistema de Focalización de Hogares","2. ¿Cómo debo de crear la Unidad de Registro Local de Empadronamiento?"]
[{"$f":"B533&COUNTIF($B$80:B533,B533)","v":"31. Sistema de Focalización de Hogares8"},"31. Sistema de Focalización de Hogares","Respuesta."]
[{"$f":"B534&COUNTIF($B$80:B534,B534)","v":"31. Sistema de Focalización de Hogares9"},"31. Sistema de Focalización de Hogares","·         Las municipalidades crean al interior de su organización la unidad orgánica encargada según mandato de Ley, de realizar el empadronamiento de los beneficiarios a los programas sociales, por lo general denominados Unidad Local de Empadronamiento – ULE, o la que haga sus veces adscrita a la Gerencia de Desarrollo de Programas Sociales de la Municipalidad. Cabe señalar que no se cuenta un marco legal que exija la creación de esta unidad."]
[{"$f":"B535&COUNTIF($B$80:B535,B535)","v":"31. Sistema de Focalización de Hogares10"},"31. Sistema de Focalización de Hogares","·         Una vez creada se procede al registro de los responsables, trámite que lo oficia el Alcalde de la Municipalidad, que mediante Resolución de Alcaldía designa: "]
[{"$f":"B536&COUNTIF($B$80:B536,B536)","v":"31. Sistema de Focalización de Hogares11"},"31. Sistema de Focalización de Hogares","o   Responsable del registro en el Sistema de Focalización de Hogares."]
[{"$f":"B537&COUNTIF($B$80:B537,B537)","v":"31. Sistema de Focalización de Hogares12"},"31. Sistema de Focalización de Hogares","o   Responsable de remitir las declaraciones, fichas de empadronamiento e información a la Dirección de Operaciones de Focalización del MIDIS."]
[{"$f":"B538&COUNTIF($B$80:B538,B538)","v":"31. Sistema de Focalización de Hogares13"},"31. Sistema de Focalización de Hogares","·         Asimismo, se procede a la instalación del aplicativo, el cual se coordina y remite vía email, al correo electrónico del Alcalde que lo solicitó."]
[{"$f":"B539&COUNTIF($B$80:B539,B539)","v":"31. Sistema de Focalización de Hogares14"},"31. Sistema de Focalización de Hogares","·         Cabe destacar que ante los casos en que se designa un nuevo responsable de remitir la documentación física que sustenta la información registrada vía sistema. Este personal deberá haberse registrado ante la Dirección de Operaciones de Focalización – DOF del MIDIS, y en caso contrario si remitirá información sin estar registrado se procede a devolver la documentación recibida."]
[{"$f":"B540&COUNTIF($B$80:B540,B540)","v":"31. Sistema de Focalización de Hogares15"},"31. Sistema de Focalización de Hogares","·         Asimismo, los Municipios pueden solicitar a la DOF se les brinde una capacitación sobre el Sistema de Focalización de Hogares."]
[{"$f":"B541&COUNTIF($B$80:B541,B541)","v":"31. Sistema de Focalización de Hogares16"},"31. Sistema de Focalización de Hogares","3. ¿Cuál es la función principal de la ULE?"]
[{"$f":"B542&COUNTIF($B$80:B542,B542)","v":"31. Sistema de Focalización de Hogares17"},"31. Sistema de Focalización de Hogares","Respuesta."]
[{"$f":"B543&COUNTIF($B$80:B543,B543)","v":"31. Sistema de Focalización de Hogares18"},"31. Sistema de Focalización de Hogares","Es de responsabilidad del Municipio, de conformidad con la Directiva vigente, el de realizar los esfuerzos necesarios para cerrar la brecha de empadronamiento de los beneficiarios de los programas sociales. Para lo cual se le deberá asignar los recursos económicos correspondientes. En tal sentido el MIDIS cuenta con un fondo de apoyo para realizar las citadas gestiones y cumplir con el cierre de brechas."]
[{"$f":"B544&COUNTIF($B$80:B544,B544)","v":"32. Atención de las Personas con Discapacidad1"},"32. Atención de las Personas con Discapacidad","1. ¿Qué le debería solicitar a la gestión saliente?"]
[{"$f":"B545&COUNTIF($B$80:B545,B545)","v":"32. Atención de las Personas con Discapacidad2"},"32. Atención de las Personas con Discapacidad","Respuesta."]
[{"$f":"B546&COUNTIF($B$80:B546,B546)","v":"32. Atención de las Personas con Discapacidad3"},"32. Atención de las Personas con Discapacidad","·         Relación del padrón de usuarios (listado de personas con discapacidad de la localidad)"]
[{"$f":"B547&COUNTIF($B$80:B547,B547)","v":"32. Atención de las Personas con Discapacidad4"},"32. Atención de las Personas con Discapacidad","·         Perfil del funcionario OMAPED."]
[{"$f":"B548&COUNTIF($B$80:B548,B548)","v":"32. Atención de las Personas con Discapacidad5"},"32. Atención de las Personas con Discapacidad","·         Información sobre el presupuesto asignado para discapacidad."]
[{"$f":"B549&COUNTIF($B$80:B549,B549)","v":"32. Atención de las Personas con Discapacidad6"},"32. Atención de las Personas con Discapacidad","·         Información sobre la ejecución presupuestal para discapacidad. "]
[{"$f":"B550&COUNTIF($B$80:B550,B550)","v":"32. Atención de las Personas con Discapacidad7"},"32. Atención de las Personas con Discapacidad","2. ¿Es obligatorio el registro o comunicación de la creación de la OMAPED municipal?"]
[{"$f":"B551&COUNTIF($B$80:B551,B551)","v":"32. Atención de las Personas con Discapacidad8"},"32. Atención de las Personas con Discapacidad","Respuesta."]
[{"$f":"B552&COUNTIF($B$80:B552,B552)","v":"32. Atención de las Personas con Discapacidad9"},"32. Atención de las Personas con Discapacidad","No es obligatorio el registro de la OMAPED en el CONADIS."]
[{"$f":"B553&COUNTIF($B$80:B553,B553)","v":"32. Atención de las Personas con Discapacidad10"},"32. Atención de las Personas con Discapacidad","3. ¿Es obligatorio incluir como parte de la estructura orgánica de la municipalidad a la OMAPED?"]
[{"$f":"B554&COUNTIF($B$80:B554,B554)","v":"32. Atención de las Personas con Discapacidad11"},"32. Atención de las Personas con Discapacidad","Respuesta."]
[{"$f":"B555&COUNTIF($B$80:B555,B555)","v":"32. Atención de las Personas con Discapacidad12"},"32. Atención de las Personas con Discapacidad","Sí es obligatorio. La OMAPED debe ser considerada en la estructura orgánica de la municipalidad mediante Ordenanza Municipal."]
[{"$f":"B556&COUNTIF($B$80:B556,B556)","v":"32. Atención de las Personas con Discapacidad13"},"32. Atención de las Personas con Discapacidad","4. ¿Qué monto del presupuesto institucional se le debe asignar a la OMAPED para el desarrollo de sus funciones?"]
[{"$f":"B557&COUNTIF($B$80:B557,B557)","v":"32. Atención de las Personas con Discapacidad14"},"32. Atención de las Personas con Discapacidad","Respuesta."]
[{"$f":"B558&COUNTIF($B$80:B558,B558)","v":"32. Atención de las Personas con Discapacidad15"},"32. Atención de las Personas con Discapacidad","Se le debe asignar hasta el 0.5% del presupuesto institucional anual."]
[{"$f":"B559&COUNTIF($B$80:B559,B559)","v":"33. Comunidades Nativas y Pueblos Indígenas1"},"33. Comunidades Nativas y Pueblos Indígenas","1. ¿Qué le debería solicitar a la gestión saliente?"]
[{"$f":"B560&COUNTIF($B$80:B560,B560)","v":"33. Comunidades Nativas y Pueblos Indígenas2"},"33. Comunidades Nativas y Pueblos Indígenas","Respuesta."]
[{"$f":"B561&COUNTIF($B$80:B561,B561)","v":"33. Comunidades Nativas y Pueblos Indígenas3"},"33. Comunidades Nativas y Pueblos Indígenas","·         Relación de las comunidades nativas en su jurisdicción"]
[{"$f":"B562&COUNTIF($B$80:B562,B562)","v":"33. Comunidades Nativas y Pueblos Indígenas4"},"33. Comunidades Nativas y Pueblos Indígenas","·         Informes de la asistencia técnica a las comunidades nativas en su jurisdicción"]
[{"$f":"B563&COUNTIF($B$80:B563,B563)","v":"33. Comunidades Nativas y Pueblos Indígenas5"},"33. Comunidades Nativas y Pueblos Indígenas","2. ¿Qué coordinaciones y articulaciones se debe de realizar con la Dirección General de los derechos de los Pueblos Indígenas del Ministerio de Cultura?"]
[{"$f":"B564&COUNTIF($B$80:B564,B564)","v":"33. Comunidades Nativas y Pueblos Indígenas6"},"33. Comunidades Nativas y Pueblos Indígenas","Respuesta."]
[{"$f":"B565&COUNTIF($B$80:B565,B565)","v":"33. Comunidades Nativas y Pueblos Indígenas7"},"33. Comunidades Nativas y Pueblos Indígenas","la Dirección General de los derechos de los Pueblos Indígenas del Ministerio de Cultura articula con los Gobiernos Locales en los casos en que se deba probar un Dispositivo Legal que impacte en la comunidad campesina o indígena, para lo cual el Gobierno Local debe de realizar una consulta previa en dicha comunidad, y antes de realizar la misma debe de contar con la opinión favorable del MINCUL para su ingreso a dicha comunidad y realizar la consulta del Dispositivo Legal que se va poner en consulta para su aprobación."]
[{"$f":"B566&COUNTIF($B$80:B566,B566)","v":"34. Defensoría Municipal Atención del Niño, Niña y Adolecente1"},"34. Defensoría Municipal Atención del Niño, Niña y Adolecente","1. ¿Qué le debería solicitar a la gestión saliente?"]
[{"$f":"B567&COUNTIF($B$80:B567,B567)","v":"34. Defensoría Municipal Atención del Niño, Niña y Adolecente2"},"34. Defensoría Municipal Atención del Niño, Niña y Adolecente","Respuesta."]
[{"$f":"B568&COUNTIF($B$80:B568,B568)","v":"34. Defensoría Municipal Atención del Niño, Niña y Adolecente3"},"34. Defensoría Municipal Atención del Niño, Niña y Adolecente","·         Ordenanza que crea la Unidad de Defensoría Municipal del Niño, Niña y Adolescente - DEMUNA"]
[{"$f":"B569&COUNTIF($B$80:B569,B569)","v":"34. Defensoría Municipal Atención del Niño, Niña y Adolecente4"},"34. Defensoría Municipal Atención del Niño, Niña y Adolecente","·         Responsable de la DEMUNA"]
[{"$f":"B570&COUNTIF($B$80:B570,B570)","v":"34. Defensoría Municipal Atención del Niño, Niña y Adolecente5"},"34. Defensoría Municipal Atención del Niño, Niña y Adolecente","·         Reporte de la partida presupuestaria para atención de los programas y proyectos de las personas con discapacidad"]
[{"$f":"B571&COUNTIF($B$80:B571,B571)","v":"34. Defensoría Municipal Atención del Niño, Niña y Adolecente6"},"34. Defensoría Municipal Atención del Niño, Niña y Adolecente","·         Reporte de la ejecución presupuestaria para la atención de los programas y proyectos de las personas con discapacidad"]
[{"$f":"B572&COUNTIF($B$80:B572,B572)","v":"34. Defensoría Municipal Atención del Niño, Niña y Adolecente7"},"34. Defensoría Municipal Atención del Niño, Niña y Adolecente","·         Relación de expedientes de los casos que se han asistido y los que están en procesos"]
[{"$f":"B573&COUNTIF($B$80:B573,B573)","v":"34. Defensoría Municipal Atención del Niño, Niña y Adolecente8"},"34. Defensoría Municipal Atención del Niño, Niña y Adolecente","2. ¿Cómo debo de crear la Defensoría Municipal Atención del Niño, Niña y Adolecente - DEMUNA?"]
[{"$f":"B574&COUNTIF($B$80:B574,B574)","v":"34. Defensoría Municipal Atención del Niño, Niña y Adolecente9"},"34. Defensoría Municipal Atención del Niño, Niña y Adolecente","Respuesta."]
[{"$f":"B575&COUNTIF($B$80:B575,B575)","v":"34. Defensoría Municipal Atención del Niño, Niña y Adolecente10"},"34. Defensoría Municipal Atención del Niño, Niña y Adolecente","En relación a la creación de la DEMUNA esta se encuentra incluida dentro del Plan de Incentivos a la Mejora de la Gestión y Modernización Municipal: "]
[{"$f":"B576&COUNTIF($B$80:B576,B576)","v":"34. Defensoría Municipal Atención del Niño, Niña y Adolecente11"},"34. Defensoría Municipal Atención del Niño, Niña y Adolecente","a.       META 22: CREACIÓN DE LA DEFENSORÍA MUNICIPAL DEL NIÑO Y DEL ADOLESCENTE – DEMUNA"]
[{"$f":"B577&COUNTIF($B$80:B577,B577)","v":"34. Defensoría Municipal Atención del Niño, Niña y Adolecente12"},"34. Defensoría Municipal Atención del Niño, Niña y Adolecente","b.       META 50: REGISTRO Y FUNCIONAMIENTO DE LA DEFENSORÍA MUNICIPAL DEL NIÑO Y DEL ADOLESCENTE - DEMUNA"]
[{"$f":"B578&COUNTIF($B$80:B578,B578)","v":"34. Defensoría Municipal Atención del Niño, Niña y Adolecente13"},"34. Defensoría Municipal Atención del Niño, Niña y Adolecente","·         Al respecto para la creación de la DEMUNA se debe de:"]
[{"$f":"B579&COUNTIF($B$80:B579,B579)","v":"34. Defensoría Municipal Atención del Niño, Niña y Adolecente14"},"34. Defensoría Municipal Atención del Niño, Niña y Adolecente","§  Presentar informe técnico sobre la necesidad de contar con la DEMUNA, el mismo que será evaluado en sesión de concejo."]
[{"$f":"B580&COUNTIF($B$80:B580,B580)","v":"34. Defensoría Municipal Atención del Niño, Niña y Adolecente15"},"34. Defensoría Municipal Atención del Niño, Niña y Adolecente","§  Emitir la Ordenanza Municipal e creación de la DEMUNA. Dicho documento deberá ser aprobado en Sesión de Concejo."]
[{"$f":"B581&COUNTIF($B$80:B581,B581)","v":"34. Defensoría Municipal Atención del Niño, Niña y Adolecente16"},"34. Defensoría Municipal Atención del Niño, Niña y Adolecente","§  La Ordenanza Municipal deberá ser ingresado por mesa de partes al Ministerio de la Mujer y Poblaciones Vulnerables."]
[{"$f":"B582&COUNTIF($B$80:B582,B582)","v":"34. Defensoría Municipal Atención del Niño, Niña y Adolecente17"},"34. Defensoría Municipal Atención del Niño, Niña y Adolecente","·         Al respecto para el registro y funcionamiento de la Defensoría Municipal del Niño y del Adolescente - DEMUNA se debe de:"]
[{"$f":"B583&COUNTIF($B$80:B583,B583)","v":"34. Defensoría Municipal Atención del Niño, Niña y Adolecente18"},"34. Defensoría Municipal Atención del Niño, Niña y Adolecente","§  Designar al defensor responsable de la DEMUNA, a través de un documento oficial (puede ser una resolución de alcaldía o un memorándum). El Alcalde debe asegurarse que el defensor no cuente con antecedentes penales ni judiciales y que no se encuentre inscrito en el REDAM."]
[{"$f":"B584&COUNTIF($B$80:B584,B584)","v":"34. Defensoría Municipal Atención del Niño, Niña y Adolecente19"},"34. Defensoría Municipal Atención del Niño, Niña y Adolecente","§  Registrar a la DEMUNA en la Dirección de Sistemas Locales y Defensorías de la Dirección General de Niñas, Niños y Adolescentes del Ministerio de la Mujer y Poblaciones Vulnerables (MIMP), para lo cual debe de:"]
[{"$f":"B585&COUNTIF($B$80:B585,B585)","v":"34. Defensoría Municipal Atención del Niño, Niña y Adolecente20"},"34. Defensoría Municipal Atención del Niño, Niña y Adolecente","ü  Solicitud de registro dirigida a la Dirección de Sistemas Locales y Defensorías, firmada por el Alcalde de la municipalidad promotora de la DEMUNA. "]
[{"$f":"B586&COUNTIF($B$80:B586,B586)","v":"34. Defensoría Municipal Atención del Niño, Niña y Adolecente21"},"34. Defensoría Municipal Atención del Niño, Niña y Adolecente","ü  Registrar la Ficha única de registro - (FUR) que tiene carácter de declaración jurada, firmada por el Alcalde y por el defensor."]
[{"$f":"B587&COUNTIF($B$80:B587,B587)","v":"34. Defensoría Municipal Atención del Niño, Niña y Adolecente22"},"34. Defensoría Municipal Atención del Niño, Niña y Adolecente","ü  Organigrama que permita visualizar la ubicación de la DEMUNA en la estructura de la municipalidad, según el acuerdo de la municipalidad. "]
[{"$f":"B588&COUNTIF($B$80:B588,B588)","v":"34. Defensoría Municipal Atención del Niño, Niña y Adolecente23"},"34. Defensoría Municipal Atención del Niño, Niña y Adolecente","ü  Reglamento interno que norme el funcionamiento de la DEMUNA, el mismo que deberá ser aprobado por un documento formal de la municipalidad. "]
[{"$f":"B589&COUNTIF($B$80:B589,B589)","v":"34. Defensoría Municipal Atención del Niño, Niña y Adolecente24"},"34. Defensoría Municipal Atención del Niño, Niña y Adolecente","ü  Plan de trabajo vigente de la DEMUNA, orientado a cumplir con los fines que establece el Código de los Niños y Adolescentes y otras normas especiales. "]
[{"$f":"B590&COUNTIF($B$80:B590,B590)","v":"34. Defensoría Municipal Atención del Niño, Niña y Adolecente25"},"34. Defensoría Municipal Atención del Niño, Niña y Adolecente","ü  Copia del documento que acredita la capacitación de los miembros que integran la DEMUNA en la temática de los derechos del niño, niña y adolescente. Esta capacitación puede haberse dado en diversas circunstancias como los estudios de grado o talleres, seminarios, charlas, entre otros eventos, organizados por universidades, municipalidades, gobiernos regionales, ONG, instituciones educativas, ministerios, la misma que deberá tener una duración mínima de cuatro horas. De no contar con ningún documento, el MIMP ha establecido talleres sobre protección de niñas, niña y adolescente."]
[{"$f":"B591&COUNTIF($B$80:B591,B591)","v":"34. Defensoría Municipal Atención del Niño, Niña y Adolecente26"},"34. Defensoría Municipal Atención del Niño, Niña y Adolecente","§  Expedientes de los casos que se han asistido y los que están en procesos."]
[{"$f":"B592&COUNTIF($B$80:B592,B592)","v":"34. Defensoría Municipal Atención del Niño, Niña y Adolecente27"},"34. Defensoría Municipal Atención del Niño, Niña y Adolecente","3. ¿Cuál es la función principal de la DEMUNA?"]
[{"$f":"B593&COUNTIF($B$80:B593,B593)","v":"34. Defensoría Municipal Atención del Niño, Niña y Adolecente28"},"34. Defensoría Municipal Atención del Niño, Niña y Adolecente","Respuesta."]
[{"$f":"B594&COUNTIF($B$80:B594,B594)","v":"34. Defensoría Municipal Atención del Niño, Niña y Adolecente29"},"34. Defensoría Municipal Atención del Niño, Niña y Adolecente","La Defensoría Municipal del Niño y del Adolescente (DEMUNA) es un servicio encargado de proteger y promover los derechos de los niños, y adolescentes en la jurisdicción de la municipalidad. Al respecto cabe señalar que para que continúe con la continuidad de la gestión luego de un proceso de tránsito es necesario conocer la relación de los procesos y expedientes que se encuentren trabajando. "]
[{"$f":"B595&COUNTIF($B$80:B595,B595)","v":"35. Programa Vaso de Leche1"},"35. Programa Vaso de Leche","1. ¿Qué le debería solicitar a la gestión saliente?"]
[{"$f":"B596&COUNTIF($B$80:B596,B596)","v":"35. Programa Vaso de Leche2"},"35. Programa Vaso de Leche","Respuesta."]
[{"$f":"B597&COUNTIF($B$80:B597,B597)","v":"35. Programa Vaso de Leche3"},"35. Programa Vaso de Leche","§  Registro de beneficiarios del Programa del Vaso de Leche"]
[{"$f":"B598&COUNTIF($B$80:B598,B598)","v":"35. Programa Vaso de Leche4"},"35. Programa Vaso de Leche","§  Registro de Recepción, Almacenamiento y Distribución de productos del Programa Vaso de Leche"]
[{"$f":"B599&COUNTIF($B$80:B599,B599)","v":"35. Programa Vaso de Leche5"},"35. Programa Vaso de Leche","§  Registro de beneficiarios del Programa del Vaso de Leche"]
[{"$f":"B600&COUNTIF($B$80:B600,B600)","v":"35. Programa Vaso de Leche6"},"35. Programa Vaso de Leche","§  Informes de control y seguimiento del Programa Vaso de Leche"]
[{"$f":"B601&COUNTIF($B$80:B601,B601)","v":"35. Programa Vaso de Leche7"},"35. Programa Vaso de Leche","2. ¿Qué financian los recursos del Programa? "]
[{"$f":"B602&COUNTIF($B$80:B602,B602)","v":"35. Programa Vaso de Leche8"},"35. Programa Vaso de Leche","Respuesta."]
[{"$f":"B603&COUNTIF($B$80:B603,B603)","v":"35. Programa Vaso de Leche9"},"35. Programa Vaso de Leche","Los recursos del Programa financian la ración alimenticia diaria, la que debe estar compuesta por productos de origen nacional al 100% en aquellas zonas en la que la oferta de productos cubre la demanda. Asimismo, dicha ración debe estar constituida por alimentos nacionales pudiendo ser prioritariamente leche en cualquiera de sus formas u otro producto, los cuales, a fin de alcanzar el valor nutricional mínimo, serán complementados con alimentos que contengan un mínimo de 90% de insumos de la localidad, tales como harina de quinua, quiwicha, haba, maca, cebada, avena, arroz, soya y otros productos nacionales. Se deberá adquirir aquellos alimentos de mayor valor nutricional adecuadamente balanceado y que tengan el menor costo."]
[{"$f":"B604&COUNTIF($B$80:B604,B604)","v":"35. Programa Vaso de Leche10"},"35. Programa Vaso de Leche","3. ¿Cómo se organiza el Programa en la municipalidad? "]
[{"$f":"B605&COUNTIF($B$80:B605,B605)","v":"35. Programa Vaso de Leche11"},"35. Programa Vaso de Leche","Respuesta."]
[{"$f":"B606&COUNTIF($B$80:B606,B606)","v":"35. Programa Vaso de Leche12"},"35. Programa Vaso de Leche","En cada municipalidad provincial y distrital se conforma un Comité de Administración del Programa del Vaso de Leche, cuya constitución es aprobada mediante Resolución de Alcaldía con acuerdo del Concejo Municipal y está integrado por el Alcalde, un funcionario municipal, un representante del Ministerio de Salud, tres representantes de la organización del Programa del Vaso de Leche (Clubes de Madres), y un representante de la Asociación de Productores Agropecuarios. Los integrantes del Comité ejercen sus funciones por 2 años consecutivos, no pudiendo ser reelectos en forma inmediata. El Comité debe contar con un Reglamento de Organización y Funciones, documento que debe ser reconocido por el Concejo Municipal."]
[{"$f":"B607&COUNTIF($B$80:B607,B607)","v":"36. Centro de Atención Integral del Adulto Mayor1"},"36. Centro de Atención Integral del Adulto Mayor","1. ¿Qué le debería solicitar a la gestión saliente?"]
[{"$f":"B608&COUNTIF($B$80:B608,B608)","v":"36. Centro de Atención Integral del Adulto Mayor2"},"36. Centro de Atención Integral del Adulto Mayor","Respuesta."]
[{"$f":"B609&COUNTIF($B$80:B609,B609)","v":"36. Centro de Atención Integral del Adulto Mayor3"},"36. Centro de Atención Integral del Adulto Mayor","§  Programas relacionados a la atención del adulto mayor"]
[{"$f":"B610&COUNTIF($B$80:B610,B610)","v":"36. Centro de Atención Integral del Adulto Mayor4"},"36. Centro de Atención Integral del Adulto Mayor","§  Registro de beneficiarios de los Programas de atención del adulto mayor"]
[{"$f":"B611&COUNTIF($B$80:B611,B611)","v":"36. Centro de Atención Integral del Adulto Mayor5"},"36. Centro de Atención Integral del Adulto Mayor","§  Informes de actividades ejecutadas"]
[]
["Procesos a consultar"]
["I. Transferencia en Municipalidades de reciente creación"]
["II. Transferencia en Municipalidades con autoridades electas"]
[]
["Indice","Sistemas Administrativos","Recomendaciones por proceso"]
[{"$f":"B618&COUNTIF($B$217:B618,B618)","v":"II. Transferencia en Municipalidades con autoridades electas1"},"II. Transferencia en Municipalidades con autoridades electas","1. Formular el Informe de Rendición de Cuentas y Transferencia"]
[{"$f":"B619&COUNTIF($B$217:B619,B619)","v":"II. Transferencia en Municipalidades con autoridades electas2"},"II. Transferencia en Municipalidades con autoridades electas","2 .Sustentar el Informe ante el Consejo Regional o Concejo Municipal, dentro de los diez días hábiles de iniciado su nuevo mandato."]
[{"$f":"B620&COUNTIF($B$217:B620,B620)","v":"II. Transferencia en Municipalidades con autoridades electas3"},"II. Transferencia en Municipalidades con autoridades electas","3. Publicar en el Portal Institucional el Informe de Rendición de Cuentas y Transferencia (PDF y Excel). En caso de contar con este, deberá publicarlo en los medios más idóneos y usuales de la localidad."]
[{"$f":"B621&COUNTIF($B$217:B621,B621)","v":"II. Transferencia en Municipalidades con autoridades electas4"},"II. Transferencia en Municipalidades con autoridades electas","4. Enviar a la Contraloría General de la República y a la Dirección General de Contabilidad Pública del Ministerio de Economía y Finanzas copia del Informe de Rendición de Cuentas y Transferencia."]
[{"$f":"B622&COUNTIF($B$217:B622,B622)","v":"II. Transferencia en Municipalidades con autoridades electas5"},"II. Transferencia en Municipalidades con autoridades electas","5. Solicitar a la Contraloría General de la República efectúe una Auditoria Financiera Gubernamental."]
[{"$f":"B623&COUNTIF($B$217:B623,B623)","v":"I. Transferencia en Municipalidades de reciente creación1"},"I. Transferencia en Municipalidades de reciente creación","1. Solicitar el Informe de Rendición de Cuentas y Transferencia"]
[{"$f":"B624&COUNTIF($B$217:B624,B624)","v":"I. Transferencia en Municipalidades de reciente creación2"},"I. Transferencia en Municipalidades de reciente creación","2. Solicitar las resoluciones que designan responsables por sistema administrativo"]
[{"$f":"B625&COUNTIF($B$217:B625,B625)","v":"I. Transferencia en Municipalidades de reciente creación3"},"I. Transferencia en Municipalidades de reciente creación","3. Solicitar los usuarios y claves por sistema administrativo"]
[{"$f":"B626&COUNTIF($B$217:B626,B626)","v":"I. Transferencia en Municipalidades de reciente creación4"},"I. Transferencia en Municipalidades de reciente creación","4. Solicitar informes de los proceos presupuestarios, contable y de tesorería conforme se indique en los reportes de la presente guía"]
[{"$f":"B627&COUNTIF($B$217:B627,B627)","v":"I. Transferencia en Municipalidades de reciente creación5"},"I. Transferencia en Municipalidades de reciente creación","5. Revisar e implementar según correponda, las recomendaciones conforme se indique en los reportes de la presente guía"]

{"sheet":"Listado-Definicion","index":6,"n_rows":226,"n_cols":4,"rows_kept":226,"cut":false,"hidden":true,"merged":[[14,0,14,1]]}
["Sistemas Administrativos"]
["1. Gestión de Recursos Humanos"]
["2. Abastecimiento"]
["3. Bienes Nacionales"]
["4. Archivo Nacional y Patrimonio"]
["5. Presupuesto Público"]
["6. Tesorería"]
["7. Endeudamiento Público"]
["8. Contabilidad"]
["9. Inversión Pública"]
["10. Planeamiento Estratégico"]
["11. Defensa Judicial del Estado"]
["12. Modernización de la gestión pública"]
[]
["DEFINICIONES Y FINALIDADES POR SISTEMA ADMINISTRATIVO"]
["Sistemas Administrativos","Definicion y finalidades"]
["1. Gestión de Recursos Humanos","El Decreto Legislativo N° 1023 crea la Autoridad Nacional del Servicio Civil – SERVIR, como organismo técnico especializado, rector del Sistema Administrativo de Gestión de Recursos Humanos del Estado.\n\nEl Sistema Administrativo de Gestión de Recursos Humanos establece, desarrolla y ejecuta la política de Estado respecto del servicio civil; y, comprende el conjunto de normas, principios, recursos, métodos, procedimientos y técnicas utilizados por las entidades del sector público en la gestión de los recursos humanos"]
["2. Abastecimiento","Creado por Decreto Ley N° 22056. Su finalidad es asegurar la unidad, racionalidad, eficiencia y eficacia de los procesos de Abastecimiento de bienes y servicios no personales en la Administración Pública, a través de procesos técnicos de catalogación, registro de proveedores, programación, adquisiciones, almacenamiento y seguridad, distribución, registro y control, mantenimiento, recuperación de bienes y su disposición final."]
["3. Bienes Nacionales","La Ley N° 29151, Ley General del Sistema Nacional de Bienes Estatales que establece las normas que regulan el ámbito, organización, atribuciones y funcionamiento del Sistema Nacional de Bienes Estatales, en el marco del proceso de modernización del Estado y en apoyo y fortalecimiento del proceso de descentralización."]
["4. Archivo Nacional y Patrimonio","Meimante la Ley N° 25323 se crea el Sistema Nacional de Archivos\" con la finalidad de integrar estructural, normativa y funcionalmente los archivos de las entidades públicas existentes en el ámbito nacional. Mediante la aplicación de principios, normas, técnicas y métodos de archivo, garantizando con ello la defensa, conservación, organización y servicio del \"Patrimonio Documental de la Nación\"."]
["5. Presupuesto Público"," Se rige por la Ley N° 28411 que establece los principios, procesos y procedimientos que regulan el Sistema Nacional de Presupuesto Público.\n \n El Presupuesto Público constituye el instrumento de gestión del Estado que permite a las entidades lograr sus objetivos y metas contenidas en su Plan Operativo Institucional (POI). Asimismo, es la expresión cuantificada, conjunta y sistemática de los gastos a atender durante el año fiscal, por cada una de las Entidades que forman parte del Sector Público y refleja los ingresos que financian dichos gastos."]
["6. Tesorería","La Ley N° 28693 tiene por objeto establecer las normas fundamentales para el funcionamiento del Sistema Nacional de Tesorería.\n\nEl Sistema Nacional de Tesorería, es el conjunto de órganos, normas, procedimientos, técnicas e instrumentos orientados a la administración de los fondos públicos, en las entidades y organismos del Sector Público, cualquiera que sea la fuente de financiamiento y uso de los mismos, considerado como el conjunto de órganos, normas, procedimientos, técnicas e instrumentos orientados a la administración de los fondos públicos, en las entidades y organismos del Sector Público, cualquiera que sea la fuente de financiamiento y uso de los mismos."]
["7. Endeudamiento Público","La Ley N° 28563 establece las normas generales que rigen los procesos fundamentales del Sistema Nacional de Endeudamiento, con el objeto de que la concertación de operaciones de endeudamiento y de administración de deuda pública se sujeten a los principios de eficiencia, prudencia, responsabilidad fiscal, transparencia y credibilidad, capacidad de pago y centralización normativa y descentralización operativa.\n\nLa operación de endeudamiento público es el financiamiento sujeto a reembolso acordado a plazos mayores de un año, destinado a realizar proyectos de inversión pública, la prestación de servicios, para el apoyo a la balanza de pagos, y el cumplimiento de la función previsional del Estado."]
["8. Contabilidad","La Ley N° 28708 que establece el marco legal para dictar y aprobar normas y procedimientos que permitan armonizar la información contable de las entidades del sector público y del sector privado, así como, para elaborar las cuentas nacionales, la Cuenta General de la República, las cuentas fiscales y efectuar el planeamiento que corresponda.\n\nEl Sistema Nacional de Contabilidad es el conjunto de políticas, principios, normas y procedimientos contables aplicados en los sectores público y privado."]
["9. Inversión Pública","Decreto Legislativo N° 1252 crea el Sistema Nacional de Programación Multianual y Gestión de Inversiones como sistema administrativo del Estado, con la finalidad de orientar el uso de los recursos públicos destinados a la inversión para la efectiva prestación de servicios y la provisión de la infraestructura necesaria para el desarrollo del país."]
["10. Planeamiento Estratégico","El Decreto Legislativo N° 1088 que crea el Sistema Nacional de Planeamiento Estratégico como conjunto articulado e integrado de órganos, subsistemas y relaciones funcionales cuya finalidad es coordinar y viabilizar el proceso de planeamiento estratégico nacional para promover y orientar el desarrollo armónico y sostenido del país."]
["11. Defensa Judicial del Estado","El Decreto Legislativo N° 1068 crea el Sistema de Defensa Jurídica del Estado con la finalidad de fortalecer, unificar y modernizar la defensa jurídica del Estado en los ámbitos local, regional, nacional, supranacional e internacional."]
["12. Modernización de la gestión pública","Se rige por la Ley N° 27658 “Ley Marco de Modernización de la Gestión del Estado” que declara al Estado Peruano en proceso de modernización en sus diferentes instancias, dependencias, entidades, organizaciones y procedimientos, con la finalidad de mejorar la gestión pública y construir un Estado democrático, descentralizado y al servicio del ciudadano.\n\nEl proceso de modernización de la gestión del Estado tiene como finalidad fundamental la obtención de mayores niveles de eficiencia del aparato estatal, de manera que se logre una mejor atención a la ciudadanía, priorizando y optimizando el uso de los recursos públicos."]
[]
[]
["Sistemas Funcionales"]
["I.1 SISTEMA DE FOCALIZACIÓN DE HOGARES"]
["I.2 ATENCIÓN DE LAS PERSONAS CON DISCAPACIDAD"]
["I.3 COMUNIDADES NATIVAS Y PUEBLOS INDIGENAS "]
["II.1 PRESUPUESTO - MEF"]
["II.1.1 PROGRAMA DE INCENTIVOS - MEF"]
["II.2 CONTABILIDAD PÚBLICA - MEF"]
["II.3 TESORERÍA - MEF"]
["II.4 ENDEUDAMIENTO SIN GARANTIA - MEF"]
["II.5 INVERSIÓN PÚBLICA - MEF"]
["II.6 PLANEAMIENTO ESTRATÉGICO - CEPLAN"]
["II.7 CONTRATACIONES DEL ESTADO - OSCE"]
["II.8 DEFENSA JURÍDICA DEL ESTADO - MINJUS"]
["II.9 MODERNIZACIÓN DEL ESTADO"]
["II.10 RECURSOS HUMANOS"]
[]
["Preguntas Cuestionario","Acciones","CELDA - Corresp. Cuest.","CELDA - Corresp. Acciones"]
["SERVICIOS SOCIALES",null,"D21","B48"]
["SISTEMA DE FOCALIZACIÓN DE HOGARES",null,"D22","B49"]
["¿Tiene implementada una Unidad Local de Empadronamiento - ULE?"," Implementar una Unidad Local de Empadronamiento - ULE","D23","B50"]
["¿Tiene su municipio instalado el Sistema de Empadronamiento (aplicativo informático) del MIDIS ?"," Solicitar la instalación del Sistema de Empadronamiento (aplicativo informático) del MIDIS ","D24","B51"]
["¿Tiene designado un responsable del registro de la ULE ante la Dirección de Operaciones de Focalización del MIDIS?"," Designar un responsable del registro de la ULE ante la Dirección de Operaciones de Focalización del MIDIS","D25","B52"]
["¿Tiene designado un responsable formal del envio de las Declaraciones Juradas, fichas de empadronamiento a la Dirección de Operaciones de Focalización del MIDIS?"," Designar un responsable formal del envio de las Declaraciones Juradas, fics de empadronamiento a la Dirección de Operaciones de Focalización del MIDIS","D26","B53"]
["¿Cuenta con un Diagnóstico sobre la brecha de empadronamiento a los programas sociales existente en su distrito?","Elaborar o solicitar se elabore un Diagnóstico sobre la brecha de empadronamiento a los programas sociales existente en su distrito","D27","B54"]
["ATENCIÓN DE LAS PERSONAS CON DISCAPACIDAD",null,"D28","B55"]
["¿Tiene implementada la Oficina Municipal de Atención a las Personas con Discapacidad - OMAPED?","Implementar la Oficina Municipal de Atención a las Personas con Discapacidad - OMAPED","D29","B56"]
["¿Tiene aprobado el perfil del funcionario responsable del OMAPED?","Aprobar el perfil del funcionario responsable del OMAPED","D30","B57"]
["¿Tiene un padrón (listado, relación) de las personas con discapacidad en su localidad?","Elaborar un padrón (listado, relación) de las personas con discapacidad en su localidad","D31","B58"]
["¿Tiene asignada partida persupuestaria para atención de los programas y proyectos de las personas con discapacidad?","Agignar la partida persupuestaria para atención de los programas y proyectos de las personas con discapacidad","D32","B59"]
["¿A cuánto ascendió la ejecución presupuestaria para la atención de los programas y proyectos de las personas con discapacidad?","NADA","D33","B60"]
["¿A efectuado campañas de sensibilización e información en temas relacionados con la discapacidad?","Efectuar campañas de sensibilización e información en temas relacionados con la discapacidad","D34","B61"]
["COMUNIDADES NATIVAS Y PUEBLOS INDIGENAS ",null,"D35","B62"]
["¿Existen comunidades nativas en su jurisdicción?","NADA","D36","B63"]
["¿Tiene identificado las comunidades nativas en su jurisdicción?"," Identificar las comunidades nativas en su jurisdicción","D37","B64"]
["¿Presta asistencia técnica a las comunidades nativas en su jurisdicción?","Formular la prestación de asistencia técnica a las comunidades nativas en su jurisdicción","D38","B65"]
["SISTEMAS ADMINISTRATIVO",null,"D39","B66"]
["PRESUPUESTO - MEF",null,"D40","B67"]
["¿Tiene instalado el SIAF?","Solicitar la instalacion del SIAF","D41","B68"]
["¿Tiene la Resolución de Alcaldía que nombra al responsable del manejo presupuestal?","Emitir la Resolución de Alcaldía que nombra al responsable del manejo presupuestal","D42","B69"]
["¿El manejo del presupuesto se realiza a través de un operador externo?","NADA","D43","B70"]
["¿Registra operaciones de procesos presupuestarios MPP en el SIAF?","NADA","D44","B71"]
["¿Ha recibido comunicación del MEF sobre el techo presupuestario por la Fuente de Financiamiento de Recursos Ordinarios para el periodo en el que inicia su gestión?","Solicitar el techo presupuestario por la Fuente de Financiamiento de Recursos Ordinarios para el periodo en el que inicia su gestión","D45","B72"]
["¿Ha elaborado el informae sobre techos presupuestarios por las otras fuentes de financiamiento (distinto a Recursos Ordinarios) para el periodo en el que inicia su gestión?","Elaborar el informae sobre techos presupuestarios por las otras fuentes de financiamiento (distinto a Recursos Ordinarios) para el periodo en el que inicia su gestión","D46","B73"]
["¿Ha presentado su proyecto de Presupuesto Anual a la DGPP - MEF?","Elaborar el proyecto de Presupuesto Anual a la DGPP - MEF","D47","B74"]
["PROGRAMA DE INCENTIVOS - MEF",null,"D48","B75"]
["¿Ha designado un coordinador para el Programa de Incentivos en su Municipalidad?","Designar un coordinador para el Programa de Incentivos en su Municipalidad","D49","B76"]
["¿Ha elaborado el informe / reporte correspondiente al cumplimiento de metas correspondiente al territorio de su municipalidad?"," Elaborar el informe / reporte correspondiente al cumplimiento de metas correspondiente al territorio de su municipalidad","D50","B77"]
["CONTABILIDAD PÚBLICA - MEF",null,"D51","B78"]
["¿Tiene instalado el SIAF?"," Solicitar la instalación del SIAF","D52","B79"]
["¿El manejo de sus cuentas se realiza a través de un operador externo?","NADA","D53","B80"]
["¿Tiene la Resolución de Alcaldía que nombra al responsable del manejo del Módulo contable?"," Emitir la Resolución de Alcaldía que nombra al responsable del manejo del Módulo contable","D54","B81"]
["¿Tiene anticipos otorgados y encargos internos pendientes de rendición a la fecha del cierre de la transferencia?","Encargar se realicen rendición a la fecha del cierre de la transferencia por los anticipos otorgados y encargos internos pendientes","D55","B82"]
["¿Ha registrado operaciones de contables requeridas por la DGCP en el SIAF?","Solicitar la instalación del SIAF","D56","B83"]
["¿ Tiene cuentas por pagar a ESSALU, AFP, SUNAT o ONP?","Elaborar el calendario de pago a ESSALU, AFP, SUNAT o ONP","D57","B84"]
["¿Se ha realizado auditorias internas y externas de la información financiera y examen especial de los estados presupuestarios?","NADA","D58","B85"]
["TESORERÍA - MEF",null,"D59","B86"]
["¿Tiene instalado el SIAF?","Solicitar la instalación del SIAF","D60","B87"]
["¿Tiene RUC?","Tramitar el registro del RUC","D61","B88"]
["¿Tiene la Resolución de Alcaldía que nombra al responsable del manejo de las cuentas?","Emitir la Resolución de Alcaldía que nombra al responsable del manejo de las cuentas","D62","B89"]
["¿El manejo de sus cuentas se realiza a través de un operador externo?","NADA","D63","B90"]
["¿Ha registrado operaciones de ingresos y gastos en el SIAF-SP?","Solicitar la instalación del SIAF","D64","B91"]
["¿Tiene recursos disponibles que mantiene en cuentas corrientes en entidades financieras y los centralizados en la Cuenta Principal del Tesoro Público?","NADA","D65","B92"]
["¿Tiene montos comprometidos para honrar obligaciones obligaciones con el Banco de la Nación o con terceros con cargo a recursos centralizados en la Cuenta Principal del Tesoro Público?","NADA","D66","B93"]
["ENDEUDAMIENTO SIN GARANTIA - MEF",null,"D67","B94"]
["¿Ha gestionado operaciones de endeudamiento sin garantia?","NADA","D68","B95"]
["¿Tiene personal registrado para realizar operaciones de endeudamiento sin garantia?","Emitir la Resolución que designa al personal para realizar operaciones de endeudamiento sin garantia","D69","B96"]
["¿Ha registrado operaciones de endeudamiento en el SIAF-SP?","NADA","D70","B97"]
["INVERSIÓN PÚBLICA - MEF",null,"D71","B98"]
["¿Cuenta con Unidad Formuladora?","Crear la correspondiente Unidad Formuladora","D72","B99"]
["¿Tiene implementada un Oficina de Programa Multianual de Inversión Pública?","Implementar un Oficina de Programa Multianual de Inversión Pública","D73","B100"]
["¿Se encuentra elaborando  Planes de Trabajo –PT- o Términos de Referencia –  TdR- para la elaboración de proyectos y otras inversiones?","Elaborar  Planes de Trabajo –PT- o Términos de Referencia –  TdR- para la elaboración de proyectos y otras inversiones","D74","B101"]
["¿Tiene proyectos de inversión formulados o aprobados? ","Crear la correspondiente Unidad Formuladora","D75","B102"]
["¿Se encuentra ejecutando Obras o Actividades de Inversión?","NADA","D76","B103"]
["¿Tiene obras que se viene ejecutando por administración directa?","NADA","D77","B104"]
["¿Tiene obras que se viene ejecutando por contrata?","NADA","D78","B105"]
["¿Se ha elaborado la priorización de proyectos a transferir?","Elaborar la priorización de proyectos","D79","B106"]
["¿Cuenta con proyectos financiados por FONIPREL?","NADA","D80","B107"]
["¿Tiene convenios firmados con otros pliegos del gobierno nacional, gobierno regional y gobierno local relacionados a transferencias de recursos para ejecutar proyectos de inversión pública?","De corresponder firmar Convenios con otros pliegos del gobierno nacional, gobierno regional y gobierno local relacionados a transferencias de recursos para ejecutar proyectos de inversión pública","D81","B108"]
["PLANEAMIENTO ESTRATÉGICO - CEPLAN",null,"D82","B109"]
["¿Tiene Plan de Desarrollo Local Concertado - PDLC? (Formulado / Aprobado)","Elaborar el Plan de Desarrollo Local Concertado - PDLC","D83","B110"]
["¿Tiene Plan Estratégico Institucional - PEI? (Formulado / Aprobado)","Elaborar el Plan Estratégico Institucional - PEI","D84","B111"]
["¿Tiene Plan Operativo Institucional - POI? (Formulado / Aprobado)","Elaborar el Plan Operativo Institucional - POI","D85","B112"]
["¿Ha elaborado el Presupuesto Participativo del Municipio?","Elaborar el Presupuesto Participativo del Municipio","D86","B113"]
["¿Tiene conformado el Comité de Vigilancia del Presupuesto Participativo?","Conformar el Comité de Vigilancia del Presupuesto Participativo","D87","B114"]
["¿Tiene conformado el Equipo Técnico para el Presupuesto Participativo?","Conformar el Equipo Técnico para el Presupuesto Participativo","D88","B115"]
["¿Se encuentra registrado para acceder al aplicativo CEPLAN?","Solicitar el registro para acceder al aplicativo CEPLAN","D89","B116"]
["CONTRATACIONES DEL ESTADO - OSCE",null,"D90","B117"]
["¿Se encuentra incluido en el Registro de Entidades Contatatantes adjuntar?","Solicitar el Registro de Entidades Contatatantes adjuntar","D91","B118"]
["¿Tiene la Certificación SEACE para Entidades públicas contratantes?","Solicitar la Certificación SEACE para Entidades públicas contratantes","D92","B119"]
["¿Ha realizado el Titular en materia de contrataciones delegación? ","NADA","D93","B120"]
["¿Ha realizado procesos de contratrataciones de compras menores a 8 UIT?","Registrar los correspondientes procesos de contratrataciones de compras menores a 8 UIT de la Municipalidad","D94","B121"]
["¿Ha realizado procesos de contratrataciones de compras dentro del marco normativo de la Ley de Contrataciones?","Registrar los correspondientes procesos de contratrataciones de compras dentro del marco normativo de la Ley de Contrataciones de la Municipalidad","D95","B122"]
["¿Ha realizado procesos de contratrataciones de compras dentro del marco normativo de la Ley de Contrataciones?","Registrar los correspondientes procesos de contratrataciones de compras dentro del marco normativo de la Ley de Contrataciones de la Municipalidad","D96","B123"]
["DEFENSA JURÍDICA DEL ESTADO - MINJUS",null,"D97","B124"]
["¿Asume la Municipalidad la defensa jurídica de la Institución?","NADA","D98","B125"]
["¿Asume la Municipalidad la defensa jurídica con una Oficina de Procuraduría?","De corresponder crear una Oficina de Procuraduría","D99","B126"]
["¿Asume la Municipalidad la defensa jurídica con un asesor legal externo / estudio jurídico?","NADA","D100","B127"]
["¿Tiene un listado procesos en giro señalando la etapa del proceso, la materia, la contingencia generada y cuanto se le adeuda a lamunicipalidad?","Tomar conocimiento de la etapa del proceso, en la materia, la contingencia generada y cuanto se le adeuda a lamunicipalidad","D101","B128"]
["MODERNIZACIÓN DEL ESTADO",null,"D102","B129"]
["¿Tiene formulado y/o aprobado un Reglamento Interno de Consejo  Municipal - RIC?","Formular un Reglamento Interno de Consejo  Municipal - RIC","D103","B130"]
["¿Tiene formulado y/o aprobado una Estructura Organizacional?","Formular una Estructura Organizacional","D104","B131"]
["¿Tiene formulado y/o aprobado un Reglamento de Organización y Funciones - ROF ?","Formular un Reglamento de Organización y Funciones - ROF ","D105","B132"]
["¿Tiene formulado y/o aprobado el Texto Único de Procedimientos Administrativos - TUPA?","Formular el Texto Único de Procedimientos Administrativos - TUPA","D106","B133"]
["¿Tiene Página Web Institucional activa?","Elaborar la Página Web Institucional activa","D107","B134"]
["¿Tiene designado responsable de brindar información de acceso público, en concordancia con la Ley de Transparencia de Acceso Público? ","Designar al responsable de brindar información de acceso público, en concordancia con la Ley de Transparencia de Acceso Público?","D108","B135"]
["¿Ha implementado el Portal de Transparencia conforme la Normativa vigente?","Implementar el Portal de Transparencia conforme la Normativa vigente","D109","B136"]
["RECURSOS HUMANOS",null,"D110","B137"]
["¿Tiene elaborado / aprobado el Cuadro para Asignación de Personal Provisional - CAP-Provisional?"," Elaborar y aprobar el Cuadro para Asignación de Personal Provisional - CAP-Provisional","D111","B138"]
["¿Tiene elaborado / aprobado el Presupuesto Analítico de Personal - PAP?","Elaborar y aprobar el Presupuesto Analítico de Personal - PAP","D112","B139"]
["¿Tiene elaborado / aprobado el Reglamento Interno de Trabajo - RIT?","Elaborar y aprobar el Reglamento Interno de Trabajo - RIT","D113","B140"]
["¿Tiene elaborado / aprobado el Manual de Perfiles de Puestos - MPP / Perfiles de Puestos / Terminos de Referencia?","Elaborar y a Aprobar el Manual de Perfiles de Puestos - MPP / Perfiles de Puestos / Terminos de Referencia","D114","B141"]
["¿Ha contratado de personal bajo la modalidad de locación de servicios?","NADA","D115","B142"]
["¿Ha contratado personal bajo la modalidad de Contratos Administrativos de Servicios (CAS)?","NADA","D116","B143"]
["¿Ha contratado personal bajo la modalidad de Contratos Administrativos de Servicios (CAS) como personal de confianza?","NADA","D117","B144"]
["¿Tiene personal destacado bajo la modalidad Dleg 276 o Dleg 278?","NADA","D118","B145"]
["¿Tiene organizado y realiza el mantenimiento de los legajos personales del personal nombrado y contratado?","Organizar y realiza el mantenimiento de los legajos personales del personal nombrado y contratado","D119","B146"]
["¿Tiene un Cuadro General de Deudas Judiciales y Administrativas?","Elaborar un Cuadro General de Deudas Judiciales y Administrativas","D120","B147"]
["¿Tiene elaborado la planilla única de pago y abono de remuneraciones mensuales?","Elaborar la planilla única de pago y abono de remuneraciones mensuales","D121","B148"]
["¿Tiene elaborado / aprobado la Formulación del Diagnóstico y Plan de Desarrollo de las Personas?","Elaborar / Aprobar la Formulación del Diagnóstico y Plan de Desarrollo de las Personas","D122","B149"]
["¿Tiene elaborado / aprobado programas recreativos y de integración?","Elaborar / Aprobar programas recreativos y de integración","D123","B150"]
["¿Tiene elaborado / aprobado el Plan Anual de Clima u Cultura Organizacional dirigido a los trabajadores de la Municipalidad?","Elaborar / Aprobar el Plan Anual de Clima u Cultura Organizacional dirigido a los trabajadores de la Municipalidad","D124","B151"]
["¿Ha emitido de Resoluciones de Sanción de Personal?","Desarrollar las reglas del Régimen Disciplinario y Procedimiento Sancionador que establece la Ley N° 30057, Ley del Servicio Civil y su Reglamento General","D125","B152"]
[]
["Sistemas Administrativos"]
["I. SERVICIOS ADMINISTRATIVOS"]
["II. SERVICIOS SOCIALES MUNICIPALES"]
[]
[]
[]
["Indice","Sistemas Administrativos","PREGUNTAS FAQ"]
[{"$f":"B161&COUNTIF($B$161:B161,B161)","v":"I. SERVICIOS ADMINISTRATIVOS1"},"I. SERVICIOS ADMINISTRATIVOS","I. SERVICIOS ADMINISTRATIVOS"]
[{"$f":"B162&COUNTIF($B$161:B162,B162)","v":"I. SERVICIOS ADMINISTRATIVOS2"},"I. SERVICIOS ADMINISTRATIVOS","A.  FAQ – PLANEAMIENTO ESTRATÉGICO"]
[{"$f":"B163&COUNTIF($B$161:B163,B163)","v":"I. SERVICIOS ADMINISTRATIVOS3"},"I. SERVICIOS ADMINISTRATIVOS","1.  ¿Qué le debería solicitar a la gestión saliente?"]
[{"$f":"B164&COUNTIF($B$161:B164,B164)","v":"I. SERVICIOS ADMINISTRATIVOS4"},"I. SERVICIOS ADMINISTRATIVOS","Respuesta."]
[{"$f":"B165&COUNTIF($B$161:B165,B165)","v":"I. SERVICIOS ADMINISTRATIVOS5"},"I. SERVICIOS ADMINISTRATIVOS","o   Plan de Desarrollo Local Concertado - PDC (Horizonte de 8 años)"]
[{"$f":"B166&COUNTIF($B$161:B166,B166)","v":"I. SERVICIOS ADMINISTRATIVOS6"},"I. SERVICIOS ADMINISTRATIVOS","o   Plan Estratégico Institucional - PEI (Horizonte de 3 años)"]
[{"$f":"B167&COUNTIF($B$161:B167,B167)","v":"I. SERVICIOS ADMINISTRATIVOS7"},"I. SERVICIOS ADMINISTRATIVOS","o   Plan Operativo Institucional - POI (Horizonte de 1 año)"]
[{"$f":"B168&COUNTIF($B$161:B168,B168)","v":"I. SERVICIOS ADMINISTRATIVOS8"},"I. SERVICIOS ADMINISTRATIVOS","2.  En el caso de contar con el POI y PEI, ¿Deberían encontrarse registrado en el CEPLAN?"]
[{"$f":"B169&COUNTIF($B$161:B169,B169)","v":"I. SERVICIOS ADMINISTRATIVOS9"},"I. SERVICIOS ADMINISTRATIVOS","Respuesta"]
[{"$f":"B170&COUNTIF($B$161:B170,B170)","v":"I. SERVICIOS ADMINISTRATIVOS10"},"I. SERVICIOS ADMINISTRATIVOS","Sí. Tanto el POI como el PEI deben registrarse en el aplicativo CEPLAN. Para ello se debe solicitar la creación del usuario y la asignación de una clave mediante un oficia al CEPLAN."]
[{"$f":"B171&COUNTIF($B$161:B171,B171)","v":"I. SERVICIOS ADMINISTRATIVOS11"},"I. SERVICIOS ADMINISTRATIVOS","3. En el caso que no cuente ninguno de los documentos antes descritos ¿Cuál debería ser la prioridad en su elaboración?"]
[{"$f":"B172&COUNTIF($B$161:B172,B172)","v":"I. SERVICIOS ADMINISTRATIVOS12"},"I. SERVICIOS ADMINISTRATIVOS","Respuesta"]
[{"$f":"B173&COUNTIF($B$161:B173,B173)","v":"I. SERVICIOS ADMINISTRATIVOS13"},"I. SERVICIOS ADMINISTRATIVOS","Cuando se inicien actividades en enero del 2018 las nuevas municipalidades de reciente creación deben elaborar:"]
[{"$f":"B174&COUNTIF($B$161:B174,B174)","v":"I. SERVICIOS ADMINISTRATIVOS14"},"I. SERVICIOS ADMINISTRATIVOS","o   Como mínimo: POI"]
[{"$f":"B175&COUNTIF($B$161:B175,B175)","v":"I. SERVICIOS ADMINISTRATIVOS15"},"I. SERVICIOS ADMINISTRATIVOS","o   Ideal: POI y PEI"]
[{"$f":"B176&COUNTIF($B$161:B176,B176)","v":"I. SERVICIOS ADMINISTRATIVOS16"},"I. SERVICIOS ADMINISTRATIVOS","o   Al final del mandato en noviembre: PDC y PEI"]
[{"$f":"B177&COUNTIF($B$161:B177,B177)","v":"II. SERVICIOS SOCIALES MUNICIPALES1"},"II. SERVICIOS SOCIALES MUNICIPALES","II. SERVICIOS SOCIALES MUNICIPALES"]
[{"$f":"B178&COUNTIF($B$161:B178,B178)","v":"II. SERVICIOS SOCIALES MUNICIPALES2"},"II. SERVICIOS SOCIALES MUNICIPALES","A.     FAQ - SISFOH"]
[{"$f":"B179&COUNTIF($B$161:B179,B179)","v":"II. SERVICIOS SOCIALES MUNICIPALES3"},"II. SERVICIOS SOCIALES MUNICIPALES","1.  ¿Qué le debería solicitar a la gestión saliente?"]
[{"$f":"B180&COUNTIF($B$161:B180,B180)","v":"II. SERVICIOS SOCIALES MUNICIPALES4"},"II. SERVICIOS SOCIALES MUNICIPALES","Respuesta."]
[{"$f":"B181&COUNTIF($B$161:B181,B181)","v":"II. SERVICIOS SOCIALES MUNICIPALES5"},"II. SERVICIOS SOCIALES MUNICIPALES","o   Resolución de Alcaldía que nombra al responsable de la ULE."]
[{"$f":"B182&COUNTIF($B$161:B182,B182)","v":"II. SERVICIOS SOCIALES MUNICIPALES6"},"II. SERVICIOS SOCIALES MUNICIPALES","o   Resolución de Alcaldía que designa al responsable del envío de las Declaraciones Juradas al MIDIS."]
[{"$f":"B183&COUNTIF($B$161:B183,B183)","v":"II. SERVICIOS SOCIALES MUNICIPALES7"},"II. SERVICIOS SOCIALES MUNICIPALES","o   Usuario y clave del sistema de empadronamiento."]
[{"$f":"B184&COUNTIF($B$161:B184,B184)","v":"II. SERVICIOS SOCIALES MUNICIPALES8"},"II. SERVICIOS SOCIALES MUNICIPALES"]
[{"$f":"B185&COUNTIF($B$161:B185,B185)","v":"II. SERVICIOS SOCIALES MUNICIPALES9"},"II. SERVICIOS SOCIALES MUNICIPALES","2. ¿Debo informar el cambio del responsable de la ULE y el cambio del responsable del envío de las Declaraciones Juradas? ¿A qué entidad pública?"]
[{"$f":"B186&COUNTIF($B$161:B186,B186)","v":"II. SERVICIOS SOCIALES MUNICIPALES10"},"II. SERVICIOS SOCIALES MUNICIPALES","Respuesta."]
[{"$f":"B187&COUNTIF($B$161:B187,B187)","v":"II. SERVICIOS SOCIALES MUNICIPALES11"},"II. SERVICIOS SOCIALES MUNICIPALES","Sí, en caso el nuevo alcalde cambie al responsable de la ULE o al responsable del envío de las Declaraciones Juradas a la Dirección de Operaciones de Focalización del MIDIS, y deberá designar formalmente a sus reemplazos con Resolución de Alcaldía. En caso cambie a los responsables antes señalados, la información que remitan al MIDIS los funcionarios no registrados será rechazada."]
[{"$f":"B188&COUNTIF($B$161:B188,B188)","v":"II. SERVICIOS SOCIALES MUNICIPALES12"},"II. SERVICIOS SOCIALES MUNICIPALES","3. Si no tuviera instalado el sistema de empadronamiento, ¿Qué pasos debo seguir para que se instale en el municipio el sistema de empadronamiento del MIDIS?"]
[{"$f":"B189&COUNTIF($B$161:B189,B189)","v":"II. SERVICIOS SOCIALES MUNICIPALES13"},"II. SERVICIOS SOCIALES MUNICIPALES","Respuesta."]
[{"$f":"B190&COUNTIF($B$161:B190,B190)","v":"II. SERVICIOS SOCIALES MUNICIPALES14"},"II. SERVICIOS SOCIALES MUNICIPALES","En caso no cuente con el Sistema de Empadronamiento del MIDIS, debe primero designar al responsable de la ULE mediante Resolución de Alcaldía y remitir la designación mediante un oficio a la Dirección de Operaciones de Focalización del MIDIS para solicitar la instalación del sistema y se le asigne usuario y clave del sistema al responsable designado."]
[{"$f":"B191&COUNTIF($B$161:B191,B191)","v":"II. SERVICIOS SOCIALES MUNICIPALES15"},"II. SERVICIOS SOCIALES MUNICIPALES","4. ¿Cómo puedo conocer los procedimientos del sistema de focalización?"]
[{"$f":"B192&COUNTIF($B$161:B192,B192)","v":"II. SERVICIOS SOCIALES MUNICIPALES16"},"II. SERVICIOS SOCIALES MUNICIPALES","Respuesta."]
[{"$f":"B193&COUNTIF($B$161:B193,B193)","v":"II. SERVICIOS SOCIALES MUNICIPALES17"},"II. SERVICIOS SOCIALES MUNICIPALES","Es aconsejable solicitar a la Dirección de Operaciones de Focalización del MIDIS capacitación sobre todo el tema de focalización. La DOP enviará funcionarios a su localidad de manera gratuita para brindarles una inducción sobre el tema. "]
[{"$f":"B194&COUNTIF($B$161:B194,B194)","v":"II. SERVICIOS SOCIALES MUNICIPALES18"},"II. SERVICIOS SOCIALES MUNICIPALES","B.      FAQ - OMAPED"]
[{"$f":"B195&COUNTIF($B$161:B195,B195)","v":"II. SERVICIOS SOCIALES MUNICIPALES19"},"II. SERVICIOS SOCIALES MUNICIPALES","1.  ¿Qué le debería solicitar a la gestión saliente?"]
[{"$f":"B196&COUNTIF($B$161:B196,B196)","v":"II. SERVICIOS SOCIALES MUNICIPALES20"},"II. SERVICIOS SOCIALES MUNICIPALES","Respuesta."]
[{"$f":"B197&COUNTIF($B$161:B197,B197)","v":"II. SERVICIOS SOCIALES MUNICIPALES21"},"II. SERVICIOS SOCIALES MUNICIPALES","o   Relación del padrón de usuarios (listado de personas con discapacidad de la localidad)"]
[{"$f":"B198&COUNTIF($B$161:B198,B198)","v":"II. SERVICIOS SOCIALES MUNICIPALES22"},"II. SERVICIOS SOCIALES MUNICIPALES","o   Perfil del funcionario OMAPED."]
[{"$f":"B199&COUNTIF($B$161:B199,B199)","v":"II. SERVICIOS SOCIALES MUNICIPALES23"},"II. SERVICIOS SOCIALES MUNICIPALES","o   Información sobre el presupuesto asignado para discapacidad."]
[{"$f":"B200&COUNTIF($B$161:B200,B200)","v":"II. SERVICIOS SOCIALES MUNICIPALES24"},"II. SERVICIOS SOCIALES MUNICIPALES","o   Información sobre la ejecución presupuestal para discapacidad. "]
[{"$f":"B201&COUNTIF($B$161:B201,B201)","v":"II. SERVICIOS SOCIALES MUNICIPALES25"},"II. SERVICIOS SOCIALES MUNICIPALES","2. ¿Es obligatorio el registro o comunicación de la creación de la OMAPED municipal?"]
[{"$f":"B202&COUNTIF($B$161:B202,B202)","v":"II. SERVICIOS SOCIALES MUNICIPALES26"},"II. SERVICIOS SOCIALES MUNICIPALES","Respuesta."]
[{"$f":"B203&COUNTIF($B$161:B203,B203)","v":"II. SERVICIOS SOCIALES MUNICIPALES27"},"II. SERVICIOS SOCIALES MUNICIPALES","No es obligatorio el registro de la OMAPED en el CONADIS."]
[{"$f":"B204&COUNTIF($B$161:B204,B204)","v":"II. SERVICIOS SOCIALES MUNICIPALES28"},"II. SERVICIOS SOCIALES MUNICIPALES","3. ¿Es obligatorio incluir como parte de la estructura orgánica de la municipalidad a la OMAPED?"]
[{"$f":"B205&COUNTIF($B$161:B205,B205)","v":"II. SERVICIOS SOCIALES MUNICIPALES29"},"II. SERVICIOS SOCIALES MUNICIPALES","Respuesta."]
[{"$f":"B206&COUNTIF($B$161:B206,B206)","v":"II. SERVICIOS SOCIALES MUNICIPALES30"},"II. SERVICIOS SOCIALES MUNICIPALES","Sí es obligatorio. La OMAPED debe ser considerada en la estructura orgánica de la municipalidad mediante Ordenanza Municipal."]
[{"$f":"B207&COUNTIF($B$161:B207,B207)","v":"II. SERVICIOS SOCIALES MUNICIPALES31"},"II. SERVICIOS SOCIALES MUNICIPALES","4. ¿Qué monto del presupuesto institucional se le debe asignar a la OMAPED para el desarrollo de sus funciones?"]
[{"$f":"B208&COUNTIF($B$161:B208,B208)","v":"II. SERVICIOS SOCIALES MUNICIPALES32"},"II. SERVICIOS SOCIALES MUNICIPALES","Respuesta."]
[{"$f":"B209&COUNTIF($B$161:B209,B209)","v":"II. SERVICIOS SOCIALES MUNICIPALES33"},"II. SERVICIOS SOCIALES MUNICIPALES","Se le debe asignar hasta el 0.5% del presupuesto institucional anual."]
[]
[]
["Procesos a consultar"]
["I. Transferencia en Municipalidades de reciente creación"]
["II. Transferencia en Municipalidades con autoridades electas"]
[]
["Indice","Sistemas Administrativos","Recomendaciones por proceso"]
[{"$f":"B217&COUNTIF($B$217:B217,B217)","v":"II. Transferencia en Municipalidades con autoridades electas1"},"II. Transferencia en Municipalidades con autoridades electas","1. Formular el Informe de Rendición de Cuentas y Transferencia"]
[{"$f":"B218&COUNTIF($B$217:B218,B218)","v":"II. Transferencia en Municipalidades con autoridades electas2"},"II. Transferencia en Municipalidades con autoridades electas","2 .Sustentar el Informe ante el Consejo Regional o Concejo Municipal, dentro de los diez días hábiles de iniciado su nuevo mandato."]
[{"$f":"B219&COUNTIF($B$217:B219,B219)","v":"II. Transferencia en Municipalidades con autoridades electas3"},"II. Transferencia en Municipalidades con autoridades electas","3. Publicar en el Portal Institucional el Informe de Rendición de Cuentas y Transferencia (PDF y Excel). En caso de contar con este, deberá publicarlo en los medios más idóneos y usuales de la localidad."]
[{"$f":"B220&COUNTIF($B$217:B220,B220)","v":"II. Transferencia en Municipalidades con autoridades electas4"},"II. Transferencia en Municipalidades con autoridades electas","4. Enviar a la Contraloría General de la República y a la Dirección General de Contabilidad Pública del Ministerio de Economía y Finanzas copia del Informe de Rendición de Cuentas y Transferencia."]
[{"$f":"B221&COUNTIF($B$217:B221,B221)","v":"II. Transferencia en Municipalidades con autoridades electas5"},"II. Transferencia en Municipalidades con autoridades electas","5. Solicitar a la Contraloría General de la República efectúe una Auditoria Financiera Gubernamental."]
[{"$f":"B222&COUNTIF($B$217:B222,B222)","v":"I. Transferencia en Municipalidades de reciente creación1"},"I. Transferencia en Municipalidades de reciente creación","1. Solicitar el Informe de Rendición de Cuentas y Transferencia"]
[{"$f":"B223&COUNTIF($B$217:B223,B223)","v":"I. Transferencia en Municipalidades de reciente creación2"},"I. Transferencia en Municipalidades de reciente creación","2. Solicitar las resoluciones que designan responsables por sistema administrativo"]
[{"$f":"B224&COUNTIF($B$217:B224,B224)","v":"I. Transferencia en Municipalidades de reciente creación3"},"I. Transferencia en Municipalidades de reciente creación","3. Solicitar los usuarios y claves por sistema administrativo"]
[{"$f":"B225&COUNTIF($B$217:B225,B225)","v":"I. Transferencia en Municipalidades de reciente creación4"},"I. Transferencia en Municipalidades de reciente creación","4. Solicitar informes de los proceos presupuestarios, contable y de tesorería conforme se indique en los reportes de la presente guía"]
[{"$f":"B226&COUNTIF($B$217:B226,B226)","v":"I. Transferencia en Municipalidades de reciente creación5"},"I. Transferencia en Municipalidades de reciente creación","5. Revisar e implementar según correponda, las recomendaciones conforme se indique en los reportes de la presente guía"]

{"sheet":"Listado-Contactos","index":7,"n_rows":73,"n_cols":7,"rows_kept":73,"cut":false,"hidden":true,"merged":[]}
[]
["Indice","Sistema Administrativo","Entidad","Unidad Orgánica","Nombre","Telefono","Email"]
[{"$f":"B3&COUNTIF($B$3:B3,B3)","v":"01. Gestión de Recursos Humanos1"},"01. Gestión de Recursos Humanos","Autoridad Nacional del Servicio Civil - SERVIR","Gerencia de Políticas de Gestión del Servicio Civil","Cinthya Su",null,"csu@servir.gob.pe"]
[{"$f":"B4&COUNTIF($B$3:B4,B4)","v":"01. Gestión de Recursos Humanos2"},"01. Gestión de Recursos Humanos","Autoridad Nacional del Servicio Civil - SERVIR","Gerencia de Políticas de Gestión del Servicio Civil"," Brenda Bellido Gomero",null,"bbellido@servir.gob.pe"]
[{"$f":"B5&COUNTIF($B$3:B5,B5)","v":"02. Bienes estatales1"},"02. Bienes estatales","Superintendencia Nacional de Bienes Estatales - SBN","Dirección de Normas y Registro","José Más",null,"jmas@sbn.gob.pe"]
[{"$f":"B6&COUNTIF($B$3:B6,B6)","v":"02. Bienes estatales2"},"02. Bienes estatales","Superintendencia Nacional de Bienes Estatales - SBN","Sub Dirección de Normas y Capacitación","Alejandro More ",null,"amore@sbn.gob.pe"]
[{"$f":"B7&COUNTIF($B$3:B7,B7)","v":"02. Bienes estatales3"},"02. Bienes estatales","Superintendencia Nacional de Bienes Estatales - SBN","Sub Dirección de Registro y Catastro","Yngrid Nielo Ableda",null,"ynielo@sbn.gob.pe"]
[{"$f":"B8&COUNTIF($B$3:B8,B8)","v":"02. Bienes estatales4"},"02. Bienes estatales","Superintendencia Nacional de Bienes Estatales - SBN","Asesoría Jurídica","Carlos Rodriguez Barón",null,"crodriguez@sbn.gob.pe"]
[{"$f":"B9&COUNTIF($B$3:B9,B9)","v":"03. Archivo Nacional y Patrimonio1"},"03. Archivo Nacional y Patrimonio","Archivo General de la Nación","Archivo General de la Nación","Luis María Vetter Parodi",null,"lvetter@agn.gob.pe"]
[{"$f":"B10&COUNTIF($B$3:B10,B10)","v":"04. Contrataciones del Estado1"},"04. Contrataciones del Estado","Organismo Supervisor de las Contrataciones del Estado - OSCE","Subdirección de Catalogación y Gestión de Usuarios del SEACE (SCGU)","Rafael Arauzo",null,"rarauzo@osce.gob.pe"]
[{"$f":"B11&COUNTIF($B$3:B11,B11)","v":"04. Contrataciones del Estado2"},"04. Contrataciones del Estado","Organismo Supervisor de las Contrataciones del Estado - OSCE","Subdirección de Catalogación y Gestión de Usuarios del SEACE (SCGU)","Claudia Ramìrez",null,"cramirez@osce.gob.pe"]
[{"$f":"B12&COUNTIF($B$3:B12,B12)","v":"04. Contrataciones del Estado3"},"04. Contrataciones del Estado","Organismo Supervisor de las Contrataciones del Estado - OSCE","Subdirección de Catalogación y Gestión de Usuarios del SEACE (SCGU)","Jacquie Cárdenas",null,"jcardenas@osce.gob.pe"]
[{"$f":"B13&COUNTIF($B$3:B13,B13)","v":"04. Contrataciones del Estado4"},"04. Contrataciones del Estado","Organismo Supervisor de las Contrataciones del Estado - OSCE","Subdirección de Catalogación y Gestión de Usuarios del SEACE (SCGU)","Gisella Baylon",null,"ibaylon@osce.gob.pe"]
[{"$f":"B14&COUNTIF($B$3:B14,B14)","v":"05. Presupuesto Público1"},"05. Presupuesto Público","Ministerio de Economía y Finanzas - MEF","Dirección General de Presupuesto Público","Patricia Sime",null,"psime@mef.gob.pe"]
[{"$f":"B15&COUNTIF($B$3:B15,B15)","v":"05. Presupuesto Público2"},"05. Presupuesto Público","Ministerio de Economía y Finanzas - MEF","Dirección General de Presupuesto Público","Celia Mejia",null,"cmejia@mef.gob.pe"]
[{"$f":"B16&COUNTIF($B$3:B16,B16)","v":"06. Tesorería1"},"06. Tesorería","Ministerio de Economía y Finanzas - MEF","Dirección General de Endeudamiento y Tesoro Público","Edmundo Murillo",null,"emurillo@mef.gob.pe"]
[{"$f":"B17&COUNTIF($B$3:B17,B17)","v":"06. Tesorería2"},"06. Tesorería","Ministerio de Economía y Finanzas - MEF","Dirección General de Endeudamiento y Tesoro Público","Fernando Gavidia",null,"fgavidia@mef.gob.pe"]
[{"$f":"B18&COUNTIF($B$3:B18,B18)","v":"07. Endeudamiento Público1"},"07. Endeudamiento Público","Ministerio de Economía y Finanzas - MEF","Dirección General de Endeudamiento y Tesoro Público","Javier Quispe",null,"jquispe@mef.gob.pe"]
[{"$f":"B19&COUNTIF($B$3:B19,B19)","v":"08. Contabilidad1"},"08. Contabilidad","Ministerio de Economía y Finanzas - MEF","Dirección General de Contabilidad Pública","Luis Bernal",null,"lbernal@mef.gob.pe"]
[{"$f":"B20&COUNTIF($B$3:B20,B20)","v":"08. Contabilidad2"},"08. Contabilidad","Ministerio de Economía y Finanzas - MEF","Dirección General de Contabilidad Pública","Fredy Díaz Inchicapi",null,"fdiazi@mef.gob.pe"]
[{"$f":"B21&COUNTIF($B$3:B21,B21)","v":"08. Contabilidad3"},"08. Contabilidad","Ministerio de Economía y Finanzas - MEF","Dirección General de Contabilidad Pública","Gilmer Ticona",null,"gticona@mef.gob.pe"]
[{"$f":"B22&COUNTIF($B$3:B22,B22)","v":"08. Contabilidad4"},"08. Contabilidad","Ministerio de Economía y Finanzas - MEF","Dirección General de Contabilidad Pública","Cecilia Herrera",null,"herrerac@mef.gob.pe"]
[{"$f":"B23&COUNTIF($B$3:B23,B23)","v":"08. Contabilidad5"},"08. Contabilidad","Ministerio de Economía y Finanzas - MEF","Dirección General de Contabilidad Pública","Carlos Salazar",null,"csalazar@mef.gob.pe"]
[{"$f":"B24&COUNTIF($B$3:B24,B24)","v":"09. Inversión Pública1"},"09. Inversión Pública","Ministerio de Economía y Finanzas - MEF","Dirección General de Inversión Pública","Aldo Fernández Andrade",null,"afernandez@mef.gob.pe"]
[{"$f":"B25&COUNTIF($B$3:B25,B25)","v":"10. Planeamiento Estratégico1"},"10. Planeamiento Estratégico","Centro Nacional de Planeamiento estratégico - CEPLAN","Centro Nacional de Planeamiento estratégico - CEPLAN","Luis Pisconte",null,"lpisconte@ceplan.gob.pe"]
[{"$f":"B26&COUNTIF($B$3:B26,B26)","v":"11. Defensa Judicial del Estado1"},"11. Defensa Judicial del Estado","Ministerio de Justicia y Derechos Humanos","Dirección General de Defensa Pública y Acceso a la Justicia","Martin Mijichich",null,"mmijichich@minjus.gob.pe"]
[{"$f":"B27&COUNTIF($B$3:B27,B27)","v":"12. Modernización de la Gestión Pública1"},"12. Modernización de la Gestión Pública","Presidencia del Consejo de Ministros","Secretaria de Gestión Pública","Raúl Carrasco",null,"rcarrasco@pcm.gob.pe"]
[{"$f":"B28&COUNTIF($B$3:B28,B28)","v":"13. Programa de Incentivos a la Mejora de la Gestión Municipal1"},"13. Programa de Incentivos a la Mejora de la Gestión Municipal","Ministerio de Economía y Finanzas - MEF","Programa de Incentivos a la Mejora de la Gestión Municipal","Jorge Nicho",null,"jnicho@mef.gob.pe"]
[{"$f":"B29&COUNTIF($B$3:B29,B29)","v":"14. Administración Tributaria Municipal1"},"14. Administración Tributaria Municipal"]
[{"$f":"B30&COUNTIF($B$3:B30,B30)","v":"15. Sistema de Seguridad y Defensa Nacional1"},"15. Sistema de Seguridad y Defensa Nacional","Instituto Nacional de Defensa Civil","Instituto Nacional de Defensa Civil","Jose Miguel Montoya Manrique",null,"jcaballero@indeci.gob.pe"]
[{"$f":"B31&COUNTIF($B$3:B31,B31)","v":"16. Seguridad Ciudadana1"},"16. Seguridad Ciudadana","Ministerio del Interior ","Dirección de Ejecución de Políticas de Seguridad Ciudadana","Gustavo Carrión Zavala",null,"gcarrion@mininter.gob.pe"]
[{"$f":"B32&COUNTIF($B$3:B32,B32)","v":"16. Seguridad Ciudadana2"},"16. Seguridad Ciudadana","Ministerio del Interior ","Dirección de Ejecución de Políticas de Seguridad Ciudadana","Gerson Villar Sandy",null,"gvillar@mininter.gob.pe"]
[{"$f":"B33&COUNTIF($B$3:B33,B33)","v":"17. Licencias y autorizaciones de funcionamiento1"},"17. Licencias y autorizaciones de funcionamiento","Ministerio de Vivienda, Construcción y Saneamiento","Dirección General de Políticas y Regulación en Vivienda y Urbanismo","José Jiménez Llanos",null,"jgimenezl@vivienda.gob.pe"]
[{"$f":"B34&COUNTIF($B$3:B34,B34)","v":"17. Licencias y autorizaciones de funcionamiento2"},"17. Licencias y autorizaciones de funcionamiento","Ministerio de Vivienda, Construcción y Saneamiento","Dirección de Vivienda","Maria Virginia Marzal Sánchez",null,"mmarsal@vivienda.gob.pe"]
[{"$f":"B35&COUNTIF($B$3:B35,B35)","v":"18. Sistema de Gestión Ambiental Local1"},"18. Sistema de Gestión Ambiental Local","Ministerio del Ambiente","Dirección General de Políticas e Instrumentos de Gestión Ambiental ","Liseet Vásquez"]
[{"$f":"B36&COUNTIF($B$3:B36,B36)","v":"18. Sistema de Gestión Ambiental Local2"},"18. Sistema de Gestión Ambiental Local","Ministerio del Ambiente","Dirección General de Políticas e Instrumentos de Gestión Ambiental ","María Nuñez"]
[{"$f":"B37&COUNTIF($B$3:B37,B37)","v":"19. Abastecimiento de agua dulce y/o tratada1"},"19. Abastecimiento de agua dulce y/o tratada"]
[{"$f":"B38&COUNTIF($B$3:B38,B38)","v":"20. Limpieza pública y áreas verdes1"},"20. Limpieza pública y áreas verdes"]
[{"$f":"B39&COUNTIF($B$3:B39,B39)","v":"21. Fiscalización (Ambiental/Tributaria/Servicios municipales)1"},"21. Fiscalización (Ambiental/Tributaria/Servicios municipales)"]
[{"$f":"B40&COUNTIF($B$3:B40,B40)","v":"22. Ejecución coactiva1"},"22. Ejecución coactiva"]
[{"$f":"B41&COUNTIF($B$3:B41,B41)","v":"23. Educación, Cultura, Deportes y Recreación1"},"23. Educación, Cultura, Deportes y Recreación"]
[{"$f":"B42&COUNTIF($B$3:B42,B42)","v":"24. Participación y control vecinal1"},"24. Participación y control vecinal"]
[{"$f":"B43&COUNTIF($B$3:B43,B43)","v":"25. Salubridad1"},"25. Salubridad"]
[{"$f":"B44&COUNTIF($B$3:B44,B44)","v":"26. Tránsito, circulación y transporte púbico1"},"26. Tránsito, circulación y transporte púbico"]
[{"$f":"B45&COUNTIF($B$3:B45,B45)","v":"27. Registro de hechos vitales1"},"27. Registro de hechos vitales"]
[{"$f":"B46&COUNTIF($B$3:B46,B46)","v":"28. Desarrollo económico del sector Turismo1"},"28. Desarrollo económico del sector Turismo"]
[{"$f":"B47&COUNTIF($B$3:B47,B47)","v":"29. Desarrollo económico local1"},"29. Desarrollo económico local"]
[{"$f":"B48&COUNTIF($B$3:B48,B48)","v":"30. Servicios no exclusivos1"},"30. Servicios no exclusivos"]
[{"$f":"B49&COUNTIF($B$3:B49,B49)","v":"31. Sistema de Focalización de Hogares1"},"31. Sistema de Focalización de Hogares"]
[{"$f":"B50&COUNTIF($B$3:B50,B50)","v":"32. Atención de las Personas con Discapacidad1"},"32. Atención de las Personas con Discapacidad"]
[{"$f":"B51&COUNTIF($B$3:B51,B51)","v":"33. Comunidades Nativas y Pueblos Indígenas1"},"33. Comunidades Nativas y Pueblos Indígenas"]
[{"$f":"B52&COUNTIF($B$3:B52,B52)","v":"34. Defensoría Municipal Atención del Niño, Niña y Adolecente1"},"34. Defensoría Municipal Atención del Niño, Niña y Adolecente"]
[{"$f":"B53&COUNTIF($B$3:B53,B53)","v":"35. Programa Vaso de Leche1"},"35. Programa Vaso de Leche"]
[{"$f":"B54&COUNTIF($B$3:B54,B54)","v":"36. Centro de Atención Integral del Adulto Mayor1"},"36. Centro de Atención Integral del Adulto Mayor"]
[{"$f":"B55&COUNTIF($B$3:B55,B55)","v":"0"}]
[{"$f":"B56&COUNTIF($B$3:B56,B56)","v":"0"}]
[{"$f":"B57&COUNTIF($B$3:B57,B57)","v":"0"}]
[{"$f":"B58&COUNTIF($B$3:B58,B58)","v":"0"}]
[{"$f":"B59&COUNTIF($B$3:B59,B59)","v":"0"}]
[{"$f":"B60&COUNTIF($B$3:B60,B60)","v":"0"}]
[{"$f":"B61&COUNTIF($B$3:B61,B61)","v":"0"}]
[{"$f":"B62&COUNTIF($B$3:B62,B62)","v":"0"}]
[{"$f":"B63&COUNTIF($B$3:B63,B63)","v":"0"}]
[{"$f":"B64&COUNTIF($B$3:B64,B64)","v":"0"}]
[{"$f":"B65&COUNTIF($B$3:B65,B65)","v":"0"}]
[{"$f":"B66&COUNTIF($B$3:B66,B66)","v":"0"}]
[{"$f":"B67&COUNTIF($B$3:B67,B67)","v":"0"}]
[{"$f":"B68&COUNTIF($B$3:B68,B68)","v":"0"}]
[{"$f":"B69&COUNTIF($B$3:B69,B69)","v":"0"}]
[{"$f":"B70&COUNTIF($B$3:B70,B70)","v":"0"}]
[{"$f":"B71&COUNTIF($B$3:B71,B71)","v":"0"}]
[{"$f":"B72&COUNTIF($B$3:B72,B72)","v":"0"}]
[{"$f":"B73&COUNTIF($B$3:B73,B73)","v":"0"}]

{"sheet":"Base Legal","index":8,"n_rows":116,"n_cols":16,"rows_kept":116,"cut":false,"hidden":true,"merged":[[26,1,26,13],[27,1,27,13],[28,1,28,13],[40,1,40,13],[35,1,35,13],[36,1,36,13],[37,1,37,13],[38,1,38,13],[39,1,39,13],[30,1,30,13],[31,1,31,13],[32,1,32,13],[33,1,33,13],[34,1,34,13],[41,1,41,13],[42,1,42,13],[43,1,43,13],[44,1,44,13],[45,1,45,13],[5,8,5,13],[14,1,14,13],[10,1,10,13],[11,1,11,13],[7,8,7,13],[7,1,7,7],[6,8,6,13],[15,1,15,13],[16,1,16,13],[17,1,17,13],[18,1,18,13],[19,1,19,13],[29,1,29,13],[20,1,20,13],[21,1,21,13],[22,1,22,13],[23,1,23,13],[24,1,24,13],[25,1,25,13],[51,1,51,13],[52,1,52,13],[53,1,53,13],[54,1,54,13],[55,1,55,13],[46,1,46,13],[47,1,47,13],[48,1,48,13],[49,1,49,13],[50,1,50,13],[61,1,61,13],[62,1,62,13],[63,1,63,13],[64,1,64,13],[65,1,65,13],[56,1,56,13],[57,1,57,13],[58,1,58,13],[59,1,59,13],[60,1,60,13],[71,1,71,13],[72,1,72,13],[73,1,73,13],[74,1,74,13],[75,1,75,13],[66,1,66,13],[67,1,67,13],[68,1,68,13],[69,1,69,13],[70,1,70,13],[81,1,81,13],[82,1,82,13],[83,1,83,13],[84,1,84,13],[85,1,85,13],[76,1,76,13],[77,1,77,13],[78,1,78,13],[79,1,79,13],[80,1,80,13],[91,1,91,13],[92,1,92,13],[93,1,93,13],[94,1,94,13],[95,1,95,13],[86,1,86,13],[87,1,87,13],[88,1,88,13],[89,1,89,13],[90,1,90,13],[101,1,101,13],[102,1,102,13],[103,1,103,13],[104,1,104,13],[105,1,105,13],[96,1,96,13],[97,1,97,13],[98,1,98,13],[99,1,99,13],[100,1,100,13],[111,1,111,13],[112,1,112,13],[113,1,113,13],[114,1,114,13],[115,1,115,13],[106,1,106,13],[107,1,107,13],[108,1,108,13],[109,1,109,13],[110,1,110,13]]}
[]
[]
[]
[]
[null,null,null,null,null,null,null,null,null,null,null,null,null,null,null,"RETORNAR"]
[null,null,null,null,null,null,null,null,"Seleccionar del listado el Sistema a consultar"]
[]
[null,"SISTEMA ADMINISTRATIVO Y/O FUNCIONAL EN CONSULTA",null,null,null,null,null,null,"36. Centro de Atención Integral del Adulto Mayor",null,null,null,null,null,null,{"$f":"I8","v":"36. Centro de Atención Integral del Adulto Mayor"}]
[]
[]
[null,"DEFINICIÓN Y FINES"]
[null,{"$f":"VLOOKUP(P8,Tabla1[],2,TRUE)","v":"Se entiende por Centro Integral de Atención al Adulto Mayor (CIAM) al espacio Municipal de prestación, coordinación y articulación, intra e interinstitucional, de servicios básicos integrales y multidisciplinarios, para el bienestar y promoción social de las personas adultas mayores, en un contexto de cogestión y participación de la persona adulta mayor y la familia."}]
[]
[]
[null,"BASE LEGAL"]
[null,{"$f":"IFERROR(VLOOKUP(P$8&ROWS($C$16:C16),'Listado-Base Legal 2'!A$2:C$232,3,FALSE),\" \")","v":"Ley Nº 27972, Ley orgánica de municipalidades"}]
[null,{"$f":"IFERROR(VLOOKUP(P$8&ROWS($C$16:C17),'Listado-Base Legal 2'!A$2:C$232,3,FALSE),\" \")","v":"Artículo 8º, Ley Nº 28803, Ley de las Personas Adultas Mayores"}]
[null,{"$f":"IFERROR(VLOOKUP(P$8&ROWS($C$16:C18),'Listado-Base Legal 2'!A$2:C$232,3,FALSE),\" \")","v":"Decreto Supremo Nº 013-2006-MIMDES, Reglamento de la Ley Nº 28803"}]
[null,{"$f":"IFERROR(VLOOKUP(P$8&ROWS($C$16:C19),'Listado-Base Legal 2'!A$2:C$232,3,FALSE),\" \")","v":" "}]
[null,{"$f":"IFERROR(VLOOKUP(P$8&ROWS($C$16:C20),'Listado-Base Legal 2'!A$2:C$232,3,FALSE),\" \")","v":" "}]
[null,{"$f":"IFERROR(VLOOKUP(P$8&ROWS($C$16:C21),'Listado-Base Legal 2'!A$2:C$232,3,FALSE),\" \")","v":" "}]
[null,{"$f":"IFERROR(VLOOKUP(P$8&ROWS($C$16:C22),'Listado-Base Legal 2'!A$2:C$232,3,FALSE),\" \")","v":" "}]
[null,{"$f":"IFERROR(VLOOKUP(P$8&ROWS($C$16:C23),'Listado-Base Legal 2'!A$2:C$232,3,FALSE),\" \")","v":" "}]
[null,{"$f":"IFERROR(VLOOKUP(P$8&ROWS($C$16:C24),'Listado-Base Legal 2'!A$2:C$232,3,FALSE),\" \")","v":" "}]
[null,{"$f":"IFERROR(VLOOKUP(P$8&ROWS($C$16:C25),'Listado-Base Legal 2'!A$2:C$232,3,FALSE),\" \")","v":" "}]
[null,{"$f":"IFERROR(VLOOKUP(P$8&ROWS($C$16:C26),'Listado-Base Legal 2'!A$2:C$232,3,FALSE),\" \")","v":" "}]
[null,{"$f":"IFERROR(VLOOKUP(P$8&ROWS($C$16:C27),'Listado-Base Legal 2'!A$2:C$232,3,FALSE),\" \")","v":" "}]
[null,{"$f":"IFERROR(VLOOKUP(P$8&ROWS($C$16:C28),'Listado-Base Legal 2'!A$2:C$232,3,FALSE),\" \")","v":" "}]
[null,{"$f":"IFERROR(VLOOKUP(P$8&ROWS($C$16:C29),'Listado-Base Legal 2'!A$2:C$232,3,FALSE),\" \")","v":" "}]
[null,{"$f":"IFERROR(VLOOKUP(P$8&ROWS($C$16:C30),'Listado-Base Legal 2'!A$2:C$232,3,FALSE),\" \")","v":" "}]
[null,{"$f":"IFERROR(VLOOKUP(P$8&ROWS($C$16:C31),'Listado-Base Legal 2'!A$2:C$232,3,FALSE),\" \")","v":" "}]
[null,{"$f":"IFERROR(VLOOKUP(P$8&ROWS($C$16:C32),'Listado-Base Legal 2'!A$2:C$232,3,FALSE),\" \")","v":" "}]
[null,{"$f":"IFERROR(VLOOKUP(P$8&ROWS($C$16:C33),'Listado-Base Legal 2'!A$2:C$232,3,FALSE),\" \")","v":" "}]
[null,{"$f":"IFERROR(VLOOKUP(P$8&ROWS($C$16:C34),'Listado-Base Legal 2'!A$2:C$232,3,FALSE),\" \")","v":" "}]
[null,{"$f":"IFERROR(VLOOKUP(P$8&ROWS($C$16:C35),'Listado-Base Legal 2'!A$2:C$232,3,FALSE),\" \")","v":" "}]
[null,{"$f":"IFERROR(VLOOKUP(P$8&ROWS($C$16:C36),'Listado-Base Legal 2'!A$2:C$232,3,FALSE),\" \")","v":" "}]
[null,{"$f":"IFERROR(VLOOKUP(P$8&ROWS($C$16:C37),'Listado-Base Legal 2'!A$2:C$232,3,FALSE),\" \")","v":" "}]
[null,{"$f":"IFERROR(VLOOKUP(P$8&ROWS($C$16:C38),'Listado-Base Legal 2'!A$2:C$232,3,FALSE),\" \")","v":" "}]
[null,{"$f":"IFERROR(VLOOKUP(P$8&ROWS($C$16:C39),'Listado-Base Legal 2'!A$2:C$232,3,FALSE),\" \")","v":" "}]
[null,{"$f":"IFERROR(VLOOKUP(P$8&ROWS($C$16:C40),'Listado-Base Legal 2'!A$2:C$232,3,FALSE),\" \")","v":" "}]
[null,{"$f":"IFERROR(VLOOKUP(P$8&ROWS($C$16:C41),'Listado-Base Legal 2'!A$2:C$232,3,FALSE),\" \")","v":" "}]
[null,{"$f":"IFERROR(VLOOKUP(P$8&ROWS($C$16:C42),'Listado-Base Legal 2'!A$2:C$232,3,FALSE),\" \")","v":" "}]
[null,{"$f":"IFERROR(VLOOKUP(P$8&ROWS($C$16:C43),'Listado-Base Legal 2'!A$2:C$232,3,FALSE),\" \")","v":" "}]
[null,{"$f":"IFERROR(VLOOKUP(P$8&ROWS($C$16:C44),'Listado-Base Legal 2'!A$2:C$232,3,FALSE),\" \")","v":" "}]
[null,{"$f":"IFERROR(VLOOKUP(P$8&ROWS($C$16:C45),'Listado-Base Legal 2'!A$2:C$232,3,FALSE),\" \")","v":" "}]
[null,{"$f":"IFERROR(VLOOKUP(P$8&ROWS($C$16:C46),'Listado-Base Legal 2'!A$2:C$232,3,FALSE),\" \")","v":" "}]
[null,{"$f":"IFERROR(VLOOKUP(P$8&ROWS($C$16:C47),'Listado-Base Legal 2'!A$2:C$232,3,FALSE),\" \")","v":" "}]
[null,{"$f":"IFERROR(VLOOKUP(P$8&ROWS($C$16:C48),'Listado-Base Legal 2'!A$2:C$232,3,FALSE),\" \")","v":" "}]
[null,{"$f":"IFERROR(VLOOKUP(P$8&ROWS($C$16:C49),'Listado-Base Legal 2'!A$2:C$232,3,FALSE),\" \")","v":" "}]
[null,{"$f":"IFERROR(VLOOKUP(P$8&ROWS($C$16:C50),'Listado-Base Legal 2'!A$2:C$232,3,FALSE),\" \")","v":" "}]
[null,{"$f":"IFERROR(VLOOKUP(P$8&ROWS($C$16:C51),'Listado-Base Legal 2'!A$2:C$232,3,FALSE),\" \")","v":" "}]
[null,{"$f":"IFERROR(VLOOKUP(P$8&ROWS($C$16:C52),'Listado-Base Legal 2'!A$2:C$232,3,FALSE),\" \")","v":" "}]
[null,{"$f":"IFERROR(VLOOKUP(P$8&ROWS($C$16:C53),'Listado-Base Legal 2'!A$2:C$232,3,FALSE),\" \")","v":" "}]
[null,{"$f":"IFERROR(VLOOKUP(P$8&ROWS($C$16:C54),'Listado-Base Legal 2'!A$2:C$232,3,FALSE),\" \")","v":" "}]
[null,{"$f":"IFERROR(VLOOKUP(P$8&ROWS($C$16:C55),'Listado-Base Legal 2'!A$2:C$232,3,FALSE),\" \")","v":" "}]
[null,{"$f":"IFERROR(VLOOKUP(P$8&ROWS($C$16:C56),'Listado-Base Legal 2'!A$2:C$232,3,FALSE),\" \")","v":" "}]
[null,{"$f":"IFERROR(VLOOKUP(P$8&ROWS($C$16:C57),'Listado-Base Legal 2'!A$2:C$232,3,FALSE),\" \")","v":" "}]
[null,{"$f":"IFERROR(VLOOKUP(P$8&ROWS($C$16:C58),'Listado-Base Legal 2'!A$2:C$232,3,FALSE),\" \")","v":" "}]
[null,{"$f":"IFERROR(VLOOKUP(P$8&ROWS($C$16:C59),'Listado-Base Legal 2'!A$2:C$232,3,FALSE),\" \")","v":" "}]
[null,{"$f":"IFERROR(VLOOKUP(P$8&ROWS($C$16:C60),'Listado-Base Legal 2'!A$2:C$232,3,FALSE),\" \")","v":" "}]
[null,{"$f":"IFERROR(VLOOKUP(P$8&ROWS($C$16:C61),'Listado-Base Legal 2'!A$2:C$232,3,FALSE),\" \")","v":" "}]
[null,{"$f":"IFERROR(VLOOKUP(P$8&ROWS($C$16:C62),'Listado-Base Legal 2'!A$2:C$232,3,FALSE),\" \")","v":" "}]
[null,{"$f":"IFERROR(VLOOKUP(P$8&ROWS($C$16:C63),'Listado-Base Legal 2'!A$2:C$232,3,FALSE),\" \")","v":" "}]
[null,{"$f":"IFERROR(VLOOKUP(P$8&ROWS($C$16:C64),'Listado-Base Legal 2'!A$2:C$232,3,FALSE),\" \")","v":" "}]
[null,{"$f":"IFERROR(VLOOKUP(P$8&ROWS($C$16:C65),'Listado-Base Legal 2'!A$2:C$232,3,FALSE),\" \")","v":" "}]
[null,{"$f":"IFERROR(VLOOKUP(P$8&ROWS($C$16:C66),'Listado-Base Legal 2'!A$2:C$232,3,FALSE),\" \")","v":" "}]
[null,{"$f":"IFERROR(VLOOKUP(P$8&ROWS($C$16:C67),'Listado-Base Legal 2'!A$2:C$232,3,FALSE),\" \")","v":" "}]
[null,{"$f":"IFERROR(VLOOKUP(P$8&ROWS($C$16:C68),'Listado-Base Legal 2'!A$2:C$232,3,FALSE),\" \")","v":" "}]
[null,{"$f":"IFERROR(VLOOKUP(P$8&ROWS($C$16:C69),'Listado-Base Legal 2'!A$2:C$232,3,FALSE),\" \")","v":" "}]
[null,{"$f":"IFERROR(VLOOKUP(P$8&ROWS($C$16:C70),'Listado-Base Legal 2'!A$2:C$232,3,FALSE),\" \")","v":" "}]
[null,{"$f":"IFERROR(VLOOKUP(P$8&ROWS($C$16:C71),'Listado-Base Legal 2'!A$2:C$232,3,FALSE),\" \")","v":" "}]
[null,{"$f":"IFERROR(VLOOKUP(P$8&ROWS($C$16:C72),'Listado-Base Legal 2'!A$2:C$232,3,FALSE),\" \")","v":" "}]
[null,{"$f":"IFERROR(VLOOKUP(P$8&ROWS($C$16:C73),'Listado-Base Legal 2'!A$2:C$232,3,FALSE),\" \")","v":" "}]
[null,{"$f":"IFERROR(VLOOKUP(P$8&ROWS($C$16:C74),'Listado-Base Legal 2'!A$2:C$232,3,FALSE),\" \")","v":" "}]
[null,{"$f":"IFERROR(VLOOKUP(P$8&ROWS($C$16:C75),'Listado-Base Legal 2'!A$2:C$232,3,FALSE),\" \")","v":" "}]
[null,{"$f":"IFERROR(VLOOKUP(P$8&ROWS($C$16:C76),'Listado-Base Legal 2'!A$2:C$232,3,FALSE),\" \")","v":" "}]
[null,{"$f":"IFERROR(VLOOKUP(P$8&ROWS($C$16:C77),'Listado-Base Legal 2'!A$2:C$232,3,FALSE),\" \")","v":" "}]
[null,{"$f":"IFERROR(VLOOKUP(P$8&ROWS($C$16:C78),'Listado-Base Legal 2'!A$2:C$232,3,FALSE),\" \")","v":" "}]
[null,{"$f":"IFERROR(VLOOKUP(P$8&ROWS($C$16:C79),'Listado-Base Legal 2'!A$2:C$232,3,FALSE),\" \")","v":" "}]
[null,{"$f":"IFERROR(VLOOKUP(P$8&ROWS($C$16:C80),'Listado-Base Legal 2'!A$2:C$232,3,FALSE),\" \")","v":" "}]
[null,{"$f":"IFERROR(VLOOKUP(P$8&ROWS($C$16:C81),'Listado-Base Legal 2'!A$2:C$232,3,FALSE),\" \")","v":" "}]
[null,{"$f":"IFERROR(VLOOKUP(P$8&ROWS($C$16:C82),'Listado-Base Legal 2'!A$2:C$232,3,FALSE),\" \")","v":" "}]
[null,{"$f":"IFERROR(VLOOKUP(P$8&ROWS($C$16:C83),'Listado-Base Legal 2'!A$2:C$232,3,FALSE),\" \")","v":" "}]
[null,{"$f":"IFERROR(VLOOKUP(P$8&ROWS($C$16:C84),'Listado-Base Legal 2'!A$2:C$232,3,FALSE),\" \")","v":" "}]
[null,{"$f":"IFERROR(VLOOKUP(P$8&ROWS($C$16:C85),'Listado-Base Legal 2'!A$2:C$232,3,FALSE),\" \")","v":" "}]
[null,{"$f":"IFERROR(VLOOKUP(P$8&ROWS($C$16:C86),'Listado-Base Legal 2'!A$2:C$232,3,FALSE),\" \")","v":" "}]
[null,{"$f":"IFERROR(VLOOKUP(P$8&ROWS($C$16:C87),'Listado-Base Legal 2'!A$2:C$232,3,FALSE),\" \")","v":" "}]
[null,{"$f":"IFERROR(VLOOKUP(P$8&ROWS($C$16:C88),'Listado-Base Legal 2'!A$2:C$232,3,FALSE),\" \")","v":" "}]
[null,{"$f":"IFERROR(VLOOKUP(P$8&ROWS($C$16:C89),'Listado-Base Legal 2'!A$2:C$232,3,FALSE),\" \")","v":" "}]
[null,{"$f":"IFERROR(VLOOKUP(P$8&ROWS($C$16:C90),'Listado-Base Legal 2'!A$2:C$232,3,FALSE),\" \")","v":" "}]
[null,{"$f":"IFERROR(VLOOKUP(P$8&ROWS($C$16:C91),'Listado-Base Legal 2'!A$2:C$232,3,FALSE),\" \")","v":" "}]
[null,{"$f":"IFERROR(VLOOKUP(P$8&ROWS($C$16:C92),'Listado-Base Legal 2'!A$2:C$232,3,FALSE),\" \")","v":" "}]
[null,{"$f":"IFERROR(VLOOKUP(P$8&ROWS($C$16:C93),'Listado-Base Legal 2'!A$2:C$232,3,FALSE),\" \")","v":" "}]
[null,{"$f":"IFERROR(VLOOKUP(P$8&ROWS($C$16:C94),'Listado-Base Legal 2'!A$2:C$232,3,FALSE),\" \")","v":" "}]
[null,{"$f":"IFERROR(VLOOKUP(P$8&ROWS($C$16:C95),'Listado-Base Legal 2'!A$2:C$232,3,FALSE),\" \")","v":" "}]
[null,{"$f":"IFERROR(VLOOKUP(P$8&ROWS($C$16:C96),'Listado-Base Legal 2'!A$2:C$232,3,FALSE),\" \")","v":" "}]
[null,{"$f":"IFERROR(VLOOKUP(P$8&ROWS($C$16:C97),'Listado-Base Legal 2'!A$2:C$232,3,FALSE),\" \")","v":" "}]
[null,{"$f":"IFERROR(VLOOKUP(P$8&ROWS($C$16:C98),'Listado-Base Legal 2'!A$2:C$232,3,FALSE),\" \")","v":" "}]
[null,{"$f":"IFERROR(VLOOKUP(P$8&ROWS($C$16:C99),'Listado-Base Legal 2'!A$2:C$232,3,FALSE),\" \")","v":" "}]
[null,{"$f":"IFERROR(VLOOKUP(P$8&ROWS($C$16:C100),'Listado-Base Legal 2'!A$2:C$232,3,FALSE),\" \")","v":" "}]
[null,{"$f":"IFERROR(VLOOKUP(P$8&ROWS($C$16:C101),'Listado-Base Legal 2'!A$2:C$232,3,FALSE),\" \")","v":" "}]
[null,{"$f":"IFERROR(VLOOKUP(P$8&ROWS($C$16:C102),'Listado-Base Legal 2'!A$2:C$232,3,FALSE),\" \")","v":" "}]
[null,{"$f":"IFERROR(VLOOKUP(P$8&ROWS($C$16:C103),'Listado-Base Legal 2'!A$2:C$232,3,FALSE),\" \")","v":" "}]
[null,{"$f":"IFERROR(VLOOKUP(P$8&ROWS($C$16:C104),'Listado-Base Legal 2'!A$2:C$232,3,FALSE),\" \")","v":" "}]
[null,{"$f":"IFERROR(VLOOKUP(P$8&ROWS($C$16:C105),'Listado-Base Legal 2'!A$2:C$232,3,FALSE),\" \")","v":" "}]
[null,{"$f":"IFERROR(VLOOKUP(P$8&ROWS($C$16:C106),'Listado-Base Legal 2'!A$2:C$232,3,FALSE),\" \")","v":" "}]
[null,{"$f":"IFERROR(VLOOKUP(P$8&ROWS($C$16:C107),'Listado-Base Legal 2'!A$2:C$232,3,FALSE),\" \")","v":" "}]
[null,{"$f":"IFERROR(VLOOKUP(P$8&ROWS($C$16:C108),'Listado-Base Legal 2'!A$2:C$232,3,FALSE),\" \")","v":" "}]
[null,{"$f":"IFERROR(VLOOKUP(P$8&ROWS($C$16:C109),'Listado-Base Legal 2'!A$2:C$232,3,FALSE),\" \")","v":" "}]
[null,{"$f":"IFERROR(VLOOKUP(P$8&ROWS($C$16:C110),'Listado-Base Legal 2'!A$2:C$232,3,FALSE),\" \")","v":" "}]
[null,{"$f":"IFERROR(VLOOKUP(P$8&ROWS($C$16:C111),'Listado-Base Legal 2'!A$2:C$232,3,FALSE),\" \")","v":" "}]
[null,{"$f":"IFERROR(VLOOKUP(P$8&ROWS($C$16:C112),'Listado-Base Legal 2'!A$2:C$232,3,FALSE),\" \")","v":" "}]
[null,{"$f":"IFERROR(VLOOKUP(P$8&ROWS($C$16:C113),'Listado-Base Legal 2'!A$2:C$232,3,FALSE),\" \")","v":" "}]
[null,{"$f":"IFERROR(VLOOKUP(P$8&ROWS($C$16:C114),'Listado-Base Legal 2'!A$2:C$232,3,FALSE),\" \")","v":" "}]
[null,{"$f":"IFERROR(VLOOKUP(P$8&ROWS($C$16:C115),'Listado-Base Legal 2'!A$2:C$232,3,FALSE),\" \")","v":" "}]
[null,{"$f":"IFERROR(VLOOKUP(P$8&ROWS($C$16:C116),'Listado-Base Legal 2'!A$2:C$232,3,FALSE),\" \")","v":" "}]

{"sheet":"Datos Contacto","index":9,"n_rows":30,"n_cols":16,"rows_kept":30,"cut":false,"hidden":true,"merged":[[49,1,49,3],[49,4,49,6],[49,7,49,9],[49,10,49,11],[49,12,49,13],[48,1,48,3],[48,4,48,6],[48,7,48,9],[48,10,48,11],[48,12,48,13],[47,1,47,3],[47,4,47,6],[47,7,47,9],[47,10,47,11],[47,12,47,13],[46,1,46,3],[46,4,46,6],[46,7,46,9],[46,10,46,11],[46,12,46,13],[45,1,45,3],[45,4,45,6],[45,7,45,9],[45,10,45,11],[45,12,45,13],[44,1,44,3],[44,4,44,6],[44,7,44,9],[44,10,44,11],[44,12,44,13],[43,1,43,3],[43,4,43,6],[43,7,43,9],[43,10,43,11],[43,12,43,13],[42,1,42,3],[42,4,42,6],[42,7,42,9],[42,10,42,11],[42,12,42,13],[41,1,41,3],[41,4,41,6],[41,7,41,9],[41,10,41,11],[41,12,41,13],[40,1,40,3],[40,4,40,6],[40,7,40,9],[40,10,40,11],[40,12,40,13],[39,1,39,3],[39,4,39,6],[39,7,39,9],[39,10,39,11],[39,12,39,13],[38,1,38,3],[38,4,38,6],[38,7,38,9],[38,10,38,11],[38,12,38,13],[37,1,37,3],[37,4,37,6],[37,7,37,9],[37,10,37,11],[37,12,37,13],[36,1,36,3],[36,4,36,6],[36,7,36,9],[36,10,36,11],[36,12,36,13],[35,1,35,3],[35,4,35,6],[35,7,35,9],[35,10,35,11],[35,12,35,13],[34,1,34,3],[34,4,34,6],[34,7,34,9],[34,10,34,11],[34,12,34,13],[33,1,33,3],[33,4,33,6],[33,7,33,9],[33,10,33,11],[33,12,33,13],[32,1,32,3],[32,4,32,6],[32,7,32,9],[32,10,32,11],[32,12,32,13],[31,1,31,3],[31,4,31,6],[31,7,31,9],[31,10,31,11],[31,12,31,13],[30,1,30,3],[30,4,30,6],[30,7,30,9],[30,10,30,11],[30,12,30,13],[29,1,29,3],[29,4,29,6],[29,7,29,9],[29,10,29,11],[29,12,29,13],[28,1,28,3],[28,4,28,6],[28,7,28,9],[28,10,28,11],[28,12,28,13],[27,1,27,3],[27,4,27,6],[27,7,27,9],[27,10,27,11],[27,12,27,13],[26,1,26,3],[26,4,26,6],[26,7,26,9],[26,10,26,11],[26,12,26,13],[25,1,25,3],[25,4,25,6],[25,7,25,9],[25,10,25,11],[25,12,25,13],[24,1,24,3],[24,4,24,6],[24,7,24,9],[24,10,24,11],[24,12,24,13],[23,1,23,3],[23,4,23,6],[23,7,23,9],[23,10,23,11],[23,12,23,13],[22,1,22,3],[22,4,22,6],[22,7,22,9],[22,10,22,11],[22,12,22,13],[21,1,21,3],[21,4,21,6],[21,7,21,9],[21,10,21,11],[21,12,21,13],[20,1,20,3],[20,4,20,6],[20,7,20,9],[20,10,20,11],[20,12,20,13],[19,1,19,3],[19,4,19,6],[19,7,19,9],[19,10,19,11],[19,12,19,13],[18,1,18,3],[18,4,18,6],[18,7,18,9],[18,10,18,11],[18,12,18,13],[17,1,17,3],[17,4,17,6],[17,7,17,9],[17,10,17,11],[17,12,17,13],[16,1,16,3],[16,4,16,6],[16,7,16,9],[16,10,16,11],[16,12,16,13],[15,1,15,3],[15,4,15,6],[15,7,15,9],[15,10,15,11],[15,12,15,13],[13,4,13,6],[13,7,13,9],[13,10,13,11],[13,12,13,13],[14,1,14,3],[14,4,14,6],[14,7,14,9],[14,10,14,11],[14,12,14,13],[12,1,12,3],[12,4,12,6],[12,7,12,9],[12,10,12,11],[12,12,12,13],[13,1,13,3],[5,1,5,7],[10,1,10,13],[11,12,11,13],[11,10,11,11],[11,7,11,9],[11,4,11,6],[11,1,11,3],[7,1,8,7],[7,8,8,13],[5,8,5,13]]}
[]
[]
[]
[]
[null,null,null,null,null,null,null,null,null,null,null,null,null,null,null,"RETORNAR"]
[null,"DATOS DE CONTACTO POR SISTEMA",null,null,null,null,null,null,"Seleccionar del listado el Sistema a consultar"]
[]
[null,"SISTEMA ADMINISTRATIVO Y/O FUNCIONALES EN CONSULTA",null,null,null,null,null,null,"01. Gestión de Recursos Humanos",null,null,null,null,null,null,{"$f":"I8","v":"01. Gestión de Recursos Humanos"}]
[]
[]
[null,"DEFINICIÓN Y FINES"]
[null,"Entidad",null,null,"Unidad Orgánica",null,null,"Nombre",null,null,"Telefono",null,"Email"]
[null,{"$f":"IFERROR(VLOOKUP(P$8&ROWS($B$12:B12),'Listado-Contactos'!A3:G76,3,FALSE),\" \")","v":"Autoridad Nacional del Servicio Civil - SERVIR"},null,null,{"$f":"IFERROR(VLOOKUP(P$8&ROWS($B$12:B12),'Listado-Contactos'!A3:G76,4,FALSE),\" \")","v":"Gerencia de Políticas de Gestión del Servicio Civil"},null,null,{"$f":"IFERROR(VLOOKUP(P$8&ROWS($B$12:B12),'Listado-Contactos'!A3:G76,5,FALSE),\" \")","v":"Cinthya Su"},null,null,{"$f":"IFERROR(VLOOKUP(P$8&ROWS($B$12:B12),'Listado-Contactos'!A3:G76,6,FALSE),\" \")","v":0},null,{"$f":"IFERROR(VLOOKUP(P$8&ROWS($B$12:B12),'Listado-Contactos'!A3:G76,7,FALSE),\" \")","v":"csu@servir.gob.pe"}]
[null,{"$f":"IFERROR(VLOOKUP(P$8&ROWS($B$12:B13),'Listado-Contactos'!A5:G77,3,FALSE),\" \")","v":" "},null,null,{"$f":"IFERROR(VLOOKUP(P$8&ROWS($B$12:B13),'Listado-Contactos'!A5:G77,4,FALSE),\" \")","v":" "},null,null,{"$f":"IFERROR(VLOOKUP(P$8&ROWS($B$12:B13),'Listado-Contactos'!A5:G77,5,FALSE),\" \")","v":" "},null,null,{"$f":"IFERROR(VLOOKUP(P$8&ROWS($B$12:B13),'Listado-Contactos'!A5:G77,6,FALSE),\" \")","v":" "},null,{"$f":"IFERROR(VLOOKUP(P$8&ROWS($B$12:B13),'Listado-Contactos'!A5:G77,7,FALSE),\" \")","v":" "}]
[null,{"$f":"IFERROR(VLOOKUP(P$8&ROWS($B$12:B14),'Listado-Contactos'!A9:G78,3,FALSE),\" \")","v":" "},null,null,{"$f":"IFERROR(VLOOKUP(P$8&ROWS($B$12:B14),'Listado-Contactos'!A9:G78,4,FALSE),\" \")","v":" "},null,null,{"$f":"IFERROR(VLOOKUP(P$8&ROWS($B$12:B14),'Listado-Contactos'!A9:G78,5,FALSE),\" \")","v":" "},null,null,{"$f":"IFERROR(VLOOKUP(P$8&ROWS($B$12:B14),'Listado-Contactos'!A9:G78,6,FALSE),\" \")","v":" "},null,{"$f":"IFERROR(VLOOKUP(P$8&ROWS($B$12:B14),'Listado-Contactos'!A9:G78,7,FALSE),\" \")","v":" "}]
[null,{"$f":"IFERROR(VLOOKUP(P$8&ROWS($B$12:B15),'Listado-Contactos'!A10:G79,3,FALSE),\" \")","v":" "},null,null,{"$f":"IFERROR(VLOOKUP(P$8&ROWS($B$12:B15),'Listado-Contactos'!A10:G79,4,FALSE),\" \")","v":" "},null,null,{"$f":"IFERROR(VLOOKUP(P$8&ROWS($B$12:B15),'Listado-Contactos'!A10:G79,5,FALSE),\" \")","v":" "},null,null,{"$f":"IFERROR(VLOOKUP(P$8&ROWS($B$12:B15),'Listado-Contactos'!A10:G79,6,FALSE),\" \")","v":" "},null,{"$f":"IFERROR(VLOOKUP(P$8&ROWS($B$12:B15),'Listado-Contactos'!A10:G79,7,FALSE),\" \")","v":" "}]
[null,{"$f":"IFERROR(VLOOKUP(P$8&ROWS($B$12:B16),'Listado-Contactos'!A14:G80,3,FALSE),\" \")","v":" "},null,null,{"$f":"IFERROR(VLOOKUP(P$8&ROWS($B$12:B16),'Listado-Contactos'!A14:G80,4,FALSE),\" \")","v":" "},null,null,{"$f":"IFERROR(VLOOKUP(P$8&ROWS($B$12:B16),'Listado-Contactos'!A14:G80,5,FALSE),\" \")","v":" "},null,null,{"$f":"IFERROR(VLOOKUP(P$8&ROWS($B$12:B16),'Listado-Contactos'!A14:G80,6,FALSE),\" \")","v":" "},null,{"$f":"IFERROR(VLOOKUP(P$8&ROWS($B$12:B16),'Listado-Contactos'!A14:G80,7,FALSE),\" \")","v":" "}]
[null,{"$f":"IFERROR(VLOOKUP(P$8&ROWS($B$12:B17),'Listado-Contactos'!A16:G81,3,FALSE),\" \")","v":" "},null,null,{"$f":"IFERROR(VLOOKUP(P$8&ROWS($B$12:B17),'Listado-Contactos'!A16:G81,4,FALSE),\" \")","v":" "},null,null,{"$f":"IFERROR(VLOOKUP(P$8&ROWS($B$12:B17),'Listado-Contactos'!A16:G81,5,FALSE),\" \")","v":" "},null,null,{"$f":"IFERROR(VLOOKUP(P$8&ROWS($B$12:B17),'Listado-Contactos'!A16:G81,6,FALSE),\" \")","v":" "},null,{"$f":"IFERROR(VLOOKUP(P$8&ROWS($B$12:B17),'Listado-Contactos'!A16:G81,7,FALSE),\" \")","v":" "}]
[null,{"$f":"IFERROR(VLOOKUP(P$8&ROWS($B$12:B18),'Listado-Contactos'!A18:G82,3,FALSE),\" \")","v":" "},null,null,{"$f":"IFERROR(VLOOKUP(P$8&ROWS($B$12:B18),'Listado-Contactos'!A18:G82,4,FALSE),\" \")","v":" "},null,null,{"$f":"IFERROR(VLOOKUP(P$8&ROWS($B$12:B18),'Listado-Contactos'!A18:G82,5,FALSE),\" \")","v":" "},null,null,{"$f":"IFERROR(VLOOKUP(P$8&ROWS($B$12:B18),'Listado-Contactos'!A18:G82,6,FALSE),\" \")","v":" "},null,{"$f":"IFERROR(VLOOKUP(P$8&ROWS($B$12:B18),'Listado-Contactos'!A18:G82,7,FALSE),\" \")","v":" "}]
[null,{"$f":"IFERROR(VLOOKUP(P$8&ROWS($B$12:B19),'Listado-Contactos'!A19:G83,3,FALSE),\" \")","v":" "},null,null,{"$f":"IFERROR(VLOOKUP(P$8&ROWS($B$12:B19),'Listado-Contactos'!A19:G83,4,FALSE),\" \")","v":" "},null,null,{"$f":"IFERROR(VLOOKUP(P$8&ROWS($B$12:B19),'Listado-Contactos'!A19:G83,5,FALSE),\" \")","v":" "},null,null,{"$f":"IFERROR(VLOOKUP(P$8&ROWS($B$12:B19),'Listado-Contactos'!A19:G83,6,FALSE),\" \")","v":" "},null,{"$f":"IFERROR(VLOOKUP(P$8&ROWS($B$12:B19),'Listado-Contactos'!A19:G83,7,FALSE),\" \")","v":" "}]
[null,{"$f":"IFERROR(VLOOKUP(P$8&ROWS($B$12:B20),'Listado-Contactos'!A24:G84,3,FALSE),\" \")","v":" "},null,null,{"$f":"IFERROR(VLOOKUP(P$8&ROWS($B$12:B20),'Listado-Contactos'!A24:G84,4,FALSE),\" \")","v":" "},null,null,{"$f":"IFERROR(VLOOKUP(P$8&ROWS($B$12:B20),'Listado-Contactos'!A24:G84,5,FALSE),\" \")","v":" "},null,null,{"$f":"IFERROR(VLOOKUP(P$8&ROWS($B$12:B20),'Listado-Contactos'!A24:G84,6,FALSE),\" \")","v":" "},null,{"$f":"IFERROR(VLOOKUP(P$8&ROWS($B$12:B20),'Listado-Contactos'!A24:G84,7,FALSE),\" \")","v":" "}]
[null,{"$f":"IFERROR(VLOOKUP(P$8&ROWS($B$12:B21),'Listado-Contactos'!A25:G85,3,FALSE),\" \")","v":" "},null,null,{"$f":"IFERROR(VLOOKUP(P$8&ROWS($B$12:B21),'Listado-Contactos'!A25:G85,4,FALSE),\" \")","v":" "},null,null,{"$f":"IFERROR(VLOOKUP(P$8&ROWS($B$12:B21),'Listado-Contactos'!A25:G85,5,FALSE),\" \")","v":" "},null,null,{"$f":"IFERROR(VLOOKUP(P$8&ROWS($B$12:B21),'Listado-Contactos'!A25:G85,6,FALSE),\" \")","v":" "},null,{"$f":"IFERROR(VLOOKUP(P$8&ROWS($B$12:B21),'Listado-Contactos'!A25:G85,7,FALSE),\" \")","v":" "}]
[null,{"$f":"IFERROR(VLOOKUP(P$8&ROWS($B$12:B22),'Listado-Contactos'!A26:G86,3,FALSE),\" \")","v":" "},null,null,{"$f":"IFERROR(VLOOKUP(P$8&ROWS($B$12:B22),'Listado-Contactos'!A26:G86,4,FALSE),\" \")","v":" "},null,null,{"$f":"IFERROR(VLOOKUP(P$8&ROWS($B$12:B22),'Listado-Contactos'!A26:G86,5,FALSE),\" \")","v":" "},null,null,{"$f":"IFERROR(VLOOKUP(P$8&ROWS($B$12:B22),'Listado-Contactos'!A26:G86,6,FALSE),\" \")","v":" "},null,{"$f":"IFERROR(VLOOKUP(P$8&ROWS($B$12:B22),'Listado-Contactos'!A26:G86,7,FALSE),\" \")","v":" "}]
[null,{"$f":"IFERROR(VLOOKUP(P$8&ROWS($B$12:B23),'Listado-Contactos'!A27:G87,3,FALSE),\" \")","v":" "},null,null,{"$f":"IFERROR(VLOOKUP(P$8&ROWS($B$12:B23),'Listado-Contactos'!A27:G87,4,FALSE),\" \")","v":" "},null,null,{"$f":"IFERROR(VLOOKUP(P$8&ROWS($B$12:B23),'Listado-Contactos'!A27:G87,5,FALSE),\" \")","v":" "},null,null,{"$f":"IFERROR(VLOOKUP(P$8&ROWS($B$12:B23),'Listado-Contactos'!A27:G87,6,FALSE),\" \")","v":" "},null,{"$f":"IFERROR(VLOOKUP(P$8&ROWS($B$12:B23),'Listado-Contactos'!A27:G87,7,FALSE),\" \")","v":" "}]
[null,{"$f":"IFERROR(VLOOKUP(P$8&ROWS($B$12:B24),'Listado-Contactos'!A28:G88,3,FALSE),\" \")","v":" "},null,null,{"$f":"IFERROR(VLOOKUP(P$8&ROWS($B$12:B24),'Listado-Contactos'!A28:G88,4,FALSE),\" \")","v":" "},null,null,{"$f":"IFERROR(VLOOKUP(P$8&ROWS($B$12:B24),'Listado-Contactos'!A28:G88,5,FALSE),\" \")","v":" "},null,null,{"$f":"IFERROR(VLOOKUP(P$8&ROWS($B$12:B24),'Listado-Contactos'!A28:G88,6,FALSE),\" \")","v":" "},null,{"$f":"IFERROR(VLOOKUP(P$8&ROWS($B$12:B24),'Listado-Contactos'!A28:G88,7,FALSE),\" \")","v":" "}]
[null,{"$f":"IFERROR(VLOOKUP(P$8&ROWS($B$12:B25),'Listado-Contactos'!A29:G89,3,FALSE),\" \")","v":" "},null,null,{"$f":"IFERROR(VLOOKUP(P$8&ROWS($B$12:B25),'Listado-Contactos'!A29:G89,4,FALSE),\" \")","v":" "},null,null,{"$f":"IFERROR(VLOOKUP(P$8&ROWS($B$12:B25),'Listado-Contactos'!A29:G89,5,FALSE),\" \")","v":" "},null,null,{"$f":"IFERROR(VLOOKUP(P$8&ROWS($B$12:B25),'Listado-Contactos'!A29:G89,6,FALSE),\" \")","v":" "},null,{"$f":"IFERROR(VLOOKUP(P$8&ROWS($B$12:B25),'Listado-Contactos'!A29:G89,7,FALSE),\" \")","v":" "}]
[null,{"$f":"IFERROR(VLOOKUP(P$8&ROWS($B$12:B26),'Listado-Contactos'!A30:G90,3,FALSE),\" \")","v":" "},null,null,{"$f":"IFERROR(VLOOKUP(P$8&ROWS($B$12:B26),'Listado-Contactos'!A30:G90,4,FALSE),\" \")","v":" "},null,null,{"$f":"IFERROR(VLOOKUP(P$8&ROWS($B$12:B26),'Listado-Contactos'!A30:G90,5,FALSE),\" \")","v":" "},null,null,{"$f":"IFERROR(VLOOKUP(P$8&ROWS($B$12:B26),'Listado-Contactos'!A30:G90,6,FALSE),\" \")","v":" "},null,{"$f":"IFERROR(VLOOKUP(P$8&ROWS($B$12:B26),'Listado-Contactos'!A30:G90,7,FALSE),\" \")","v":" "}]
[null,{"$f":"IFERROR(VLOOKUP(P$8&ROWS($B$12:B27),'Listado-Contactos'!A31:G91,3,FALSE),\" \")","v":" "},null,null,{"$f":"IFERROR(VLOOKUP(P$8&ROWS($B$12:B27),'Listado-Contactos'!A31:G91,4,FALSE),\" \")","v":" "},null,null,{"$f":"IFERROR(VLOOKUP(P$8&ROWS($B$12:B27),'Listado-Contactos'!A31:G91,5,FALSE),\" \")","v":" "},null,null,{"$f":"IFERROR(VLOOKUP(P$8&ROWS($B$12:B27),'Listado-Contactos'!A31:G91,6,FALSE),\" \")","v":" "},null,{"$f":"IFERROR(VLOOKUP(P$8&ROWS($B$12:B27),'Listado-Contactos'!A31:G91,7,FALSE),\" \")","v":" "}]
[null,{"$f":"IFERROR(VLOOKUP(P$8&ROWS($B$12:B28),'Listado-Contactos'!A33:G92,3,FALSE),\" \")","v":" "},null,null,{"$f":"IFERROR(VLOOKUP(P$8&ROWS($B$12:B28),'Listado-Contactos'!A33:G92,4,FALSE),\" \")","v":" "},null,null,{"$f":"IFERROR(VLOOKUP(P$8&ROWS($B$12:B28),'Listado-Contactos'!A33:G92,5,FALSE),\" \")","v":" "},null,null,{"$f":"IFERROR(VLOOKUP(P$8&ROWS($B$12:B28),'Listado-Contactos'!A33:G92,6,FALSE),\" \")","v":" "},null,{"$f":"IFERROR(VLOOKUP(P$8&ROWS($B$12:B28),'Listado-Contactos'!A33:G92,7,FALSE),\" \")","v":" "}]
[null,{"$f":"IFERROR(VLOOKUP(P$8&ROWS($B$12:B29),'Listado-Contactos'!A35:G93,3,FALSE),\" \")","v":" "},null,null,{"$f":"IFERROR(VLOOKUP(P$8&ROWS($B$12:B29),'Listado-Contactos'!A35:G93,4,FALSE),\" \")","v":" "},null,null,{"$f":"IFERROR(VLOOKUP(P$8&ROWS($B$12:B29),'Listado-Contactos'!A35:G93,5,FALSE),\" \")","v":" "},null,null,{"$f":"IFERROR(VLOOKUP(P$8&ROWS($B$12:B29),'Listado-Contactos'!A35:G93,6,FALSE),\" \")","v":" "},null,{"$f":"IFERROR(VLOOKUP(P$8&ROWS($B$12:B29),'Listado-Contactos'!A35:G93,7,FALSE),\" \")","v":" "}]

{"sheet":"FAQ","index":10,"n_rows":70,"n_cols":16,"rows_kept":70,"cut":false,"hidden":true,"merged":[[69,1,69,13],[64,1,64,13],[65,1,65,13],[66,1,66,13],[67,1,67,13],[68,1,68,13],[59,1,59,13],[60,1,60,13],[61,1,61,13],[62,1,62,13],[63,1,63,13],[54,1,54,13],[55,1,55,13],[56,1,56,13],[57,1,57,13],[58,1,58,13],[49,1,49,13],[50,1,50,13],[51,1,51,13],[52,1,52,13],[53,1,53,13],[44,1,44,13],[45,1,45,13],[46,1,46,13],[47,1,47,13],[48,1,48,13],[17,1,17,13],[36,1,36,13],[37,1,37,13],[38,1,38,13],[39,1,39,13],[30,1,30,13],[31,1,31,13],[32,1,32,13],[33,1,33,13],[34,1,34,13],[35,1,35,13],[24,1,24,13],[25,1,25,13],[26,1,26,13],[27,1,27,13],[28,1,28,13],[7,1,7,7],[7,8,7,13],[9,1,9,13],[10,1,10,13],[11,1,11,13],[40,1,40,13],[41,1,41,13],[42,1,42,13],[43,1,43,13],[12,1,12,13],[13,1,13,13],[14,1,14,13],[15,1,15,13],[16,1,16,13],[29,1,29,13],[18,1,18,13],[19,1,19,13],[20,1,20,13],[21,1,21,13],[22,1,22,13],[23,1,23,13]]}
[]
[]
[]
[]
[null,null,null,null,null,null,null,null,null,null,null,null,null,null,"RETORNAR"]
[null,"PREGUNTAS FRECUENTES\n",null,null,null,null,null,null,"Seleccionar del listado el Sistema a consultar"]
[]
[null,"SISTEMA ADMINISTRATIVO Y/O FUNCIONAL EN CONSULTA",null,null,null,null,null,null,"36. Centro de Atención Integral del Adulto Mayor",null,null,null,null,null,null,{"$f":"I8","v":"36. Centro de Atención Integral del Adulto Mayor"}]
[]
[null,{"$f":"IFERROR(VLOOKUP(P$8&ROWS($C$10:C10),'Listado-Definicion 2'!$A$80:$C$611,3,FALSE),\" \")","v":"1. ¿Qué le debería solicitar a la gestión saliente?"}]
[null,{"$f":"IFERROR(VLOOKUP(P$8&ROWS($C$10:C11),'Listado-Definicion 2'!$A$80:$C$611,3,FALSE),\" \")","v":"Respuesta."}]
[null,{"$f":"IFERROR(VLOOKUP(P$8&ROWS($C$10:C12),'Listado-Definicion 2'!$A$80:$C$611,3,FALSE),\" \")","v":"§  Programas relacionados a la atención del adulto mayor"}]
[null,{"$f":"IFERROR(VLOOKUP(P$8&ROWS($C$10:C13),'Listado-Definicion 2'!$A$80:$C$611,3,FALSE),\" \")","v":"§  Registro de beneficiarios de los Programas de atención del adulto mayor"}]
[null,{"$f":"IFERROR(VLOOKUP(P$8&ROWS($C$10:C14),'Listado-Definicion 2'!$A$80:$C$611,3,FALSE),\" \")","v":"§  Informes de actividades ejecutadas"}]
[null,{"$f":"IFERROR(VLOOKUP(P$8&ROWS($C$10:C15),'Listado-Definicion 2'!$A$80:$C$611,3,FALSE),\" \")","v":" "}]
[null,{"$f":"IFERROR(VLOOKUP(P$8&ROWS($C$10:C16),'Listado-Definicion 2'!$A$80:$C$611,3,FALSE),\" \")","v":" "}]
[null,{"$f":"IFERROR(VLOOKUP(P$8&ROWS($C$10:C17),'Listado-Definicion 2'!$A$80:$C$611,3,FALSE),\" \")","v":" "}]
[null,{"$f":"IFERROR(VLOOKUP(P$8&ROWS($C$10:C18),'Listado-Definicion 2'!$A$80:$C$611,3,FALSE),\" \")","v":" "}]
[null,{"$f":"IFERROR(VLOOKUP(P$8&ROWS($C$10:C19),'Listado-Definicion 2'!$A$80:$C$611,3,FALSE),\" \")","v":" "}]
[null,{"$f":"IFERROR(VLOOKUP(P$8&ROWS($C$10:C20),'Listado-Definicion 2'!$A$80:$C$611,3,FALSE),\" \")","v":" "}]
[null,{"$f":"IFERROR(VLOOKUP(P$8&ROWS($C$10:C21),'Listado-Definicion 2'!$A$80:$C$611,3,FALSE),\" \")","v":" "}]
[null,{"$f":"IFERROR(VLOOKUP(P$8&ROWS($C$10:C22),'Listado-Definicion 2'!$A$80:$C$611,3,FALSE),\" \")","v":" "}]
[null,{"$f":"IFERROR(VLOOKUP(P$8&ROWS($C$10:C23),'Listado-Definicion 2'!$A$80:$C$611,3,FALSE),\" \")","v":" "}]
[null,{"$f":"IFERROR(VLOOKUP(P$8&ROWS($C$10:C24),'Listado-Definicion 2'!$A$80:$C$611,3,FALSE),\" \")","v":" "}]
[null,{"$f":"IFERROR(VLOOKUP(P$8&ROWS($C$10:C25),'Listado-Definicion 2'!$A$80:$C$611,3,FALSE),\" \")","v":" "}]
[null,{"$f":"IFERROR(VLOOKUP(P$8&ROWS($C$10:C26),'Listado-Definicion 2'!$A$80:$C$611,3,FALSE),\" \")","v":" "}]
[null,{"$f":"IFERROR(VLOOKUP(P$8&ROWS($C$10:C27),'Listado-Definicion 2'!$A$80:$C$611,3,FALSE),\" \")","v":" "}]
[null,{"$f":"IFERROR(VLOOKUP(P$8&ROWS($C$10:C28),'Listado-Definicion 2'!$A$80:$C$611,3,FALSE),\" \")","v":" "}]
[null,{"$f":"IFERROR(VLOOKUP(P$8&ROWS($C$10:C29),'Listado-Definicion 2'!$A$80:$C$611,3,FALSE),\" \")","v":" "}]
[null,{"$f":"IFERROR(VLOOKUP(P$8&ROWS($C$10:C30),'Listado-Definicion 2'!$A$80:$C$611,3,FALSE),\" \")","v":" "}]
[null,{"$f":"IFERROR(VLOOKUP(P$8&ROWS($C$10:C31),'Listado-Definicion 2'!$A$80:$C$611,3,FALSE),\" \")","v":" "}]
[null,{"$f":"IFERROR(VLOOKUP(P$8&ROWS($C$10:C32),'Listado-Definicion 2'!$A$80:$C$611,3,FALSE),\" \")","v":" "}]
[null,{"$f":"IFERROR(VLOOKUP(P$8&ROWS($C$10:C33),'Listado-Definicion 2'!$A$80:$C$611,3,FALSE),\" \")","v":" "}]
[null,{"$f":"IFERROR(VLOOKUP(P$8&ROWS($C$10:C34),'Listado-Definicion 2'!$A$80:$C$611,3,FALSE),\" \")","v":" "}]
[null,{"$f":"IFERROR(VLOOKUP(P$8&ROWS($C$10:C35),'Listado-Definicion 2'!$A$80:$C$611,3,FALSE),\" \")","v":" "}]
[null,{"$f":"IFERROR(VLOOKUP(P$8&ROWS($C$10:C36),'Listado-Definicion 2'!$A$80:$C$611,3,FALSE),\" \")","v":" "}]
[null,{"$f":"IFERROR(VLOOKUP(P$8&ROWS($C$10:C37),'Listado-Definicion 2'!$A$80:$C$611,3,FALSE),\" \")","v":" "}]
[null,{"$f":"IFERROR(VLOOKUP(P$8&ROWS($C$10:C38),'Listado-Definicion 2'!$A$80:$C$611,3,FALSE),\" \")","v":" "}]
[null,{"$f":"IFERROR(VLOOKUP(P$8&ROWS($C$10:C39),'Listado-Definicion 2'!$A$80:$C$611,3,FALSE),\" \")","v":" "}]
[null,{"$f":"IFERROR(VLOOKUP(P$8&ROWS($C$10:C40),'Listado-Definicion 2'!$A$80:$C$611,3,FALSE),\" \")","v":" "}]
[null,{"$f":"IFERROR(VLOOKUP(P$8&ROWS($C$10:C41),'Listado-Definicion 2'!$A$80:$C$611,3,FALSE),\" \")","v":" "}]
[null,{"$f":"IFERROR(VLOOKUP(P$8&ROWS($C$10:C42),'Listado-Definicion 2'!$A$80:$C$611,3,FALSE),\" \")","v":" "}]
[null,{"$f":"IFERROR(VLOOKUP(P$8&ROWS($C$10:C43),'Listado-Definicion 2'!$A$80:$C$611,3,FALSE),\" \")","v":" "}]
[null,{"$f":"IFERROR(VLOOKUP(P$8&ROWS($C$10:C44),'Listado-Definicion 2'!$A$80:$C$611,3,FALSE),\" \")","v":" "}]
[null,{"$f":"IFERROR(VLOOKUP(P$8&ROWS($C$10:C45),'Listado-Definicion 2'!$A$80:$C$611,3,FALSE),\" \")","v":" "}]
[null,{"$f":"IFERROR(VLOOKUP(P$8&ROWS($C$10:C46),'Listado-Definicion 2'!$A$80:$C$611,3,FALSE),\" \")","v":" "}]
[null,{"$f":"IFERROR(VLOOKUP(P$8&ROWS($C$10:C47),'Listado-Definicion 2'!$A$80:$C$611,3,FALSE),\" \")","v":" "}]
[null,{"$f":"IFERROR(VLOOKUP(P$8&ROWS($C$10:C48),'Listado-Definicion 2'!$A$80:$C$611,3,FALSE),\" \")","v":" "}]
[null,{"$f":"IFERROR(VLOOKUP(P$8&ROWS($C$10:C49),'Listado-Definicion 2'!$A$80:$C$611,3,FALSE),\" \")","v":" "}]
[null,{"$f":"IFERROR(VLOOKUP(P$8&ROWS($C$10:C50),'Listado-Definicion 2'!$A$80:$C$611,3,FALSE),\" \")","v":" "}]
[null,{"$f":"IFERROR(VLOOKUP(P$8&ROWS($C$10:C51),'Listado-Definicion 2'!$A$80:$C$611,3,FALSE),\" \")","v":" "}]
[null,{"$f":"IFERROR(VLOOKUP(P$8&ROWS($C$10:C52),'Listado-Definicion 2'!$A$80:$C$611,3,FALSE),\" \")","v":" "}]
[null,{"$f":"IFERROR(VLOOKUP(P$8&ROWS($C$10:C53),'Listado-Definicion 2'!$A$80:$C$611,3,FALSE),\" \")","v":" "}]
[null,{"$f":"IFERROR(VLOOKUP(P$8&ROWS($C$10:C54),'Listado-Definicion 2'!$A$80:$C$611,3,FALSE),\" \")","v":" "}]
[null,{"$f":"IFERROR(VLOOKUP(P$8&ROWS($C$10:C55),'Listado-Definicion 2'!$A$80:$C$611,3,FALSE),\" \")","v":" "}]
[null,{"$f":"IFERROR(VLOOKUP(P$8&ROWS($C$10:C56),'Listado-Definicion 2'!$A$80:$C$611,3,FALSE),\" \")","v":" "}]
[null,{"$f":"IFERROR(VLOOKUP(P$8&ROWS($C$10:C57),'Listado-Definicion 2'!$A$80:$C$611,3,FALSE),\" \")","v":" "}]
[null,{"$f":"IFERROR(VLOOKUP(P$8&ROWS($C$10:C58),'Listado-Definicion 2'!$A$80:$C$611,3,FALSE),\" \")","v":" "}]
[null,{"$f":"IFERROR(VLOOKUP(P$8&ROWS($C$10:C59),'Listado-Definicion 2'!$A$80:$C$611,3,FALSE),\" \")","v":" "}]
[null,{"$f":"IFERROR(VLOOKUP(P$8&ROWS($C$10:C60),'Listado-Definicion 2'!$A$80:$C$611,3,FALSE),\" \")","v":" "}]
[null,{"$f":"IFERROR(VLOOKUP(P$8&ROWS($C$10:C61),'Listado-Definicion 2'!$A$80:$C$611,3,FALSE),\" \")","v":" "}]
[null,{"$f":"IFERROR(VLOOKUP(P$8&ROWS($C$10:C62),'Listado-Definicion 2'!$A$80:$C$611,3,FALSE),\" \")","v":" "}]
[null,{"$f":"IFERROR(VLOOKUP(P$8&ROWS($C$10:C63),'Listado-Definicion 2'!$A$80:$C$611,3,FALSE),\" \")","v":" "}]
[null,{"$f":"IFERROR(VLOOKUP(P$8&ROWS($C$10:C64),'Listado-Definicion 2'!$A$80:$C$611,3,FALSE),\" \")","v":" "}]
[null,{"$f":"IFERROR(VLOOKUP(P$8&ROWS($C$10:C65),'Listado-Definicion 2'!$A$80:$C$611,3,FALSE),\" \")","v":" "}]
[null,{"$f":"IFERROR(VLOOKUP(P$8&ROWS($C$10:C66),'Listado-Definicion 2'!$A$80:$C$611,3,FALSE),\" \")","v":" "}]
[null,{"$f":"IFERROR(VLOOKUP(P$8&ROWS($C$10:C67),'Listado-Definicion 2'!$A$80:$C$611,3,FALSE),\" \")","v":" "}]
[null,{"$f":"IFERROR(VLOOKUP(P$8&ROWS($C$10:C68),'Listado-Definicion 2'!$A$80:$C$611,3,FALSE),\" \")","v":" "}]
[null,{"$f":"IFERROR(VLOOKUP(P$8&ROWS($C$10:C69),'Listado-Definicion 2'!$A$80:$C$611,3,FALSE),\" \")","v":" "}]
[null,{"$f":"IFERROR(VLOOKUP(P$8&ROWS($C$10:C70),'Listado-Definicion 2'!$A$80:$C$611,3,FALSE),\" \")","v":" "}]

{"sheet":"Encuesta Original","index":11,"n_rows":125,"n_cols":5,"rows_kept":125,"cut":false,"hidden":true,"merged":[[18,0,19,0],[18,1,19,1],[18,2,18,3],[18,4,19,4],[39,1,39,4],[21,1,21,4],[27,1,27,4],[34,1,34,4],[38,1,38,4],[5,1,5,4],[7,2,7,3],[8,2,8,3],[11,1,11,3],[20,1,20,4],[89,1,89,4],[96,1,96,4],[101,1,101,4],[109,1,109,4],[47,1,47,4],[50,1,50,4],[58,1,58,4],[66,1,66,4],[70,1,70,4],[81,1,81,4]]}
[]
[]
[]
[]
[]
[null,"CUESTIONARIO DE CONSULTA DE CARACTERIZACION DE ARREGLOS INSTITUCIONALES DE MUNICIPALIDADES"]
[]
[null,"MUNICIPALIDAD DE ADMINISTRACION TEMPORAL"]
[null,"MUNICIPALIDAD DE RECIENTE CREACION"]
[null,"Fecha: "]
[]
[null,"SISTEMA ADMINISTRATIVO Y/O FUNCIONAL EN CONSULTA"]
[]
[]
[]
[]
[]
[]
["N°","PREGUNTAS","Marcar con un aspa ( x )",null,"Comentario"]
[null,null,"Sí","No"]
["I.","SERVICIOS SOCIALES"]
["I.1","FOCALIZACIÓN DE HOGARES"]
[1,"¿Tiene implementada una Unidad Local de Empadronamiento - ULE?"]
[2,"¿Tiene su municipio instalado el Sistema de Empadronamiento (aplicativo informático) del MIDIS ?",null,null,"Adjuntar usuario y clave del Sistema"]
[3,"¿Tiene designado un responsable del registro de la ULE ante la Dirección de Operaciones de Focalización del MIDIS?",null,null,"Adjuntar Resolución de Alcaldía"]
[4,"¿Tiene designado un responsable formal del envió de las Declaraciones Juradas, fichas de empadronamiento a la Dirección de Operaciones de Focalización del MIDIS?",null,null,"Adjuntar Resolución de Alcaldía"]
[5,"¿Cuenta con un Diagnóstico sobre la brecha de empadronamiento a los programas sociales existente en su distrito?",null,null,"Adjuntar Diagnóstico"]
["I.2","ATENCIÓN DE LAS PERSONAS CON DISCAPACIDAD"]
[1,"¿Tiene implementada la Oficina Municipal de Atención a las Personas con Discapacidad - OMAPED?",null,null,"Adjuntar Ordenanza Municipal"]
[2,"¿Tiene aprobado el perfil del funcionario responsable del OMAPED?",null,null,"Adjuntar Resolución de Alcaldía"]
[3,"¿Tiene un padrón (listado, relación) de las personas con discapacidad en su localidad?",null,null,"Adjuntar Padrón de las personas con discapacidad"]
[4,"¿Tiene asignada partida presupuestaria para atención de los programas y proyectos de las personas con discapacidad?",null,null,"Adjuntar Reporte de partida presupuestaria"]
[5,"¿A cuánto ascendió la ejecución presupuestaria para la atención de los programas y proyectos de las personas con discapacidad?",null,null,"Adjuntar Reporte de ejecución presupuestaria"]
[6,"¿A efectuado campañas de sensibilización e información en temas relacionados con la discapacidad?",null,null,"Adjuntar el Informe de ejecución de capacitaciones"]
["I.3","COMUNIDADES NATIVAS Y PUEBLOS INDIGENAS "]
[1,"¿Existen comunidades nativas en su jurisdicción?"]
[2,"¿Tiene identificado las comunidades nativas en su jurisdicción?",null,null,"Adjuntar relación de comunidades nativas"]
[3,"¿Presta asistencia técnica a las comunidades nativas en su jurisdicción?",null,null,"Adjuntar informe"]
["II.","SISTEMAS ADMINISTRATIVO"]
["II.1","PRESUPUESTO - MEF"]
[1,"¿Tiene instalado el SIAF?"]
[2,"¿Tiene la Resolución de Alcaldía que nombra al responsable del manejo presupuestal?",null,null,"Adjuntar Resolución de Alcaldía"]
[3,"¿El manejo del presupuesto se realiza a través de un operador externo?",null,null,"Adjuntar datos de contacto"]
[4,"¿Registra operaciones de procesos presupuestarios MPP en el SIAF?",null,null,"Adjuntar comunicación del MEF"]
[5,"¿Ha recibido comunicación del MEF sobre el techo presupuestario por la Fuente de Financiamiento de Recursos Ordinarios para el periodo en el que inicia su gestión?",null,null,"Adjuntar reportes SIAF y resumen ejecutivo"]
[6,"¿Ha elaborado el informe sobre techos presupuestarios por las otras fuentes de financiamiento (distinto a Recursos Ordinarios) para el periodo en el que inicia su gestión?",null,null,"Adjuntar reportes SIAF y resumen ejecutivo"]
[7,"¿Ha presentado su proyecto de Presupuesto Anual a la DGPP - MEF?",null,null,"Adjuntar reportes SIAF y resumen ejecutivo"]
["II.1.1","PROGRAMA DE INCENTIVOS - MEF"]
[1,"¿Ha designado un coordinador para el Programa de Incentivos en su Municipalidad?",null,null,"Adjuntar datos del coordinador (nombre, correo y teléfono celular)"]
[2,"¿Ha elaborado el informe / reporte correspondiente al cumplimiento de metas correspondiente al territorio de su municipalidad?",null,null,"Adjuntar informe / reporte "]
["II.2","CONTABILIDAD PÚBLICA - MEF"]
[1,"¿Tiene instalado el SIAF?",null,null,"Adjuntar comunicación del MEF"]
[2,"¿Tiene la Resolución de Alcaldía que nombra al responsable del manejo contable?",null,null,"Adjuntar datos de contacto"]
[3,"¿Tiene la Resolución de Alcaldía que nombra al responsable del manejo del Módulo contable?",null,null,"Resolución de Alcaldía y reporte"]
[4,"¿Tiene anticipos otorgados y encargos internos pendientes de rendición a la fecha del cierre de la transferencia?",null,null,"Adjuntar datos de contacto"]
[5,"¿Ha registrado operaciones de contables requeridas por la DGCP en el SIAF?",null,null,"Adjuntar reportes SIAF"]
[6,"¿ Tiene cuentas por pagar a ESSALU, AFP, SUNAT o ONP?",null,null,"Adjuntar reporte de cuentas por pagar"]
[7,"¿Se ha realizado auditorias internas y externas de la información financiera y examen especial de los estados presupuestarios?",null,null,"Adjuntar informes de auditorias"]
["II.3","TESORERÍA - MEF"]
[1,"¿Tiene instalado el SIAF?"]
[2,"¿Tiene RUC?",null,null,"Adjuntar ficha RUC"]
[3,"¿Tiene la Resolución de Alcaldía que nombra al responsable del manejo de las cuentas?",null,null,"Resolución de Alcaldía y Reporte"]
[4,"¿El manejo de sus cuentas se realiza a través de un operador externo?",null,null,"Adjuntar datos de contacto"]
[5,"¿Ha registrado operaciones de ingresos y gastos en el SIAF-SP?",null,null,"Adjuntar reportes SIAF"]
[6,"¿Tiene recursos disponibles que mantiene en cuentas corrientes en entidades financieras y los centralizados en la Cuenta Principal del Tesoro Público?",null,null,"Adjuntar reporte por Entidad Financiera"]
[7,"¿Tiene montos comprometidos para honrar obligaciones obligaciones con el Banco de la Nación o con terceros con cargo a recursos centralizados en la Cuenta Principal del Tesoro Público?",null,null,"Adjuntar reporte"]
["II.4","ENDEUDAMIENTO SIN GARANTIA - MEF"]
[1,"¿Ha gestionado operaciones de endeudamiento sin garantía?",null,null,"Adjuntar acuerdo de consejo aprobando endeudamiento sin garantía"]
[2,"¿Tiene personal registrado para realizar operaciones de endeudamiento sin garantía?",null,null,"Adjuntar documento de autorización"]
[3,"¿Ha registrado operaciones de endeudamiento en el SIAF-SP?",null,null,"Adjuntar reportes SIAF"]
["II.5","INVERSIÓN PÚBLICA - MEF"]
[1,"¿Cuenta con Unidad Formuladora?",null,null,"Adjuntar comunicación del MEF o reporte del sistema que formaliza creación de la UF"]
[2,"¿Tiene implementada un Oficina de Programa Multianual de Inversión Pública?"]
[3,"¿Se encuentra elaborando  Planes de Trabajo –PT- o Términos de Referencia –  TdR- para la elaboración de proyectos y otras inversiones?",null,null,"Adjuntar relación"]
[4,"¿Tiene proyectos de inversión formulados o aprobados? ",null,null,"Adjuntar relación"]
[5,"¿Se encuentra ejecutando Obras o Actividades de Inversión?",null,null,"Adjuntar relación"]
[6,"¿Tiene obras que se viene ejecutando por administración directa?",null,null,"Adjuntar listado"]
[7,"¿Tiene obras que se viene ejecutando por contrata?",null,null,"Adjuntar listado"]
[8,"¿Se ha elaborado la priorización de proyectos a transferir?",null,null,"Adjuntar listado"]
[9,"¿Cuenta con proyectos financiados por FONIPREL?",null,null,"Adjuntar listado"]
[10,"¿Tiene convenios firmados con otros pliegos del gobierno nacional, gobierno regional y gobierno local relacionados a transferencias de recursos para ejecutar proyectos de inversión pública?",null,null,"Adjuntar convenio"]
["II.6","PLANEAMIENTO ESTRATÉGICO - CEPLAN"]
[1,"¿Tiene Plan de Desarrollo Local Concertado - PDLC? (Formulado / Aprobado)",null,null,"Adjuntar PDLC"]
[2,"¿Tiene Plan Estratégico Institucional - PEI? (Formulado / Aprobado)",null,null,"Adjuntar PEI"]
[3,"¿Tiene Plan Operativo Institucional - POI? (Formulado / Aprobado)",null,null,"Adjuntar POI"]
[4,"¿Ha elaborado el Presupuesto Participativo del Municipio?",null,null,"Adjuntar Presupuesto"]
[5,"¿Tiene conformado el Comité de Vigilancia del Presupuesto Participativo?",null,null,"Adjuntar documento que formaliza conformación"]
[6,"¿Tiene conformado el Equipo Técnico para el Presupuesto Participativo?",null,null,"Adjuntar documento que formaliza conformación"]
[7,"¿Se encuentra registrado para acceder al aplicativo CEPLAN?",null,null,"Adjuntar usuario registrado y clave"]
["II.7","CONTRATACIONES DEL ESTADO - OSCE"]
[1,"¿Se encuentra incluido en el Registro de Entidades Contratantes adjuntar?",null,null,"Adjuntar registro"]
[2,"¿Tiene la Certificación SEACE para Entidades públicas contratantes?",null,null,"Adjuntar lista de usuarios y claves de acceso por perfil de funcionario-usuario"]
[3,"¿Ha realizado el Titular en materia de contrataciones delegación? ",null,null,"Adjuntar documento se sustente delegación"]
[4,"¿Ha realizado procesos de contrataciones de compras menores a 8 UIT?",null,null,"Adjuntar listado"]
[5,"¿Ha realizado procesos de contrataciones de compras dentro del marco normativo de la Ley de Contrataciones?",null,null,"Adjuntar listado"]
[6,"¿Ha realizado procesos de contrataciones de compras dentro del marco normativo de la Ley de Contrataciones?",null,null,"Adjuntar listado"]
["II.8","DEFENSA JURÍDICA DEL ESTADO - MINJUS"]
[1,"¿Asume la Municipalidad la defensa jurídica de la Institución?"]
[2,"¿Asume la Municipalidad la defensa jurídica con una Oficina de Procuraduría?",null,null,"Adjuntar Resolución de Alcaldía que nombra al Procurador"]
[3,"¿Asume la Municipalidad la defensa jurídica con un asesor legal externo / estudio jurídico?",null,null,"Adjuntar datos de contacto"]
[4,"¿Tiene un listado procesos en giro señalando la etapa del proceso, la materia, la contingencia generada y cuanto se le adeuda a la municipalidad?",null,null,"Adjuntar listado según detalle"]
["II.9","MODERNIZACIÓN DEL ESTADO"]
[1,"¿Tiene formulado y/o aprobado un Reglamento Interno de Consejo  Municipal - RIC?",null,null,"Adjuntar Ordenanza de ser el caso y el RIC"]
[2,"¿Tiene formulado y/o aprobado una Estructura Organizacional?",null,null,"Adjuntar Estructura Organizacional"]
[3,"¿Tiene formulado y/o aprobado un Reglamento de Organización y Funciones - ROF ?",null,null,"Adjuntar Ordenanza de ser el caso y el ROF"]
[4,"¿Tiene formulado y/o aprobado el Texto Único de Procedimientos Administrativos - TUPA?",null,null,"Adjuntar Ordenanza de ser el caso y el TUPA"]
[5,"¿Tiene Página Web Institucional activa?",null,null,"Adjuntar dirección electrónica"]
[6,"¿Tiene designado responsable de brindar información de acceso público, en concordancia con la Ley de Transparencia de Acceso Público? ",null,null,"Adjuntar Resolución de Alcaldía"]
[7,"¿Ha implementado el Portal de Transparencia conforme la Normativa vigente?"]
["II.10","RECURSOS HUMANOS"]
[1,"¿Tiene elaborado / aprobado el Cuadro para Asignación de Personal Provisional - CAP-Provisional?",null,null,"Adjuntar CAP-Provisional"]
[2,"¿Tiene elaborado / aprobado el Presupuesto Analítico de Personal - PAP?",null,null,"Adjuntar PAP"]
[3,"¿Tiene elaborado / aprobado el Reglamento Interno de Trabajo - RIT?",null,null,"Adjuntar RIT"]
[4,"¿Tiene elaborado / aprobado el Manual de Perfiles de Puestos - MPP / Perfiles de Puestos / Términos de Referencia?",null,null,"Adjuntar MPP / Perfiles de Puestos / Términos de Referencia"]
[5,"¿Ha contratado de personal bajo la modalidad de locación de servicios?",null,null,"Adjuntar listado"]
[6,"¿Ha contratado personal bajo la modalidad de Contratos Administrativos de Servicios (CAS)?",null,null,"Adjuntar listado indicando fecha de inicio y fin"]
[7,"¿Ha contratado personal bajo la modalidad de Contratos Administrativos de Servicios (CAS) como personal de confianza?",null,null,"Adjuntar listado indicando fecha de inicio"]
[8,"¿Tiene personal destacado bajo la modalidad D.Leg 276 o D.Leg 278?",null,null,"Adjuntar listado"]
[9,"¿Tiene organizado y realiza el mantenimiento de los legajos personales del personal nombrado y contratado?"]
[10,"¿Tiene un Cuadro General de Deudas Judiciales y Administrativas?",null,null,"Adjuntar Cuadro de Deudas"]
[11,"¿Tiene elaborado la planilla única de pago y abono de remuneraciones mensuales?",null,null,"Adjuntar planilla"]
[12,"¿Tiene elaborado / aprobado la Formulación del Diagnóstico y Plan de Desarrollo de las Personas?",null,null,"Adjuntar diagnóstico y plan"]
[13,"¿Tiene elaborado / aprobado programas recreativos y de integración?",null,null,"Adjuntar programas"]
[14,"¿Tiene elaborado / aprobado el Plan Anual de Clima u Cultura Organizacional dirigido a los trabajadores de la Municipalidad?",null,null,"Adjuntar Plan"]
[15,"¿Ha emitido de Resoluciones de Sanción de Personal?",null,null,"Adjuntar Resoluciones de Personal"]

{"sheet":"Encuesta 1_Sist Adm","index":12,"n_rows":132,"n_cols":6,"rows_kept":132,"cut":false,"hidden":false,"merged":[[131,3,131,4],[132,1,135,1],[132,3,135,4],[122,3,122,4],[123,3,123,4],[125,3,125,4],[126,3,126,4],[128,3,128,4],[48,1,48,4],[52,1,52,4],[63,1,63,4],[21,1,21,4],[129,3,129,4],[5,1,5,4],[20,1,20,4],[16,0,16,4],[116,1,116,4],[106,1,106,4],[18,0,19,0],[18,1,19,1],[18,2,18,3],[18,4,19,4],[71,1,71,4],[77,1,77,4],[82,1,82,4],[90,1,90,4],[29,1,29,4],[32,1,32,4],[40,1,40,4]]}
[]
[]
[]
[]
[]
[null,"CUESTIONARIO DE CONSULTA PARA CARACTERIZACIÓN DE MUNICIPALIDADES"]
[null,"MUNICIPALIDAD: …………………………………………………………………………………………………………………..","PROVINCIA:  ………………………….",null,"DEPARTAMENTO:  ……………………….……………"]
[]
[null,"De ser una Municipalidad de reciente creacion especificar  cual es la :",null,null,"CONDICION:"]
[null,"MUNICIPALIDAD ADMINISTRADORA: …………………………………………………………………………………………………………..…",null,null,"RECIENTE CREACIÓN","X"]
[]
[null,"MUNICIPALIDAD ADMINISTRADORA: …………………………………………………………………………………………………………..…",null,null,"ADMINISTRACION REGULAR","x"]
[]
[null,"FECHA"]
[]
[]
["SISTEMAS ADMINISTRATIVOS EN CONSULTA"]
[]
["N°","Preguntas","Marcar con un aspa \n( x )",null,"Comentario y Documentos Sustentatorios\n(en algunos casos el comentario se genera automáticamente en caso la respuesta sea afirmativa)"]
[null,null,"Sí","No"]
["I.","SISTEMAS ADMINISTRATIVOS"]
["I.1","PRESUPUESTO PÚBLICO - MEF"]
[1,"¿Tiene instalado el SIAF  - Módulo Presupuestal?","X"]
[2,"¿Tiene la Resolución de Alcaldía que nombra al responsable del manejo presupuestal?","X",null,"Adjuntar Resolución de Alcaldía"]
[3,"¿El manejo del presupuesto se realiza a través de personal externo?  ","X",null,"Adjuntar datos de contacto"]
[4,"¿Registra operaciones de procesos presupuestarios en el SIAF?","X",null,"Adjuntar comunicación del MEF"]
[5,"¿Ha recibido comunicación del MEF sobre el techo presupuestario por la Fuente de Financiamiento de Recursos Ordinarios de la administración transitoria / regular?","X",null,"Adjuntar reportes SIAF y resumen ejecutivo"]
[6,"¿Ha elaborado el informe sobre techos presupuestarios por las otras fuentes de financiamiento (distinto a Recursos Ordinarios) de la administración transitoria / regular?","X",null,"Adjuntar reportes SIAF y resumen ejecutivo"]
[7,"¿Ha presentado el proyecto de Presupuesto de su Municipio Anual a la DGPP - MEF?","X",null,"Adjuntar reportes SIAF y resumen ejecutivo"]
["I.1.1","PROGRAMA DE INCENTIVOS A LA MEJORA DE LA GESTIÓN MUNICIPAL - MEF"]
[1,"¿Ha designado un coordinador para el Programa de Incentivos en su Municipalidad transitoria / regular?","X",null,"Adjuntar datos del coordinador (nombre, correo y teléfono celular)"]
[2,"¿Ha elaborado el informe / reporte correspondiente al cumplimiento de metas del territorio de su municipalidad transitoria / regular?","X",null,"Adjuntar informe / reporte "]
["I.2","CONTABILIDAD PÚBLICA - MEF"]
[1,"¿Tiene instalado el SIAF  - Módulo Contable?","X",null,"Adjuntar comunicación del MEF"]
[2,"¿Tiene la Resolución de Alcaldía que nombra al responsable del manejo contable?","X",null,"Adjuntar datos de contacto"]
[3,"¿Tiene la Resolución de Alcaldía que nombra al responsable del manejo del Módulo contable?","X",null,"Resolución de Alcaldía y reporte"]
[4,"¿Tiene anticipos otorgados y encargos internos pendientes de rendición a la fecha del cierre de la transferencia?","X",null,"Adjuntar datos de contacto"]
[5,"¿Registra operaciones contables requeridas por la DGCP en el SIAF?","X",null,"Adjuntar reportes SIAF"]
[6,"¿ Tiene cuentas por pagar a ESSALUD, AFP, SUNAT o ONP?","X",null,"Adjuntar reporte de cuentas por pagar"]
[7,"¿Se han realizado auditorias internas y/o externas de la información financiera y/o examen especial de los estados presupuestarios/contables?","X",null,"Adjuntar informes de auditorias"]
["I.3","TESORERÍA - MEF"]
[1,"¿Tiene instalado el SIAF - Módulo Tesorería?","X"]
[2,"¿Tiene RUC?","X",null,"Adjuntar ficha RUC"]
[3,"¿Tiene la Resolución de Alcaldía que nombra al responsable del manejo de cuentas?","X",null,"Resolución de Alcaldía y Reporte"]
[4,"¿El manejo de sus cuentas  (tesorero) se realiza a través de personal externo?","X",null,"Adjuntar datos de contacto"]
[5,"¿Registra operaciones de ingresos y gastos en el SIAF-SP?","X",null,"Adjuntar reporte"]
[6,"¿Tiene recursos disponibles que mantiene en cuentas corrientes en entidades financieras y los centralizados en la Cuenta Principal del Tesoro Público?","X",null,"Adjuntar reporte por Entidad Financiera"]
[7,"¿Tiene montos comprometidos para honrar obligaciones con el Banco de la Nación o con terceros con cargo a recursos centralizados en la Cuenta Principal del Tesoro Público?","X",null,"Adjuntar reporte"]
["I.4","ENDEUDAMIENTO SIN GARANTIA - MEF"]
[1,"¿Ha gestionado operaciones de endeudamiento sin garantía?","X",null,"Adjuntar acuerdo de consejo aprobando endeudamiento sin garantía"]
[2,"¿Tiene personal registrado para realizar operaciones de endeudamiento sin garantía?","X",null,"Adjuntar documento de autorización"]
[3,"¿Ha registrado operaciones de endeudamiento en el SIAF-SP?","X",null,"Adjuntar reportes SIAF"]
["I.5","INVERSIÓN PÚBLICA - MEF"]
[1,"¿Cuenta con Unidad Formuladora?","X",null,"Adjuntar comunicación del MEF o reporte del sistema que formaliza creación de la UF"]
[2,"¿Tiene implementada un Oficina de Programación Multianual de Inversión (OPMI)?","X",null,"Adjuntar Ordenanza de creación"]
[3,"¿Se encuentra elaborando  Planes de Trabajo (PT) o Términos de Referencia (TdR) para la elaboración de proyectos y otras inversiones?","X",null,"Adjuntar relación"]
[4,"¿Tiene proyectos de inversión formulados o aprobados? ","X",null,"Adjuntar relación"]
[5,"¿Se encuentra ejecutando Obras o Actividades de Inversión?","X",null,"Adjuntar relación"]
[6,"¿Tiene obras que se viene ejecutando por administración directa?","X",null,"Adjuntar listado"]
[7,"¿Tiene obras que se viene ejecutando por contrata?","X",null,"Adjuntar listado"]
[8,"¿Ha elaborado la priorización de proyectos a transferir a la gestión de la Municipalidad entrante?","X",null,"Adjuntar listado"]
[9,"¿Cuenta con proyectos financiados por FONIPREL?","X",null,"Adjuntar listado"]
[10,"¿Tiene convenios firmados con otros pliegos del gobierno nacional, gobierno regional y gobierno local relacionados a transferencias de recursos para ejecutar proyectos de inversión pública?","X",null,"Adjuntar convenio"]
["I.6","PLANEAMIENTO ESTRATÉGICO - CEPLAN"]
[1,"¿Tiene Plan de Desarrollo Local Concertado - PDLC? (Formulado / Aprobado)","X",null,"Adjuntar PDLC"]
[2,"¿Tiene Plan Estratégico Institucional - PEI? (Formulado / Aprobado)","X",null,"Adjuntar PEI"]
[3,"¿Tiene Plan Operativo Institucional - POI 2017? (Formulado / Aprobado)","X",null,"Adjuntar POI"]
[4,"¿Ha elaborado el Presupuesto Participativo del Municipio?","X",null,"Adjuntar Presupuesto"]
[5,"¿Tiene conformado el Comité de Vigilancia del Presupuesto Participativo?","X",null,"Adjuntar documento que formaliza conformación"]
[6,"¿Tiene conformado el Equipo Técnico para el Presupuesto Participativo?","X",null,"Adjuntar documento que formaliza conformación"]
[7,"¿Se encuentra registrado para acceder al aplicativo CEPLAN?","X",null,"Adjuntar usuario registrado y clave"]
["I.7","CONTRATACIONES DEL ESTADO - OSCE"]
[1,"¿Se encuentra incluido en el Registro de Entidades Contratantes?","X",null,"Adjuntar registro"]
[2,"¿Tiene la Certificación SEACE para Entidades Públicas Contratantes?","X",null,"Adjuntar lista de usuarios y claves de acceso por perfil de funcionario-usuario"]
[3,"¿El Titular de la entidad ha realizado delegación en materia de contrataciones? ","X",null,"Adjuntar documento se sustente delegación"]
[4,"¿Ha realizado procesos de contrataciones de compras menores a 8 UIT?","X",null,"Adjuntar listado"]
[5,"¿Ha realizado procesos de contrataciones de compras dentro del marco normativo de la Ley de Contrataciones?","X",null,"Adjuntar listado"]
["I.8","DEFENSA JURÍDICA DEL ESTADO - MINJUS"]
[1,"¿Asume la Municipalidad la defensa jurídica de la Institución?","X"]
[2,"¿Asume la Municipalidad la defensa jurídica con una Oficina de Procuraduría?","X",null,"Adjuntar Resolución de Alcaldía que nombra al Procurador"]
[3,"¿Asume la Municipalidad la defensa jurídica con un asesor legal externo / estudio jurídico?","X",null,"Adjuntar datos de contacto"]
[4,"¿Tiene un listado procesos en giro señalando la etapa del proceso, la materia, la contingencia generada y cuanto se le adeuda a la municipalidad?","X",null,"Adjuntar listado según detalle"]
["I.9","MODERNIZACIÓN DEL ESTADO - SGP"]
[1,"¿Tiene formulado y/o aprobado un Reglamento Interno de Consejo  Municipal - RIC?","X",null,"Adjuntar Ordenanza de ser el caso y el RIC"]
[2,"¿Tiene formulada y/o aprobada una Estructura Organizacional?","X",null,"Adjuntar Estructura Organizacional"]
[3,"¿Tiene formulado y/o aprobado un Reglamento de Organización y Funciones - ROF ?","X",null,"Adjuntar Ordenanza de ser el caso y el ROF"]
[4,"¿Tiene formulado y/o aprobado el Texto Único de Procedimientos Administrativos - TUPA?","X",null,"Adjuntar Ordenanza de ser el caso y el TUPA"]
[5,"¿Tiene Página Web Institucional activa?","X",null,"Adjuntar dirección electrónica"]
[6,"¿Tiene designado responsable de brindar información de acceso público, en concordancia con la Ley de Transparencia de Acceso Público? ","X",null,"Adjuntar Resolución de Alcaldía"]
[7,"¿Ha implementado el Portal de Transparencia conforme la Normativa vigente?","X"]
["I.10","RECURSOS HUMANOS - SERVIR"]
[1,"¿Tiene elaborado / aprobado el Cuadro para Asignación de Personal Provisional - CAP-Provisional?","X",null,"Adjuntar CAP-Provisional"]
[2,"¿Tiene elaborado / aprobado el Presupuesto Analítico de Personal - PAP?","X",null,"Adjuntar PAP"]
[3,"¿Tiene elaborado / aprobado el Reglamento Interno de Trabajo - RIT?","X",null,"Adjuntar RIT"]
[4,"¿Tiene elaborado / aprobado el Manual de Perfiles de Puestos - MPP / Perfiles de Puestos / Términos de Referencia?","X",null,"Adjuntar MPP / Perfiles de Puestos / Términos de Referencia"]
[5,"¿Tiene contratado de personal bajo la modalidad de locación de servicios?","X",null,"Adjuntar listado"]
[6,"¿Tiene contratado personal bajo la modalidad de Contratos Administrativos de Servicios (CAS)?","X",null,"Adjuntar listado indicando fecha de inicio y fin"]
[7,"¿Tiene contratado personal bajo la modalidad de Contratos Administrativos de Servicios (CAS) como personal de confianza?","X",null,"Adjuntar listado indicando fecha de inicio"]
[8,"¿Tiene personal destacado bajo la modalidad D.Leg 276 o D.Leg 278?","X",null,"Adjuntar listado"]
[9,"¿Tiene organizado y realiza el mantenimiento de los legajos personales del personal nombrado y contratado?","X"]
[10,"¿Tiene un Cuadro General de Deudas Judiciales y Administrativas?","X",null,"Adjuntar Cuadro de Deudas"]
[11,"¿Elaborado la planilla única de pago y abono de remuneraciones mensuales?","X",null,"Adjuntar planilla"]
[12,"¿Tiene elaborado / aprobado la Formulación del Diagnóstico y Plan de Desarrollo de las Personas?","X",null,"Adjuntar diagnóstico y plan"]
[13,"¿Tiene elaborado / aprobado programas recreativos y de integración?","X",null,"Adjuntar programas"]
[14,"¿Tiene elaborado / aprobado el Plan Anual de Clima u Cultura Organizacional dirigido a los trabajadores de la Municipalidad?","X",null,"Adjuntar Plan"]
[15,"¿Ha emitido de Resoluciones de Sanción de Personal?","X",null,"Adjuntar Resoluciones de Personal"]
["I.11","REGISTRO DE BIENES DEL ESTADO - SBN"]
[1,"¿Tiene designado personal designado que realiza el registro de los bienes muebles e inmuebles?","X",null,"Adjuntar registro datos de contacto, usuario y clave"]
[2,"¿Tiene instalado el Sistema de Información Nacional de Bienes Estatales - SINABIP?","X"]
[3,"¿Ha realizado el registro de los bienes muebles en el SINABIP  ?","X",null,"Adjuntar reportes de bienes muebles"]
[4,"¿Ha realizado el registro de los bienes inmuebles en el SINABIP  ?","X",null,"Adjuntar reportes de bienes inmuebles"]
[5,"¿Ha elaborado el inventario patrimonial del ejercicio anterior al término de la gestión?","X",null,"Adjuntar relación"]
[6,"¿Ha elaborado el Informe Final del Inventario al termino del ejercicio?","X",null,"Adjuntar informe"]
[7,"¿Tiene el Acta de conciliación patrimonio-contable debidamente suscrita por la Comisión de Inventario?","X",null,"Adjuntar acta de conciliación"]
[8,"¿Ha elaborado el Informe de Variaciones de los actos muebles?","X",null,"Adjuntar informe"]
[9,"¿Tiene la Relación de vehículos de la entidad y de aquellos que se encuentren en su posesión.?","X",null,"Adjuntar relación de vehículos"]
["I.12","ACERVO DOCUMENTARIO - AGN"]
[1,"¿Tiene un acervo documentario institucional?","X"]
[2,"¿Tiene un responsable del acervo documentario institucional?","X",null,"Adjuntar datos del responsable"]
[3,"¿Tiene un inventario del acervo documentario institucional?","X",null,"Adjuntar inventario"]
[]
[]
[null,"FUNCIONARIO RESPONSABLE DE BRINDAR INFORMACIÓN",null,"ESPECIALISTA ENCARGADO DE APLICAR CARGO"]
[]
[]
[null,"CARGO",null,"CARGO (Opcional)"]
[]
[]
[null,"D.N.I.",null,"D.N.I."]
[]
[]
[null,"FIRMA",null,"FIRMA"]

{"sheet":"Encuesta2_Serv_Munic_Locales","index":13,"n_rows":145,"n_cols":7,"rows_kept":145,"cut":false,"hidden":false,"merged":[[142,3,142,4],[144,3,144,4],[145,1,148,1],[145,3,148,4],[135,3,135,4],[136,3,136,4],[138,3,138,4],[139,3,139,4],[141,3,141,4],[60,1,60,4],[67,1,67,4],[73,1,73,4],[31,1,31,4],[34,1,34,4],[40,1,40,4],[46,1,46,4],[52,1,52,4],[20,1,20,4],[21,1,21,4],[26,1,26,4],[5,1,5,4],[18,0,19,0],[18,1,19,1],[18,2,18,3],[18,4,19,4],[16,0,16,4],[121,1,121,4],[89,1,89,4],[76,1,76,4],[81,1,81,4],[85,1,85,4],[102,1,102,4],[113,1,113,4]]}
[]
[]
[]
[]
[null,null,null,null,null,null,"RETORNAR"]
[null,"CUESTIONARIO DE CONSULTA PARA CARACTERIZACIÓN DE MUNICIPALIDADES"]
[null,"MUNICIPALIDAD: …………………………………………………………………………………………………………………..","PROVINCIA:  ………………………….",null,"DEPARTAMENTO:  ……………………….……………"]
[]
[null,"De ser una Municipalidad de reciente creacion especificar  cual es la :",null,null,"CONDICION:"]
[null,"MUNICIPALIDAD ADMINISTRADORA: …………………………………………………………………………………………………………..…",null,null,"RECIENTE CREACIÓN","X"]
[]
[null,"MUNICIPALIDAD ADMINISTRADORA: …………………………………………………………………………………………………………..…",null,null,"ADMINISTRACION REGULAR","X"]
[]
[null,"FECHA"]
[]
[]
["SERVICIOS MUNICIPALES LOCALES EN CONSULTA"]
[]
["N°","Preguntas","Marcar con un aspa \n( x )",null,"Comentario y Documentos Sustentatorios\n(en algunos casos el comentario se genera automáticamente en caso la respuesta sea afirmativa)"]
[null,null,"Sí","No"]
["II.","SERVICIOS MUNICIPALES LOCALES"]
["II.1","ADMINISTRACIÓN TRIBUTARIA - RENTAS"]
[1,"¿Brinda el servicio de Administración Tributaria / Rentas?","X"]
[2,"¿Tiene Padrones de contribuyentes?","X",null,"Adjuntar relación"]
[3,"¿Elabora cuponeras de pago de arbitrios e impuesto predial?","X",null,"Adjuntar relación"]
[4,"¿Realiza cobros por impuestos municipales?","X",null,"Adjuntar relación"]
["II.2","SISTEMA DE SEGURIDAD Y DEFENSA CIVIL"]
[1,"¿Tiene conformada del Comité Distrital de Seguridad Ciudadana?","X",null,"Adjuntar Acta de conformación"]
[2,"¿Tiene implementado el servicio de Serenasgo?","X"]
[3,"¿Tiene implementado el servicio de Patrullaje Integrado?","X",null,"Adjuntar informes"]
[4,"¿Tiene conformada el Comité de Defensa Civil?","X",null,"Adjuntar informes"]
["II.3","LICENCIAS Y AUTORIZACIONES DE FUNCIONAMIENTO - MVCS"]
[1,"¿Brinda el servicio de  Licencias y autorizaciones de funcionamiento?","X"]
[2,"¿Tiene el registro de licencias de funcionamiento emitidas?","X",null,"Adjuntar relación"]
["II.4","GESTIÓN AMBIENTAL - MINAM"]
[1,"¿Brinda el servicio de  Gestión ambiental Municipal?","X"]
[2,"¿Tiene Plan de Gestión Ambiental?","X",null,"Adjuntar Plan"]
[3,"¿Tiene Plan Anual de Evaluación y Fiscalización Ambiental?","X",null,"Adjuntar Plan"]
[4,"¿Tiene Conformación de la Comisión Ambiental Municipal?","X",null,"Adjuntar Acta de conformación"]
[5,"¿Tiene Conformación de la Plataforma de gestión ambiental?","X",null,"Adjuntar Acta de conformación"]
["II.5","ABASTECIMIENTO DE AGUA Y SANEAMIENTO"]
[1,"¿Brinda el servicio de Abastecimiento de agua y saneamiento?","X"]
[2,"¿Tiene Programación de Operaciones?","X",null,"Adjuntar programa"]
[3,"¿Tiene Programación de Mantenimiento?","X",null,"Adjuntar programa"]
[4,"¿Tiene Relación de beneficiarios?","X",null,"Adjuntar relación"]
[5,"¿Tiene Contratos del servicio de agua?","X",null,"Adjuntar relación"]
["II.6","LIMPIEZA PÚBLICA Y ÁREAS VERDES"]
[1,"¿Brinda el servicio de Limpieza pública y áreas verdes?","X"]
[2,"¿El servicio de Limpieza pública es realizada por una Empresa?","X"]
[3,"¿Tiene un Plan Integral de Gestión Ambiental de Residuos Sólidos / Plan de Manejo de Residuos Sólidos?","X",null,"Adjuntar programa"]
[4,"¿Tiene un Programa de Limpieza pública y áreas verdes?","X",null,"Adjuntar programa"]
[5,"¿Tiene un Programa de Segregación en la Fuente y Recolección Selectiva de Residuos Sólidos Municipales (Reciclaje)?","X",null,"Adjuntar programa"]
["II.7","FISCALIZACIÓN (AMBIENTAL/TRIBUTARIA/SERVICIOS MUNICIPALES)"]
[1,"¿Brinda el servicio de Fiscalización Ambiental?","X"]
[2,"¿Brinda el servicio de Fiscalización Tributaria?","X"]
[3,"¿Brinda el servicio de Fiscalización de Servicios municipales?","X"]
[4,"¿Tiene la Programación de las acciones de fiscalización?","X",null,"Adjuntar programa"]
[5,"¿Tiene la Relación de actas de notificación en proceso?","X",null,"Adjuntar relación"]
[6,"¿Tiene la Relación de informes de sanciones en proceso?","X",null,"Adjuntar relación"]
[7,"¿Tiene una Relación de Resoluciones Gerenciales de sanciones?","X",null,"Adjuntar relación"]
["II.8","EJECUCIÓN COACTIVA"]
[1,"¿Realiza el proceso de Ejecución Coactiva?","X"]
[2,"¿Tiene designado al Ejecutor Coactivo?","X",null,"Adjuntar Resolución designando responsable"]
[3,"¿Tiene el Informe de Consolidación de la Cobranza Administrativa?","X",null,"Adjuntar relación de informes"]
[4,"¿Tiene una relación de Resoluciones de Ejecución Coactiva en proceso?","X",null,"Adjuntar relación"]
[5,"¿Tiene una relación de Resoluciones de Ejecución Coactiva en ejecución?","X",null,"Adjuntar relación"]
[6,"¿Tiene procesos de medida cautelar?","X",null,"Adjuntar relación"]
["II.9","EDUCACIÓN, CULTURA, DEPORTES Y RECREACIÓN"]
[1,"¿Brinda los servicios de Educación, Cultura, Deportes y Recreación?","X"]
[2,"¿Tiene Programas de educación?","X",null,"Adjuntar programa"]
[3,"¿Tiene Programas de cultura?","X",null,"Adjuntar programa"]
[4,"¿Tiene Programas de deportes?","X",null,"Adjuntar programa"]
[5,"¿Tiene Programas de recreación?","X",null,"Adjuntar programa"]
["II.10","PARTICIPACIÓN Y CONTROL VECINAL"]
[1,"¿Tiene conformada Juntas Vecinales?","X",null,"Adjuntar Acta de conformación"]
[2,"¿Tiene registro de organizaciones sociales reconocidas?","X",null,"Adjuntar relación"]
["II.11","SALUBRIDAD"]
[1,"¿Brinda los servicios de Salubridad?","X"]
[2,"¿Tiene Programas de campañas de salud?","X",null,"Adjuntar programas"]
[3,"¿Tiene Programas de control de canes?","X",null,"Adjuntar programas"]
[4,"¿Tiene convenios interinstitucionales para campañas de salubridad?","X",null,"Adjuntar relación"]
["II.12","TRÁNSITO, CIRCULACIÓN Y TRANSPORTE PÚBLICO - MTC"]
[1,"¿Brinda el servicio de Tránsito, circulación y transporte púbico?","X"]
[2,"¿Tiene la relación del Registro de Transportistas autorizados?","X",null,"Adjuntar relación"]
[3,"¿Tiene la relación de autorizaciones y licencias de conducir de vehículos menores?","X",null,"Adjuntar relación"]
["II.13","REGISTRO DE HECHOS VITALES - RENIEC"]
[1,"¿Brinda el servicio de Registro de Hechos Vitales - Registro Civil?","X"]
[2,"¿Tiene designado al responsable del registro de Hechos Vitales - Registro Civil?","X",null,"Adjuntar nombramiento / designación de responsable"]
[3,"¿Ha ingresado información al Sistema de Registro de Hechos Vitales  - RENIEC?","X",null,"Adjuntar informes"]
["II.14","ORGANIZACIÓN DEL ESPACIO FÍSICO Y USO DEL SUELO - MVCS"]
[1,"¿Brinda el servicio de organización del espacio físico y uso del suelo (Catastro - Zonificación)?","X"]
[2,"¿Tiene una base de datos del catastro urbano y rural en elaboración y/o mantenimiento?","X",null,"Adjuntar relación"]
[3,"¿Tien un Plan de Desarrollo Urbano y/o Rural?","X",null,"Adjuntar relación"]
[4,"¿Tiene un Esquema de Zonificación de áreas urbanas?","X",null,"Adjuntar relación"]
[5,"¿Tiene un Plan de Desarrollo de Asentamientos Humanos?","X",null,"Adjuntar relación"]
[6,"¿Tiene Planes de Renovación Urbana?","X",null,"Adjuntar relación"]
[7,"¿Tiene una relación de Otorgamiento de licencias de construcción, remodelación o demolición?","X",null,"Adjuntar relación"]
[8,"¿Tiene el registro de Reconocimiento, verificación, titulación y/o  saneamiento físico legal de asentamientos humanos?","X",null,"Adjuntar relación"]
[9,"¿Tiene el registro de Autorizaciones para ubicación de anuncios y avisos publicitarios y propaganda política?","X",null,"Adjuntar relación"]
[10,"¿Tiene el registro de Nomenclatura de calles, parques y vías?","X",null,"Adjuntar relación"]
[11,"¿Brinda el servicio de inspecciones técnicas en seguridad de edificaciones?","X",null,"Adjuntar relación"]
[12,"¿Tiene un Estudios de Impacto Ambiental del desarrollo urbano/rural?","X"]
["II.15","DESARROLLO ECONÓMICO DEL SECTOR TURISMO"]
[1,"¿Brinda el servicio de Desarrollo turístico?","X"]
[2,"¿Tiene un Plan de Desarrollo del  Turismo Local ?","X",null,"Adjuntar Plan"]
[3,"¿Tiene el Inventario de recursos turísticos?","X",null,"Adjuntar Inventario"]
[4,"¿Tiene proyectos turísticos en proceso?","X",null,"Adjuntar relación"]
[5,"¿Tiene Programas de promoción turística en desarrollo o implementación?","X",null,"Adjuntar programas"]
[6,"¿Tiene el Directorio de Prestadores de servicios turísticos?","X",null,"Adjuntar Directorio"]
[7,"¿Tiene el Directorio de Artesanos de la localidad?","X",null,"Adjuntar Directorio"]
[8,"¿Tiene la relación de Guías de Turismo acreditados?","X",null,"Adjuntar relación"]
[9,"¿Tiene la relación de operadores turísticos acreditados?","X",null,"Adjuntar relación"]
[10,"¿Realiza Talleres de capacitación y fortalecimiento de los prestadores de servicios turísticos y público interesado?","X",null,"Adjuntar relación e informes de ejecución "]
["II.16","DESARROLLO ECONÓMICO LOCAL"]
[1,"¿Brinda el servicio de desarrollo económico local?","X"]
[2,"¿Tiene registro de MYPES?","X",null,"Adjuntar relación"]
[3,"¿Tiene registro de asociaciones agrícolas, acuicultura y ganadería registradas?","X",null,"Adjuntar relación"]
[4,"¿Tiene registro de Minería Artesanal y pequeña escala Minería registrados?","X",null,"Adjuntar relación"]
[5,"¿Tiene programada campañas para la formalización de MYPES, asociaciones agrícolas, acuicultura y ganadería registradas, Minería Artesanal y pequeña escala Minería registrados?","X",null,"Adjuntar programas"]
[6,"¿Tiene programada campañas de capacitación por ejecutar o ejecutadas?","X",null,"Adjuntar programas"]
[7,"¿Ha elaborado proyectos productivos relacionado a las actividades productivas locales?","X",null,"Adjuntar programas"]
["II.17","OTROS SERVICIOS MUNICIPALES"]
[1,"Cementerio","X"]
[2,"Vivero","X"]
[3,"Camal","X"]
[4,"Parques zoológicos y zonales ","X"]
[5,"Cuna","X"]
[6,"Jardín (colegio incial)","X"]
[7,"Piscina Municipal","X"]
[8,"Estadio Municipal","X"]
[9,"Botica Municipal","X"]
[10,"Terminal terrestre","X"]
[11,"Mercado","X"]
[12,"Comercio ambulatorio","X"]
[]
[null,"FUNCIONARIO RESPONSABLE DE BRINDAR INFORMACIÓN",null,"ESPECIALISTA ENCARGADO DE APLICAR CARGO"]
[]
[]
[null,"CARGO",null,"CARGO (Opcional)"]
[]
[]
[null,"D.N.I.",null,"D.N.I."]
[]
[]
[null,"FIRMA",null,"FIRMA"]

{"sheet":"Encuesta3_ServProg_Sociales","index":14,"n_rows":65,"n_cols":7,"rows_kept":65,"cut":false,"hidden":false,"merged":[[55,3,55,4],[56,3,56,4],[61,3,61,4],[64,3,64,4],[65,1,68,1],[65,3,68,4],[59,3,59,4],[58,3,58,4],[62,3,62,4],[5,1,5,4],[18,0,19,0],[18,1,19,1],[18,2,18,3],[18,4,19,4],[16,0,16,4],[38,1,38,4],[44,1,44,4],[49,1,49,4],[20,1,20,4],[21,1,21,4],[27,1,27,4],[34,1,34,4]]}
[]
[]
[]
[]
[null,null,null,null,null,null,"RETORNAR"]
[null,"CUESTIONARIO DE CONSULTA PARA CARACTERIZACIÓN DE MUNICIPALIDADES"]
[null,"MUNICIPALIDAD: …………………………………………………………………………………………………………………..","PROVINCIA:  ………………………….",null,"DEPARTAMENTO:  ……………………….……………"]
[]
[null,"De ser una Municipalidad de reciente creacion especificar  cual es la :",null,null,"CONDICION:"]
[null,"MUNICIPALIDAD ADMINISTRADORA: …………………………………………………………………………………………………………..…",null,null,"RECIENTE CREACIÓN","X"]
[]
[null,"MUNICIPALIDAD ADMINISTRADORA: …………………………………………………………………………………………………………..…",null,null,"ADMINISTRACION REGULAR","X"]
[]
[null,"FECHA"]
[]
[]
["SERVICIOS  Y/O PROGRAMAS SOCIALES EN CONSULTA"]
[]
["N°","Preguntas","Marcar con un aspa \n( x )",null,"Comentario y Documentos Sustentatorios\n(en algunos casos el comentario se genera automáticamente en caso la respuesta sea afirmativa)"]
[null,null,"Sí","No"]
["III.","SERVICIOS  Y/O PROGRAMAS SOCIALES"]
["III.1","FOCALIZACIÓN DE HOGARES (SISFOH) - MIDIS"]
[1,"¿Tiene implementada una Unidad Local de Empadronamiento - ULE?","X",null,"Adjuntar Ordenanza/ROF que aprueba la unidad orgánica"]
[2,"¿Tiene instalado el Sistema de Empadronamiento (aplicativo informático) del MIDIS ?","X",null,"Adjuntar usuario y clave del Sistema"]
[3,"¿Tiene designado un responsable del registro de la ULE ante la Dirección de Operaciones de Focalización del MIDIS?","X",null,"Adjuntar Resolución de Alcaldía"]
[4,"¿Tiene designado un responsable formal del envió de las Declaraciones Juradas, fichas de empadronamiento a la Dirección de Operaciones de Focalización del MIDIS?","X",null,"Adjuntar Resolución de Alcaldía"]
[5,"¿Cuenta con un Diagnóstico sobre la brecha de empadronamiento a los programas sociales existente en su distrito?","X",null,"Adjuntar Diagnóstico"]
["III.2","ATENCIÓN DE LAS PERSONAS CON DISCAPACIDAD (OMAPED) - CONADIS"]
[1,"¿Tiene implementada la Oficina Municipal de Atención a las Personas con Discapacidad - OMAPED?","X",null,"Adjuntar Ordenanza/ROF que aprueba la unidad orgánica"]
[2,"¿Tiene aprobado el perfil del funcionario responsable de la OMAPED?","X",null,"Adjuntar Resolución de Alcaldía"]
[3,"¿Tiene un padrón (listado, relación) de las personas con discapacidad en su localidad?","X",null,"Adjuntar Padrón de las personas con discapacidad"]
[4,"¿Tiene asignada partida presupuestaria para atención de los programas y proyectos de las personas con discapacidad?","X",null,"Adjuntar Reporte de partida presupuestaria"]
[5,"¿A cuánto ascendió la ejecución presupuestaria para la atención de los programas y proyectos de las personas con discapacidad?","X",null,"Adjuntar Reporte de ejecución presupuestaria"]
[6,"¿A efectuado campañas de sensibilización e información en temas relacionados con la discapacidad?","X",null,"Adjuntar el Informe de ejecución de capacitaciones"]
["III.3","COMUNIDADES NATIVAS Y PUEBLOS INDIGENAS  - MINCUL"]
[1,"¿Existen comunidades nativas en su jurisdicción?","X"]
[2,"¿Tiene identificado las comunidades nativas en su jurisdicción?","X",null,"Adjuntar relación de comunidades nativas"]
[3,"¿Presta asistencia técnica a las comunidades nativas en su jurisdicción?","X",null,"Adjuntar informe"]
["III.4","ATENCIÓN DE LA DEFENSORÍA MUNICIPAL DEL NIÑO, NIÑA Y ADOLESCENTE (DEMUNA) - MIDIS"]
[1,"¿Ha implementado la Unidad de Defensoría Municipal del Niño, Niña y Adolescente - DEMUNA?","X",null,"Adjuntar Ordenanza/ROF que aprueba la unidad orgánica"]
[2,"¿Tiene designado un responsable de la DEMUNA?","X"]
[3,"¿Tiene asignada partida presupuestaria para atención de los programas y proyectos de la DEMUNA?","X",null,"Adjuntar Reporte de partida presupuestaria"]
[4,"¿A cuánto ascendió la ejecución presupuestaria para la atención de los programas y proyectos de la DEMUNA?","X",null,"Adjuntar Reporte de ejecución presupuestaria"]
[5,"¿Tiene la relación de expedientes de los casos que se han asistido y los que están en procesos?","X",null,"Adjuntar relación de expedientes"]
["III.5","CENTRO INTEGRAL DE ATENCIÓN AL ADULTO MAYOR (CIAM) - MIMP"]
[1,"¿Tiene implementado el Centro Integral de Atención del Adulto Mayor?","X",null,"Adjuntar Ordenanza/ROF que aprueba la unidad orgánica"]
[2,"¿Tiene  Programas relacionados a la Atención del Adulto Mayor?","X",null,"Adjuntar relación"]
[3,"¿ Tiene el registro (relación) de beneficiarios de los Programas de atención del adulto mayor?","X",null,"Adjuntar registros"]
[4,"¿Tiene informes de actividades ejecutadas?","X",null,"Adjuntar informes"]
["III.6","PROGRAMA DEL VASO DE LECHE (PVL) - MIMP"]
[1,"¿Tiene implementado el Programa del Vaso de Leche?","X",null,"Adjuntar Ordenanza/ROF que aprueba la unidad orgánica"]
[2,"¿Tiene un Registro de beneficiarios del Programa del Vaso de Leche?","X",null,"Adjuntar registros"]
[3,"¿ Tiene un Registro de Recepción, Almacenamiento y Distribución de productos del Programa Vaso de Leche?","X",null,"Adjuntar registros"]
[4,"¿Tiene Informes de control y seguimiento del Programa del Vaso de Leche?","X",null,"Adjuntar Informe"]
[]
[null,"FUNCIONARIO RESPONSABLE DE BRINDAR INFORMACIÓN",null,"ESPECIALISTA ENCARGADO DE APLICAR CARGO"]
[]
[]
[null,"CARGO",null,"CARGO (Opcional)"]
[]
[]
[null,"D.N.I.",null,"D.N.I."]
[]
[]
[null,"FIRMA",null,"FIRMA"]

{"sheet":"Cuadro Resumen 3","index":15,"n_rows":17,"n_cols":18,"rows_kept":17,"cut":false,"hidden":true,"merged":[[8,0,8,4]]}
[]
[]
[]
[]
[null,null,null,null,null,null,null,null,null,null,null,null,null,null,null,null,null,"RETORNAR"]
[]
[]
[]
[]
[]
["N°","SERVICIOS Y/O PROGRAMAS SOCIALES","Si","No","Índice de Nivel de Desarrollo"]
["III.4","SISTEMA PARA LA ATENCIÓN DE LA DEFENSORÍA MUNICIPAL DEL NIÑO, NIÑA Y ADOLESCENTE",5,0,1]
["III.1","FOCALIZACIÓN DE HOGARES",3,2,0.6]
["III.2","ATENCIÓN DE LAS PERSONAS CON DISCAPACIDAD",1,5,0.16666666666666666]
["III.3","COMUNIDADES NATIVAS Y PUEBLOS INDIGENAS ",0,3,0]
["III.5","CENTRO INTEGRAL DE ATENCIÓN AL ADULTO MAYOR",0,4,0]
["III.6","PROGRAMA DEL VASO DE LECHE (PVL) - MIMP",0,4,0]

{"sheet":"Cuadro Resumen 2","index":16,"n_rows":28,"n_cols":18,"rows_kept":28,"cut":false,"hidden":true,"merged":[[8,0,8,4]]}
[]
[]
[]
[]
[null,null,null,null,null,null,null,null,null,null,null,null,null,null,null,null,null,"RETORNAR"]
[]
[]
[]
[]
[]
["N°","SERVICIOS MUNICIPALES LOCALES","Si","No","Índice de Nivel de Desarrollo"]
["II.03","LICENCIAS Y AUTORIZACIONES DE FUNCIONAMIENTO  - MVCS",2,0,1]
["II.13","REGISTRO DE HECHOS VITALES  - RENIEC",3,0,1]
["II.05","ABASTECIMIENTO DE AGUA DULCE Y/O TRATADA",3,2,0.6]
["II.02","SISTEMA DE SEGURIDAD Y DEFENSA NACIONAL",2,2,0.5]
["II.16","DESARROLLO ECONÓMICO LOCAL",1,6,0.14285714285714285]
["II.17","SERVICIOS NO EXCLUSIVOS",1,11,8.3333333333333329E-2]
["II.01","ADMINISTRACIÓN TRIBUTARIA - RENTAS",0,4,0]
["II.04","GESTIÓN AMBIENTAL - MINAM",0,5,0]
["II.06","LIMPIEZA PÚBLICA Y ÁREAS VERDES",0,5,0]
["II.07","FISCALIZACIÓN (AMBIENTAL/TRIBUTARIA/SERVICIOS MUNICIPALES)",0,7,0]
["II.08","EJECUCIÓN COACTIVA",0,6,0]
["II.09","EDUCACIÓN, CULTURA, DEPORTES Y RECREACIÓN",0,5,0]
["II.10","PARTICIPACIÓN Y CONTROL VECINAL",0,2,0]
["II.11","SALUBRIDAD",0,4,0]
["II.12","TRÁNSITO, CIRCULACIÓN Y TRANSPORTE PÚBLICO - MTC",0,3,0]
["II.14","ORGANIZACIÓN DEL ESPACIO FÍSICO Y USO DEL SUELO  - MVCS",0,12,0]
["II.15","DESARROLLO ECONÓMICO DEL SECTOR TURISMO",0,10,0]

{"sheet":"Cuadro Resumen 1","index":17,"n_rows":24,"n_cols":18,"rows_kept":24,"cut":false,"hidden":true,"merged":[[8,0,8,4]]}
[]
[]
[]
[]
[null,null,null,null,null,null,null,null,null,null,null,null,null,null,null,null,null,"RETORNAR"]
[]
[]
[]
[]
[]
["N°","SISTEMAS ADMINISTRATIVOS","Si","No","Índice de Nivel de Desarrollo"]
["I.07","CONTRATACIONES DEL ESTADO - OSCE",4,1,0.8]
["I.01","PRESUPUESTO - MEF",4,3,0.5714285714285714]
["I.03","TESORERÍA - MEF",4,3,0.5714285714285714]
["I.06","PLANEAMIENTO ESTRATÉGICO - CEPLAN",4,3,0.5714285714285714]
["I.01.01","PROGRAMA DE INCENTIVOS - MEF",1,1,0.5]
["I.05","INVERSIÓN PÚBLICA - MEF",3,7,0.3]
["I.02","CONTABILIDAD PÚBLICA - MEF",2,5,0.2857142857142857]
["I.09","MODERNIZACIÓN DEL ESTADO - SGP",2,5,0.2857142857142857]
["I.10","RECURSOS HUMANOS  - SERVIR",2,13,0.13333333333333333]
["I.04","ENDEUDAMIENTO SIN GARANTIA - MEF",0,3,0]
["I.08","DEFENSA JURÍDICA DEL ESTADO - MINJUS",0,4,0]
["I.11","REGISTRO DE BIENES DEL ESTADO - SBN",0,9,0]
["I.12","ACERVO DOCUMENTARIO - AGN",0,3,0]

{"sheet":"I.1_SISFOH","index":18,"n_rows":34,"n_cols":14,"rows_kept":34,"cut":false,"hidden":true,"merged":[[29,3,29,10],[8,4,8,9],[9,4,9,6],[9,7,9,9],[10,4,10,6],[10,7,10,9]]}
[]
[]
[]
[]
[null,null,null,null,null,null,null,null,null,null,null,null,null,"RETORNAR"]
[]
[]
[]
[null,null,null,null,"GRADO DE IMPLEMENTACIÓN"]
[null,null,null,null,"Implementado",null,null,"Por Implementar"]
[null,null,null,null,3,null,null,1]
[]
[]
[]
[]
[]
[]
[]
[]
[]
[]
[]
[]
[]
[]
[]
[]
[]
[]
[null,null,null,"HOJA DE RUTA  PARA LA IMPLEMENTACIÓN DE ACCIONES"]
[null,null,null,"1. Designar un responsable formal del envio de las Declaraciones Juradas, fichas de empadronamiento a la Dirección de Operaciones de Focalización del MIDIS"]
[null,null,null,"2. Solicitar la instalación del Sistema de Empadronamiento (aplicativo informático) del MIDIS "]
[null,null,null,"3. Designar un responsable formal del envio de las Declaraciones Juradas, fics de empadronamiento a la Dirección de Operaciones de Focalización del MIDIS"]
[null,null,null,"4. Elaborar o solicitar se elabore un Diagnóstico sobre la brecha de empadronamiento a los programas sociales existente en su distrito"]

{"sheet":"I.2_DIS","index":19,"n_rows":32,"n_cols":14,"rows_kept":32,"cut":false,"hidden":true,"merged":[[29,3,29,10],[8,4,8,9],[9,4,9,6],[9,7,9,9],[10,4,10,6],[10,7,10,9]]}
[]
[]
[]
[]
[null,null,null,null,null,null,null,null,null,null,null,null,null,"RETORNAR"]
[]
[]
[]
[null,null,null,null,"GRADO DE IMPLEMENTACIÓN"]
[null,null,null,null,"Implementado",null,null,"Por Implementar"]
[null,null,null,null,4,null,null,2]
[]
[]
[]
[]
[]
[]
[]
[]
[]
[]
[]
[]
[]
[]
[]
[]
[]
[]
[null,null,null,"HOJA DE RUTA  PARA LA IMPLEMENTACIÓN DE ACCIONES"]
[null,null,null,"1. Agignar la partida persupuestaria para atención de los programas y proyectos de las personas con discapacidad"]
[null,null,null,"2. Efectuar campañas de sensibilización e información en temas relacionados con la discapacidad"]

{"sheet":"I.3_CNYPI","index":20,"n_rows":31,"n_cols":14,"rows_kept":31,"cut":false,"hidden":true,"merged":[[29,3,29,10],[8,4,8,9],[9,4,9,6],[9,7,9,9],[10,4,10,6],[10,7,10,9]]}
[]
[]
[]
[]
[null,null,null,null,null,null,null,null,null,null,null,null,null,"RETORNAR"]
[]
[]
[]
[null,null,null,null,"GRADO DE IMPLEMENTACIÓN"]
[null,null,null,null,"Implementado",null,null,"Por Implementar"]
[null,null,null,null,2,null,null,1]
[]
[]
[]
[]
[]
[]
[]
[]
[]
[]
[]
[]
[]
[]
[]
[]
[]
[]
[null,null,null,"HOJA DE RUTA  PARA LA IMPLEMENTACIÓN DE ACCIONES"]
[null,null,null,"1. Formular la prestación de asistencia técnica a las comunidades nativas en su jurisdicción"]

{"sheet":"II.1_PPTO_MEF","index":21,"n_rows":35,"n_cols":14,"rows_kept":35,"cut":false,"hidden":true,"merged":[[8,4,8,9],[29,3,29,10],[10,4,10,6],[10,7,10,9],[9,4,9,6],[9,7,9,9]]}
[]
[]
[]
[]
[null,null,null,null,null,null,null,null,null,null,null,null,null,"RETORNAR"]
[]
[]
[]
[null,null,null,null,"GRADO DE IMPLEMENTACIÓN"]
[null,null,null,null,"Implementado",null,null,"Por Implementar"]
[null,null,null,null,5,null,null,2]
[]
[]
[]
[]
[]
[]
[]
[]
[]
[]
[]
[]
[]
[]
[]
[]
[]
[]
[null,null,null,"HOJA DE RUTA  PARA LA IMPLEMENTACIÓN DE ACCIONES"]
[null,null,null,"1. Elaborar el informae sobre techos presupuestarios por las otras fuentes de financiamiento (distinto a Recursos Ordinarios) para el periodo en el que inicia su gestión"]
[null,null,null,"2. Elaborar el informae sobre techos presupuestarios por las otras fuentes de financiamiento (distinto a Recursos Ordinarios) para el periodo en el que inicia su gestión"]
[null,null,null,"3. Solicitar el techo presupuestario por la Fuente de Financiamiento de Recursos Ordinarios para el periodo en el que inicia su gestión"]
[null,null,null,"4. Elaborar el proyecto de Presupuesto Anual a la DGPP - MEF"]
[null,null,null,"5. Elaborar el proyecto de Presupuesto Anual a la DGPP - MEF"]

{"sheet":"II.1.1_PROG_INC_MEF","index":22,"n_rows":32,"n_cols":14,"rows_kept":32,"cut":false,"hidden":true,"merged":[[29,3,29,10],[8,4,8,9],[9,4,9,6],[9,7,9,9],[10,4,10,6],[10,7,10,9]]}
[]
[]
[]
[]
[null,null,null,null,null,null,null,null,null,null,null,null,null,"RETORNAR"]
[]
[]
[]
[null,null,null,null,"GRADO DE IMPLEMENTACIÓN"]
[null,null,null,null,"Implementado",null,null,"Por Implementar"]
[null,null,null,null,0,null,null,2]
[]
[]
[]
[]
[]
[]
[]
[]
[]
[]
[]
[]
[]
[]
[]
[]
[]
[]
[null,null,null,"HOJA DE RUTA  PARA LA IMPLEMENTACIÓN DE ACCIONES"]
[null,null,null,"1. Designar un coordinador para el Programa de Incentivos en su Municipalidad"]
[null,null,null,"2. Elaborar el informe / reporte correspondiente al cumplimiento de metas correspondiente al territorio de su municipalidad"]

{"sheet":"II.2_CONT_PUB_MEF","index":23,"n_rows":33,"n_cols":14,"rows_kept":33,"cut":false,"hidden":true,"merged":[[29,3,29,10],[8,4,8,9],[9,4,9,6],[9,7,9,9],[10,4,10,6],[10,7,10,9]]}
[]
[]
[]
[]
[null,null,null,null,null,null,null,null,null,null,null,null,null,"RETORNAR"]
[]
[]
[]
[null,null,null,null,"GRADO DE IMPLEMENTACIÓN"]
[null,null,null,null,"Implementado",null,null,"Por Implementar"]
[null,null,null,null,3,null,null,4]
[]
[]
[]
[]
[]
[]
[]
[]
[]
[]
[]
[]
[]
[]
[]
[]
[]
[]
[null,null,null,"HOJA DE RUTA  PARA LA IMPLEMENTACIÓN DE ACCIONES"]
[null,null,null,"1. Emitir la Resolución de Alcaldía que nombra al responsable del manejo del Módulo contable"]
[null,null,null,"2. Solicitar la instalación del SIAF"]
[null,null,null,"3. Elaborar el calendario de pago a ESSALU, AFP, SUNAT o ONP"]

{"sheet":"II.3_TESO_MEF","index":24,"n_rows":32,"n_cols":14,"rows_kept":32,"cut":false,"hidden":true,"merged":[[29,3,29,10],[8,4,8,9],[9,4,9,6],[9,7,9,9],[10,4,10,6],[10,7,10,9]]}
[]
[]
[]
[]
[null,null,null,null,null,null,null,null,null,null,null,null,null,"RETORNAR"]
[]
[]
[]
[null,null,null,null,"GRADO DE IMPLEMENTACIÓN"]
[null,null,null,null,"Implementado",null,null,"Por Implementar"]
[null,null,null,null,5,null,null,2]
[]
[]
[]
[]
[]
[]
[]
[]
[]
[]
[]
[]
[]
[]
[]
[]
[]
[]
[null,null,null,"HOJA DE RUTA  PARA LA IMPLEMENTACIÓN DE ACCIONES"]
[null,null,null,"1. Solicitar la instalación del SIAF"]
[null,null,null,"2. Emitir la Resolución de Alcaldía que nombra al responsable del manejo de las cuentas"]

{"sheet":"II.4_ENDEUD_MEF","index":25,"n_rows":31,"n_cols":14,"rows_kept":31,"cut":false,"hidden":true,"merged":[[29,3,29,10],[8,4,8,9],[9,4,9,6],[9,7,9,9],[10,4,10,6],[10,7,10,9]]}
[]
[]
[]
[]
[null,null,null,null,null,null,null,null,null,null,null,null,null,"RETORNAR"]
[]
[]
[]
[null,null,null,null,"GRADO DE IMPLEMENTACIÓN"]
[null,null,null,null,"Implementado",null,null,"Por Implementar"]
[null,null,null,null,3,null,null,0]
[]
[]
[]
[]
[]
[]
[]
[]
[]
[]
[]
[]
[]
[]
[]
[]
[]
[]
[null,null,null,"HOJA DE RUTA  PARA LA IMPLEMENTACIÓN DE ACCIONES"]
[null,null,null,"1. Emitir la Resolución que designa al personal para realizar operaciones de endeudamiento sin garantía"]

{"sheet":"II.5_INV_PUB_MEF","index":26,"n_rows":35,"n_cols":14,"rows_kept":35,"cut":false,"hidden":true,"merged":[[34,3,34,13],[29,3,29,10],[8,4,8,9],[9,4,9,6],[9,7,9,9],[10,4,10,6],[10,7,10,9]]}
[]
[]
[]
[]
[null,null,null,null,null,null,null,null,null,null,null,null,null,"RETORNAR"]
[]
[]
[]
[null,null,null,null,"GRADO DE IMPLEMENTACIÓN"]
[null,null,null,null,"Implementado",null,null,"Por Implementar"]
[null,null,null,null,4,null,null,6]
[]
[]
[]
[]
[]
[]
[]
[]
[]
[]
[]
[]
[]
[]
[]
[]
[]
[]
[null,null,null,"HOJA DE RUTA  PARA LA IMPLEMENTACIÓN DE ACCIONES"]
[null,null,null,"1. Implementar un Oficina de Programa Multianual de Inversión Pública"]
[null,null,null,"2. Elaborar Planes de Trabajo -PT- o Términos de Referencia -  TdR- para la elaboración de proyectos y otras inversiones"]
[null,null,null,"3. Elaborar la priorización de proyectos"]
[null,null,null,"4. Elaborar la priorización de proyectos"]
[null,null,null,"5. De corresponder firmar Convenios con otros pliegos del gobierno nacional, gobierno regional y gobierno local relacionados a transferencias de recursos para ejecutar proyectos de inversión pública"]

{"sheet":"II.6_PLAN_EST_CEPLAN","index":27,"n_rows":35,"n_cols":14,"rows_kept":35,"cut":false,"hidden":true,"merged":[[29,3,29,10],[8,4,8,9],[9,4,9,6],[9,7,9,9],[10,4,10,6],[10,7,10,9]]}
[]
[]
[]
[]
[null,null,null,null,null,null,null,null,null,null,null,null,null,"RETORNAR"]
[]
[]
[]
[null,null,null,null,"GRADO DE IMPLEMENTACIÓN"]
[null,null,null,null,"Implementado",null,null,"Por Implementar"]
[null,null,null,null,3,null,null,4]
[]
[]
[]
[]
[]
[]
[]
[]
[]
[]
[]
[]
[]
[]
[]
[]
[]
[]
[null,null,null,"HOJA DE RUTA  PARA LA IMPLEMENTACIÓN DE ACCIONES"]
[null,null,null,"1. Elaborar el Plan de Desarrollo Local Concertado - PDLC"]
[null,null,null,"2. Elaborar el Plan Operativo Institucional - POI"]
[null,null,null,"3. Elaborar el Presupuesto Participativo del Municipio"]
[null,null,null,"4. Elaborar el Presupuesto Participativo del Municipio"]
[null,null,null,"5. Solicitar el registro para acceder al aplicativo CEPLAN"]

{"sheet":"II.7_CONTR_EST_OSCE","index":28,"n_rows":34,"n_cols":14,"rows_kept":34,"cut":false,"hidden":true,"merged":[[29,3,29,10],[8,4,8,9],[9,4,9,6],[9,7,9,9],[10,4,10,6],[10,7,10,9]]}
[]
[]
[]
[]
[null,null,null,null,null,null,null,null,null,null,null,null,null,"RETORNAR"]
[]
[]
[]
[null,null,null,null,"GRADO DE IMPLEMENTACIÓN"]
[null,null,null,null,"Implementado",null,null,"Por Implementar"]
[null,null,null,null,3,null,null,3]
[]
[]
[]
[]
[]
[]
[]
[]
[]
[]
[]
[]
[]
[]
[]
[]
[]
[]
[null,null,null,"HOJA DE RUTA  PARA LA IMPLEMENTACIÓN DE ACCIONES"]
[null,null,null,"1. Registrar los correspondientes procesos de contratrataciones de compras menores a 8 UIT de la Municipalidad"]
[null,null,null,"2. Registrar los correspondientes procesos de contratrataciones de compras dentro del marco normativo de la Ley de Contrataciones de la Municipalidad"]
[null,null,null,"3. Registrar los correspondientes procesos de contratrataciones de compras dentro del marco normativo de la Ley de Contrataciones de la Municipalidad"]
[null,null,null,"4. Registrar los correspondientes procesos de contratrataciones de compras dentro del marco normativo de la Ley de Contrataciones de la Municipalidad"]

{"sheet":"II.9_MODER_ESTADO","index":29,"n_rows":34,"n_cols":14,"rows_kept":34,"cut":false,"hidden":true,"merged":[[29,3,29,10],[8,4,8,9],[9,4,9,6],[9,7,9,9],[10,4,10,6],[10,7,10,9]]}
[]
[]
[]
[]
[null,null,null,null,null,null,null,null,null,null,null,null,null,"RETORNAR"]
[]
[]
[]
[null,null,null,null,"GRADO DE IMPLEMENTACIÓN"]
[null,null,null,null,"Implementado",null,null,"Por Implementar"]
[null,null,null,null,3,null,null,4]
[]
[]
[]
[]
[]
[]
[]
[]
[]
[]
[]
[]
[]
[]
[]
[]
[]
[]
[null,null,null,"HOJA DE RUTA  PARA LA IMPLEMENTACIÓN DE ACCIONES"]
[null,null,null,"1. Formular un Reglamento de Organización y Funciones - ROF"]
[null,null,null,"2. Formular el Texto Único de Procedimientos Administrativos - TUPA"]
[null,null,null,"3. Designar al responsable de brindar información de acceso público, en concordancia con la Ley de Transparencia de Acceso Público?"]
[null,null,null,"4. Designar al responsable de brindar información de acceso público, en concordancia con la Ley de Transparencia de Acceso Público?"]

{"sheet":"II.8_DEF_JURID_ESTADO","index":30,"n_rows":32,"n_cols":14,"rows_kept":32,"cut":false,"hidden":true,"merged":[[29,3,29,10],[8,4,8,9],[9,4,9,6],[9,7,9,9],[10,4,10,6],[10,7,10,9]]}
[]
[]
[]
[]
[null,null,null,null,null,null,null,null,null,null,null,null,null,"RETORNAR"]
[]
[]
[]
[null,null,null,null,"GRADO DE IMPLEMENTACIÓN"]
[null,null,null,null,"Implementado",null,null,"Por Implementar"]
[null,null,null,null,3,null,null,1]
[]
[]
[]
[]
[]
[]
[]
[]
[]
[]
[]
[]
[]
[]
[]
[]
[]
[]
[null,null,null,"HOJA DE RUTA  PARA LA IMPLEMENTACIÓN DE ACCIONES"]
[null,null,null,"1. Tomar conocimiento de la etapa del proceso, en la materia, la contingencia generada y cuanto se le adeuda a lamunicipalidad"]
[null,null,null,"2. Tomar conocimiento de la etapa del proceso, en la materia, la contingencia generada y cuanto se le adeuda a lamunicipalidad"]

{"sheet":"II.10_REC_HUM","index":31,"n_rows":37,"n_cols":14,"rows_kept":37,"cut":false,"hidden":true,"merged":[[29,3,29,10],[8,4,8,9],[9,4,9,6],[9,7,9,9],[10,4,10,6],[10,7,10,9]]}
[]
[]
[]
[]
[null,null,null,null,null,null,null,null,null,null,null,null,null,"RETORNAR"]
[]
[]
[]
[null,null,null,null,"GRADO DE IMPLEMENTACIÓN"]
[null,null,null,null,"Implementado",null,null,"Por Implementar"]
[null,null,null,null,6,null,null,9]
[]
[]
[]
[]
[]
[]
[]
[]
[]
[]
[]
[]
[]
[]
[]
[]
[]
[]
[null,null,null,"HOJA DE RUTA  PARA LA IMPLEMENTACIÓN DE ACCIONES"]
[null,null,null,"1. Elaborar y aprobar el Cuadro para Asignación de Personal Provisional - CAP-Provisional"]
[null,null,null,"2. Elaborar y a Aprobar el Manual de Perfiles de Puestos - MPP / Perfiles de Puestos / Terminos de Referencia"]
[null,null,null,"3. Organizar y realiza el mantenimiento de los legajos personales del personal nombrado y contratado"]
[null,null,null,"4. Elaborar un Cuadro General de Deudas Judiciales y Administrativas"]
[null,null,null,"5. Elaborar la planilla única de pago y abono de remuneraciones mensuales"]
[null,null,null,"6. Elaborar / Aprobar la Formulación del Diagnóstico y Plan de Desarrollo de las Personas"]
[null,null,null,"7. Desarrollar las reglas del Régimen Disciplinario y Procedimiento Sancionador que establece la Ley N° 30057, Ley del Servicio Civil y su Reglamento General"]